Workbook

Sheet Macro (hidden)

Sheet Overview

Sheet Select School
B3: =VLOOKUP(C3,SchList!$I$1:$J$499,2,FALSE) -> 9999 | C3: 1

Sheet Reading
A2: Click here to return to the school and sheet selection interface
A3: ='Select School'!B3 -> 9999
A4: =TEXT(A3,"0000")&"-"&VLOOKUP(A3,SchList!$A$2:$B$504,2,FALSE) -> 9999-District
A5: Reading - Grade 9 | Q5: READING
A6: Satisfactory Progress Cut Scores at 66% or above | B6: Total # of Students | C6: % of Students Tested | D6: ='G9-10 Matrix'!C$2&" ["&'G9-10 Matrix'!C3&"]" -> Overall [50] | F6: ='G9-10 Matrix'!D$2&" ["&'G9-10 Matrix'!D3&"]" -> Vocabulary [12] | H6: ='G9-10 Matrix'!E$2&" ["&'G9-10 Matrix'!E3&"]" -> Reading Application [19] | J6: ='G9-10 Matrix'!F$2&" ["&'G9-10 Matrix'!F3&"]" -> Literary Analysis Fiction/Nonfiction [10] | L6: ='G9-10 Matrix'!G$2&" ["&'G9-10 Matrix'!G3&"]" -> Informational Text/ Research Process [9] | Q6: Grade 9 Test | S6: Overall | V6: Number Sense | Y6: Measurement | AB6: Geometry | AE6: Algrebraic Thinking | AH6: Data Analysis
D7: Average Score | E7: % Satisfactory | F7: Average Score | G7: % Satisfactory | H7: Average Score | I7: % Satisfactory | J7: Average Score | K7: % Satisfactory | L7: Average Score | M7: % Satisfactory | Q7: Number Tested | S7: AVG Combined | T7: % Prof Combined | U7: Number Prof Combined | V7: AVG Combined | W7: % Prof Combined | X7: Number Prof Combined | Y7: AVG Combined | Z7: % Prof Combined | AA7: Number Prof Combined | AB7: AVG Combined | AC7: % Prof Combined | AD7: Number Prof Combined | AE7: AVG Combined | AF7: % Prof Combined | AG7: Number Prof Combined | AH7: AVG Combined | AI7: % Prof Combined | AJ7: Number Prof Combined
A8: All students | B8: =IFERROR(VLOOKUP(TEXT($A$3,"0000"),Mem_All!$A$2:$S$500,13,FALSE),0) -> 27669 | C8: =IFERROR((IF(OR(B8=0,B8="",B8="NA"),"NA",((IF(VLOOKUP($A$3,'G9-RALL'!$A$6:$AM$500,3,FALSE)>=B8,"100% ("&VLOOKUP($A$3,'G9-RALL'!$A$6:$AM$500,3,FALSE)&")",(ROUND((VLOOKUP($A$3,'G9-RALL'!$A$6:$AM$500,3,FALSE)/B8*100),0))&"% ("&IF(VLOOKUP($A$3,'G9-RALL'!$A$6:$AM$500,3,FALSE)="",0,VLOOKUP($A$3,'G9-RALL'!$A$6:$AM$500,3,FALSE))&")"))))),"0% (0)") -> 92% (25373) | D8: =IFERROR((IF($C8="NA","NA",VLOOKUP($A$3,'G9-RALL'!$A$6:$AM$500,4,FALSE))),"NA") -> 29.09655539 | E8: =IFERROR((IF($C8="NA","NA",ROUND(VLOOKUP($A$3,'G9-RALL'!$A$6:$AM$500,6,FALSE),0)&"% ("&IF(VLOOKUP($A$3,'G9-RALL'!$A$6:$AM$500,5,FALSE)="",0,VLOOKUP($A$3,'G9-RALL'!$A$6:$AM$500,5,FALSE))&")")),"NA") -> 43% (10868) | F8: =IFERROR((IF($C8="NA","NA",VLOOKUP($A$3,'G9-RALL'!$A$6:$AM$500,7,FALSE))),"NA") -> 7.325909431 | G8: NA | H8: =IFERROR((IF($C8="NA","NA",VLOOKUP($A$3,'G9-RALL'!$A$6:$AM$500,10,FALSE))),"NA") -> 12.22030505 | I8: NA | J8: =IFERROR((IF($C8="NA","NA",VLOOKUP($A$3,'G9-RALL'!$A$6:$AM$500,13,FALSE))),"NA") -> 5.457844953 | K8: NA | L8: =IFERROR((IF($C8="NA","NA",VLOOKUP($A$3,'G9-RALL'!$A$6:$AM$500,16,FALSE))),"NA") -> 4.080538368 | M8: NA | Q8: =IFERROR(VLOOKUP($A$3,'G9-RALL'!$A$6:$BX$500,3,FALSE),"not tested") -> 25373 | S8: =SUM(VLOOKUP($A$3,'GEO-ALL'!$A$14:$AA$500,4,FALSE)*$Q8,VLOOKUP($A$3,'GEO-ALL'!$A$14:$AA$500,41,FALSE)*$R8)/SUM($Q8,$R8) ->  | T8: =SUM(VLOOKUP($A$3,'GEO-ALL'!$A$14:$AA$500,7,FALSE),VLOOKUP($A$3,'GEO-ALL'!$A$14:$AA$500,44,FALSE))/SUM($Q8:$R8)*100 ->  | U8: =SUM(VLOOKUP($A$3,'GEO-ALL'!$A$14:$AA$500,7,FALSE),VLOOKUP($A$3,'GEO-ALL'!$A$14:$AA$500,44,FALSE)) ->  | V8: =SUM(VLOOKUP($A$3,'GEO-ALL'!$A$14:$AA$500,10,FALSE)*$Q8,VLOOKUP($A$3,'GEO-ALL'!$A$14:$AA$500,47,FALSE)*$R8)/SUM($Q8,$R8) ->  | W8: =SUM(VLOOKUP($A$3,'GEO-ALL'!$A$14:$AA$500,8,FALSE),VLOOKUP($A$3,'GEO-ALL'!$A$14:$AA$500,50,FALSE))/SUM($Q8:$R8)*100 ->  | X8: =SUM(VLOOKUP($A$3,'GEO-ALL'!$A$14:$AA$500,8,FALSE),VLOOKUP($A$3,'GEO-ALL'!$A$14:$AA$500,50,FALSE)) ->  | Y8: =SUM(VLOOKUP($A$3,'GEO-ALL'!$A$14:$AA$500,16,FALSE)*$Q8,VLOOKUP($A$3,'GEO-ALL'!$A$14:$AA$500,53,FALSE)*$R8)/SUM($Q8,$R8) ->  | Z8: =SUM(VLOOKUP($A$3,'GEO-ALL'!$A$14:$AA$500,19,FALSE),VLOOKUP($A$3,'GEO-ALL'!$A$14:$AA$500,56,FALSE))/SUM($Q8:$R8)*100 ->  | AA8: =SUM(VLOOKUP($A$3,'GEO-ALL'!$A$14:$AA$500,19,FALSE),VLOOKUP($A$3,'GEO-ALL'!$A$14:$AA$500,56,FALSE)) ->  | AB8: =SUM(VLOOKUP($A$3,'GEO-ALL'!$A$14:$AA$500,22,FALSE)*$Q8,VLOOKUP($A$3,'GEO-ALL'!$A$14:$AA$500,59,FALSE)*$R8)/SUM($Q8,$R8) ->  | AC8: =SUM(VLOOKUP($A$3,'GEO-ALL'!$A$14:$AA$500,25,FALSE),VLOOKUP($A$3,'GEO-ALL'!$A$14:$AA$500,62,FALSE))/SUM($Q8:$R8)*100 ->  | AD8: =SUM(VLOOKUP($A$3,'GEO-ALL'!$A$14:$AA$500,25,FALSE),VLOOKUP($A$3,'GEO-ALL'!$A$14:$AA$500,62,FALSE)) ->  | AE8: =SUM(VLOOKUP($A$3,'GEO-ALL'!$A$14:$AA$500,28,FALSE)*$Q8,VLOOKUP($A$3,'GEO-ALL'!$A$14:$AA$500,65,FALSE)*$R8)/SUM($Q8,$R8) ->  | AF8: =SUM(VLOOKUP($A$3,'GEO-ALL'!$A$14:$AA$500,31,FALSE),VLOOKUP($A$3,'GEO-ALL'!$A$14:$AA$500,68,FALSE))/SUM($Q8:$R8)*100 ->  | AG8: =SUM(VLOOKUP($A$3,'GEO-ALL'!$A$14:$AA$500,31,FALSE),VLOOKUP($A$3,'GEO-ALL'!$A$14:$AA$500,68,FALSE)) ->  | AH8: =SUM(VLOOKUP($A$3,'GEO-ALL'!$A$14:$AA$500,34,FALSE)*$Q8,VLOOKUP($A$3,'GEO-ALL'!$A$14:$AA$500,71,FALSE)*$R8)/SUM($Q8,$R8) ->  | AI8: =SUM(VLOOKUP($A$3,'GEO-ALL'!$A$14:$AA$500,37,FALSE),VLOOKUP($A$3,'GEO-ALL'!$A$14:$AA$500,74,FALSE))/SUM($Q8:$R8)*100 ->  | AJ8: =SUM(VLOOKUP($A$3,'GEO-ALL'!$A$14:$AA$500,37,FALSE),VLOOKUP($A$3,'GEO-ALL'!$A$14:$AA$500,74,FALSE)) -> 
A9: FCAT Level 1 | B9: =IFERROR(VLOOKUP(TEXT($A$3,"0000"),MEM_RL1!$A$2:$S$500,10,FALSE),0) -> 4689 | C9: =IFERROR((IF(OR(B9=0,B9="",B9="NA"),"NA",((IF(VLOOKUP($A$3,'G9-RL1'!$A$6:$AM$506,3,FALSE)>=B9,"100% ("&VLOOKUP($A$3,'G9-RL1'!$A$6:$AM$506,3,FALSE)&")",(ROUND((VLOOKUP($A$3,'G9-RL1'!$A$6:$AM$506,3,FALSE)/B9*100),0))&"% ("&IF(VLOOKUP($A$3,'G9-RL1'!$A$6:$AM$506,3,FALSE)="",0,VLOOKUP($A$3,'G9-RL1'!$A$6:$AM$506,3,FALSE))&")"))))),"0% (0)") -> 94% (4404) | D9: =IFERROR((IF($C9="NA","NA",VLOOKUP($A$3,'G9-RL1'!$A$6:$AM$506,4,FALSE))),"NA") -> 18.68764759 | E9: =IFERROR((IF($C9="NA","NA",ROUND(VLOOKUP($A$3,'G9-RL1'!$A$6:$AM$506,6,FALSE),0)&"% ("&IF(VLOOKUP($A$3,'G9-RL1'!$A$6:$AM$506,5,FALSE)="",0,VLOOKUP($A$3,'G9-RL1'!$A$6:$AM$506,5,FALSE))&")")),"NA") -> 3% (114) | F9: =IFERROR((IF($C9="NA","NA",VLOOKUP($A$3,'G9-RL1'!$A$6:$AM$506,7,FALSE))),"NA") -> 4.436557675 | G9: NA | H9: =IFERROR((IF($C9="NA","NA",VLOOKUP($A$3,'G9-RL1'!$A$6:$AM$506,10,FALSE))),"NA") -> 7.961989101 | I9: NA | J9: =IFERROR((IF($C9="NA","NA",VLOOKUP($A$3,'G9-RL1'!$A$6:$AM$506,13,FALSE))),"NA") -> 3.408310627 | K9: NA | L9: =IFERROR((IF($C9="NA","NA",VLOOKUP($A$3,'G9-RL1'!$A$6:$AM$506,16,FALSE))),"NA") -> 2.878792007 | M9: NA | Q9: =IFERROR(VLOOKUP($A$3,'G9-RL1'!$A$6:$BX$506,3,FALSE),"not tested") -> 4404 | S9: =SUM(VLOOKUP($A$3,'GEO-L1'!$A$14:$BX$500,4,FALSE)*$Q9,VLOOKUP($A$3,'GEO-L1'!$A$14:$BX$500,41,FALSE)*$R9)/SUM($Q9,$R9) -> 14.07379603 | T9: =SUM(VLOOKUP($A$3,'GEO-L1'!$A$14:$BX$500,7,FALSE),VLOOKUP($A$3,'GEO-L1'!$A$14:$BX$500,44,FALSE))/SUM($Q9:$R9)*100 -> 0.319568484 | U9: =SUM(VLOOKUP($A$3,'GEO-L1'!$A$14:$BX$500,7,FALSE),VLOOKUP($A$3,'GEO-L1'!$A$14:$BX$500,44,FALSE)) -> 14.07379603 | V9: =SUM(VLOOKUP($A$3,'GEO-L1'!$A$14:$BX$500,10,FALSE)*$Q9,VLOOKUP($A$3,'GEO-L1'!$A$14:$BX$500,47,FALSE)*$R9)/SUM($Q9,$R9) -> 0 | W9: =SUM(VLOOKUP($A$3,'GEO-L1'!$A$14:$BX$500,8,FALSE),VLOOKUP($A$3,'GEO-L1'!$A$14:$BX$500,50,FALSE))/SUM($Q9:$R9)*100 -> 0 | X9: =SUM(VLOOKUP($A$3,'GEO-L1'!$A$14:$BX$500,8,FALSE),VLOOKUP($A$3,'GEO-L1'!$A$14:$BX$500,50,FALSE)) -> 0 | Y9: =SUM(VLOOKUP($A$3,'GEO-L1'!$A$14:$BX$500,16,FALSE)*$Q9,VLOOKUP($A$3,'GEO-L1'!$A$14:$BX$500,53,FALSE)*$R9)/SUM($Q9,$R9) -> 0 | Z9: =SUM(VLOOKUP($A$3,'GEO-L1'!$A$14:$BX$500,19,FALSE),VLOOKUP($A$3,'GEO-L1'!$A$14:$BX$500,56,FALSE))/SUM($Q9:$R9)*100 -> 0 | AA9: =SUM(VLOOKUP($A$3,'GEO-L1'!$A$14:$BX$500,19,FALSE),VLOOKUP($A$3,'GEO-L1'!$A$14:$BX$500,56,FALSE)) -> 0 | AB9: =SUM(VLOOKUP($A$3,'GEO-L1'!$A$14:$BX$500,22,FALSE)*$Q9,VLOOKUP($A$3,'GEO-L1'!$A$14:$BX$500,59,FALSE)*$R9)/SUM($Q9,$R9) -> 0 | AC9: =SUM(VLOOKUP($A$3,'GEO-L1'!$A$14:$BX$500,25,FALSE),VLOOKUP($A$3,'GEO-L1'!$A$14:$BX$500,62,FALSE))/SUM($Q9:$R9)*100 -> 0 | AD9: =SUM(VLOOKUP($A$3,'GEO-L1'!$A$14:$BX$500,25,FALSE),VLOOKUP($A$3,'GEO-L1'!$A$14:$BX$500,62,FALSE)) -> 0 | AE9: =SUM(VLOOKUP($A$3,'GEO-L1'!$A$14:$BX$500,28,FALSE)*$Q9,VLOOKUP($A$3,'GEO-L1'!$A$14:$BX$500,65,FALSE)*$R9)/SUM($Q9,$R9) -> 0 | AF9: =SUM(VLOOKUP($A$3,'GEO-L1'!$A$14:$BX$500,31,FALSE),VLOOKUP($A$3,'GEO-L1'!$A$14:$BX$500,68,FALSE))/SUM($Q9:$R9)*100 -> 0 | AG9: =SUM(VLOOKUP($A$3,'GEO-L1'!$A$14:$BX$500,31,FALSE),VLOOKUP($A$3,'GEO-L1'!$A$14:$BX$500,68,FALSE)) -> 0 | AH9: =SUM(VLOOKUP($A$3,'GEO-L1'!$A$14:$BX$500,34,FALSE)*$Q9,VLOOKUP($A$3,'GEO-L1'!$A$14:$BX$500,71,FALSE)*$R9)/SUM($Q9,$R9) -> 0 | AI9: =SUM(VLOOKUP($A$3,'GEO-L1'!$A$14:$BX$500,37,FALSE),VLOOKUP($A$3,'GEO-L1'!$A$14:$BX$500,74,FALSE))/SUM($Q9:$R9)*100 -> 0 | AJ9: =SUM(VLOOKUP($A$3,'GEO-L1'!$A$14:$BX$500,37,FALSE),VLOOKUP($A$3,'GEO-L1'!$A$14:$BX$500,74,FALSE)) -> 0
A10: FCAT Level 2 | B10: =IFERROR(VLOOKUP(TEXT($A$3,"0000"),MEM_RL2!$A$2:$S$500,10,FALSE),0) -> 6940 | C10: =IFERROR((IF(OR(B10=0,B10="",B10="NA"),"NA",((IF(VLOOKUP($A$3,'G9-RL2'!$A$6:$AM$500,3,FALSE)>=B10,"100% ("&VLOOKUP($A$3,'G9-RL2'!$A$6:$AM$500,3,FALSE)&")",(ROUND((VLOOKUP($A$3,'G9-RL2'!$A$6:$AM$500,3,FALSE)/B10*100),0))&"% ("&IF(VLOOKUP($A$3,'G9-RL2'!$A$6:$AM$500,3,FALSE)="",0,VLOOKUP($A$3,'G9-RL2'!$A$6:$AM$500,3,FALSE))&")"))))),"0% (0)") -> 95% (6570) | D10: =IFERROR((IF($C10="NA","NA",VLOOKUP($A$3,'G9-RL2'!$A$6:$AM$500,4,FALSE))),"NA") -> 26.1591933 | E10: =IFERROR((IF($C10="NA","NA",ROUND(VLOOKUP($A$3,'G9-RL2'!$A$6:$AM$500,6,FALSE),0)&"% ("&IF(VLOOKUP($A$3,'G9-RL2'!$A$6:$AM$500,5,FALSE)="",0,VLOOKUP($A$3,'G9-RL2'!$A$6:$AM$500,5,FALSE))&")")),"NA") -> 21% (1352) | F10: =IFERROR((IF($C10="NA","NA",VLOOKUP($A$3,'G9-RL2'!$A$6:$AM$500,7,FALSE))),"NA") -> 6.480121766 | G10: NA | H10: =IFERROR((IF($C10="NA","NA",VLOOKUP($A$3,'G9-RL2'!$A$6:$AM$500,10,FALSE))),"NA") -> 11.1694825 | I10: NA | J10: =IFERROR((IF($C10="NA","NA",VLOOKUP($A$3,'G9-RL2'!$A$6:$AM$500,13,FALSE))),"NA") -> 4.812009132 | K10: NA | L10: =IFERROR((IF($C10="NA","NA",VLOOKUP($A$3,'G9-RL2'!$A$6:$AM$500,16,FALSE))),"NA") -> 3.716757991 | M10: NA | Q10: =IFERROR(VLOOKUP($A$3,'G9-RL2'!$A$6:$BX$500,3,FALSE),"not tested") -> 6570 | S10: =SUM(VLOOKUP($A$3,'GEO-L2'!$A$14:$BX$500,4,FALSE)*$Q10,VLOOKUP($A$3,'GEO-L2'!$A$14:$BX$500,41,FALSE)*$R10)/SUM($Q10,$R10) -> 16.22093652 | T10: =SUM(VLOOKUP($A$3,'GEO-L2'!$A$14:$BX$500,7,FALSE),VLOOKUP($A$3,'GEO-L2'!$A$14:$BX$500,44,FALSE))/SUM($Q10:$R10)*100 -> 0.246894011 | U10: =SUM(VLOOKUP($A$3,'GEO-L2'!$A$14:$BX$500,7,FALSE),VLOOKUP($A$3,'GEO-L2'!$A$14:$BX$500,44,FALSE)) -> 16.22093652 | V10: =SUM(VLOOKUP($A$3,'GEO-L2'!$A$14:$BX$500,10,FALSE)*$Q10,VLOOKUP($A$3,'GEO-L2'!$A$14:$BX$500,47,FALSE)*$R10)/SUM($Q10,$R10) -> 0 | W10: =SUM(VLOOKUP($A$3,'GEO-L2'!$A$14:$BX$500,8,FALSE),VLOOKUP($A$3,'GEO-L2'!$A$14:$BX$500,50,FALSE))/SUM($Q10:$R10)*100 -> 0 | X10: =SUM(VLOOKUP($A$3,'GEO-L2'!$A$14:$BX$500,8,FALSE),VLOOKUP($A$3,'GEO-L2'!$A$14:$BX$500,50,FALSE)) -> 0 | Y10: =SUM(VLOOKUP($A$3,'GEO-L2'!$A$14:$BX$500,16,FALSE)*$Q10,VLOOKUP($A$3,'GEO-L2'!$A$14:$BX$500,53,FALSE)*$R10)/SUM($Q10,$R10) -> 0 | Z10: =SUM(VLOOKUP($A$3,'GEO-L2'!$A$14:$BX$500,19,FALSE),VLOOKUP($A$3,'GEO-L2'!$A$14:$BX$500,56,FALSE))/SUM($Q10:$R10)*100 -> 0 | AA10: =SUM(VLOOKUP($A$3,'GEO-L2'!$A$14:$BX$500,19,FALSE),VLOOKUP($A$3,'GEO-L2'!$A$14:$BX$500,56,FALSE)) -> 0 | AB10: =SUM(VLOOKUP($A$3,'GEO-L2'!$A$14:$BX$500,22,FALSE)*$Q10,VLOOKUP($A$3,'GEO-L2'!$A$14:$BX$500,59,FALSE)*$R10)/SUM($Q10,$R10) -> 0 | AC10: =SUM(VLOOKUP($A$3,'GEO-L2'!$A$14:$BX$500,25,FALSE),VLOOKUP($A$3,'GEO-L2'!$A$14:$BX$500,62,FALSE))/SUM($Q10:$R10)*100 -> 0 | AD10: =SUM(VLOOKUP($A$3,'GEO-L2'!$A$14:$BX$500,25,FALSE),VLOOKUP($A$3,'GEO-L2'!$A$14:$BX$500,62,FALSE)) -> 0 | AE10: =SUM(VLOOKUP($A$3,'GEO-L2'!$A$14:$BX$500,28,FALSE)*$Q10,VLOOKUP($A$3,'GEO-L2'!$A$14:$BX$500,65,FALSE)*$R10)/SUM($Q10,$R10) -> 0 | AF10: =SUM(VLOOKUP($A$3,'GEO-L2'!$A$14:$BX$500,31,FALSE),VLOOKUP($A$3,'GEO-L2'!$A$14:$BX$500,68,FALSE))/SUM($Q10:$R10)*100 -> 0 | AG10: =SUM(VLOOKUP($A$3,'GEO-L2'!$A$14:$BX$500,31,FALSE),VLOOKUP($A$3,'GEO-L2'!$A$14:$BX$500,68,FALSE)) -> 0 | AH10: =SUM(VLOOKUP($A$3,'GEO-L2'!$A$14:$BX$500,34,FALSE)*$Q10,VLOOKUP($A$3,'GEO-L2'!$A$14:$BX$500,71,FALSE)*$R10)/SUM($Q10,$R10) -> 0 | AI10: =SUM(VLOOKUP($A$3,'GEO-L2'!$A$14:$BX$500,37,FALSE),VLOOKUP($A$3,'GEO-L2'!$A$14:$BX$500,74,FALSE))/SUM($Q10:$R10)*100 -> 0 | AJ10: =SUM(VLOOKUP($A$3,'GEO-L2'!$A$14:$BX$500,37,FALSE),VLOOKUP($A$3,'GEO-L2'!$A$14:$BX$500,74,FALSE)) -> 0
A11: FCAT Level 3 | B11: =IFERROR(VLOOKUP(TEXT($A$3,"0000"),MEM_RL3!$A$2:$S$500,10,FALSE),0) -> 6538 | C11: =IFERROR((IF(OR(B11=0,B11="",B11="NA"),"NA",((IF(VLOOKUP($A$3,'G9-RL3'!$A$6:$AM$500,3,FALSE)>=B11,"100% ("&VLOOKUP($A$3,'G9-RL3'!$A$6:$AM$500,3,FALSE)&")",(ROUND((VLOOKUP($A$3,'G9-RL3'!$A$6:$AM$500,3,FALSE)/B11*100),0))&"% ("&IF(VLOOKUP($A$3,'G9-RL3'!$A$6:$AM$500,3,FALSE)="",0,VLOOKUP($A$3,'G9-RL3'!$A$6:$AM$500,3,FALSE))&")"))))),"0% (0)") -> 97% (6329) | D11: =IFERROR((IF($C11="NA","NA",VLOOKUP($A$3,'G9-RL3'!$A$6:$AM$500,4,FALSE))),"NA") -> 31.52381103 | E11: =IFERROR((IF($C11="NA","NA",ROUND(VLOOKUP($A$3,'G9-RL3'!$A$6:$AM$500,6,FALSE),0)&"% ("&IF(VLOOKUP($A$3,'G9-RL3'!$A$6:$AM$500,5,FALSE)="",0,VLOOKUP($A$3,'G9-RL3'!$A$6:$AM$500,5,FALSE))&")")),"NA") -> 52% (3278) | F11: =IFERROR((IF($C11="NA","NA",VLOOKUP($A$3,'G9-RL3'!$A$6:$AM$500,7,FALSE))),"NA") -> 8.002986254 | G11: NA | H11: =IFERROR((IF($C11="NA","NA",VLOOKUP($A$3,'G9-RL3'!$A$6:$AM$500,10,FALSE))),"NA") -> 13.33240638 | I11: NA | J11: =IFERROR((IF($C11="NA","NA",VLOOKUP($A$3,'G9-RL3'!$A$6:$AM$500,13,FALSE))),"NA") -> 5.86165271 | K11: NA | L11: =IFERROR((IF($C11="NA","NA",VLOOKUP($A$3,'G9-RL3'!$A$6:$AM$500,16,FALSE))),"NA") -> 4.337051667 | M11: NA | Q11: =IFERROR(VLOOKUP($A$3,'G9-RL3'!$A$6:$BX$500,3,FALSE),"not tested") -> 6329 | S11: =SUM(VLOOKUP($A$3,'GEO-L3'!$A$14:$BX$500,4,FALSE)*$Q11,VLOOKUP($A$3,'GEO-L3'!$A$14:$BX$500,41,FALSE)*$R11)/SUM($Q11,$R11) -> 20.35019348 | T11: =SUM(VLOOKUP($A$3,'GEO-L3'!$A$14:$BX$500,7,FALSE),VLOOKUP($A$3,'GEO-L3'!$A$14:$BX$500,44,FALSE))/SUM($Q11:$R11)*100 -> 0.3215388446 | U11: =SUM(VLOOKUP($A$3,'GEO-L3'!$A$14:$BX$500,7,FALSE),VLOOKUP($A$3,'GEO-L3'!$A$14:$BX$500,44,FALSE)) -> 20.35019348 | V11: =SUM(VLOOKUP($A$3,'GEO-L3'!$A$14:$BX$500,10,FALSE)*$Q11,VLOOKUP($A$3,'GEO-L3'!$A$14:$BX$500,47,FALSE)*$R11)/SUM($Q11,$R11) -> 0 | W11: =SUM(VLOOKUP($A$3,'GEO-L3'!$A$14:$BX$500,8,FALSE),VLOOKUP($A$3,'GEO-L3'!$A$14:$BX$500,50,FALSE))/SUM($Q11:$R11)*100 -> 0 | X11: =SUM(VLOOKUP($A$3,'GEO-L3'!$A$14:$BX$500,8,FALSE),VLOOKUP($A$3,'GEO-L3'!$A$14:$BX$500,50,FALSE)) -> 0 | Y11: =SUM(VLOOKUP($A$3,'GEO-L3'!$A$14:$BX$500,16,FALSE)*$Q11,VLOOKUP($A$3,'GEO-L3'!$A$14:$BX$500,53,FALSE)*$R11)/SUM($Q11,$R11) -> 0 | Z11: =SUM(VLOOKUP($A$3,'GEO-L3'!$A$14:$BX$500,19,FALSE),VLOOKUP($A$3,'GEO-L3'!$A$14:$BX$500,56,FALSE))/SUM($Q11:$R11)*100 -> 0 | AA11: =SUM(VLOOKUP($A$3,'GEO-L3'!$A$14:$BX$500,19,FALSE),VLOOKUP($A$3,'GEO-L3'!$A$14:$BX$500,56,FALSE)) -> 0 | AB11: =SUM(VLOOKUP($A$3,'GEO-L3'!$A$14:$BX$500,22,FALSE)*$Q11,VLOOKUP($A$3,'GEO-L3'!$A$14:$BX$500,59,FALSE)*$R11)/SUM($Q11,$R11) -> 0 | AC11: =SUM(VLOOKUP($A$3,'GEO-L3'!$A$14:$BX$500,25,FALSE),VLOOKUP($A$3,'GEO-L3'!$A$14:$BX$500,62,FALSE))/SUM($Q11:$R11)*100 -> 0 | AD11: =SUM(VLOOKUP($A$3,'GEO-L3'!$A$14:$BX$500,25,FALSE),VLOOKUP($A$3,'GEO-L3'!$A$14:$BX$500,62,FALSE)) -> 0 | AE11: =SUM(VLOOKUP($A$3,'GEO-L3'!$A$14:$BX$500,28,FALSE)*$Q11,VLOOKUP($A$3,'GEO-L3'!$A$14:$BX$500,65,FALSE)*$R11)/SUM($Q11,$R11) -> 0 | AF11: =SUM(VLOOKUP($A$3,'GEO-L3'!$A$14:$BX$500,31,FALSE),VLOOKUP($A$3,'GEO-L3'!$A$14:$BX$500,68,FALSE))/SUM($Q11:$R11)*100 -> 0 | AG11: =SUM(VLOOKUP($A$3,'GEO-L3'!$A$14:$BX$500,31,FALSE),VLOOKUP($A$3,'GEO-L3'!$A$14:$BX$500,68,FALSE)) -> 0 | AH11: =SUM(VLOOKUP($A$3,'GEO-L3'!$A$14:$BX$500,34,FALSE)*$Q11,VLOOKUP($A$3,'GEO-L3'!$A$14:$BX$500,71,FALSE)*$R11)/SUM($Q11,$R11) -> 0 | AI11: =SUM(VLOOKUP($A$3,'GEO-L3'!$A$14:$BX$500,37,FALSE),VLOOKUP($A$3,'GEO-L3'!$A$14:$BX$500,74,FALSE))/SUM($Q11:$R11)*100 -> 0 | AJ11: =SUM(VLOOKUP($A$3,'GEO-L3'!$A$14:$BX$500,37,FALSE),VLOOKUP($A$3,'GEO-L3'!$A$14:$BX$500,74,FALSE)) -> 0
A12: FCAT Level 4 | B12: =IFERROR(VLOOKUP(TEXT($A$3,"0000"),MEM_RL4!$A$2:$S$500,10,FALSE),0) -> 4300 | C12: =IFERROR((IF(OR(B12=0,B12="",B12="NA"),"NA",((IF(VLOOKUP($A$3,'G9-RL4'!$A$6:$AM$500,3,FALSE)>=B12,"100% ("&VLOOKUP($A$3,'G9-RL4'!$A$6:$AM$500,3,FALSE)&")",(ROUND((VLOOKUP($A$3,'G9-RL4'!$A$6:$AM$500,3,FALSE)/B12*100),0))&"% ("&IF(VLOOKUP($A$3,'G9-RL4'!$A$6:$AM$500,3,FALSE)="",0,VLOOKUP($A$3,'G9-RL4'!$A$6:$AM$500,3,FALSE))&")"))))),"0% (0)") -> 97% (4167) | D12: =IFERROR((IF($C12="NA","NA",VLOOKUP($A$3,'G9-RL4'!$A$6:$AM$500,4,FALSE))),"NA") -> 36.23234941 | E12: =IFERROR((IF($C12="NA","NA",ROUND(VLOOKUP($A$3,'G9-RL4'!$A$6:$AM$500,6,FALSE),0)&"% ("&IF(VLOOKUP($A$3,'G9-RL4'!$A$6:$AM$500,5,FALSE)="",0,VLOOKUP($A$3,'G9-RL4'!$A$6:$AM$500,5,FALSE))&")")),"NA") -> 81% (3368) | F12: =IFERROR((IF($C12="NA","NA",VLOOKUP($A$3,'G9-RL4'!$A$6:$AM$500,7,FALSE))),"NA") -> 9.314638829 | G12: NA | H12: =IFERROR((IF($C12="NA","NA",VLOOKUP($A$3,'G9-RL4'!$A$6:$AM$500,10,FALSE))),"NA") -> 15.00441565 | I12: NA | J12: =IFERROR((IF($C12="NA","NA",VLOOKUP($A$3,'G9-RL4'!$A$6:$AM$500,13,FALSE))),"NA") -> 6.965010799 | K12: NA | L12: =IFERROR((IF($C12="NA","NA",VLOOKUP($A$3,'G9-RL4'!$A$6:$AM$500,16,FALSE))),"NA") -> 4.947780178 | M12: NA | Q12: =IFERROR(VLOOKUP($A$3,'G9-RL4'!$A$6:$BX$500,3,FALSE),"not tested") -> 4167 | S12: =SUM(VLOOKUP($A$3,'GEO-L4'!$A$14:$BX$500,4,FALSE)*$Q12,VLOOKUP($A$3,'GEO-L4'!$A$14:$BX$500,41,FALSE)*$R12)/SUM($Q12,$R12) -> 25.98122949 | T12: =SUM(VLOOKUP($A$3,'GEO-L4'!$A$14:$BX$500,7,FALSE),VLOOKUP($A$3,'GEO-L4'!$A$14:$BX$500,44,FALSE))/SUM($Q12:$R12)*100 -> 0.6234996278 | U12: =SUM(VLOOKUP($A$3,'GEO-L4'!$A$14:$BX$500,7,FALSE),VLOOKUP($A$3,'GEO-L4'!$A$14:$BX$500,44,FALSE)) -> 25.98122949 | V12: =SUM(VLOOKUP($A$3,'GEO-L4'!$A$14:$BX$500,10,FALSE)*$Q12,VLOOKUP($A$3,'GEO-L4'!$A$14:$BX$500,47,FALSE)*$R12)/SUM($Q12,$R12) -> 0 | W12: =SUM(VLOOKUP($A$3,'GEO-L4'!$A$14:$BX$500,8,FALSE),VLOOKUP($A$3,'GEO-L4'!$A$14:$BX$500,50,FALSE))/SUM($Q12:$R12)*100 -> 0 | X12: =SUM(VLOOKUP($A$3,'GEO-L4'!$A$14:$BX$500,8,FALSE),VLOOKUP($A$3,'GEO-L4'!$A$14:$BX$500,50,FALSE)) -> 0 | Y12: =SUM(VLOOKUP($A$3,'GEO-L4'!$A$14:$BX$500,16,FALSE)*$Q12,VLOOKUP($A$3,'GEO-L4'!$A$14:$BX$500,53,FALSE)*$R12)/SUM($Q12,$R12) -> 0 | Z12: =SUM(VLOOKUP($A$3,'GEO-L4'!$A$14:$BX$500,19,FALSE),VLOOKUP($A$3,'GEO-L4'!$A$14:$BX$500,56,FALSE))/SUM($Q12:$R12)*100 -> 0 | AA12: =SUM(VLOOKUP($A$3,'GEO-L4'!$A$14:$BX$500,19,FALSE),VLOOKUP($A$3,'GEO-L4'!$A$14:$BX$500,56,FALSE)) -> 0 | AB12: =SUM(VLOOKUP($A$3,'GEO-L4'!$A$14:$BX$500,22,FALSE)*$Q12,VLOOKUP($A$3,'GEO-L4'!$A$14:$BX$500,59,FALSE)*$R12)/SUM($Q12,$R12) -> 0 | AC12: =SUM(VLOOKUP($A$3,'GEO-L4'!$A$14:$BX$500,25,FALSE),VLOOKUP($A$3,'GEO-L4'!$A$14:$BX$500,62,FALSE))/SUM($Q12:$R12)*100 -> 0 | AD12: =SUM(VLOOKUP($A$3,'GEO-L4'!$A$14:$BX$500,25,FALSE),VLOOKUP($A$3,'GEO-L4'!$A$14:$BX$500,62,FALSE)) -> 0 | AE12: =SUM(VLOOKUP($A$3,'GEO-L4'!$A$14:$BX$500,28,FALSE)*$Q12,VLOOKUP($A$3,'GEO-L4'!$A$14:$BX$500,65,FALSE)*$R12)/SUM($Q12,$R12) -> 0 | AF12: =SUM(VLOOKUP($A$3,'GEO-L4'!$A$14:$BX$500,31,FALSE),VLOOKUP($A$3,'GEO-L4'!$A$14:$BX$500,68,FALSE))/SUM($Q12:$R12)*100 -> 0 | AG12: =SUM(VLOOKUP($A$3,'GEO-L4'!$A$14:$BX$500,31,FALSE),VLOOKUP($A$3,'GEO-L4'!$A$14:$BX$500,68,FALSE)) -> 0 | AH12: =SUM(VLOOKUP($A$3,'GEO-L4'!$A$14:$BX$500,34,FALSE)*$Q12,VLOOKUP($A$3,'GEO-L4'!$A$14:$BX$500,71,FALSE)*$R12)/SUM($Q12,$R12) -> 0 | AI12: =SUM(VLOOKUP($A$3,'GEO-L4'!$A$14:$BX$500,37,FALSE),VLOOKUP($A$3,'GEO-L4'!$A$14:$BX$500,74,FALSE))/SUM($Q12:$R12)*100 -> 0 | AJ12: =SUM(VLOOKUP($A$3,'GEO-L4'!$A$14:$BX$500,37,FALSE),VLOOKUP($A$3,'GEO-L4'!$A$14:$BX$500,74,FALSE)) -> 0
A13: FCAT Level 5 | B13: =IFERROR(VLOOKUP(TEXT($A$3,"0000"),MEM_RL5!$A$2:$S$500,9,FALSE),0) -> 2604 | C13: =IFERROR((IF(OR(B13=0,B13="",B13="NA"),"NA",((IF(VLOOKUP($A$3,'G9-RL5'!$A$6:$AM$500,3,FALSE)>=B13,"100% ("&VLOOKUP($A$3,'G9-RL5'!$A$6:$AM$500,3,FALSE)&")",(ROUND((VLOOKUP($A$3,'G9-RL5'!$A$6:$AM$500,3,FALSE)/B13*100),0))&"% ("&IF(VLOOKUP($A$3,'G9-RL5'!$A$6:$AM$500,3,FALSE)="",0,VLOOKUP($A$3,'G9-RL5'!$A$6:$AM$500,3,FALSE))&")"))))),"0% (0)") -> 95% (2484) | D13: =IFERROR((IF($C13="NA","NA",VLOOKUP($A$3,'G9-RL5'!$A$6:$AM$500,4,FALSE))),"NA") -> 39.86163446 | E13: =IFERROR((IF($C13="NA","NA",ROUND(VLOOKUP($A$3,'G9-RL5'!$A$6:$AM$500,6,FALSE),0)&"% ("&IF(VLOOKUP($A$3,'G9-RL5'!$A$6:$AM$500,5,FALSE)="",0,VLOOKUP($A$3,'G9-RL5'!$A$6:$AM$500,5,FALSE))&")")),"NA") -> 94% (2345) | F13: =IFERROR((IF($C13="NA","NA",VLOOKUP($A$3,'G9-RL5'!$A$6:$AM$500,7,FALSE))),"NA") -> 10.29484702 | G13: NA | H13: =IFERROR((IF($C13="NA","NA",VLOOKUP($A$3,'G9-RL5'!$A$6:$AM$500,10,FALSE))),"NA") -> 16.32491948 | I13: NA | J13: =IFERROR((IF($C13="NA","NA",VLOOKUP($A$3,'G9-RL5'!$A$6:$AM$500,13,FALSE))),"NA") -> 7.806320451 | K13: NA | L13: =IFERROR((IF($C13="NA","NA",VLOOKUP($A$3,'G9-RL5'!$A$6:$AM$500,16,FALSE))),"NA") -> 5.418639291 | M13: NA | Q13: =IFERROR(VLOOKUP($A$3,'G9-RL5'!$A$6:$BX$500,3,FALSE),"not tested") -> 2484 | S13: =SUM(VLOOKUP($A$3,'GEO-L5'!$A$14:$BX$500,4,FALSE)*$Q13,VLOOKUP($A$3,'GEO-L5'!$A$14:$BX$500,41,FALSE)*$R13)/SUM($Q13,$R13) -> 31.19525939 | T13: =SUM(VLOOKUP($A$3,'GEO-L5'!$A$14:$BX$500,7,FALSE),VLOOKUP($A$3,'GEO-L5'!$A$14:$BX$500,44,FALSE))/SUM($Q13:$R13)*100 -> 1.255847802 | U13: =SUM(VLOOKUP($A$3,'GEO-L5'!$A$14:$BX$500,7,FALSE),VLOOKUP($A$3,'GEO-L5'!$A$14:$BX$500,44,FALSE)) -> 31.19525939 | V13: =SUM(VLOOKUP($A$3,'GEO-L5'!$A$14:$BX$500,10,FALSE)*$Q13,VLOOKUP($A$3,'GEO-L5'!$A$14:$BX$500,47,FALSE)*$R13)/SUM($Q13,$R13) -> 0 | W13: =SUM(VLOOKUP($A$3,'GEO-L5'!$A$14:$BX$500,8,FALSE),VLOOKUP($A$3,'GEO-L5'!$A$14:$BX$500,50,FALSE))/SUM($Q13:$R13)*100 -> 0 | X13: =SUM(VLOOKUP($A$3,'GEO-L5'!$A$14:$BX$500,8,FALSE),VLOOKUP($A$3,'GEO-L5'!$A$14:$BX$500,50,FALSE)) -> 0 | Y13: =SUM(VLOOKUP($A$3,'GEO-L5'!$A$14:$BX$500,16,FALSE)*$Q13,VLOOKUP($A$3,'GEO-L5'!$A$14:$BX$500,53,FALSE)*$R13)/SUM($Q13,$R13) -> 0 | Z13: =SUM(VLOOKUP($A$3,'GEO-L5'!$A$14:$BX$500,19,FALSE),VLOOKUP($A$3,'GEO-L5'!$A$14:$BX$500,56,FALSE))/SUM($Q13:$R13)*100 -> 0 | AA13: =SUM(VLOOKUP($A$3,'GEO-L5'!$A$14:$BX$500,19,FALSE),VLOOKUP($A$3,'GEO-L5'!$A$14:$BX$500,56,FALSE)) -> 0 | AB13: =SUM(VLOOKUP($A$3,'GEO-L5'!$A$14:$BX$500,22,FALSE)*$Q13,VLOOKUP($A$3,'GEO-L5'!$A$14:$BX$500,59,FALSE)*$R13)/SUM($Q13,$R13) -> 0 | AC13: =SUM(VLOOKUP($A$3,'GEO-L5'!$A$14:$BX$500,25,FALSE),VLOOKUP($A$3,'GEO-L5'!$A$14:$BX$500,62,FALSE))/SUM($Q13:$R13)*100 -> 0 | AD13: =SUM(VLOOKUP($A$3,'GEO-L5'!$A$14:$BX$500,25,FALSE),VLOOKUP($A$3,'GEO-L5'!$A$14:$BX$500,62,FALSE)) -> 0 | AE13: =SUM(VLOOKUP($A$3,'GEO-L5'!$A$14:$BX$500,28,FALSE)*$Q13,VLOOKUP($A$3,'GEO-L5'!$A$14:$BX$500,65,FALSE)*$R13)/SUM($Q13,$R13) -> 0 | AF13: =SUM(VLOOKUP($A$3,'GEO-L5'!$A$14:$BX$500,31,FALSE),VLOOKUP($A$3,'GEO-L5'!$A$14:$BX$500,68,FALSE))/SUM($Q13:$R13)*100 -> 0 | AG13: =SUM(VLOOKUP($A$3,'GEO-L5'!$A$14:$BX$500,31,FALSE),VLOOKUP($A$3,'GEO-L5'!$A$14:$BX$500,68,FALSE)) -> 0 | AH13: =SUM(VLOOKUP($A$3,'GEO-L5'!$A$14:$BX$500,34,FALSE)*$Q13,VLOOKUP($A$3,'GEO-L5'!$A$14:$BX$500,71,FALSE)*$R13)/SUM($Q13,$R13) -> 0 | AI13: =SUM(VLOOKUP($A$3,'GEO-L5'!$A$14:$BX$500,37,FALSE),VLOOKUP($A$3,'GEO-L5'!$A$14:$BX$500,74,FALSE))/SUM($Q13:$R13)*100 -> 0 | AJ13: =SUM(VLOOKUP($A$3,'GEO-L5'!$A$14:$BX$500,37,FALSE),VLOOKUP($A$3,'GEO-L5'!$A$14:$BX$500,74,FALSE)) -> 0
A14: White | B14: =IFERROR(VLOOKUP(TEXT($A$3,"0000"),MEM_W!$A$2:$S$500,13,FALSE),0) -> 2364 | C14: =IFERROR((IF(OR(B14=0,B14="",B14="NA"),"NA",((IF(VLOOKUP($A$3,'G9-RW'!$A$6:$AM$500,3,FALSE)>=B14,"100% ("&VLOOKUP($A$3,'G9-RW'!$A$6:$AM$500,3,FALSE)&")",(ROUND((VLOOKUP($A$3,'G9-RW'!$A$6:$AM$500,3,FALSE)/B14*100),0))&"% ("&IF(VLOOKUP($A$3,'G9-RW'!$A$6:$AM$500,3,FALSE)="",0,VLOOKUP($A$3,'G9-RW'!$A$6:$AM$500,3,FALSE))&")"))))),"0% (0)") -> 91% (2147) | D14: =IFERROR((IF($C14="NA","NA",VLOOKUP($A$3,'G9-RW'!$A$6:$AM$500,4,FALSE))),"NA") -> 33.22394038 | E14: =IFERROR((IF($C14="NA","NA",ROUND(VLOOKUP($A$3,'G9-RW'!$A$6:$AM$500,6,FALSE),0)&"% ("&IF(VLOOKUP($A$3,'G9-RW'!$A$6:$AM$500,5,FALSE)="",0,VLOOKUP($A$3,'G9-RW'!$A$6:$AM$500,5,FALSE))&")")),"NA") -> 63% (1351) | F14: =IFERROR((IF($C14="NA","NA",VLOOKUP($A$3,'G9-RW'!$A$6:$AM$500,7,FALSE))),"NA") -> 8.515649744 | G14: NA | H14: =IFERROR((IF($C14="NA","NA",VLOOKUP($A$3,'G9-RW'!$A$6:$AM$500,10,FALSE))),"NA") -> 13.73795994 | I14: NA | J14: =IFERROR((IF($C14="NA","NA",VLOOKUP($A$3,'G9-RW'!$A$6:$AM$500,13,FALSE))),"NA") -> 6.410572892 | K14: NA | L14: =IFERROR((IF($C14="NA","NA",VLOOKUP($A$3,'G9-RW'!$A$6:$AM$500,16,FALSE))),"NA") -> 4.557615277 | M14: NA | Q14: =IFERROR(VLOOKUP($A$3,'G9-RW'!$A$6:$BX$500,3,FALSE),"not tested") -> 2147 | S14: =SUM(VLOOKUP($A$3,'GEO-W'!$A$14:$BX$500,4,FALSE)*$Q14,VLOOKUP($A$3,'GEO-W'!$A$14:$BX$500,41,FALSE)*$R14)/SUM($Q14,$R14) -> 23.93055556 | T14: =SUM(VLOOKUP($A$3,'GEO-W'!$A$14:$BX$500,7,FALSE),VLOOKUP($A$3,'GEO-W'!$A$14:$BX$500,44,FALSE))/SUM($Q14:$R14)*100 -> 1.114604358 | U14: =SUM(VLOOKUP($A$3,'GEO-W'!$A$14:$BX$500,7,FALSE),VLOOKUP($A$3,'GEO-W'!$A$14:$BX$500,44,FALSE)) -> 23.93055556 | V14: =SUM(VLOOKUP($A$3,'GEO-W'!$A$14:$BX$500,10,FALSE)*$Q14,VLOOKUP($A$3,'GEO-W'!$A$14:$BX$500,47,FALSE)*$R14)/SUM($Q14,$R14) -> 0 | W14: =SUM(VLOOKUP($A$3,'GEO-W'!$A$14:$BX$500,8,FALSE),VLOOKUP($A$3,'GEO-W'!$A$14:$BX$500,50,FALSE))/SUM($Q14:$R14)*100 -> 0 | X14: =SUM(VLOOKUP($A$3,'GEO-W'!$A$14:$BX$500,8,FALSE),VLOOKUP($A$3,'GEO-W'!$A$14:$BX$500,50,FALSE)) -> 0 | Y14: =SUM(VLOOKUP($A$3,'GEO-W'!$A$14:$BX$500,16,FALSE)*$Q14,VLOOKUP($A$3,'GEO-W'!$A$14:$BX$500,53,FALSE)*$R14)/SUM($Q14,$R14) -> 0 | Z14: =SUM(VLOOKUP($A$3,'GEO-W'!$A$14:$BX$500,19,FALSE),VLOOKUP($A$3,'GEO-W'!$A$14:$BX$500,56,FALSE))/SUM($Q14:$R14)*100 -> 0 | AA14: =SUM(VLOOKUP($A$3,'GEO-W'!$A$14:$BX$500,19,FALSE),VLOOKUP($A$3,'GEO-W'!$A$14:$BX$500,56,FALSE)) -> 0 | AB14: =SUM(VLOOKUP($A$3,'GEO-W'!$A$14:$BX$500,22,FALSE)*$Q14,VLOOKUP($A$3,'GEO-W'!$A$14:$BX$500,59,FALSE)*$R14)/SUM($Q14,$R14) -> 0 | AC14: =SUM(VLOOKUP($A$3,'GEO-W'!$A$14:$BX$500,25,FALSE),VLOOKUP($A$3,'GEO-W'!$A$14:$BX$500,62,FALSE))/SUM($Q14:$R14)*100 -> 0 | AD14: =SUM(VLOOKUP($A$3,'GEO-W'!$A$14:$BX$500,25,FALSE),VLOOKUP($A$3,'GEO-W'!$A$14:$BX$500,62,FALSE)) -> 0 | AE14: =SUM(VLOOKUP($A$3,'GEO-W'!$A$14:$BX$500,28,FALSE)*$Q14,VLOOKUP($A$3,'GEO-W'!$A$14:$BX$500,65,FALSE)*$R14)/SUM($Q14,$R14) -> 0 | AF14: =SUM(VLOOKUP($A$3,'GEO-W'!$A$14:$BX$500,31,FALSE),VLOOKUP($A$3,'GEO-W'!$A$14:$BX$500,68,FALSE))/SUM($Q14:$R14)*100 -> 0 | AG14: =SUM(VLOOKUP($A$3,'GEO-W'!$A$14:$BX$500,31,FALSE),VLOOKUP($A$3,'GEO-W'!$A$14:$BX$500,68,FALSE)) -> 0 | AH14: =SUM(VLOOKUP($A$3,'GEO-W'!$A$14:$BX$500,34,FALSE)*$Q14,VLOOKUP($A$3,'GEO-W'!$A$14:$BX$500,71,FALSE)*$R14)/SUM($Q14,$R14) -> 0 | AI14: =SUM(VLOOKUP($A$3,'GEO-W'!$A$14:$BX$500,37,FALSE),VLOOKUP($A$3,'GEO-W'!$A$14:$BX$500,74,FALSE))/SUM($Q14:$R14)*100 -> 0 | AJ14: =SUM(VLOOKUP($A$3,'GEO-W'!$A$14:$BX$500,37,FALSE),VLOOKUP($A$3,'GEO-W'!$A$14:$BX$500,74,FALSE)) -> 0
A15: Black | B15: =IFERROR(VLOOKUP(TEXT($A$3,"0000"),MEM_B!$A$2:$S$500,13,FALSE),0) -> 6358 | C15: =IFERROR((IF(OR(B15=0,B15="",B15="NA"),"NA",((IF(VLOOKUP($A$3,'G9-RB'!$A$6:$AM$500,3,FALSE)>=B15,"100% ("&VLOOKUP($A$3,'G9-RB'!$A$6:$AM$500,3,FALSE)&")",(ROUND((VLOOKUP($A$3,'G9-RB'!$A$6:$AM$500,3,FALSE)/B15*100),0))&"% ("&IF(VLOOKUP($A$3,'G9-RB'!$A$6:$AM$500,3,FALSE)="",0,VLOOKUP($A$3,'G9-RB'!$A$6:$AM$500,3,FALSE))&")"))))),"0% (0)") -> 91% (5804) | D15: =IFERROR((IF($C15="NA","NA",VLOOKUP($A$3,'G9-RB'!$A$6:$AG$500,4,FALSE))),"NA") -> 27.23192626 | E15: =IFERROR((IF($C15="NA","NA",ROUND(VLOOKUP($A$3,'G9-RB'!$A$6:$AG$500,6,FALSE),0)&"% ("&IF(VLOOKUP($A$3,'G9-RB'!$A$6:$AG$500,5,FALSE)="",0,VLOOKUP($A$3,'G9-RB'!$A$6:$AG$500,5,FALSE))&")")),"NA") -> 32% (1862) | F15: =IFERROR((IF($C15="NA","NA",VLOOKUP($A$3,'G9-RB'!$A$6:$AG$500,7,FALSE))),"NA") -> 6.677188146 | G15: NA | H15: =IFERROR((IF($C15="NA","NA",VLOOKUP($A$3,'G9-RB'!$A$6:$AG$500,10,FALSE))),"NA") -> 11.43304618 | I15: NA | J15: =IFERROR((IF($C15="NA","NA",VLOOKUP($A$3,'G9-RB'!$A$6:$AG$500,13,FALSE))),"NA") -> 5.214248794 | K15: NA | L15: =IFERROR((IF($C15="NA","NA",VLOOKUP($A$3,'G9-RB'!$A$6:$AG$500,16,FALSE))),"NA") -> 3.922105445 | M15: NA | Q15: =IFERROR(VLOOKUP($A$3,'G9-RB'!$A$6:$BX$500,3,FALSE),"not tested") -> 5804 | S15: =SUM(VLOOKUP($A$3,'GEO-B'!$A$14:$BX$500,4,FALSE)*$Q15,VLOOKUP($A$3,'GEO-B'!$A$14:$BX$500,41,FALSE)*$R15)/SUM($Q15,$R15) -> 18.09832665 | T15: =SUM(VLOOKUP($A$3,'GEO-B'!$A$14:$BX$500,7,FALSE),VLOOKUP($A$3,'GEO-B'!$A$14:$BX$500,44,FALSE))/SUM($Q15:$R15)*100 -> 0.3118250629 | U15: =SUM(VLOOKUP($A$3,'GEO-B'!$A$14:$BX$500,7,FALSE),VLOOKUP($A$3,'GEO-B'!$A$14:$BX$500,44,FALSE)) -> 18.09832665 | V15: =SUM(VLOOKUP($A$3,'GEO-B'!$A$14:$BX$500,10,FALSE)*$Q15,VLOOKUP($A$3,'GEO-B'!$A$14:$BX$500,47,FALSE)*$R15)/SUM($Q15,$R15) -> 0 | W15: =SUM(VLOOKUP($A$3,'GEO-B'!$A$14:$BX$500,8,FALSE),VLOOKUP($A$3,'GEO-B'!$A$14:$BX$500,50,FALSE))/SUM($Q15:$R15)*100 -> 0 | X15: =SUM(VLOOKUP($A$3,'GEO-B'!$A$14:$BX$500,8,FALSE),VLOOKUP($A$3,'GEO-B'!$A$14:$BX$500,50,FALSE)) -> 0 | Y15: =SUM(VLOOKUP($A$3,'GEO-B'!$A$14:$BX$500,16,FALSE)*$Q15,VLOOKUP($A$3,'GEO-B'!$A$14:$BX$500,53,FALSE)*$R15)/SUM($Q15,$R15) -> 0 | Z15: =SUM(VLOOKUP($A$3,'GEO-B'!$A$14:$BX$500,19,FALSE),VLOOKUP($A$3,'GEO-B'!$A$14:$BX$500,56,FALSE))/SUM($Q15:$R15)*100 -> 0 | AA15: =SUM(VLOOKUP($A$3,'GEO-B'!$A$14:$BX$500,19,FALSE),VLOOKUP($A$3,'GEO-B'!$A$14:$BX$500,56,FALSE)) -> 0 | AB15: =SUM(VLOOKUP($A$3,'GEO-B'!$A$14:$BX$500,22,FALSE)*$Q15,VLOOKUP($A$3,'GEO-B'!$A$14:$BX$500,59,FALSE)*$R15)/SUM($Q15,$R15) -> 0 | AC15: =SUM(VLOOKUP($A$3,'GEO-B'!$A$14:$BX$500,25,FALSE),VLOOKUP($A$3,'GEO-B'!$A$14:$BX$500,62,FALSE))/SUM($Q15:$R15)*100 -> 0 | AD15: =SUM(VLOOKUP($A$3,'GEO-B'!$A$14:$BX$500,25,FALSE),VLOOKUP($A$3,'GEO-B'!$A$14:$BX$500,62,FALSE)) -> 0 | AE15: =SUM(VLOOKUP($A$3,'GEO-B'!$A$14:$BX$500,28,FALSE)*$Q15,VLOOKUP($A$3,'GEO-B'!$A$14:$BX$500,65,FALSE)*$R15)/SUM($Q15,$R15) -> 0 | AF15: =SUM(VLOOKUP($A$3,'GEO-B'!$A$14:$BX$500,31,FALSE),VLOOKUP($A$3,'GEO-B'!$A$14:$BX$500,68,FALSE))/SUM($Q15:$R15)*100 -> 0 | AG15: =SUM(VLOOKUP($A$3,'GEO-B'!$A$14:$BX$500,31,FALSE),VLOOKUP($A$3,'GEO-B'!$A$14:$BX$500,68,FALSE)) -> 0 | AH15: =SUM(VLOOKUP($A$3,'GEO-B'!$A$14:$BX$500,34,FALSE)*$Q15,VLOOKUP($A$3,'GEO-B'!$A$14:$BX$500,71,FALSE)*$R15)/SUM($Q15,$R15) -> 0 | AI15: =SUM(VLOOKUP($A$3,'GEO-B'!$A$14:$BX$500,37,FALSE),VLOOKUP($A$3,'GEO-B'!$A$14:$BX$500,74,FALSE))/SUM($Q15:$R15)*100 -> 0 | AJ15: =SUM(VLOOKUP($A$3,'GEO-B'!$A$14:$BX$500,37,FALSE),VLOOKUP($A$3,'GEO-B'!$A$14:$BX$500,74,FALSE)) -> 0
A16: Hispanic | B16: =IFERROR(VLOOKUP(TEXT($A$3,"0000"),MEM_H!$A$2:$S$500,13,FALSE),0) -> 18546 | C16: =IFERROR((IF(OR(B16=0,B16="",B16="NA"),"NA",((IF(VLOOKUP($A$3,'G9-RH'!$A$6:$AM$500,3,FALSE)>=B16,"100% ("&VLOOKUP($A$3,'G9-RH'!$A$6:$AM$500,3,FALSE)&")",(ROUND((VLOOKUP($A$3,'G9-RH'!$A$6:$AM$500,3,FALSE)/B16*100),0))&"% ("&IF(VLOOKUP($A$3,'G9-RH'!$A$6:$AM$500,3,FALSE)="",0,VLOOKUP($A$3,'G9-RH'!$A$6:$AM$500,3,FALSE))&")"))))),"0% (0)") -> 92% (17043) | D16: =IFERROR((IF($C16="NA","NA",VLOOKUP($A$3,'G9-RH'!$A$6:$AM$500,4,FALSE))),"NA") -> 29.10734612 | E16: =IFERROR((IF($C16="NA","NA",ROUND(VLOOKUP($A$3,'G9-RH'!$A$6:$AM$500,6,FALSE),0)&"% ("&IF(VLOOKUP($A$3,'G9-RH'!$A$6:$AM$500,5,FALSE)="",0,VLOOKUP($A$3,'G9-RH'!$A$6:$AM$500,5,FALSE))&")")),"NA") -> 43% (7409) | F16: =IFERROR((IF($C16="NA","NA",VLOOKUP($A$3,'G9-RH'!$A$6:$AM$500,7,FALSE))),"NA") -> 7.366713607 | G16: NA | H16: =IFERROR((IF($C16="NA","NA",VLOOKUP($A$3,'G9-RH'!$A$6:$AM$500,10,FALSE))),"NA") -> 12.28283166 | I16: NA | J16: =IFERROR((IF($C16="NA","NA",VLOOKUP($A$3,'G9-RH'!$A$6:$AM$500,13,FALSE))),"NA") -> 5.395898609 | K16: NA | L16: =IFERROR((IF($C16="NA","NA",VLOOKUP($A$3,'G9-RH'!$A$6:$AM$500,16,FALSE))),"NA") -> 4.072322948 | M16: NA | Q16: =IFERROR(VLOOKUP($A$3,'G9-RH'!$A$6:$BX$500,3,FALSE),"not tested") -> 17043 | S16: =SUM(VLOOKUP($A$3,'GEO-H'!$A$14:$BX$500,4,FALSE)*$Q16,VLOOKUP($A$3,'GEO-H'!$A$14:$BX$500,41,FALSE)*$R16)/SUM($Q16,$R16) -> 21.20397508 | T16: =SUM(VLOOKUP($A$3,'GEO-H'!$A$14:$BX$500,7,FALSE),VLOOKUP($A$3,'GEO-H'!$A$14:$BX$500,44,FALSE))/SUM($Q16:$R16)*100 -> 0.1244145695 | U16: =SUM(VLOOKUP($A$3,'GEO-H'!$A$14:$BX$500,7,FALSE),VLOOKUP($A$3,'GEO-H'!$A$14:$BX$500,44,FALSE)) -> 21.20397508 | V16: =SUM(VLOOKUP($A$3,'GEO-H'!$A$14:$BX$500,10,FALSE)*$Q16,VLOOKUP($A$3,'GEO-H'!$A$14:$BX$500,47,FALSE)*$R16)/SUM($Q16,$R16) -> 0 | W16: =SUM(VLOOKUP($A$3,'GEO-H'!$A$14:$BX$500,8,FALSE),VLOOKUP($A$3,'GEO-H'!$A$14:$BX$500,50,FALSE))/SUM($Q16:$R16)*100 -> 0 | X16: =SUM(VLOOKUP($A$3,'GEO-H'!$A$14:$BX$500,8,FALSE),VLOOKUP($A$3,'GEO-H'!$A$14:$BX$500,50,FALSE)) -> 0 | Y16: =SUM(VLOOKUP($A$3,'GEO-H'!$A$14:$BX$500,16,FALSE)*$Q16,VLOOKUP($A$3,'GEO-H'!$A$14:$BX$500,53,FALSE)*$R16)/SUM($Q16,$R16) -> 0 | Z16: =SUM(VLOOKUP($A$3,'GEO-H'!$A$14:$BX$500,19,FALSE),VLOOKUP($A$3,'GEO-H'!$A$14:$BX$500,56,FALSE))/SUM($Q16:$R16)*100 -> 0 | AA16: =SUM(VLOOKUP($A$3,'GEO-H'!$A$14:$BX$500,19,FALSE),VLOOKUP($A$3,'GEO-H'!$A$14:$BX$500,56,FALSE)) -> 0 | AB16: =SUM(VLOOKUP($A$3,'GEO-H'!$A$14:$BX$500,22,FALSE)*$Q16,VLOOKUP($A$3,'GEO-H'!$A$14:$BX$500,59,FALSE)*$R16)/SUM($Q16,$R16) -> 0 | AC16: =SUM(VLOOKUP($A$3,'GEO-H'!$A$14:$BX$500,25,FALSE),VLOOKUP($A$3,'GEO-H'!$A$14:$BX$500,62,FALSE))/SUM($Q16:$R16)*100 -> 0 | AD16: =SUM(VLOOKUP($A$3,'GEO-H'!$A$14:$BX$500,25,FALSE),VLOOKUP($A$3,'GEO-H'!$A$14:$BX$500,62,FALSE)) -> 0 | AE16: =SUM(VLOOKUP($A$3,'GEO-H'!$A$14:$BX$500,28,FALSE)*$Q16,VLOOKUP($A$3,'GEO-H'!$A$14:$BX$500,65,FALSE)*$R16)/SUM($Q16,$R16) -> 0 | AF16: =SUM(VLOOKUP($A$3,'GEO-H'!$A$14:$BX$500,31,FALSE),VLOOKUP($A$3,'GEO-H'!$A$14:$BX$500,68,FALSE))/SUM($Q16:$R16)*100 -> 0 | AG16: =SUM(VLOOKUP($A$3,'GEO-H'!$A$14:$BX$500,31,FALSE),VLOOKUP($A$3,'GEO-H'!$A$14:$BX$500,68,FALSE)) -> 0 | AH16: =SUM(VLOOKUP($A$3,'GEO-H'!$A$14:$BX$500,34,FALSE)*$Q16,VLOOKUP($A$3,'GEO-H'!$A$14:$BX$500,71,FALSE)*$R16)/SUM($Q16,$R16) -> 0 | AI16: =SUM(VLOOKUP($A$3,'GEO-H'!$A$14:$BX$500,37,FALSE),VLOOKUP($A$3,'GEO-H'!$A$14:$BX$500,74,FALSE))/SUM($Q16:$R16)*100 -> 0 | AJ16: =SUM(VLOOKUP($A$3,'GEO-H'!$A$14:$BX$500,37,FALSE),VLOOKUP($A$3,'GEO-H'!$A$14:$BX$500,74,FALSE)) -> 0
A17: Asian | B17: =IFERROR(VLOOKUP(TEXT($A$3,"0000"),MEM_A!$A$2:$S$500,13,FALSE),0) -> 299 | C17: =IFERROR((IF(OR(B17=0,B17="",B17="NA"),"NA",((IF(VLOOKUP($A$3,'G9-RA'!$A$6:$AM$500,3,FALSE)>=B17,"100% ("&VLOOKUP($A$3,'G9-RA'!$A$6:$AM$500,3,FALSE)&")",(ROUND((VLOOKUP($A$3,'G9-RA'!$A$6:$AM$500,3,FALSE)/B17*100),0))&"% ("&IF(VLOOKUP($A$3,'G9-RA'!$A$6:$AM$500,3,FALSE)="",0,VLOOKUP($A$3,'G9-RA'!$A$6:$AM$500,3,FALSE))&")"))))),"0% (0)") -> 94% (281) | D17: =IFERROR((IF($C17="NA","NA",VLOOKUP($A$3,'G9-RA'!$A$6:$AM$500,4,FALSE))),"NA") -> 34.48540925 | E17: =IFERROR((IF($C17="NA","NA",ROUND(VLOOKUP($A$3,'G9-RA'!$A$6:$AM$500,6,FALSE),0)&"% ("&IF(VLOOKUP($A$3,'G9-RA'!$A$6:$AM$500,5,FALSE)="",0,VLOOKUP($A$3,'G9-RA'!$A$6:$AM$500,5,FALSE))&")")),"NA") -> 70% (198) | F17: =IFERROR((IF($C17="NA","NA",VLOOKUP($A$3,'G9-RA'!$A$6:$AM$500,7,FALSE))),"NA") -> 8.849822064 | G17: NA | H17: =IFERROR((IF($C17="NA","NA",VLOOKUP($A$3,'G9-RA'!$A$6:$AM$500,10,FALSE))),"NA") -> 14.06405694 | I17: NA | J17: =IFERROR((IF($C17="NA","NA",VLOOKUP($A$3,'G9-RA'!$A$6:$AM$500,13,FALSE))),"NA") -> 6.830604982 | K17: NA | L17: =IFERROR((IF($C17="NA","NA",VLOOKUP($A$3,'G9-RA'!$A$6:$AM$500,16,FALSE))),"NA") -> 4.751601423 | M17: NA | Q17: =IFERROR(VLOOKUP($A$3,'G9-RA'!$A$6:$BX$500,3,FALSE),"not tested") -> 281 | S17: =SUM(VLOOKUP($A$3,'GEO-A'!$A$14:$BX$500,4,FALSE)*$Q17,VLOOKUP($A$3,'GEO-A'!$A$14:$BX$500,41,FALSE)*$R17)/SUM($Q17,$R17) -> 26.62207358 | T17: =SUM(VLOOKUP($A$3,'GEO-A'!$A$14:$BX$500,7,FALSE),VLOOKUP($A$3,'GEO-A'!$A$14:$BX$500,44,FALSE))/SUM($Q17:$R17)*100 -> 9.474047537 | U17: =SUM(VLOOKUP($A$3,'GEO-A'!$A$14:$BX$500,7,FALSE),VLOOKUP($A$3,'GEO-A'!$A$14:$BX$500,44,FALSE)) -> 26.62207358 | V17: =SUM(VLOOKUP($A$3,'GEO-A'!$A$14:$BX$500,10,FALSE)*$Q17,VLOOKUP($A$3,'GEO-A'!$A$14:$BX$500,47,FALSE)*$R17)/SUM($Q17,$R17) -> 0 | W17: =SUM(VLOOKUP($A$3,'GEO-A'!$A$14:$BX$500,8,FALSE),VLOOKUP($A$3,'GEO-A'!$A$14:$BX$500,50,FALSE))/SUM($Q17:$R17)*100 -> 0 | X17: =SUM(VLOOKUP($A$3,'GEO-A'!$A$14:$BX$500,8,FALSE),VLOOKUP($A$3,'GEO-A'!$A$14:$BX$500,50,FALSE)) -> 0 | Y17: =SUM(VLOOKUP($A$3,'GEO-A'!$A$14:$BX$500,16,FALSE)*$Q17,VLOOKUP($A$3,'GEO-A'!$A$14:$BX$500,53,FALSE)*$R17)/SUM($Q17,$R17) -> 0 | Z17: =SUM(VLOOKUP($A$3,'GEO-A'!$A$14:$BX$500,19,FALSE),VLOOKUP($A$3,'GEO-A'!$A$14:$BX$500,56,FALSE))/SUM($Q17:$R17)*100 -> 0 | AA17: =SUM(VLOOKUP($A$3,'GEO-A'!$A$14:$BX$500,19,FALSE),VLOOKUP($A$3,'GEO-A'!$A$14:$BX$500,56,FALSE)) -> 0 | AB17: =SUM(VLOOKUP($A$3,'GEO-A'!$A$14:$BX$500,22,FALSE)*$Q17,VLOOKUP($A$3,'GEO-A'!$A$14:$BX$500,59,FALSE)*$R17)/SUM($Q17,$R17) -> 0 | AC17: =SUM(VLOOKUP($A$3,'GEO-A'!$A$14:$BX$500,25,FALSE),VLOOKUP($A$3,'GEO-A'!$A$14:$BX$500,62,FALSE))/SUM($Q17:$R17)*100 -> 0 | AD17: =SUM(VLOOKUP($A$3,'GEO-A'!$A$14:$BX$500,25,FALSE),VLOOKUP($A$3,'GEO-A'!$A$14:$BX$500,62,FALSE)) -> 0 | AE17: =SUM(VLOOKUP($A$3,'GEO-A'!$A$14:$BX$500,28,FALSE)*$Q17,VLOOKUP($A$3,'GEO-A'!$A$14:$BX$500,65,FALSE)*$R17)/SUM($Q17,$R17) -> 0 | AF17: =SUM(VLOOKUP($A$3,'GEO-A'!$A$14:$BX$500,31,FALSE),VLOOKUP($A$3,'GEO-A'!$A$14:$BX$500,68,FALSE))/SUM($Q17:$R17)*100 -> 0 | AG17: =SUM(VLOOKUP($A$3,'GEO-A'!$A$14:$BX$500,31,FALSE),VLOOKUP($A$3,'GEO-A'!$A$14:$BX$500,68,FALSE)) -> 0 | AH17: =SUM(VLOOKUP($A$3,'GEO-A'!$A$14:$BX$500,34,FALSE)*$Q17,VLOOKUP($A$3,'GEO-A'!$A$14:$BX$500,71,FALSE)*$R17)/SUM($Q17,$R17) -> 0 | AI17: =SUM(VLOOKUP($A$3,'GEO-A'!$A$14:$BX$500,37,FALSE),VLOOKUP($A$3,'GEO-A'!$A$14:$BX$500,74,FALSE))/SUM($Q17:$R17)*100 -> 0 | AJ17: =SUM(VLOOKUP($A$3,'GEO-A'!$A$14:$BX$500,37,FALSE),VLOOKUP($A$3,'GEO-A'!$A$14:$BX$500,74,FALSE)) -> 0
A18: Am. Indian | B18: =IFERROR(VLOOKUP(TEXT($A$3,"0000"),MEM_I!$A$2:$S$500,13,FALSE),0) -> 33 | C18: =IFERROR((IF(OR(B18=0,B18="",B18="NA"),"NA",((IF(VLOOKUP($A$3,'G9-RI'!$A$6:$AM$500,3,FALSE)>=B18,"100% ("&VLOOKUP($A$3,'G9-RI'!$A$6:$AM$500,3,FALSE)&")",(ROUND((VLOOKUP($A$3,'G9-RI'!$A$6:$AM$500,3,FALSE)/B18*100),0))&"% ("&IF(VLOOKUP($A$3,'G9-RI'!$A$6:$AM$500,3,FALSE)="",0,VLOOKUP($A$3,'G9-RI'!$A$6:$AM$500,3,FALSE))&")"))))),"0% (0)") -> 97% (32) | D18: =IFERROR((IF($C18="NA","NA",VLOOKUP($A$3,'G9-RI'!$A$6:$AM$500,4,FALSE))),"NA") -> 31.540625 | E18: =IFERROR((IF($C18="NA","NA",ROUND(VLOOKUP($A$3,'G9-RI'!$A$6:$AM$500,6,FALSE),0)&"% ("&IF(VLOOKUP($A$3,'G9-RI'!$A$6:$AM$500,5,FALSE)="",0,VLOOKUP($A$3,'G9-RI'!$A$6:$AM$500,5,FALSE))&")")),"NA") -> 50% (16) | F18: =IFERROR((IF($C18="NA","NA",VLOOKUP($A$3,'G9-RI'!$A$6:$AM$500,7,FALSE))),"NA") -> 8.465625 | G18: NA | H18: =IFERROR((IF($C18="NA","NA",VLOOKUP($A$3,'G9-RI'!$A$6:$AM$500,10,FALSE))),"NA") -> 12.9625 | I18: NA | J18: =IFERROR((IF($C18="NA","NA",VLOOKUP($A$3,'G9-RI'!$A$6:$AM$500,13,FALSE))),"NA") -> 5.625 | K18: NA | L18: =IFERROR((IF($C18="NA","NA",VLOOKUP($A$3,'G9-RI'!$A$6:$AM$500,16,FALSE))),"NA") -> 4.465625 | M18: NA | Q18: =IFERROR(VLOOKUP($A$3,'G9-RI'!$A$6:$BX$500,3,FALSE),"not tested") -> 32 | S18: =SUM(VLOOKUP($A$3,'GEO-I'!$A$14:$BX$500,4,FALSE)*$Q18,VLOOKUP($A$3,'GEO-I'!$A$14:$BX$500,41,FALSE)*$R18)/SUM($Q18,$R18) -> 22.77741935 | T18: =SUM(VLOOKUP($A$3,'GEO-I'!$A$14:$BX$500,7,FALSE),VLOOKUP($A$3,'GEO-I'!$A$14:$BX$500,44,FALSE))/SUM($Q18:$R18)*100 -> 71.17943548 | U18: =SUM(VLOOKUP($A$3,'GEO-I'!$A$14:$BX$500,7,FALSE),VLOOKUP($A$3,'GEO-I'!$A$14:$BX$500,44,FALSE)) -> 22.77741935 | V18: =SUM(VLOOKUP($A$3,'GEO-I'!$A$14:$BX$500,10,FALSE)*$Q18,VLOOKUP($A$3,'GEO-I'!$A$14:$BX$500,47,FALSE)*$R18)/SUM($Q18,$R18) -> 0 | W18: =SUM(VLOOKUP($A$3,'GEO-I'!$A$14:$BX$500,8,FALSE),VLOOKUP($A$3,'GEO-I'!$A$14:$BX$500,50,FALSE))/SUM($Q18:$R18)*100 -> 0 | X18: =SUM(VLOOKUP($A$3,'GEO-I'!$A$14:$BX$500,8,FALSE),VLOOKUP($A$3,'GEO-I'!$A$14:$BX$500,50,FALSE)) -> 0 | Y18: =SUM(VLOOKUP($A$3,'GEO-I'!$A$14:$BX$500,16,FALSE)*$Q18,VLOOKUP($A$3,'GEO-I'!$A$14:$BX$500,53,FALSE)*$R18)/SUM($Q18,$R18) -> 0 | Z18: =SUM(VLOOKUP($A$3,'GEO-I'!$A$14:$BX$500,19,FALSE),VLOOKUP($A$3,'GEO-I'!$A$14:$BX$500,56,FALSE))/SUM($Q18:$R18)*100 -> 0 | AA18: =SUM(VLOOKUP($A$3,'GEO-I'!$A$14:$BX$500,19,FALSE),VLOOKUP($A$3,'GEO-I'!$A$14:$BX$500,56,FALSE)) -> 0 | AB18: =SUM(VLOOKUP($A$3,'GEO-I'!$A$14:$BX$500,22,FALSE)*$Q18,VLOOKUP($A$3,'GEO-I'!$A$14:$BX$500,59,FALSE)*$R18)/SUM($Q18,$R18) -> 0 | AC18: =SUM(VLOOKUP($A$3,'GEO-I'!$A$14:$BX$500,25,FALSE),VLOOKUP($A$3,'GEO-I'!$A$14:$BX$500,62,FALSE))/SUM($Q18:$R18)*100 -> 0 | AD18: =SUM(VLOOKUP($A$3,'GEO-I'!$A$14:$BX$500,25,FALSE),VLOOKUP($A$3,'GEO-I'!$A$14:$BX$500,62,FALSE)) -> 0 | AE18: =SUM(VLOOKUP($A$3,'GEO-I'!$A$14:$BX$500,28,FALSE)*$Q18,VLOOKUP($A$3,'GEO-I'!$A$14:$BX$500,65,FALSE)*$R18)/SUM($Q18,$R18) -> 0 | AF18: =SUM(VLOOKUP($A$3,'GEO-I'!$A$14:$BX$500,31,FALSE),VLOOKUP($A$3,'GEO-I'!$A$14:$BX$500,68,FALSE))/SUM($Q18:$R18)*100 -> 0 | AG18: =SUM(VLOOKUP($A$3,'GEO-I'!$A$14:$BX$500,31,FALSE),VLOOKUP($A$3,'GEO-I'!$A$14:$BX$500,68,FALSE)) -> 0 | AH18: =SUM(VLOOKUP($A$3,'GEO-I'!$A$14:$BX$500,34,FALSE)*$Q18,VLOOKUP($A$3,'GEO-I'!$A$14:$BX$500,71,FALSE)*$R18)/SUM($Q18,$R18) -> 0 | AI18: =SUM(VLOOKUP($A$3,'GEO-I'!$A$14:$BX$500,37,FALSE),VLOOKUP($A$3,'GEO-I'!$A$14:$BX$500,74,FALSE))/SUM($Q18:$R18)*100 -> 0 | AJ18: =SUM(VLOOKUP($A$3,'GEO-I'!$A$14:$BX$500,37,FALSE),VLOOKUP($A$3,'GEO-I'!$A$14:$BX$500,74,FALSE)) -> 0
A19: ED | B19: =IFERROR(VLOOKUP(TEXT($A$3,"0000"),MEM_ED!$A$2:$S$500,13,FALSE),0) -> 20413 | C19: =IFERROR((IF(OR(B19=0,B19="",B19="NA"),"NA",((IF(VLOOKUP($A$3,'G9-RED'!$A$6:$AM$500,3,FALSE)>=B19,"100% ("&VLOOKUP($A$3,'G9-RED'!$A$6:$AM$500,3,FALSE)&")",(ROUND((VLOOKUP($A$3,'G9-RED'!$A$6:$AM$500,3,FALSE)/B19*100),0))&"% ("&IF(VLOOKUP($A$3,'G9-RED'!$A$6:$AM$500,3,FALSE)="",0,VLOOKUP($A$3,'G9-RED'!$A$6:$AM$500,3,FALSE))&")"))))),"0% (0)") -> 99% (20117) | D19: =IFERROR((IF($C19="NA","NA",VLOOKUP($A$3,'G9-RED'!$A$6:$AM$500,4,FALSE))),"NA") -> 28.03391162 | E19: =IFERROR((IF($C19="NA","NA",ROUND(VLOOKUP($A$3,'G9-RED'!$A$6:$AM$500,6,FALSE),0)&"% ("&IF(VLOOKUP($A$3,'G9-RED'!$A$6:$AM$500,5,FALSE)="",0,VLOOKUP($A$3,'G9-RED'!$A$6:$AM$500,5,FALSE))&")")),"NA") -> 38% (7578) | F19: =IFERROR((IF($C19="NA","NA",VLOOKUP($A$3,'G9-RED'!$A$6:$AM$500,7,FALSE))),"NA") -> 7.015325347 | G19: NA | H19: =IFERROR((IF($C19="NA","NA",VLOOKUP($A$3,'G9-RED'!$A$6:$AM$500,10,FALSE))),"NA") -> 11.83736144 | I19: NA | J19: =IFERROR((IF($C19="NA","NA",VLOOKUP($A$3,'G9-RED'!$A$6:$AM$500,13,FALSE))),"NA") -> 5.230660635 | K19: NA | L19: =IFERROR((IF($C19="NA","NA",VLOOKUP($A$3,'G9-RED'!$A$6:$AM$500,16,FALSE))),"NA") -> 3.950246061 | M19: NA | Q19: =IFERROR(VLOOKUP($A$3,'G9-RED'!$A$6:$BX$500,3,FALSE),"not tested") -> 20117 | S19: =SUM(VLOOKUP($A$3,'GEO-ED'!$A$14:$BX$500,4,FALSE)*$Q19,VLOOKUP($A$3,'GEO-ED'!$A$14:$BX$500,41,FALSE)*$R19)/SUM($Q19,$R19) -> 20.04725893 | T19: =SUM(VLOOKUP($A$3,'GEO-ED'!$A$14:$BX$500,7,FALSE),VLOOKUP($A$3,'GEO-ED'!$A$14:$BX$500,44,FALSE))/SUM($Q19:$R19)*100 -> 0.09965332272 | U19: =SUM(VLOOKUP($A$3,'GEO-ED'!$A$14:$BX$500,7,FALSE),VLOOKUP($A$3,'GEO-ED'!$A$14:$BX$500,44,FALSE)) -> 20.04725893 | V19: =SUM(VLOOKUP($A$3,'GEO-ED'!$A$14:$BX$500,10,FALSE)*$Q19,VLOOKUP($A$3,'GEO-ED'!$A$14:$BX$500,47,FALSE)*$R19)/SUM($Q19,$R19) -> 0 | W19: =SUM(VLOOKUP($A$3,'GEO-ED'!$A$14:$BX$500,8,FALSE),VLOOKUP($A$3,'GEO-ED'!$A$14:$BX$500,50,FALSE))/SUM($Q19:$R19)*100 -> 0 | X19: =SUM(VLOOKUP($A$3,'GEO-ED'!$A$14:$BX$500,8,FALSE),VLOOKUP($A$3,'GEO-ED'!$A$14:$BX$500,50,FALSE)) -> 0 | Y19: =SUM(VLOOKUP($A$3,'GEO-ED'!$A$14:$BX$500,16,FALSE)*$Q19,VLOOKUP($A$3,'GEO-ED'!$A$14:$BX$500,53,FALSE)*$R19)/SUM($Q19,$R19) -> 0 | Z19: =SUM(VLOOKUP($A$3,'GEO-ED'!$A$14:$BX$500,19,FALSE),VLOOKUP($A$3,'GEO-ED'!$A$14:$BX$500,56,FALSE))/SUM($Q19:$R19)*100 -> 0 | AA19: =SUM(VLOOKUP($A$3,'GEO-ED'!$A$14:$BX$500,19,FALSE),VLOOKUP($A$3,'GEO-ED'!$A$14:$BX$500,56,FALSE)) -> 0 | AB19: =SUM(VLOOKUP($A$3,'GEO-ED'!$A$14:$BX$500,22,FALSE)*$Q19,VLOOKUP($A$3,'GEO-ED'!$A$14:$BX$500,59,FALSE)*$R19)/SUM($Q19,$R19) -> 0 | AC19: =SUM(VLOOKUP($A$3,'GEO-ED'!$A$14:$BX$500,25,FALSE),VLOOKUP($A$3,'GEO-ED'!$A$14:$BX$500,62,FALSE))/SUM($Q19:$R19)*100 -> 0 | AD19: =SUM(VLOOKUP($A$3,'GEO-ED'!$A$14:$BX$500,25,FALSE),VLOOKUP($A$3,'GEO-ED'!$A$14:$BX$500,62,FALSE)) -> 0 | AE19: =SUM(VLOOKUP($A$3,'GEO-ED'!$A$14:$BX$500,28,FALSE)*$Q19,VLOOKUP($A$3,'GEO-ED'!$A$14:$BX$500,65,FALSE)*$R19)/SUM($Q19,$R19) -> 0 | AF19: =SUM(VLOOKUP($A$3,'GEO-ED'!$A$14:$BX$500,31,FALSE),VLOOKUP($A$3,'GEO-ED'!$A$14:$BX$500,68,FALSE))/SUM($Q19:$R19)*100 -> 0 | AG19: =SUM(VLOOKUP($A$3,'GEO-ED'!$A$14:$BX$500,31,FALSE),VLOOKUP($A$3,'GEO-ED'!$A$14:$BX$500,68,FALSE)) -> 0 | AH19: =SUM(VLOOKUP($A$3,'GEO-ED'!$A$14:$BX$500,34,FALSE)*$Q19,VLOOKUP($A$3,'GEO-ED'!$A$14:$BX$500,71,FALSE)*$R19)/SUM($Q19,$R19) -> 0 | AI19: =SUM(VLOOKUP($A$3,'GEO-ED'!$A$14:$BX$500,37,FALSE),VLOOKUP($A$3,'GEO-ED'!$A$14:$BX$500,74,FALSE))/SUM($Q19:$R19)*100 -> 0 | AJ19: =SUM(VLOOKUP($A$3,'GEO-ED'!$A$14:$BX$500,37,FALSE),VLOOKUP($A$3,'GEO-ED'!$A$14:$BX$500,74,FALSE)) -> 0
A20: ELL | B20: =IFERROR(VLOOKUP(TEXT($A$3,"0000"),MEM_ELL!$A$2:$S$500,13,FALSE),0) -> 3874 | C20: =IFERROR((IF(OR(B20=0,B20="",B20="NA"),"NA",((IF(VLOOKUP($A$3,'G9-RELL'!$A$6:$AM$500,3,FALSE)>=B20,"100% ("&VLOOKUP($A$3,'G9-RELL'!$A$6:$AM$500,3,FALSE)&")",(ROUND((VLOOKUP($A$3,'G9-RELL'!$A$6:$AM$500,3,FALSE)/B20*100),0))&"% ("&IF(VLOOKUP($A$3,'G9-RELL'!$A$6:$AM$500,3,FALSE)="",0,VLOOKUP($A$3,'G9-RELL'!$A$6:$AM$500,3,FALSE))&")"))))),"0% (0)") -> 94% (3628) | D20: =IFERROR((IF($C20="NA","NA",VLOOKUP($A$3,'G9-RELL'!$A$6:$AM$500,4,FALSE))),"NA") -> 20.82772878 | E20: =IFERROR((IF($C20="NA","NA",ROUND(VLOOKUP($A$3,'G9-RELL'!$A$6:$AM$500,6,FALSE),0)&"% ("&IF(VLOOKUP($A$3,'G9-RELL'!$A$6:$AM$500,5,FALSE)="",0,VLOOKUP($A$3,'G9-RELL'!$A$6:$AM$500,5,FALSE))&")")),"NA") -> 11% (412) | F20: =IFERROR((IF($C20="NA","NA",VLOOKUP($A$3,'G9-RELL'!$A$6:$AM$500,7,FALSE))),"NA") -> 5.074145535 | G20: NA | H20: =IFERROR((IF($C20="NA","NA",VLOOKUP($A$3,'G9-RELL'!$A$6:$AM$500,10,FALSE))),"NA") -> 9.003858875 | I20: NA | J20: =IFERROR((IF($C20="NA","NA",VLOOKUP($A$3,'G9-RELL'!$A$6:$AM$500,13,FALSE))),"NA") -> 3.651874311 | K20: NA | L20: =IFERROR((IF($C20="NA","NA",VLOOKUP($A$3,'G9-RELL'!$A$6:$AM$500,16,FALSE))),"NA") -> 3.097850055 | M20: NA | Q20: =IFERROR(VLOOKUP($A$3,'G9-RELL'!$A$6:$BX$500,3,FALSE),"not tested") -> 3628 | S20: =SUM(VLOOKUP($A$3,'GEO-ELL'!$A$14:$BX$500,4,FALSE)*$Q20,VLOOKUP($A$3,'GEO-ELL'!$A$14:$BX$500,41,FALSE)*$R20)/SUM($Q20,$R20) -> 18.87755102 | T20: =SUM(VLOOKUP($A$3,'GEO-ELL'!$A$14:$BX$500,7,FALSE),VLOOKUP($A$3,'GEO-ELL'!$A$14:$BX$500,44,FALSE))/SUM($Q20:$R20)*100 -> 0.5203294107 | U20: =SUM(VLOOKUP($A$3,'GEO-ELL'!$A$14:$BX$500,7,FALSE),VLOOKUP($A$3,'GEO-ELL'!$A$14:$BX$500,44,FALSE)) -> 18.87755102 | V20: =SUM(VLOOKUP($A$3,'GEO-ELL'!$A$14:$BX$500,10,FALSE)*$Q20,VLOOKUP($A$3,'GEO-ELL'!$A$14:$BX$500,47,FALSE)*$R20)/SUM($Q20,$R20) -> 0 | W20: =SUM(VLOOKUP($A$3,'GEO-ELL'!$A$14:$BX$500,8,FALSE),VLOOKUP($A$3,'GEO-ELL'!$A$14:$BX$500,50,FALSE))/SUM($Q20:$R20)*100 -> 0 | X20: =SUM(VLOOKUP($A$3,'GEO-ELL'!$A$14:$BX$500,8,FALSE),VLOOKUP($A$3,'GEO-ELL'!$A$14:$BX$500,50,FALSE)) -> 0 | Y20: =SUM(VLOOKUP($A$3,'GEO-ELL'!$A$14:$BX$500,16,FALSE)*$Q20,VLOOKUP($A$3,'GEO-ELL'!$A$14:$BX$500,53,FALSE)*$R20)/SUM($Q20,$R20) -> 0 | Z20: =SUM(VLOOKUP($A$3,'GEO-ELL'!$A$14:$BX$500,19,FALSE),VLOOKUP($A$3,'GEO-ELL'!$A$14:$BX$500,56,FALSE))/SUM($Q20:$R20)*100 -> 0 | AA20: =SUM(VLOOKUP($A$3,'GEO-ELL'!$A$14:$BX$500,19,FALSE),VLOOKUP($A$3,'GEO-ELL'!$A$14:$BX$500,56,FALSE)) -> 0 | AB20: =SUM(VLOOKUP($A$3,'GEO-ELL'!$A$14:$BX$500,22,FALSE)*$Q20,VLOOKUP($A$3,'GEO-ELL'!$A$14:$BX$500,59,FALSE)*$R20)/SUM($Q20,$R20) -> 0 | AC20: =SUM(VLOOKUP($A$3,'GEO-ELL'!$A$14:$BX$500,25,FALSE),VLOOKUP($A$3,'GEO-ELL'!$A$14:$BX$500,62,FALSE))/SUM($Q20:$R20)*100 -> 0 | AD20: =SUM(VLOOKUP($A$3,'GEO-ELL'!$A$14:$BX$500,25,FALSE),VLOOKUP($A$3,'GEO-ELL'!$A$14:$BX$500,62,FALSE)) -> 0 | AE20: =SUM(VLOOKUP($A$3,'GEO-ELL'!$A$14:$BX$500,28,FALSE)*$Q20,VLOOKUP($A$3,'GEO-ELL'!$A$14:$BX$500,65,FALSE)*$R20)/SUM($Q20,$R20) -> 0 | AF20: =SUM(VLOOKUP($A$3,'GEO-ELL'!$A$14:$BX$500,31,FALSE),VLOOKUP($A$3,'GEO-ELL'!$A$14:$BX$500,68,FALSE))/SUM($Q20:$R20)*100 -> 0 | AG20: =SUM(VLOOKUP($A$3,'GEO-ELL'!$A$14:$BX$500,31,FALSE),VLOOKUP($A$3,'GEO-ELL'!$A$14:$BX$500,68,FALSE)) -> 0 | AH20: =SUM(VLOOKUP($A$3,'GEO-ELL'!$A$14:$BX$500,34,FALSE)*$Q20,VLOOKUP($A$3,'GEO-ELL'!$A$14:$BX$500,71,FALSE)*$R20)/SUM($Q20,$R20) -> 0 | AI20: =SUM(VLOOKUP($A$3,'GEO-ELL'!$A$14:$BX$500,37,FALSE),VLOOKUP($A$3,'GEO-ELL'!$A$14:$BX$500,74,FALSE))/SUM($Q20:$R20)*100 -> 0 | AJ20: =SUM(VLOOKUP($A$3,'GEO-ELL'!$A$14:$BX$500,37,FALSE),VLOOKUP($A$3,'GEO-ELL'!$A$14:$BX$500,74,FALSE)) -> 0
A21: SWD | B21: =IFERROR(VLOOKUP(TEXT($A$3,"0000"),MEM_SWD!$A$2:$S$500,13,FALSE),0) -> 2630 | C21: =IFERROR((IF(OR(B21=0,B21="",B21="NA"),"NA",((IF(VLOOKUP($A$3,'G9-RSWD'!$A$6:$AM$500,3,FALSE)>=B21,"100% ("&VLOOKUP($A$3,'G9-RSWD'!$A$6:$AM$500,3,FALSE)&")",(ROUND((VLOOKUP($A$3,'G9-RSWD'!$A$6:$AM$500,3,FALSE)/B21*100),0))&"% ("&IF(VLOOKUP($A$3,'G9-RSWD'!$A$6:$AM$500,3,FALSE)="",0,VLOOKUP($A$3,'G9-RSWD'!$A$6:$AM$500,3,FALSE))&")"))))),"0% (0)") -> 88% (2321) | D21: =IFERROR((IF($C21="NA","NA",VLOOKUP($A$3,'G9-RSWD'!$A$6:$AM$500,4,FALSE))),"NA") -> 22.2968548 | E21: =IFERROR((IF($C21="NA","NA",ROUND(VLOOKUP($A$3,'G9-RSWD'!$A$6:$AM$500,6,FALSE),0)&"% ("&IF(VLOOKUP($A$3,'G9-RSWD'!$A$6:$AM$500,5,FALSE)="",0,VLOOKUP($A$3,'G9-RSWD'!$A$6:$AM$500,5,FALSE))&")")),"NA") -> 15% (356) | F21: =IFERROR((IF($C21="NA","NA",VLOOKUP($A$3,'G9-RSWD'!$A$6:$AM$500,7,FALSE))),"NA") -> 5.424299871 | G21: NA | H21: =IFERROR((IF($C21="NA","NA",VLOOKUP($A$3,'G9-RSWD'!$A$6:$AM$500,10,FALSE))),"NA") -> 9.543860405 | I21: NA | J21: =IFERROR((IF($C21="NA","NA",VLOOKUP($A$3,'G9-RSWD'!$A$6:$AM$500,13,FALSE))),"NA") -> 4.13843171 | K21: NA | L21: =IFERROR((IF($C21="NA","NA",VLOOKUP($A$3,'G9-RSWD'!$A$6:$AM$500,16,FALSE))),"NA") -> 3.209004739 | M21: NA | Q21: =IFERROR(VLOOKUP($A$3,'G9-RSWD'!$A$6:$BX$500,3,FALSE),"not tested") -> 2321 | S21: =SUM(VLOOKUP($A$3,'GEO-SWD'!$A$14:$BX$500,4,FALSE)*$Q21,VLOOKUP($A$3,'GEO-SWD'!$A$14:$BX$500,41,FALSE)*$R21)/SUM($Q21,$R21) -> 16.23713425 | T21: =SUM(VLOOKUP($A$3,'GEO-SWD'!$A$14:$BX$500,7,FALSE),VLOOKUP($A$3,'GEO-SWD'!$A$14:$BX$500,44,FALSE))/SUM($Q21:$R21)*100 -> 0.6995749354 | U21: =SUM(VLOOKUP($A$3,'GEO-SWD'!$A$14:$BX$500,7,FALSE),VLOOKUP($A$3,'GEO-SWD'!$A$14:$BX$500,44,FALSE)) -> 16.23713425 | V21: =SUM(VLOOKUP($A$3,'GEO-SWD'!$A$14:$BX$500,10,FALSE)*$Q21,VLOOKUP($A$3,'GEO-SWD'!$A$14:$BX$500,47,FALSE)*$R21)/SUM($Q21,$R21) -> 0 | W21: =SUM(VLOOKUP($A$3,'GEO-SWD'!$A$14:$BX$500,8,FALSE),VLOOKUP($A$3,'GEO-SWD'!$A$14:$BX$500,50,FALSE))/SUM($Q21:$R21)*100 -> 0 | X21: =SUM(VLOOKUP($A$3,'GEO-SWD'!$A$14:$BX$500,8,FALSE),VLOOKUP($A$3,'GEO-SWD'!$A$14:$BX$500,50,FALSE)) -> 0 | Y21: =SUM(VLOOKUP($A$3,'GEO-SWD'!$A$14:$BX$500,16,FALSE)*$Q21,VLOOKUP($A$3,'GEO-SWD'!$A$14:$BX$500,53,FALSE)*$R21)/SUM($Q21,$R21) -> 0 | Z21: =SUM(VLOOKUP($A$3,'GEO-SWD'!$A$14:$BX$500,19,FALSE),VLOOKUP($A$3,'GEO-SWD'!$A$14:$BX$500,56,FALSE))/SUM($Q21:$R21)*100 -> 0 | AA21: =SUM(VLOOKUP($A$3,'GEO-SWD'!$A$14:$BX$500,19,FALSE),VLOOKUP($A$3,'GEO-SWD'!$A$14:$BX$500,56,FALSE)) -> 0 | AB21: =SUM(VLOOKUP($A$3,'GEO-SWD'!$A$14:$BX$500,22,FALSE)*$Q21,VLOOKUP($A$3,'GEO-SWD'!$A$14:$BX$500,59,FALSE)*$R21)/SUM($Q21,$R21) -> 0 | AC21: =SUM(VLOOKUP($A$3,'GEO-SWD'!$A$14:$BX$500,25,FALSE),VLOOKUP($A$3,'GEO-SWD'!$A$14:$BX$500,62,FALSE))/SUM($Q21:$R21)*100 -> 0 | AD21: =SUM(VLOOKUP($A$3,'GEO-SWD'!$A$14:$BX$500,25,FALSE),VLOOKUP($A$3,'GEO-SWD'!$A$14:$BX$500,62,FALSE)) -> 0 | AE21: =SUM(VLOOKUP($A$3,'GEO-SWD'!$A$14:$BX$500,28,FALSE)*$Q21,VLOOKUP($A$3,'GEO-SWD'!$A$14:$BX$500,65,FALSE)*$R21)/SUM($Q21,$R21) -> 0 | AF21: =SUM(VLOOKUP($A$3,'GEO-SWD'!$A$14:$BX$500,31,FALSE),VLOOKUP($A$3,'GEO-SWD'!$A$14:$BX$500,68,FALSE))/SUM($Q21:$R21)*100 -> 0 | AG21: =SUM(VLOOKUP($A$3,'GEO-SWD'!$A$14:$BX$500,31,FALSE),VLOOKUP($A$3,'GEO-SWD'!$A$14:$BX$500,68,FALSE)) -> 0 | AH21: =SUM(VLOOKUP($A$3,'GEO-SWD'!$A$14:$BX$500,34,FALSE)*$Q21,VLOOKUP($A$3,'GEO-SWD'!$A$14:$BX$500,71,FALSE)*$R21)/SUM($Q21,$R21) -> 0 | AI21: =SUM(VLOOKUP($A$3,'GEO-SWD'!$A$14:$BX$500,37,FALSE),VLOOKUP($A$3,'GEO-SWD'!$A$14:$BX$500,74,FALSE))/SUM($Q21:$R21)*100 -> 0 | AJ21: =SUM(VLOOKUP($A$3,'GEO-SWD'!$A$14:$BX$500,37,FALSE),VLOOKUP($A$3,'GEO-SWD'!$A$14:$BX$500,74,FALSE)) -> 0
A22: Reading - Grade 10 | Q22: READING
A23: Satisfactory Progress Cut Scores at 67% or above | B23: Total # of Students | C23: % of Students Tested | D23: ='G9-10 Matrix'!C$2&" ["&'G9-10 Matrix'!C5&"]" -> Overall [49] | F23: ='G9-10 Matrix'!D$2&" ["&'G9-10 Matrix'!D5&"]" -> Vocabulary [12] | H23: ='G9-10 Matrix'!E$2&" ["&'G9-10 Matrix'!E5&"]" -> Reading Application [20] | J23: ='G9-10 Matrix'!F$2&" ["&'G9-10 Matrix'!F5&"]" -> Literary Analysis Fiction/Nonfiction [9] | L23: ='G9-10 Matrix'!G$2&" ["&'G9-10 Matrix'!G5&"]" -> Informational Text/ Research Process [8] | Q23: Grade 10 Test
D24: Average Score | E24: % Satisfactory | F24: Average Score | G24: % Satisfactory | H24: Average Score | I24: % Satisfactory | J24: Average Score | K24: % Proficient | L24: Average Score | M24: % Satisfactory | Q24: Number Tested
A25: All students | B25: =IFERROR(VLOOKUP(TEXT($A$3,"0000"),Mem_All!$A$2:$S$500,18,FALSE),0) -> 26996 | C25: =IFERROR((IF(OR(B25=0,B25="",B25="NA"),"NA",((IF(VLOOKUP($A$3,'G10-RALL'!$A$6:$AM$500,3,FALSE)>=B25,"100% ("&VLOOKUP($A$3,'G10-RALL'!$A$6:$AM$500,3,FALSE)&")",(ROUND((VLOOKUP($A$3,'G10-RALL'!$A$6:$AM$500,3,FALSE)/B25*100),0))&"% ("&IF(VLOOKUP($A$3,'G10-RALL'!$A$6:$AM$500,3,FALSE)="",0,VLOOKUP($A$3,'G10-RALL'!$A$6:$AM$500,3,FALSE))&")"))))),"0% (0)") -> 90% (24175) | D25: =IFERROR((IF($C25="NA","NA",VLOOKUP($A$3,'G10-RALL'!$A$6:$AM$500,4,FALSE))),"NA") -> 29.85032058 | E25: =IFERROR((IF($C25="NA","NA",ROUND(VLOOKUP($A$3,'G10-RALL'!$A$6:$AM$500,6,FALSE),0)&"% ("&IF(VLOOKUP($A$3,'G10-RALL'!$A$6:$AM$500,5,FALSE)="",0,VLOOKUP($A$3,'G10-RALL'!$A$6:$AM$500,5,FALSE))&")")),"NA") -> 47% (11462) | F25: =IFERROR((IF($C25="NA","NA",VLOOKUP($A$3,'G10-RALL'!$A$6:$AM$500,7,FALSE))),"NA") -> 7.824790072 | G25: NA | H25: =IFERROR((IF($C25="NA","NA",VLOOKUP($A$3,'G10-RALL'!$A$6:$AM$500,10,FALSE))),"NA") -> 12.14389659 | I25: NA | J25: =IFERROR((IF($C25="NA","NA",VLOOKUP($A$3,'G10-RALL'!$A$6:$AM$500,13,FALSE))),"NA") -> 5.124285419 | K25: NA | L25: =IFERROR((IF($C25="NA","NA",VLOOKUP($A$3,'G10-RALL'!$A$6:$AM$500,16,FALSE))),"NA") -> 4.76254395 | M25: NA | N25: =IFERROR(IF($C25="NA","NA",IF($R25=0,VLOOKUP($A$3,'GEO-ALL'!$A$14:$AA$500,34,FALSE),IF($Q25=0,VLOOKUP($A$3,'GEO-ALL'!$A$14:$AA$500,71,FALSE),AH25))),"NA") -> NA | O25: =IF($C25="NA","NA",IF($R25=0,ROUND(VLOOKUP($A$3,'GEO-ALL'!$A$14:$AA$500,39,FALSE)*100,0)&"% ("&VLOOKUP($A$3,'GEO-ALL'!$A$14:$AA$500,37,FALSE)&")",IF($Q25=0,ROUND(VLOOKUP($A$3,'GEO-ALL'!$A$14:$AA$500,76,FALSE)*100,0)&"% ("&VLOOKUP($A$3,'GEO-ALL'!$A$14:$AA$500,74,FALSE)&")",ROUND(AI25,0)&"% ("&AJ25&")"))) ->  | Q25: =IFERROR(VLOOKUP($A$3,'G10-RALL'!$A$6:$BX$500,3,FALSE),"not tested") -> 24175
A26: FCAT Level 1 | B26: =IFERROR(VLOOKUP(TEXT($A$3,"0000"),MEM_RL1!$A$2:$S$500,11,FALSE),0) -> 4769 | C26: =IFERROR((IF(OR(B26=0,B26="",B26="NA"),"NA",((IF(VLOOKUP($A$3,'G10-RL1'!$A$6:$AM$500,3,FALSE)>=B26,"100% ("&VLOOKUP($A$3,'G10-RL1'!$A$6:$AM$500,3,FALSE)&")",(ROUND((VLOOKUP($A$3,'G10-RL1'!$A$6:$AM$500,3,FALSE)/B26*100),0))&"% ("&IF(VLOOKUP($A$3,'G10-RL1'!$A$6:$AM$500,3,FALSE)="",0,VLOOKUP($A$3,'G10-RL1'!$A$6:$AM$500,3,FALSE))&")"))))),"0% (0)") -> 93% (4424) | D26: =IFERROR((IF($C26="NA","NA",VLOOKUP($A$3,'G10-RL1'!$A$6:$AM$500,4,FALSE))),"NA") -> 19.17893309 | E26: =IFERROR((IF($C26="NA","NA",ROUND(VLOOKUP($A$3,'G10-RL1'!$A$6:$AM$500,6,FALSE),0)&"% ("&IF(VLOOKUP($A$3,'G10-RL1'!$A$6:$AM$500,5,FALSE)="",0,VLOOKUP($A$3,'G10-RL1'!$A$6:$AM$500,5,FALSE))&")")),"NA") -> 4% (176) | F26: =IFERROR((IF($C26="NA","NA",VLOOKUP($A$3,'G10-RL1'!$A$6:$AM$500,7,FALSE))),"NA") -> 4.859086799 | G26: NA | H26: =IFERROR((IF($C26="NA","NA",VLOOKUP($A$3,'G10-RL1'!$A$6:$AM$500,10,FALSE))),"NA") -> 7.876785714 | I26: NA | J26: =IFERROR((IF($C26="NA","NA",VLOOKUP($A$3,'G10-RL1'!$A$6:$AM$500,13,FALSE))),"NA") -> 3.317088608 | K26: NA | L26: =IFERROR((IF($C26="NA","NA",VLOOKUP($A$3,'G10-RL1'!$A$6:$AM$500,16,FALSE))),"NA") -> 3.135488246 | M26: NA | N26: =IFERROR(IF($C26="NA","NA",IF($R26=0,VLOOKUP($A$3,'GEO-L1'!$A$14:$BX$500,34,FALSE),IF($Q26=0,VLOOKUP($A$3,'GEO-L1'!$A$14:$BX$500,71,FALSE),AH26))),"NA") -> 0 | O26: =IF($C26="NA","NA",IF($R26=0,ROUND(VLOOKUP($A$3,'GEO-L1'!$A$14:$BX$500,39,FALSE)*100,0)&"% ("&VLOOKUP($A$3,'GEO-L1'!$A$14:$BX$500,37,FALSE)&")",IF($Q26=0,ROUND(VLOOKUP($A$3,'GEO-L1'!$A$14:$BX$500,76,FALSE)*100,0)&"% ("&VLOOKUP($A$3,'GEO-L1'!$A$14:$BX$500,74,FALSE)&")",ROUND(AI26,0)&"% ("&AJ26&")"))) -> 0% () | Q26: =IFERROR(VLOOKUP($A$3,'G10-RL1'!$A$6:$BX$500,3,FALSE),"not tested") -> 4424
A27: FCAT Level 2 | B27: =IFERROR(VLOOKUP(TEXT($A$3,"0000"),MEM_RL2!$A$2:$S$500,18,FALSE),0) -> 7426 | C27: =IFERROR((IF(OR(B27=0,B27="",B27="NA"),"NA",((IF(VLOOKUP($A$3,'G10-RL2'!$A$6:$AM$500,3,FALSE)>=B27,"100% ("&VLOOKUP($A$3,'G10-RL2'!$A$6:$AM$500,3,FALSE)&")",(ROUND((VLOOKUP($A$3,'G10-RL2'!$A$6:$AM$500,3,FALSE)/B27*100),0))&"% ("&IF(VLOOKUP($A$3,'G10-RL2'!$A$6:$AM$500,3,FALSE)="",0,VLOOKUP($A$3,'G10-RL2'!$A$6:$AM$500,3,FALSE))&")"))))),"0% (0)") -> 94% (6973) | D27: =IFERROR((IF($C27="NA","NA",VLOOKUP($A$3,'G10-RL2'!$A$6:$AM$500,4,FALSE))),"NA") -> 27.54600602 | E27: =IFERROR((IF($C27="NA","NA",ROUND(VLOOKUP($A$3,'G10-RL2'!$A$6:$AM$500,6,FALSE),0)&"% ("&IF(VLOOKUP($A$3,'G10-RL2'!$A$6:$AM$500,5,FALSE)="",0,VLOOKUP($A$3,'G10-RL2'!$A$6:$AM$500,5,FALSE))&")")),"NA") -> 29% (2000) | F27: =IFERROR((IF($C27="NA","NA",VLOOKUP($A$3,'G10-RL2'!$A$6:$AM$500,7,FALSE))),"NA") -> 7.24874516 | G27: NA | H27: =IFERROR((IF($C27="NA","NA",VLOOKUP($A$3,'G10-RL2'!$A$6:$AM$500,10,FALSE))),"NA") -> 11.07616521 | I27: NA | J27: =IFERROR((IF($C27="NA","NA",VLOOKUP($A$3,'G10-RL2'!$A$6:$AM$500,13,FALSE))),"NA") -> 4.750767245 | K27: NA | L27: =IFERROR((IF($C27="NA","NA",VLOOKUP($A$3,'G10-RL2'!$A$6:$AM$500,16,FALSE))),"NA") -> 4.465653234 | M27: NA | N27: =IFERROR(IF($C27="NA","NA",IF($R27=0,VLOOKUP($A$3,'GEO-L2'!$A$14:$BX$500,34,FALSE),IF($Q27=0,VLOOKUP($A$3,'GEO-L2'!$A$14:$BX$500,71,FALSE),AH27))),"NA") -> 0 | O27: =IF($C27="NA","NA",IF($R27=0,ROUND(VLOOKUP($A$3,'GEO-L2'!$A$14:$BX$500,39,FALSE)*100,0)&"% ("&VLOOKUP($A$3,'GEO-L2'!$A$14:$BX$500,37,FALSE)&")",IF($Q27=0,ROUND(VLOOKUP($A$3,'GEO-L2'!$A$14:$BX$500,76,FALSE)*100,0)&"% ("&VLOOKUP($A$3,'GEO-L2'!$A$14:$BX$500,74,FALSE)&")",ROUND(AI27,0)&"% ("&AJ27&")"))) -> 0% () | Q27: =IFERROR(VLOOKUP($A$3,'G10-RL2'!$A$6:$BX$500,3,FALSE),"not tested") -> 6973
A28: FCAT Level 3 | B28: =IFERROR(VLOOKUP(TEXT($A$3,"0000"),MEM_RL3!$A$2:$S$500,18,FALSE),0) -> 6265 | C28: =IFERROR((IF(OR(B28=0,B28="",B28="NA"),"NA",((IF(VLOOKUP($A$3,'G10-RL3'!$A$6:$AM$500,3,FALSE)>=B28,"100% ("&VLOOKUP($A$3,'G10-RL3'!$A$6:$AM$500,3,FALSE)&")",(ROUND((VLOOKUP($A$3,'G10-RL3'!$A$6:$AM$500,3,FALSE)/B28*100),0))&"% ("&IF(VLOOKUP($A$3,'G10-RL3'!$A$6:$AM$500,3,FALSE)="",0,VLOOKUP($A$3,'G10-RL3'!$A$6:$AM$500,3,FALSE))&")"))))),"0% (0)") -> 97% (6057) | D28: =IFERROR((IF($C28="NA","NA",VLOOKUP($A$3,'G10-RL3'!$A$6:$AM$500,4,FALSE))),"NA") -> 33.08094766 | E28: =IFERROR((IF($C28="NA","NA",ROUND(VLOOKUP($A$3,'G10-RL3'!$A$6:$AM$500,6,FALSE),0)&"% ("&IF(VLOOKUP($A$3,'G10-RL3'!$A$6:$AM$500,5,FALSE)="",0,VLOOKUP($A$3,'G10-RL3'!$A$6:$AM$500,5,FALSE))&")")),"NA") -> 63% (3834) | F28: =IFERROR((IF($C28="NA","NA",VLOOKUP($A$3,'G10-RL3'!$A$6:$AM$500,7,FALSE))),"NA") -> 8.766963843 | G28: NA | H28: =IFERROR((IF($C28="NA","NA",VLOOKUP($A$3,'G10-RL3'!$A$6:$AM$500,10,FALSE))),"NA") -> 13.3968136 | I28: NA | J28: =IFERROR((IF($C28="NA","NA",VLOOKUP($A$3,'G10-RL3'!$A$6:$AM$500,13,FALSE))),"NA") -> 5.686660063 | K28: NA | L28: =IFERROR((IF($C28="NA","NA",VLOOKUP($A$3,'G10-RL3'!$A$6:$AM$500,16,FALSE))),"NA") -> 5.248869077 | M28: NA | N28: =IFERROR(IF($C28="NA","NA",IF($R28=0,VLOOKUP($A$3,'GEO-L3'!$A$14:$BX$500,34,FALSE),IF($Q28=0,VLOOKUP($A$3,'GEO-L3'!$A$14:$BX$500,71,FALSE),AH28))),"NA") -> 0 | O28: =IF($C28="NA","NA",IF($R28=0,ROUND(VLOOKUP($A$3,'GEO-L3'!$A$14:$BX$500,39,FALSE)*100,0)&"% ("&VLOOKUP($A$3,'GEO-L3'!$A$14:$BX$500,37,FALSE)&")",IF($Q28=0,ROUND(VLOOKUP($A$3,'GEO-L3'!$A$14:$BX$500,76,FALSE)*100,0)&"% ("&VLOOKUP($A$3,'GEO-L3'!$A$14:$BX$500,74,FALSE)&")",ROUND(AI28,0)&"% ("&AJ28&")"))) -> 0% () | Q28: =IFERROR(VLOOKUP($A$3,'G10-RL3'!$A$6:$BX$500,3,FALSE),"not tested") -> 6057
A29: FCAT Level 4 | B29: =IFERROR(VLOOKUP(TEXT($A$3,"0000"),MEM_RL4!$A$2:$S$500,18,FALSE),0) -> 4297 | C29: =IFERROR((IF(OR(B29=0,B29="",B29="NA"),"NA",((IF(VLOOKUP($A$3,'G10-RL4'!$A$6:$AM$500,3,FALSE)>=B29,"100% ("&VLOOKUP($A$3,'G10-RL4'!$A$6:$AM$500,3,FALSE)&")",(ROUND((VLOOKUP($A$3,'G10-RL4'!$A$6:$AM$500,3,FALSE)/B29*100),0))&"% ("&IF(VLOOKUP($A$3,'G10-RL4'!$A$6:$AM$500,3,FALSE)="",0,VLOOKUP($A$3,'G10-RL4'!$A$6:$AM$500,3,FALSE))&")"))))),"0% (0)") -> 96% (4145) | D29: =IFERROR((IF($C29="NA","NA",VLOOKUP($A$3,'G10-RL4'!$A$6:$AM$500,4,FALSE))),"NA") -> 37.59360676 | E29: =IFERROR((IF($C29="NA","NA",ROUND(VLOOKUP($A$3,'G10-RL4'!$A$6:$AM$500,6,FALSE),0)&"% ("&IF(VLOOKUP($A$3,'G10-RL4'!$A$6:$AM$500,5,FALSE)="",0,VLOOKUP($A$3,'G10-RL4'!$A$6:$AM$500,5,FALSE))&")")),"NA") -> 88% (3644) | F29: =IFERROR((IF($C29="NA","NA",VLOOKUP($A$3,'G10-RL4'!$A$6:$AM$500,7,FALSE))),"NA") -> 9.928395657 | G29: NA | H29: =IFERROR((IF($C29="NA","NA",VLOOKUP($A$3,'G10-RL4'!$A$6:$AM$500,10,FALSE))),"NA") -> 15.40446321 | I29: NA | J29: =IFERROR((IF($C29="NA","NA",VLOOKUP($A$3,'G10-RL4'!$A$6:$AM$500,13,FALSE))),"NA") -> 6.408250905 | K29: NA | L29: =IFERROR((IF($C29="NA","NA",VLOOKUP($A$3,'G10-RL4'!$A$6:$AM$500,16,FALSE))),"NA") -> 5.852159228 | M29: NA | N29: =IFERROR(IF($C29="NA","NA",IF($R29=0,VLOOKUP($A$3,'GEO-L4'!$A$14:$BX$500,34,FALSE),IF($Q29=0,VLOOKUP($A$3,'GEO-L4'!$A$14:$BX$500,71,FALSE),AH29))),"NA") -> 0 | O29: =IF($C29="NA","NA",IF($R29=0,ROUND(VLOOKUP($A$3,'GEO-L4'!$A$14:$BX$500,39,FALSE)*100,0)&"% ("&VLOOKUP($A$3,'GEO-L4'!$A$14:$BX$500,37,FALSE)&")",IF($Q29=0,ROUND(VLOOKUP($A$3,'GEO-L4'!$A$14:$BX$500,76,FALSE)*100,0)&"% ("&VLOOKUP($A$3,'GEO-L4'!$A$14:$BX$500,74,FALSE)&")",ROUND(AI29,0)&"% ("&AJ29&")"))) -> 0% () | Q29: =IFERROR(VLOOKUP($A$3,'G10-RL4'!$A$6:$BX$500,3,FALSE),"not tested") -> 4145
A30: FCAT Level 5 | B30: =IFERROR(VLOOKUP(TEXT($A$3,"0000"),MEM_RL5!$A$2:$S$500,18,FALSE),0) -> 1782 | C30: =IFERROR((IF(OR(B30=0,B30="",B30="NA"),"NA",((IF(VLOOKUP($A$3,'G10-RL5'!$A$6:$AM$500,3,FALSE)>=B30,"100% ("&VLOOKUP($A$3,'G10-RL5'!$A$6:$AM$500,3,FALSE)&")",(ROUND((VLOOKUP($A$3,'G10-RL5'!$A$6:$AM$500,3,FALSE)/B30*100),0))&"% ("&IF(VLOOKUP($A$3,'G10-RL5'!$A$6:$AM$500,3,FALSE)="",0,VLOOKUP($A$3,'G10-RL5'!$A$6:$AM$500,3,FALSE))&")"))))),"0% (0)") -> 96% (1704) | D30: =IFERROR((IF($C30="NA","NA",VLOOKUP($A$3,'G10-RL5'!$A$6:$AM$500,4,FALSE))),"NA") -> 40.67130282 | E30: =IFERROR((IF($C30="NA","NA",ROUND(VLOOKUP($A$3,'G10-RL5'!$A$6:$AM$500,6,FALSE),0)&"% ("&IF(VLOOKUP($A$3,'G10-RL5'!$A$6:$AM$500,5,FALSE)="",0,VLOOKUP($A$3,'G10-RL5'!$A$6:$AM$500,5,FALSE))&")")),"NA") -> 96% (1638) | F30: =IFERROR((IF($C30="NA","NA",VLOOKUP($A$3,'G10-RL5'!$A$6:$AM$500,7,FALSE))),"NA") -> 10.66866197 | G30: NA | H30: =IFERROR((IF($C30="NA","NA",VLOOKUP($A$3,'G10-RL5'!$A$6:$AM$500,10,FALSE))),"NA") -> 16.7491784 | I30: NA | J30: =IFERROR((IF($C30="NA","NA",VLOOKUP($A$3,'G10-RL5'!$A$6:$AM$500,13,FALSE))),"NA") -> 6.928814554 | K30: NA | L30: =IFERROR((IF($C30="NA","NA",VLOOKUP($A$3,'G10-RL5'!$A$6:$AM$500,16,FALSE))),"NA") -> 6.324061033 | M30: NA | N30: =IFERROR(IF($C30="NA","NA",IF($R30=0,VLOOKUP($A$3,'GEO-L5'!$A$14:$BX$500,34,FALSE),IF($Q30=0,VLOOKUP($A$3,'GEO-L5'!$A$14:$BX$500,71,FALSE),AH30))),"NA") -> 0 | O30: =IF($C30="NA","NA",IF($R30=0,ROUND(VLOOKUP($A$3,'GEO-L5'!$A$14:$BX$500,39,FALSE)*100,0)&"% ("&VLOOKUP($A$3,'GEO-L5'!$A$14:$BX$500,37,FALSE)&")",IF($Q30=0,ROUND(VLOOKUP($A$3,'GEO-L5'!$A$14:$BX$500,76,FALSE)*100,0)&"% ("&VLOOKUP($A$3,'GEO-L5'!$A$14:$BX$500,74,FALSE)&")",ROUND(AI30,0)&"% ("&AJ30&")"))) -> 0% () | Q30: =IFERROR(VLOOKUP($A$3,'G10-RL5'!$A$6:$BX$500,3,FALSE),"not tested") -> 1704
A31: White | B31: =IFERROR(VLOOKUP(TEXT($A$3,"0000"),MEM_W!$A$2:$S$500,18,FALSE),0) -> 2405 | C31: =IFERROR((IF(OR(B31=0,B31="",B31="NA"),"NA",((IF(VLOOKUP($A$3,'G10-RW'!$A$6:$AM$500,3,FALSE)>=B31,"100% ("&VLOOKUP($A$3,'G10-RW'!$A$6:$AM$500,3,FALSE)&")",(ROUND((VLOOKUP($A$3,'G10-RW'!$A$6:$AM$500,3,FALSE)/B31*100),0))&"% ("&IF(VLOOKUP($A$3,'G10-RW'!$A$6:$AM$500,3,FALSE)="",0,VLOOKUP($A$3,'G10-RW'!$A$6:$AM$500,3,FALSE))&")"))))),"0% (0)") -> 89% (2151) | D31: =IFERROR((IF($C31="NA","NA",VLOOKUP($A$3,'G10-RW'!$A$6:$AM$500,4,FALSE))),"NA") -> 34.04904695 | E31: =IFERROR((IF($C31="NA","NA",ROUND(VLOOKUP($A$3,'G10-RW'!$A$6:$AM$500,6,FALSE),0)&"% ("&IF(VLOOKUP($A$3,'G10-RW'!$A$6:$AM$500,5,FALSE)="",0,VLOOKUP($A$3,'G10-RW'!$A$6:$AM$500,5,FALSE))&")")),"NA") -> 68% (1454) | F31: =IFERROR((IF($C31="NA","NA",VLOOKUP($A$3,'G10-RW'!$A$6:$AM$500,7,FALSE))),"NA") -> 9.046582985 | G31: NA | H31: =IFERROR((IF($C31="NA","NA",VLOOKUP($A$3,'G10-RW'!$A$6:$AM$500,10,FALSE))),"NA") -> 13.71603905 | I31: NA | J31: =IFERROR((IF($C31="NA","NA",VLOOKUP($A$3,'G10-RW'!$A$6:$AM$500,13,FALSE))),"NA") -> 5.90237099 | K31: NA | L31: =IFERROR((IF($C31="NA","NA",VLOOKUP($A$3,'G10-RW'!$A$6:$AM$500,16,FALSE))),"NA") -> 5.367921897 | M31: NA | N31: =IFERROR(IF($C31="NA","NA",IF($R31=0,VLOOKUP($A$3,'GEO-W'!$A$14:$BX$500,34,FALSE),IF($Q31=0,VLOOKUP($A$3,'GEO-W'!$A$14:$BX$500,71,FALSE),AH31))),"NA") -> 0 | O31: =IF($C31="NA","NA",IF($R31=0,ROUND(VLOOKUP($A$3,'GEO-W'!$A$14:$BX$500,39,FALSE)*100,0)&"% ("&VLOOKUP($A$3,'GEO-W'!$A$14:$BX$500,37,FALSE)&")",IF($Q31=0,ROUND(VLOOKUP($A$3,'GEO-W'!$A$14:$BX$500,76,FALSE)*100,0)&"% ("&VLOOKUP($A$3,'GEO-W'!$A$14:$BX$500,74,FALSE)&")",ROUND(AI31,0)&"% ("&AJ31&")"))) -> 0% () | Q31: =IFERROR(VLOOKUP($A$3,'G10-RW'!$A$6:$BX$500,3,FALSE),"not tested") -> 2151
A32: Black | B32: =IFERROR(VLOOKUP(TEXT($A$3,"0000"),MEM_B!$A$2:$S$500,18,FALSE),0) -> 6360 | C32: =IFERROR((IF(OR(B32=0,B32="",B32="NA"),"NA",((IF(VLOOKUP($A$3,'G10-RB'!$A$6:$AM$500,3,FALSE)>=B32,"100% ("&VLOOKUP($A$3,'G10-RB'!$A$6:$AM$500,3,FALSE)&")",(ROUND((VLOOKUP($A$3,'G10-RB'!$A$6:$AM$500,3,FALSE)/B32*100),0))&"% ("&IF(VLOOKUP($A$3,'G10-RB'!$A$6:$AM$500,3,FALSE)="",0,VLOOKUP($A$3,'G10-RB'!$A$6:$AM$500,3,FALSE))&")"))))),"0% (0)") -> 86% (5497) | D32: =IFERROR((IF($C32="NA","NA",VLOOKUP($A$3,'G10-RB'!$A$6:$AM$500,4,FALSE))),"NA") -> 27.50800437 | E32: =IFERROR((IF($C32="NA","NA",ROUND(VLOOKUP($A$3,'G10-RB'!$A$6:$AM$500,6,FALSE),0)&"% ("&IF(VLOOKUP($A$3,'G10-RB'!$A$6:$AM$500,5,FALSE)="",0,VLOOKUP($A$3,'G10-RB'!$A$6:$AM$500,5,FALSE))&")")),"NA") -> 34% (1868) | F32: =IFERROR((IF($C32="NA","NA",VLOOKUP($A$3,'G10-RB'!$A$6:$AM$500,7,FALSE))),"NA") -> 7.185974168 | G32: NA | H32: =IFERROR((IF($C32="NA","NA",VLOOKUP($A$3,'G10-RB'!$A$6:$AM$500,10,FALSE))),"NA") -> 11.13651082 | I32: NA | J32: =IFERROR((IF($C32="NA","NA",VLOOKUP($A$3,'G10-RB'!$A$6:$AM$500,13,FALSE))),"NA") -> 4.718319083 | K32: NA | L32: =IFERROR((IF($C32="NA","NA",VLOOKUP($A$3,'G10-RB'!$A$6:$AM$500,16,FALSE))),"NA") -> 4.477023831 | M32: NA | N32: =IFERROR(IF($C32="NA","NA",IF($R32=0,VLOOKUP($A$3,'GEO-B'!$A$14:$BX$500,34,FALSE),IF($Q32=0,VLOOKUP($A$3,'GEO-B'!$A$14:$BX$500,71,FALSE),AH32))),"NA") -> 0 | O32: =IF($C32="NA","NA",IF($R32=0,ROUND(VLOOKUP($A$3,'GEO-B'!$A$14:$BX$500,39,FALSE)*100,0)&"% ("&VLOOKUP($A$3,'GEO-B'!$A$14:$BX$500,37,FALSE)&")",IF($Q32=0,ROUND(VLOOKUP($A$3,'GEO-B'!$A$14:$BX$500,76,FALSE)*100,0)&"% ("&VLOOKUP($A$3,'GEO-B'!$A$14:$BX$500,74,FALSE)&")",ROUND(AI32,0)&"% ("&AJ32&")"))) -> 0% () | Q32: =IFERROR(VLOOKUP($A$3,'G10-RB'!$A$6:$BX$500,3,FALSE),"not tested") -> 5497
A33: Hispanic | B33: =IFERROR(VLOOKUP(TEXT($A$3,"0000"),MEM_H!$A$2:$S$500,18,FALSE),0) -> 17806 | C33: =IFERROR((IF(OR(B33=0,B33="",B33="NA"),"NA",((IF(VLOOKUP($A$3,'G10-RH'!$A$6:$AM$500,3,FALSE)>=B33,"100% ("&VLOOKUP($A$3,'G10-RH'!$A$6:$AM$500,3,FALSE)&")",(ROUND((VLOOKUP($A$3,'G10-RH'!$A$6:$AM$500,3,FALSE)/B33*100),0))&"% ("&IF(VLOOKUP($A$3,'G10-RH'!$A$6:$AM$500,3,FALSE)="",0,VLOOKUP($A$3,'G10-RH'!$A$6:$AM$500,3,FALSE))&")"))))),"0% (0)") -> 91% (16124) | D33: =IFERROR((IF($C33="NA","NA",VLOOKUP($A$3,'G10-RH'!$A$6:$AM$500,4,FALSE))),"NA") -> 29.98047011 | E33: =IFERROR((IF($C33="NA","NA",ROUND(VLOOKUP($A$3,'G10-RH'!$A$6:$AM$500,6,FALSE),0)&"% ("&IF(VLOOKUP($A$3,'G10-RH'!$A$6:$AM$500,5,FALSE)="",0,VLOOKUP($A$3,'G10-RH'!$A$6:$AM$500,5,FALSE))&")")),"NA") -> 49% (7862) | F33: =IFERROR((IF($C33="NA","NA",VLOOKUP($A$3,'G10-RH'!$A$6:$AM$500,7,FALSE))),"NA") -> 7.858955594 | G33: NA | H33: =IFERROR((IF($C33="NA","NA",VLOOKUP($A$3,'G10-RH'!$A$6:$AM$500,10,FALSE))),"NA") -> 12.23047011 | I33: NA | J33: =IFERROR((IF($C33="NA","NA",VLOOKUP($A$3,'G10-RH'!$A$6:$AM$500,13,FALSE))),"NA") -> 5.157398908 | K33: NA | L33: =IFERROR((IF($C33="NA","NA",VLOOKUP($A$3,'G10-RH'!$A$6:$AM$500,16,FALSE))),"NA") -> 4.746644753 | M33: NA | N33: =IFERROR(IF($C33="NA","NA",IF($R33=0,VLOOKUP($A$3,'GEO-H'!$A$14:$BX$500,34,FALSE),IF($Q33=0,VLOOKUP($A$3,'GEO-H'!$A$14:$BX$500,71,FALSE),AH33))),"NA") -> 0 | O33: =IF($C33="NA","NA",IF($R33=0,ROUND(VLOOKUP($A$3,'GEO-H'!$A$14:$BX$500,39,FALSE)*100,0)&"% ("&VLOOKUP($A$3,'GEO-H'!$A$14:$BX$500,37,FALSE)&")",IF($Q33=0,ROUND(VLOOKUP($A$3,'GEO-H'!$A$14:$BX$500,76,FALSE)*100,0)&"% ("&VLOOKUP($A$3,'GEO-H'!$A$14:$BX$500,74,FALSE)&")",ROUND(AI33,0)&"% ("&AJ33&")"))) -> 0% () | Q33: =IFERROR(VLOOKUP($A$3,'G10-RH'!$A$6:$BX$500,3,FALSE),"not tested") -> 16124
A34: Asian | B34: =IFERROR(VLOOKUP(TEXT($A$3,"0000"),MEM_A!$A$2:$S$500,18,FALSE),0) -> 352 | C34: =IFERROR((IF(OR(B34=0,B34="",B34="NA"),"NA",((IF(VLOOKUP($A$3,'G10-RA'!$A$6:$AM$500,3,FALSE)>=B34,"100% ("&VLOOKUP($A$3,'G10-RA'!$A$6:$AM$500,3,FALSE)&")",(ROUND((VLOOKUP($A$3,'G10-RA'!$A$6:$AM$500,3,FALSE)/B34*100),0))&"% ("&IF(VLOOKUP($A$3,'G10-RA'!$A$6:$AM$500,3,FALSE)="",0,VLOOKUP($A$3,'G10-RA'!$A$6:$AM$500,3,FALSE))&")"))))),"0% (0)") -> 93% (328) | D34: =IFERROR((IF($C34="NA","NA",VLOOKUP($A$3,'G10-RA'!$A$6:$AM$500,4,FALSE))),"NA") -> 34.45457317 | E34: =IFERROR((IF($C34="NA","NA",ROUND(VLOOKUP($A$3,'G10-RA'!$A$6:$AM$500,6,FALSE),0)&"% ("&IF(VLOOKUP($A$3,'G10-RA'!$A$6:$AM$500,5,FALSE)="",0,VLOOKUP($A$3,'G10-RA'!$A$6:$AM$500,5,FALSE))&")")),"NA") -> 70% (230) | F34: =IFERROR((IF($C34="NA","NA",VLOOKUP($A$3,'G10-RA'!$A$6:$AM$500,7,FALSE))),"NA") -> 9.10945122 | G34: NA | H34: =IFERROR((IF($C34="NA","NA",VLOOKUP($A$3,'G10-RA'!$A$6:$AM$500,10,FALSE))),"NA") -> 13.91676829 | I34: NA | J34: =IFERROR((IF($C34="NA","NA",VLOOKUP($A$3,'G10-RA'!$A$6:$AM$500,13,FALSE))),"NA") -> 5.977743902 | K34: NA | L34: =IFERROR((IF($C34="NA","NA",VLOOKUP($A$3,'G10-RA'!$A$6:$AM$500,16,FALSE))),"NA") -> 5.452134146 | M34: NA | N34: =IFERROR(IF($C34="NA","NA",IF($R34=0,VLOOKUP($A$3,'GEO-A'!$A$14:$BX$500,34,FALSE),IF($Q34=0,VLOOKUP($A$3,'GEO-A'!$A$14:$BX$500,71,FALSE),AH34))),"NA") -> 0 | O34: =IF($C34="NA","NA",IF($R34=0,ROUND(VLOOKUP($A$3,'GEO-A'!$A$14:$BX$500,39,FALSE)*100,0)&"% ("&VLOOKUP($A$3,'GEO-A'!$A$14:$BX$500,37,FALSE)&")",IF($Q34=0,ROUND(VLOOKUP($A$3,'GEO-A'!$A$14:$BX$500,76,FALSE)*100,0)&"% ("&VLOOKUP($A$3,'GEO-A'!$A$14:$BX$500,74,FALSE)&")",ROUND(AI34,0)&"% ("&AJ34&")"))) -> 0% () | Q34: =IFERROR(VLOOKUP($A$3,'G10-RA'!$A$6:$BX$500,3,FALSE),"not tested") -> 328
A35: Am. Indian | B35: =IFERROR(VLOOKUP(TEXT($A$3,"0000"),MEM_I!$A$2:$S$500,18,FALSE),0) -> 24 | C35: =IFERROR((IF(OR(B35=0,B35="",B35="NA"),"NA",((IF(VLOOKUP($A$3,'G10-RI'!$A$6:$AM$500,3,FALSE)>=B35,"100% ("&VLOOKUP($A$3,'G10-RI'!$A$6:$AM$500,3,FALSE)&")",(ROUND((VLOOKUP($A$3,'G10-RI'!$A$6:$AM$500,3,FALSE)/B35*100),0))&"% ("&IF(VLOOKUP($A$3,'G10-RI'!$A$6:$AM$500,3,FALSE)="",0,VLOOKUP($A$3,'G10-RI'!$A$6:$AM$500,3,FALSE))&")"))))),"0% (0)") -> 88% (21) | D35: =IFERROR((IF($C35="NA","NA",VLOOKUP($A$3,'G10-RI'!$A$6:$AM$500,4,FALSE))),"NA") -> 27.2 | E35: =IFERROR((IF($C35="NA","NA",ROUND(VLOOKUP($A$3,'G10-RI'!$A$6:$AM$500,6,FALSE),0)&"% ("&IF(VLOOKUP($A$3,'G10-RI'!$A$6:$AM$500,5,FALSE)="",0,VLOOKUP($A$3,'G10-RI'!$A$6:$AM$500,5,FALSE))&")")),"NA") -> 33% (7) | F35: =IFERROR((IF($C35="NA","NA",VLOOKUP($A$3,'G10-RI'!$A$6:$AM$500,7,FALSE))),"NA") -> 6.857142857 | G35: NA | H35: =IFERROR((IF($C35="NA","NA",VLOOKUP($A$3,'G10-RI'!$A$6:$AM$500,10,FALSE))),"NA") -> 10.66190476 | I35: NA | J35: =IFERROR((IF($C35="NA","NA",VLOOKUP($A$3,'G10-RI'!$A$6:$AM$500,13,FALSE))),"NA") -> 5.1 | K35: NA | L35: =IFERROR((IF($C35="NA","NA",VLOOKUP($A$3,'G10-RI'!$A$6:$AM$500,16,FALSE))),"NA") -> 4.580952381 | M35: NA | N35: =IFERROR(IF($C35="NA","NA",IF($R35=0,VLOOKUP($A$3,'GEO-I'!$A$14:$BX$500,34,FALSE),IF($Q35=0,VLOOKUP($A$3,'GEO-I'!$A$14:$BX$500,71,FALSE),AH35))),"NA") -> 0 | O35: =IF($C35="NA","NA",IF($R35=0,ROUND(VLOOKUP($A$3,'GEO-I'!$A$14:$BX$500,39,FALSE)*100,0)&"% ("&VLOOKUP($A$3,'GEO-I'!$A$14:$BX$500,37,FALSE)&")",IF($Q35=0,ROUND(VLOOKUP($A$3,'GEO-I'!$A$14:$BX$500,76,FALSE)*100,0)&"% ("&VLOOKUP($A$3,'GEO-I'!$A$14:$BX$500,74,FALSE)&")",ROUND(AI35,0)&"% ("&AJ35&")"))) -> 0% () | Q35: =IFERROR(VLOOKUP($A$3,'G10-RI'!$A$6:$BX$500,3,FALSE),"not tested") -> 21
A36: ED | B36: =IFERROR(VLOOKUP(TEXT($A$3,"0000"),MEM_ED!$A$2:$S$500,18,FALSE),0) -> 19103 | C36: =IFERROR((IF(OR(B36=0,B36="",B36="NA"),"NA",((IF(VLOOKUP($A$3,'G10-RED'!$A$6:$AM$500,3,FALSE)>=B36,"100% ("&VLOOKUP($A$3,'G10-RED'!$A$6:$AM$500,3,FALSE)&")",(ROUND((VLOOKUP($A$3,'G10-RED'!$A$6:$AM$500,3,FALSE)/B36*100),0))&"% ("&IF(VLOOKUP($A$3,'G10-RED'!$A$6:$AM$500,3,FALSE)="",0,VLOOKUP($A$3,'G10-RED'!$A$6:$AM$500,3,FALSE))&")"))))),"0% (0)") -> 97% (18513) | D36: =IFERROR((IF($C36="NA","NA",VLOOKUP($A$3,'G10-RED'!$A$6:$AM$500,4,FALSE))),"NA") -> 28.79298331 | E36: =IFERROR((IF($C36="NA","NA",ROUND(VLOOKUP($A$3,'G10-RED'!$A$6:$AM$500,6,FALSE),0)&"% ("&IF(VLOOKUP($A$3,'G10-RED'!$A$6:$AM$500,5,FALSE)="",0,VLOOKUP($A$3,'G10-RED'!$A$6:$AM$500,5,FALSE))&")")),"NA") -> 42% (7817) | F36: =IFERROR((IF($C36="NA","NA",VLOOKUP($A$3,'G10-RED'!$A$6:$AM$500,7,FALSE))),"NA") -> 7.515491817 | G36: NA | H36: =IFERROR((IF($C36="NA","NA",VLOOKUP($A$3,'G10-RED'!$A$6:$AM$500,10,FALSE))),"NA") -> 11.72921731 | I36: NA | J36: =IFERROR((IF($C36="NA","NA",VLOOKUP($A$3,'G10-RED'!$A$6:$AM$500,13,FALSE))),"NA") -> 4.938308216 | K36: NA | L36: =IFERROR((IF($C36="NA","NA",VLOOKUP($A$3,'G10-RED'!$A$6:$AM$500,16,FALSE))),"NA") -> 4.608837033 | M36: NA | N36: =IFERROR(IF($C36="NA","NA",IF($R36=0,VLOOKUP($A$3,'GEO-ED'!$A$14:$BX$500,34,FALSE),IF($Q36=0,VLOOKUP($A$3,'GEO-ED'!$A$14:$BX$500,71,FALSE),AH36))),"NA") -> 0 | O36: =IF($C36="NA","NA",IF($R36=0,ROUND(VLOOKUP($A$3,'GEO-ED'!$A$14:$BX$500,39,FALSE)*100,0)&"% ("&VLOOKUP($A$3,'GEO-ED'!$A$14:$BX$500,37,FALSE)&")",IF($Q36=0,ROUND(VLOOKUP($A$3,'GEO-ED'!$A$14:$BX$500,76,FALSE)*100,0)&"% ("&VLOOKUP($A$3,'GEO-ED'!$A$14:$BX$500,74,FALSE)&")",ROUND(AI36,0)&"% ("&AJ36&")"))) -> 0% () | Q36: =IFERROR(VLOOKUP($A$3,'G10-RED'!$A$6:$BX$500,3,FALSE),"not tested") -> 18513
A37: ELL | B37: =IFERROR(VLOOKUP(TEXT($A$3,"0000"),MEM_ELL!$A$2:$S$500,18,FALSE),0) -> 3602 | C37: =IFERROR((IF(OR(B37=0,B37="",B37="NA"),"NA",((IF(VLOOKUP($A$3,'G10-RELL'!$A$6:$AM$500,3,FALSE)>=B37,"100% ("&VLOOKUP($A$3,'G10-RELL'!$A$6:$AM$500,3,FALSE)&")",(ROUND((VLOOKUP($A$3,'G10-RELL'!$A$6:$AM$500,3,FALSE)/B37*100),0))&"% ("&IF(VLOOKUP($A$3,'G10-RELL'!$A$6:$AM$500,3,FALSE)="",0,VLOOKUP($A$3,'G10-RELL'!$A$6:$AM$500,3,FALSE))&")"))))),"0% (0)") -> 90% (3247) | D37: =IFERROR((IF($C37="NA","NA",VLOOKUP($A$3,'G10-RELL'!$A$6:$AM$500,4,FALSE))),"NA") -> 20.90545119 | E37: =IFERROR((IF($C37="NA","NA",ROUND(VLOOKUP($A$3,'G10-RELL'!$A$6:$AM$500,6,FALSE),0)&"% ("&IF(VLOOKUP($A$3,'G10-RELL'!$A$6:$AM$500,5,FALSE)="",0,VLOOKUP($A$3,'G10-RELL'!$A$6:$AM$500,5,FALSE))&")")),"NA") -> 12% (394) | F37: =IFERROR((IF($C37="NA","NA",VLOOKUP($A$3,'G10-RELL'!$A$6:$AM$500,7,FALSE))),"NA") -> 5.155220203 | G37: NA | H37: =IFERROR((IF($C37="NA","NA",VLOOKUP($A$3,'G10-RELL'!$A$6:$AM$500,10,FALSE))),"NA") -> 8.726208808 | I37: NA | J37: =IFERROR((IF($C37="NA","NA",VLOOKUP($A$3,'G10-RELL'!$A$6:$AM$500,13,FALSE))),"NA") -> 3.697874962 | K37: NA | L37: =IFERROR((IF($C37="NA","NA",VLOOKUP($A$3,'G10-RELL'!$A$6:$AM$500,16,FALSE))),"NA") -> 3.326147213 | M37: NA | N37: =IFERROR(IF($C37="NA","NA",IF($R37=0,VLOOKUP($A$3,'GEO-ELL'!$A$14:$BX$500,34,FALSE),IF($Q37=0,VLOOKUP($A$3,'GEO-ELL'!$A$14:$BX$500,71,FALSE),AH37))),"NA") -> 0 | O37: =IF($C37="NA","NA",IF($R37=0,ROUND(VLOOKUP($A$3,'GEO-ELL'!$A$14:$BX$500,39,FALSE)*100,0)&"% ("&VLOOKUP($A$3,'GEO-ELL'!$A$14:$BX$500,37,FALSE)&")",IF($Q37=0,ROUND(VLOOKUP($A$3,'GEO-ELL'!$A$14:$BX$500,76,FALSE)*100,0)&"% ("&VLOOKUP($A$3,'GEO-ELL'!$A$14:$BX$500,74,FALSE)&")",ROUND(AI37,0)&"% ("&AJ37&")"))) -> 0% () | Q37: =IFERROR(VLOOKUP($A$3,'G10-RELL'!$A$6:$BX$500,3,FALSE),"not tested") -> 3247
A38: SWD | B38: =IFERROR(VLOOKUP(TEXT($A$3,"0000"),MEM_SWD!$A$2:$S$500,18,FALSE),0) -> 2485 | C38: =IFERROR((IF(OR(B38=0,B38="",B38="NA"),"NA",((IF(VLOOKUP($A$3,'G10-RSWD'!$A$6:$AM$500,3,FALSE)>=B38,"100% ("&VLOOKUP($A$3,'G10-RSWD'!$A$6:$AM$500,3,FALSE)&")",(ROUND((VLOOKUP($A$3,'G10-RSWD'!$A$6:$AM$500,3,FALSE)/B38*100),0))&"% ("&IF(VLOOKUP($A$3,'G10-RSWD'!$A$6:$AM$500,3,FALSE)="",0,VLOOKUP($A$3,'G10-RSWD'!$A$6:$AM$500,3,FALSE))&")"))))),"0% (0)") -> 82% (2035) | D38: =IFERROR((IF($C38="NA","NA",VLOOKUP($A$3,'G10-RSWD'!$A$6:$AM$500,4,FALSE))),"NA") -> 22.99248157 | E38: =IFERROR((IF($C38="NA","NA",ROUND(VLOOKUP($A$3,'G10-RSWD'!$A$6:$AM$500,6,FALSE),0)&"% ("&IF(VLOOKUP($A$3,'G10-RSWD'!$A$6:$AM$500,5,FALSE)="",0,VLOOKUP($A$3,'G10-RSWD'!$A$6:$AM$500,5,FALSE))&")")),"NA") -> 19% (391) | F38: =IFERROR((IF($C38="NA","NA",VLOOKUP($A$3,'G10-RSWD'!$A$6:$AM$500,7,FALSE))),"NA") -> 5.965552826 | G38: NA | H38: =IFERROR((IF($C38="NA","NA",VLOOKUP($A$3,'G10-RSWD'!$A$6:$AM$500,10,FALSE))),"NA") -> 9.448992629 | I38: NA | J38: =IFERROR((IF($C38="NA","NA",VLOOKUP($A$3,'G10-RSWD'!$A$6:$AM$500,13,FALSE))),"NA") -> 3.908697789 | K38: NA | L38: =IFERROR((IF($C38="NA","NA",VLOOKUP($A$3,'G10-RSWD'!$A$6:$AM$500,16,FALSE))),"NA") -> 3.692235872 | M38: NA | N38: =IFERROR(IF($C38="NA","NA",IF($R38=0,VLOOKUP($A$3,'GEO-SWD'!$A$14:$BX$500,34,FALSE),IF($Q38=0,VLOOKUP($A$3,'GEO-SWD'!$A$14:$BX$500,71,FALSE),AH38))),"NA") -> 0 | O38: =IF($C38="NA","NA",IF($R38=0,ROUND(VLOOKUP($A$3,'GEO-SWD'!$A$14:$BX$500,39,FALSE)*100,0)&"% ("&VLOOKUP($A$3,'GEO-SWD'!$A$14:$BX$500,37,FALSE)&")",IF($Q38=0,ROUND(VLOOKUP($A$3,'GEO-SWD'!$A$14:$BX$500,76,FALSE)*100,0)&"% ("&VLOOKUP($A$3,'GEO-SWD'!$A$14:$BX$500,74,FALSE)&")",ROUND(AI38,0)&"% ("&AJ38&")"))) -> 0% () | Q38: =IFERROR(VLOOKUP($A$3,'G10-RSWD'!$A$6:$BX$500,3,FALSE),"not tested") -> 2035
A39: District Writing Midyear - Grade 10 | Q39: Writing Grade 10
A40: Level of Proficiency at 3 or above | B40: Total # of Students | C40: % of Students Tested (Max. of the two prompts) | D40: Combined Prompts (Weighted Values) | H40: Expository | J40: Persuasive | Q40: =H40 -> Expository | R40: =J40 -> Persuasive
D41: Average Score | E41: % at 3.0 | F41: % at or above 4.0 | H41: Average Score | I41: % Proficient | J41: Average Score | K41: % Proficient | Q41: Number Tested | R41: Number Tested
A42: All students | B42: =IFERROR(VLOOKUP(TEXT($A$3,"0000"),Mem_All!$A$2:$S$500,14,FALSE),0) -> 27111 | C42: =IF(OR(B42=0,B42="",B42="NA"),"NA",IF(VLOOKUP($A$3,'G10-WALL'!$A$6:$Z$500,3,FALSE)>B42,"100% ("&VLOOKUP($A$3,'G10-WALL'!$A$6:$Z$500,3,FALSE)&")",ROUND(VLOOKUP($A$3,'G10-WALL'!$A$6:$Z$500,3,FALSE)/B42*100,0)&"% ("&VLOOKUP($A$3,'G10-WALL'!$A$6:$Z$500,3,FALSE)&")")) ->  | D42: =IFERROR((IF($C42="NA","NA",VLOOKUP($A$3,'G10-WALL'!$A$6:$Z$500,4,FALSE))),"NA") -> NA | E42: =IF($D42="NA","NA",ROUND(VLOOKUP($A$3,'G10-WALL'!$A$6:$Z$500,6,FALSE),0)&"% ("&VLOOKUP($A$3,'G10-WALL'!$A$6:$Z$500,5,FALSE)&")") -> NA | F42: =IF($D42="NA","NA",ROUND(VLOOKUP($A$3,'G10-WALL'!$A$6:$Z$500,8,FALSE),0)&"% ("&VLOOKUP($A$3,'G10-WALL'!$A$6:$Z$500,7,FALSE)&")") -> NA | H42: =IFERROR(IF(VLOOKUP($A$3,'G10-WALL'!$A$6:$Z$500,9,FALSE)=0,"NA",VLOOKUP($A$3,'G10-WALL'!$A$6:$Z$500,10,FALSE)),"NA") -> NA | I42: =IFERROR(IF($H42="NA","NA",VLOOKUP($A$3,'G10-WALL'!$A$6:$Z$500,16,FALSE)&"% ("&VLOOKUP($A$3,'G10-WALL'!$A$6:$Z$500,12,FALSE)&")"),"NA") -> NA | J42: =IFERROR(IF(VLOOKUP($A$3,'G10-WALL'!$A$6:$Z$500,17,FALSE)=0,"NA",VLOOKUP($A$3,'G10-WALL'!$A$6:$Z$500,18,FALSE)),"NA") -> NA | K42: =IFERROR(IF($J42="NA","NA",VLOOKUP($A$3,'G10-WALL'!$A$6:$Z$500,24,FALSE)&"% ("&VLOOKUP($A$3,'G10-WALL'!$A$6:$Z$500,20,FALSE)&")"),"NA") -> NA | Q42: =IFERROR(VLOOKUP($A$3,'G10-WALL'!$A$6:$Z$500,9,FALSE),"Not Test") -> Not Test | R42: =IFERROR(VLOOKUP($A$3,'G10-WALL'!$A$6:$Z$500,17,FALSE),"Not Test") -> Not Test
A43: White | B43: =IFERROR(VLOOKUP(TEXT($A$3,"0000"),MEM_W!$A$2:$S$500,14,FALSE),0) -> 2413 | C43: =IF(OR(B43=0,B43="",B43="NA"),"NA",IF(VLOOKUP($A$3,'G10-WW'!$A$6:$Z$500,3,FALSE)>B43,"100% ("&VLOOKUP($A$3,'G10-WW'!$A$6:$Z$500,3,FALSE)&")",ROUND(VLOOKUP($A$3,'G10-WW'!$A$6:$Z$500,3,FALSE)/B43*100,0)&"% ("&VLOOKUP($A$3,'G10-WW'!$A$6:$Z$500,3,FALSE)&")")) ->  | D43: =IFERROR((IF($C43="NA","NA",VLOOKUP($A$3,'G10-WW'!$A$6:$Z$500,4,FALSE))),"NA") -> NA | E43: =IF($D43="NA","NA",ROUND(VLOOKUP($A$3,'G10-WW'!$A$6:$Z$500,6,FALSE),0)&"% ("&VLOOKUP($A$3,'G10-WW'!$A$6:$Z$500,5,FALSE)&")") -> NA | F43: =IF($D43="NA","NA",ROUND(VLOOKUP($A$3,'G10-WW'!$A$6:$Z$500,8,FALSE),0)&"% ("&VLOOKUP($A$3,'G10-WW'!$A$6:$Z$500,7,FALSE)&")") -> NA | H43: =IFERROR(IF(VLOOKUP($A$3,'G10-WW'!$A$6:$Z$500,9,FALSE)=0,"NA",VLOOKUP($A$3,'G10-WW'!$A$6:$Z$500,10,FALSE)),"NA") -> NA | I43: =IFERROR(IF($H43="NA","NA",VLOOKUP($A$3,'G10-WW'!$A$6:$Z$500,16,FALSE)&"% ("&VLOOKUP($A$3,'G10-WW'!$A$6:$Z$500,12,FALSE)&")"),"NA") -> NA | J43: =IFERROR(IF(VLOOKUP($A$3,'G10-WW'!$A$6:$Z$500,17,FALSE)=0,"NA",VLOOKUP($A$3,'G10-WW'!$A$6:$Z$500,18,FALSE)),"NA") -> NA | K43: =IFERROR(IF($J43="NA","NA",VLOOKUP($A$3,'G10-WW'!$A$6:$Z$500,24,FALSE)&"% ("&VLOOKUP($A$3,'G10-WW'!$A$6:$Z$500,20,FALSE)&")"),"NA") -> NA | Q43: =IFERROR(VLOOKUP($A$3,'G10-WW'!$A$6:$Z$500,9,FALSE),"Not Test") -> Not Test | R43: =IFERROR(VLOOKUP($A$3,'G10-WW'!$A$6:$Z$500,17,FALSE),"Not Test") -> Not Test
A44: Black | B44: =IFERROR(VLOOKUP(TEXT($A$3,"0000"),MEM_B!$A$2:$S$500,14,FALSE),0) -> 6384 | C44: =IF(OR(B44=0,B44="",B44="NA"),"NA",IF(VLOOKUP($A$3,'G10-WB'!$A$6:$Z$500,3,FALSE)>B44,"100% ("&VLOOKUP($A$3,'G10-WB'!$A$6:$Z$500,3,FALSE)&")",ROUND(VLOOKUP($A$3,'G10-WB'!$A$6:$Z$500,3,FALSE)/B44*100,0)&"% ("&VLOOKUP($A$3,'G10-WB'!$A$6:$Z$500,3,FALSE)&")")) ->  | D44: =IFERROR((IF($C44="NA","NA",VLOOKUP($A$3,'G10-WB'!$A$6:$Z$500,4,FALSE))),"NA") -> NA | E44: =IF($D44="NA","NA",ROUND(VLOOKUP($A$3,'G10-WB'!$A$6:$Z$500,6,FALSE),0)&"% ("&VLOOKUP($A$3,'G10-WB'!$A$6:$Z$500,5,FALSE)&")") -> NA | F44: =IF($D44="NA","NA",ROUND(VLOOKUP($A$3,'G10-WB'!$A$6:$Z$500,8,FALSE),0)&"% ("&VLOOKUP($A$3,'G10-WB'!$A$6:$Z$500,7,FALSE)&")") -> NA | H44: =IFERROR(IF(VLOOKUP($A$3,'G10-WB'!$A$6:$Z$500,9,FALSE)=0,"NA",VLOOKUP($A$3,'G10-WB'!$A$6:$Z$500,10,FALSE)),"NA") -> NA | I44: =IFERROR(IF($H44="NA","NA",VLOOKUP($A$3,'G10-WB'!$A$6:$Z$500,16,FALSE)&"% ("&VLOOKUP($A$3,'G10-WB'!$A$6:$Z$500,12,FALSE)&")"),"NA") -> NA | J44: =IFERROR(IF(VLOOKUP($A$3,'G10-WB'!$A$6:$Z$500,17,FALSE)=0,"NA",VLOOKUP($A$3,'G10-WB'!$A$6:$Z$500,18,FALSE)),"NA") -> NA | K44: =IFERROR(IF($J44="NA","NA",VLOOKUP($A$3,'G10-WB'!$A$6:$Z$500,24,FALSE)&"% ("&VLOOKUP($A$3,'G10-WB'!$A$6:$Z$500,20,FALSE)&")"),"NA") -> NA | Q44: =IFERROR(VLOOKUP($A$3,'G10-WB'!$A$6:$Z$500,9,FALSE),"Not Test") -> Not Test | R44: =IFERROR(VLOOKUP($A$3,'G10-WB'!$A$6:$Z$500,17,FALSE),"Not Test") -> Not Test
A45: Hispanic | B45: =IFERROR(VLOOKUP(TEXT($A$3,"0000"),MEM_H!$A$2:$S$500,14,FALSE),0) -> 17889 | C45: =IF(OR(B45=0,B45="",B45="NA"),"NA",IF(VLOOKUP($A$3,'G10-WH'!$A$6:$Z$500,3,FALSE)>B45,"100% ("&VLOOKUP($A$3,'G10-WH'!$A$6:$Z$500,3,FALSE)&")",ROUND(VLOOKUP($A$3,'G10-WH'!$A$6:$Z$500,3,FALSE)/B45*100,0)&"% ("&VLOOKUP($A$3,'G10-WH'!$A$6:$Z$500,3,FALSE)&")")) ->  | D45: =IFERROR((IF($C45="NA","NA",VLOOKUP($A$3,'G10-WH'!$A$6:$Z$500,4,FALSE))),"NA") -> NA | E45: =IF($D45="NA","NA",ROUND(VLOOKUP($A$3,'G10-WH'!$A$6:$Z$500,6,FALSE),0)&"% ("&VLOOKUP($A$3,'G10-WH'!$A$6:$Z$500,5,FALSE)&")") -> NA | F45: =IF($D45="NA","NA",ROUND(VLOOKUP($A$3,'G10-WH'!$A$6:$Z$500,8,FALSE),0)&"% ("&VLOOKUP($A$3,'G10-WH'!$A$6:$Z$500,7,FALSE)&")") -> NA | H45: =IFERROR(IF(VLOOKUP($A$3,'G10-WH'!$A$6:$Z$500,9,FALSE)=0,"NA",VLOOKUP($A$3,'G10-WH'!$A$6:$Z$500,10,FALSE)),"NA") -> NA | I45: =IFERROR(IF($H45="NA","NA",VLOOKUP($A$3,'G10-WH'!$A$6:$Z$500,16,FALSE)&"% ("&VLOOKUP($A$3,'G10-WH'!$A$6:$Z$500,12,FALSE)&")"),"NA") -> NA | J45: =IFERROR(IF(VLOOKUP($A$3,'G10-WH'!$A$6:$Z$500,17,FALSE)=0,"NA",VLOOKUP($A$3,'G10-WH'!$A$6:$Z$500,18,FALSE)),"NA") -> NA | K45: =IFERROR(IF($J45="NA","NA",VLOOKUP($A$3,'G10-WH'!$A$6:$Z$500,24,FALSE)&"% ("&VLOOKUP($A$3,'G10-WH'!$A$6:$Z$500,20,FALSE)&")"),"NA") -> NA | Q45: =IFERROR(VLOOKUP($A$3,'G10-WH'!$A$6:$Z$500,9,FALSE),"Not Test") -> Not Test | R45: =IFERROR(VLOOKUP($A$3,'G10-WH'!$A$6:$Z$500,17,FALSE),"Not Test") -> Not Test
A46: Asian | B46: =IFERROR(VLOOKUP(TEXT($A$3,"0000"),MEM_A!$A$2:$S$500,14,FALSE),0) -> 352 | C46: =IF(OR(B46=0,B46="",B46="NA"),"NA",IF(VLOOKUP($A$3,'G10-WA'!$A$6:$Z$500,3,FALSE)>B46,"100% ("&VLOOKUP($A$3,'G10-WA'!$A$6:$Z$500,3,FALSE)&")",ROUND(VLOOKUP($A$3,'G10-WA'!$A$6:$Z$500,3,FALSE)/B46*100,0)&"% ("&VLOOKUP($A$3,'G10-WA'!$A$6:$Z$500,3,FALSE)&")")) ->  | D46: =IFERROR((IF($C46="NA","NA",VLOOKUP($A$3,'G10-WA'!$A$6:$Z$500,4,FALSE))),"NA") -> NA | E46: =IF($D46="NA","NA",ROUND(VLOOKUP($A$3,'G10-WA'!$A$6:$Z$500,6,FALSE),0)&"% ("&VLOOKUP($A$3,'G10-WA'!$A$6:$Z$500,5,FALSE)&")") -> NA | F46: =IF($D46="NA","NA",ROUND(VLOOKUP($A$3,'G10-WA'!$A$6:$Z$500,8,FALSE),0)&"% ("&VLOOKUP($A$3,'G10-WA'!$A$6:$Z$500,7,FALSE)&")") -> NA | H46: =IFERROR(IF(VLOOKUP($A$3,'G10-WA'!$A$6:$Z$500,9,FALSE)=0,"NA",VLOOKUP($A$3,'G10-WA'!$A$6:$Z$500,10,FALSE)),"NA") -> NA | I46: =IFERROR(IF($H46="NA","NA",VLOOKUP($A$3,'G10-WA'!$A$6:$Z$500,16,FALSE)&"% ("&VLOOKUP($A$3,'G10-WA'!$A$6:$Z$500,12,FALSE)&")"),"NA") -> NA | J46: =IFERROR(IF(VLOOKUP($A$3,'G10-WA'!$A$6:$Z$500,17,FALSE)=0,"NA",VLOOKUP($A$3,'G10-WA'!$A$6:$Z$500,18,FALSE)),"NA") -> NA | K46: =IFERROR(IF($J46="NA","NA",VLOOKUP($A$3,'G10-WA'!$A$6:$Z$500,24,FALSE)&"% ("&VLOOKUP($A$3,'G10-WA'!$A$6:$Z$500,20,FALSE)&")"),"NA") -> NA | Q46: =IFERROR(VLOOKUP($A$3,'G10-WA'!$A$6:$Z$500,9,FALSE),"Not Test") -> Not Test | R46: =IFERROR(VLOOKUP($A$3,'G10-WA'!$A$6:$Z$500,17,FALSE),"Not Test") -> Not Test
A47: Am. Indian | B47: =IFERROR(VLOOKUP(TEXT($A$3,"0000"),MEM_I!$A$2:$S$500,14,FALSE),0) -> 24 | C47: =IF(OR(B47=0,B47="",B47="NA"),"NA",IF(VLOOKUP($A$3,'G10-WI'!$A$6:$Z$500,3,FALSE)>B47,"100% ("&VLOOKUP($A$3,'G10-WI'!$A$6:$Z$500,3,FALSE)&")",ROUND(VLOOKUP($A$3,'G10-WI'!$A$6:$Z$500,3,FALSE)/B47*100,0)&"% ("&VLOOKUP($A$3,'G10-WI'!$A$6:$Z$500,3,FALSE)&")")) ->  | D47: =IFERROR((IF($C47="NA","NA",VLOOKUP($A$3,'G10-WI'!$A$6:$Z$500,4,FALSE))),"NA") -> NA | E47: =IF($D47="NA","NA",ROUND(VLOOKUP($A$3,'G10-WI'!$A$6:$Z$500,6,FALSE),0)&"% ("&VLOOKUP($A$3,'G10-WI'!$A$6:$Z$500,5,FALSE)&")") -> NA | F47: =IF($D47="NA","NA",ROUND(VLOOKUP($A$3,'G10-WI'!$A$6:$Z$500,8,FALSE),0)&"% ("&VLOOKUP($A$3,'G10-WI'!$A$6:$Z$500,7,FALSE)&")") -> NA | H47: =IFERROR(IF(VLOOKUP($A$3,'G10-WI'!$A$6:$Z$500,9,FALSE)=0,"NA",VLOOKUP($A$3,'G10-WI'!$A$6:$Z$500,10,FALSE)),"NA") -> NA | I47: =IFERROR(IF($H47="NA","NA",VLOOKUP($A$3,'G10-WI'!$A$6:$Z$500,16,FALSE)&"% ("&VLOOKUP($A$3,'G10-WI'!$A$6:$Z$500,12,FALSE)&")"),"NA") -> NA | J47: =IFERROR(IF(VLOOKUP($A$3,'G10-WI'!$A$6:$Z$500,17,FALSE)=0,"NA",VLOOKUP($A$3,'G10-WI'!$A$6:$Z$500,18,FALSE)),"NA") -> NA | K47: =IFERROR(IF($J47="NA","NA",VLOOKUP($A$3,'G10-WI'!$A$6:$Z$500,24,FALSE)&"% ("&VLOOKUP($A$3,'G10-WI'!$A$6:$Z$500,20,FALSE)&")"),"NA") -> NA | Q47: =IFERROR(VLOOKUP($A$3,'G10-WI'!$A$6:$Z$500,9,FALSE),"Not Test") -> Not Test | R47: =IFERROR(VLOOKUP($A$3,'G10-WI'!$A$6:$Z$500,17,FALSE),"Not Test") -> Not Test
A48: ED | B48: =IFERROR(VLOOKUP(TEXT($A$3,"0000"),MEM_ED!$A$2:$S$500,14,FALSE),0) -> 19189 | C48: =IF(OR(B48=0,B48="",B48="NA"),"NA",IF(VLOOKUP($A$3,'G10-WED'!$A$6:$Z$500,3,FALSE)>B48,"100% ("&VLOOKUP($A$3,'G10-WED'!$A$6:$Z$500,3,FALSE)&")",ROUND(VLOOKUP($A$3,'G10-WED'!$A$6:$Z$500,3,FALSE)/B48*100,0)&"% ("&VLOOKUP($A$3,'G10-WED'!$A$6:$Z$500,3,FALSE)&")")) ->  | D48: =IFERROR((IF($C48="NA","NA",VLOOKUP($A$3,'G10-WED'!$A$6:$Z$500,4,FALSE))),"NA") -> NA | E48: =IF($D48="NA","NA",ROUND(VLOOKUP($A$3,'G10-WED'!$A$6:$Z$500,6,FALSE),0)&"% ("&VLOOKUP($A$3,'G10-WED'!$A$6:$Z$500,5,FALSE)&")") -> NA | F48: =IF($D48="NA","NA",ROUND(VLOOKUP($A$3,'G10-WED'!$A$6:$Z$500,8,FALSE),0)&"% ("&VLOOKUP($A$3,'G10-WED'!$A$6:$Z$500,7,FALSE)&")") -> NA | H48: =IFERROR(IF(VLOOKUP($A$3,'G10-WED'!$A$6:$Z$500,9,FALSE)=0,"NA",VLOOKUP($A$3,'G10-WED'!$A$6:$Z$500,10,FALSE)),"NA") -> NA | I48: =IFERROR(IF($H48="NA","NA",VLOOKUP($A$3,'G10-WED'!$A$6:$Z$500,16,FALSE)&"% ("&VLOOKUP($A$3,'G10-WED'!$A$6:$Z$500,12,FALSE)&")"),"NA") -> NA | J48: =IFERROR(IF(VLOOKUP($A$3,'G10-WED'!$A$6:$Z$500,17,FALSE)=0,"NA",VLOOKUP($A$3,'G10-WED'!$A$6:$Z$500,18,FALSE)),"NA") -> NA | K48: =IFERROR(IF($J48="NA","NA",VLOOKUP($A$3,'G10-WED'!$A$6:$Z$500,24,FALSE)&"% ("&VLOOKUP($A$3,'G10-WED'!$A$6:$Z$500,20,FALSE)&")"),"NA") -> NA | Q48: =IFERROR(VLOOKUP($A$3,'G10-WED'!$A$6:$Z$500,9,FALSE),"Not Test") -> Not Test | R48: =IFERROR(VLOOKUP($A$3,'G10-WED'!$A$6:$Z$500,17,FALSE),"Not Test") -> Not Test
A49: ELL | B49: =IFERROR(VLOOKUP(TEXT($A$3,"0000"),MEM_ELL!$A$2:$S$500,14,FALSE),0) -> 3615 | C49: =IF(OR(B49=0,B49="",B49="NA"),"NA",IF(VLOOKUP($A$3,'G10-WELL'!$A$6:$Z$500,3,FALSE)>B49,"100% ("&VLOOKUP($A$3,'G10-WELL'!$A$6:$Z$500,3,FALSE)&")",ROUND(VLOOKUP($A$3,'G10-WELL'!$A$6:$Z$500,3,FALSE)/B49*100,0)&"%("&VLOOKUP($A$3,'G10-WELL'!$A$6:$Z$500,3,FALSE)&")")) ->  | D49: =IFERROR((IF($C49="NA","NA",VLOOKUP($A$3,'G10-WELL'!$A$6:$Z$500,4,FALSE))),"NA") -> NA | E49: =IF($D49="NA","NA",ROUND(VLOOKUP($A$3,'G10-WELL'!$A$6:$Z$500,6,FALSE),0)&"% ("&VLOOKUP($A$3,'G10-WELL'!$A$6:$Z$500,5,FALSE)&")") -> NA | F49: =IF($D49="NA","NA",ROUND(VLOOKUP($A$3,'G10-WELL'!$A$6:$Z$500,8,FALSE),0)&"% ("&VLOOKUP($A$3,'G10-WELL'!$A$6:$Z$500,7,FALSE)&")") -> NA | H49: =IFERROR(IF(VLOOKUP($A$3,'G10-WELL'!$A$6:$Z$500,9,FALSE)=0,"NA",VLOOKUP($A$3,'G10-WELL'!$A$6:$Z$500,10,FALSE)),"NA") -> NA | I49: =IFERROR(IF($H49="NA","NA",VLOOKUP($A$3,'G10-WELL'!$A$6:$Z$500,16,FALSE)&"% ("&VLOOKUP($A$3,'G10-WELL'!$A$6:$Z$500,12,FALSE)&")"),"NA") -> NA | J49: =IFERROR(IF(VLOOKUP($A$3,'G10-WELL'!$A$6:$Z$500,17,FALSE)=0,"NA",VLOOKUP($A$3,'G10-WELL'!$A$6:$Z$500,18,FALSE)),"NA") -> NA | K49: =IFERROR(IF($J49="NA","NA",VLOOKUP($A$3,'G10-WELL'!$A$6:$Z$500,24,FALSE)&"% ("&VLOOKUP($A$3,'G10-WELL'!$A$6:$Z$500,20,FALSE)&")"),"NA") -> NA | Q49: =IFERROR(VLOOKUP($A$3,'G10-WELL'!$A$6:$Z$500,9,FALSE),"Not Test") -> Not Test | R49: =IFERROR(VLOOKUP($A$3,'G10-WELL'!$A$6:$Z$500,17,FALSE),"Not Test") -> Not Test
A50: SWD | B50: =IFERROR(VLOOKUP(TEXT($A$3,"0000"),MEM_SWD!$A$2:$S$500,14,FALSE),0) -> 2496 | C50: =IF(OR(B50=0,B50="",B50="NA"),"NA",IF(VLOOKUP($A$3,'G10-WSWD'!$A$6:$Z$500,3,FALSE)>B50,"100% ("&VLOOKUP($A$3,'G10-WSWD'!$A$6:$Z$500,3,FALSE)&")",ROUND(VLOOKUP($A$3,'G10-WSWD'!$A$6:$Z$500,3,FALSE)/B50*100,0)&"% ("&VLOOKUP($A$3,'G10-WSWD'!$A$6:$Z$500,3,FALSE)&")")) ->  | D50: =IFERROR((IF($C50="NA","NA",VLOOKUP($A$3,'G10-WSWD'!$A$6:$Z$500,4,FALSE))),"NA") -> NA | E50: =IF($D50="NA","NA",ROUND(VLOOKUP($A$3,'G10-WSWD'!$A$6:$Z$500,6,FALSE),0)&"% ("&VLOOKUP($A$3,'G10-WSWD'!$A$6:$Z$500,5,FALSE)&")") -> NA | F50: =IF($D50="NA","NA",ROUND(VLOOKUP($A$3,'G10-WSWD'!$A$6:$Z$500,8,FALSE),0)&"% ("&VLOOKUP($A$3,'G10-WSWD'!$A$6:$Z$500,7,FALSE)&")") -> NA | H50: =IFERROR(IF(VLOOKUP($A$3,'G10-WSWD'!$A$6:$Z$500,9,FALSE)=0,"NA",VLOOKUP($A$3,'G10-WSWD'!$A$6:$Z$500,10,FALSE)),"NA") -> NA | I50: =IFERROR(IF($H50="NA","NA",VLOOKUP($A$3,'G10-WSWD'!$A$6:$Z$500,16,FALSE)&"% ("&VLOOKUP($A$3,'G10-WSWD'!$A$6:$Z$500,12,FALSE)&")"),"NA") -> NA | J50: =IFERROR(IF(VLOOKUP($A$3,'G10-WSWD'!$A$6:$Z$500,17,FALSE)=0,"NA",VLOOKUP($A$3,'G10-WSWD'!$A$6:$Z$500,18,FALSE)),"NA") -> NA | K50: =IFERROR(IF($J50="NA","NA",VLOOKUP($A$3,'G10-WSWD'!$A$6:$Z$500,24,FALSE)&"% ("&VLOOKUP($A$3,'G10-WSWD'!$A$6:$Z$500,20,FALSE)&")"),"NA") -> NA | Q50: =IFERROR(VLOOKUP($A$3,'G10-WSWD'!$A$6:$Z$500,9,FALSE),"Not Test") -> Not Test | R50: =IFERROR(VLOOKUP($A$3,'G10-WSWD'!$A$6:$Z$500,17,FALSE),"Not Test") -> Not Test

Sheet EOC HS Reports
A2: Click here to return to the school and sheet selection interface
A3: ='Select School'!B3 -> 9999
A4: =TEXT(A3,"0000")&"-"&VLOOKUP(A3,SchList!$A$2:$B$504,2,FALSE) -> 9999-District
A5: Algebra I | Q5: Algebra I
A6: Satisfactory Progress Cut Scores at 43% or above | B6: Course Enrollment | C6: % and/or Number of Tested | D6: ='G9-10 Matrix'!C8&" ["&'G9-10 Matrix'!C9&"]" -> Overall [40] | F6: ='G9-10 Matrix'!D8&" ["&'G9-10 Matrix'!D9&"]" -> Functions, Linear Equations, and Inequalities [40] | H6: ='G9-10 Matrix'!E8&" ["&'G9-10 Matrix'!E9&"]" -> Polynomials [0] | J6: ='G9-10 Matrix'!F8&" ["&'G9-10 Matrix'!F9&"]" -> Rationals, Radicals, Quadratics, and Discrete Mathematics [0] | Q6: Number Tested
D7: Average Score | E7: % Satisfactory | F7: Average Score | G7: % Satisfactory | H7: Average Score | I7: % Satisfactory | J7: Average Score | K7: % Satisfactory
A8: All students | B8: =IFERROR(VLOOKUP(TEXT($A$3,"0000"),'Alg Enrollment'!$A$2:$Q$500,3,FALSE),0) -> 32252 | C8: =IFERROR((IF(OR(B8=0,B8="",B8="NA"),"NA",((IF(VLOOKUP($A$3,'ALG-ALL'!$A$6:$AM$500,3,FALSE)>=B8,"100% ("&VLOOKUP($A$3,'ALG-ALL'!$A$6:$AM$500,3,FALSE)&")",(ROUND((VLOOKUP($A$3,'ALG-ALL'!$A$6:$AM$500,3,FALSE)/B8*100),0))&"% ("&IF(VLOOKUP($A$3,'ALG-ALL'!$A$6:$AM$500,3,FALSE)="",0,VLOOKUP($A$3,'ALG-ALL'!$A$6:$AM$500,3,FALSE))&")"))))),"0% (0)") -> 93% (29851) | D8: =IFERROR((IF($C8="NA","NA",VLOOKUP($A$3,'ALG-ALL'!$A$6:$AM$500,4,FALSE))),"NA") -> 16.54789119 | E8: =IFERROR((IF($C8="NA","NA",ROUND(VLOOKUP($A$3,'ALG-ALL'!$A$6:$AM$500,6,FALSE),0)&"% ("&IF(VLOOKUP($A$3,'ALG-ALL'!$A$6:$AM$500,5,FALSE)="",0,VLOOKUP($A$3,'ALG-ALL'!$A$6:$AM$500,5,FALSE))&")")),"NA") -> 44% (13081) | F8: =IFERROR((IF($C8="NA","NA",VLOOKUP($A$3,'ALG-ALL'!$A$6:$AM$500,7,FALSE))),"NA") -> 16.54789119 | G8: NA | H8: NT | I8: NT | J8: NT | K8: NT | Q8: =IFERROR(VLOOKUP($A$3,'ALG-ALL'!$A$6:$AA$500,3,FALSE),"not tested") -> 29851
A9: FCAT Level 1 | B9: =IFERROR(VLOOKUP(TEXT($A$3,"0000"),'Alg Enrollment'!$A$2:$Q$500,4,FALSE),0) -> 5203 | C9: =IFERROR((IF(OR(B9=0,B9="",B9="NA"),"NA",((IF(VLOOKUP($A$3,'ALG-L1'!$A$6:$AM$500,3,FALSE)>=B9,"100% ("&VLOOKUP($A$3,'ALG-L1'!$A$6:$AM$500,3,FALSE)&")",(ROUND((VLOOKUP($A$3,'ALG-L1'!$A$6:$AM$500,3,FALSE)/B9*100),0))&"% ("&IF(VLOOKUP($A$3,'ALG-L1'!$A$6:$AM$500,3,FALSE)="",0,VLOOKUP($A$3,'ALG-L1'!$A$6:$AM$500,3,FALSE))&")"))))),"0% (0)") -> 100% (5364) | D9: =IFERROR((IF($C9="NA","NA",VLOOKUP($A$3,'ALG-L1'!$A$6:$AG$500,4,FALSE))),"NA") -> 11.4905481 | E9: =IFERROR((IF($C9="NA","NA",ROUND(VLOOKUP($A$3,'ALG-L1'!$A$6:$AG$500,6,FALSE),0)&"% ("&IF(VLOOKUP($A$3,'ALG-L1'!$A$6:$AG$500,5,FALSE)="",0,VLOOKUP($A$3,'ALG-L1'!$A$6:$AG$500,5,FALSE))&")")),"NA") -> 11% (568) | F9: =IFERROR((IF($C9="NA","NA",VLOOKUP($A$3,'ALG-L1'!$A$6:$AG$500,7,FALSE))),"NA") -> 11.4905481 | G9: NA | H9: NT | I9: NT | J9: NT | K9: NT | Q9: =IFERROR(VLOOKUP($A$3,'ALG-L1'!$A$6:$BX$500,3,FALSE),"not tested") -> 5364
A10: FCAT Level 2 | B10: =IFERROR(VLOOKUP(TEXT($A$3,"0000"),'Alg Enrollment'!$A$2:$Q$500,5,FALSE),0) -> 5275 | C10: =IFERROR((IF(OR(B10=0,B10="",B10="NA"),"NA",((IF(VLOOKUP($A$3,'ALG-L2'!$A$6:$AM$500,3,FALSE)>=B10,"100% ("&VLOOKUP($A$3,'ALG-L2'!$A$6:$AM$500,3,FALSE)&")",(ROUND((VLOOKUP($A$3,'ALG-L2'!$A$6:$AM$500,3,FALSE)/B10*100),0))&"% ("&IF(VLOOKUP($A$3,'ALG-L2'!$A$6:$AM$500,3,FALSE)="",0,VLOOKUP($A$3,'ALG-L2'!$A$6:$AM$500,3,FALSE))&")"))))),"0% (0)") -> 100% (5348) | D10: =IFERROR((IF($C10="NA","NA",VLOOKUP($A$3,'ALG-L2'!$A$6:$AG$500,4,FALSE))),"NA") -> 13.46591249 | E10: =IFERROR((IF($C10="NA","NA",ROUND(VLOOKUP($A$3,'ALG-L2'!$A$6:$AG$500,6,FALSE),0)&"% ("&IF(VLOOKUP($A$3,'ALG-L2'!$A$6:$AG$500,5,FALSE)="",0,VLOOKUP($A$3,'ALG-L2'!$A$6:$AG$500,5,FALSE))&")")),"NA") -> 23% (1216) | F10: =IFERROR((IF($C10="NA","NA",VLOOKUP($A$3,'ALG-L2'!$A$6:$AG$500,7,FALSE))),"NA") -> 13.46591249 | G10: NA | H10: NT | I10: NT | J10: NT | K10: NT | Q10: =IFERROR(VLOOKUP($A$3,'ALG-L2'!$A$6:$BX$500,3,FALSE),"not tested") -> 5348
A11: FCAT Level 3 | B11: =IFERROR(VLOOKUP(TEXT($A$3,"0000"),'Alg Enrollment'!$A$2:$Q$500,6,FALSE),0) -> 9619 | C11: =IFERROR((IF(OR(B11=0,B11="",B11="NA"),"NA",((IF(VLOOKUP($A$3,'ALG-L3'!$A$6:$AM$500,3,FALSE)>=B11,"100% ("&VLOOKUP($A$3,'ALG-L3'!$A$6:$AM$500,3,FALSE)&")",(ROUND((VLOOKUP($A$3,'ALG-L3'!$A$6:$AM$500,3,FALSE)/B11*100),0))&"% ("&IF(VLOOKUP($A$3,'ALG-L3'!$A$6:$AM$500,3,FALSE)="",0,VLOOKUP($A$3,'ALG-L3'!$A$6:$AM$500,3,FALSE))&")"))))),"0% (0)") -> 100% (9724) | D11: =IFERROR((IF($C11="NA","NA",VLOOKUP($A$3,'ALG-L3'!$A$6:$AG$500,4,FALSE))),"NA") -> 16.44770671 | E11: =IFERROR((IF($C11="NA","NA",ROUND(VLOOKUP($A$3,'ALG-L3'!$A$6:$AG$500,6,FALSE),0)&"% ("&IF(VLOOKUP($A$3,'ALG-L3'!$A$6:$AG$500,5,FALSE)="",0,VLOOKUP($A$3,'ALG-L3'!$A$6:$AG$500,5,FALSE))&")")),"NA") -> 45% (4391) | F11: =IFERROR((IF($C11="NA","NA",VLOOKUP($A$3,'ALG-L3'!$A$6:$AG$500,7,FALSE))),"NA") -> 16.44770671 | G11: NA | H11: NT | I11: NT | J11: NT | K11: NT | Q11: =IFERROR(VLOOKUP($A$3,'ALG-L3'!$A$6:$BX$500,3,FALSE),"not tested") -> 9724
A12: FCAT Level 4 | B12: =IFERROR(VLOOKUP(TEXT($A$3,"0000"),'Alg Enrollment'!$A$2:$Q$500,7,FALSE),0) -> 5468 | C12: =IFERROR((IF(OR(B12=0,B12="",B12="NA"),"NA",((IF(VLOOKUP($A$3,'ALG-L4'!$A$6:$AM$500,3,FALSE)>=B12,"100% ("&VLOOKUP($A$3,'ALG-L4'!$A$6:$AM$500,3,FALSE)&")",(ROUND((VLOOKUP($A$3,'ALG-L4'!$A$6:$AM$500,3,FALSE)/B12*100),0))&"% ("&IF(VLOOKUP($A$3,'ALG-L4'!$A$6:$AM$500,3,FALSE)="",0,VLOOKUP($A$3,'ALG-L4'!$A$6:$AM$500,3,FALSE))&")"))))),"0% (0)") -> 98% (5339) | D12: =IFERROR((IF($C12="NA","NA",VLOOKUP($A$3,'ALG-L4'!$A$6:$AG$500,4,FALSE))),"NA") -> 20.85484173 | E12: =IFERROR((IF($C12="NA","NA",ROUND(VLOOKUP($A$3,'ALG-L4'!$A$6:$AG$500,6,FALSE),0)&"% ("&IF(VLOOKUP($A$3,'ALG-L4'!$A$6:$AG$500,5,FALSE)="",0,VLOOKUP($A$3,'ALG-L4'!$A$6:$AG$500,5,FALSE))&")")),"NA") -> 75% (4018) | F12: =IFERROR((IF($C12="NA","NA",VLOOKUP($A$3,'ALG-L4'!$A$6:$AG$500,7,FALSE))),"NA") -> 20.85484173 | G12: NA | H12: NT | I12: NT | J12: NT | K12: NT | Q12: =IFERROR(VLOOKUP($A$3,'ALG-L4'!$A$6:$BX$500,3,FALSE),"not tested") -> 5339
A13: FCAT Level 5 | B13: =IFERROR(VLOOKUP(TEXT($A$3,"0000"),'Alg Enrollment'!$A$2:$Q$500,8,FALSE),0) -> 2701 | C13: =IFERROR((IF(OR(B13=0,B13="",B13="NA"),"NA",((IF(VLOOKUP($A$3,'ALG-L5'!$A$6:$AM$500,3,FALSE)>=B13,"100% ("&VLOOKUP($A$3,'ALG-L5'!$A$6:$AM$500,3,FALSE)&")",(ROUND((VLOOKUP($A$3,'ALG-L5'!$A$6:$AM$500,3,FALSE)/B13*100),0))&"% ("&IF(VLOOKUP($A$3,'ALG-L5'!$A$6:$AM$500,3,FALSE)="",0,VLOOKUP($A$3,'ALG-L5'!$A$6:$AM$500,3,FALSE))&")"))))),"0% (0)") -> 98% (2646) | D13: =IFERROR((IF($C13="NA","NA",VLOOKUP($A$3,'ALG-L5'!$A$6:$AG$500,4,FALSE))),"NA") -> 25.8281935 | E13: =IFERROR((IF($C13="NA","NA",ROUND(VLOOKUP($A$3,'ALG-L5'!$A$6:$AG$500,6,FALSE),0)&"% ("&IF(VLOOKUP($A$3,'ALG-L5'!$A$6:$AG$500,5,FALSE)="",0,VLOOKUP($A$3,'ALG-L5'!$A$6:$AG$500,5,FALSE))&")")),"NA") -> 92% (2447) | F13: =IFERROR((IF($C13="NA","NA",VLOOKUP($A$3,'ALG-L5'!$A$6:$AG$500,7,FALSE))),"NA") -> 25.8281935 | G13: NA | H13: NT | I13: NT | J13: NT | K13: NT | Q13: =IFERROR(VLOOKUP($A$3,'ALG-L5'!$A$6:$BX$500,3,FALSE),"not tested") -> 2646
A14: White | B14: =IFERROR(VLOOKUP(TEXT($A$3,"0000"),'Alg Enrollment'!$A$2:$Q$500,10,FALSE),0) -> 2697 | C14: =IFERROR((IF(OR(B14=0,B14="",B14="NA"),"NA",((IF(VLOOKUP($A$3,'ALG-W'!$A$6:$AG$500,3,FALSE)>=B14,"100% ("&VLOOKUP($A$3,'ALG-W'!$A$6:$AG$500,3,FALSE)&")",(ROUND((VLOOKUP($A$3,'ALG-W'!$A$6:$AG$500,3,FALSE)/B14*100),0))&"% ("&IF(VLOOKUP($A$3,'ALG-W'!$A$6:$AG$500,3,FALSE)="",0,VLOOKUP($A$3,'ALG-W'!$A$6:$AG$500,3,FALSE))&")"))))),"0% (0)") -> 92% (2473) | D14: =IFERROR((IF($C14="NA","NA",VLOOKUP($A$3,'ALG-W'!$A$6:$AG$500,4,FALSE))),"NA") -> 18.74844319 | E14: =IFERROR((IF($C14="NA","NA",ROUND(VLOOKUP($A$3,'ALG-W'!$A$6:$AG$500,6,FALSE),0)&"% ("&IF(VLOOKUP($A$3,'ALG-W'!$A$6:$AG$500,5,FALSE)="",0,VLOOKUP($A$3,'ALG-W'!$A$6:$AG$500,5,FALSE))&")")),"NA") -> 57% (1407) | F14: =IFERROR((IF($C14="NA","NA",VLOOKUP($A$3,'ALG-W'!$A$6:$AG$500,7,FALSE))),"NA") -> 18.74844319 | G14: NA | H14: NT | I14: NT | J14: NT | K14: NT | Q14: =IFERROR(VLOOKUP($A$3,'ALG-W'!$A$6:$BX$500,3,FALSE),"not tested") -> 2473
A15: Black | B15: =IFERROR(VLOOKUP(TEXT($A$3,"0000"),'Alg Enrollment'!$A$2:$Q$500,11,FALSE),0) -> 7540 | C15: =IFERROR((IF(OR(B15=0,B15="",B15="NA"),"NA",((IF(VLOOKUP($A$3,'ALG-B'!$A$6:$AG$500,3,FALSE)>=B15,"100% ("&VLOOKUP($A$3,'ALG-B'!$A$6:$AG$500,3,FALSE)&")",(ROUND((VLOOKUP($A$3,'ALG-B'!$A$6:$AG$500,3,FALSE)/B15*100),0))&"% ("&IF(VLOOKUP($A$3,'ALG-B'!$A$6:$AG$500,3,FALSE)="",0,VLOOKUP($A$3,'ALG-B'!$A$6:$AG$500,3,FALSE))&")"))))),"0% (0)") -> 89% (6721) | D15: =IFERROR((IF($C15="NA","NA",VLOOKUP($A$3,'ALG-B'!$A$6:$AG$500,4,FALSE))),"NA") -> 14.47228091 | E15: =IFERROR((IF($C15="NA","NA",ROUND(VLOOKUP($A$3,'ALG-B'!$A$6:$AG$500,6,FALSE),0)&"% ("&IF(VLOOKUP($A$3,'ALG-B'!$A$6:$AG$500,5,FALSE)="",0,VLOOKUP($A$3,'ALG-B'!$A$6:$AG$500,5,FALSE))&")")),"NA") -> 31% (2105) | F15: =IFERROR((IF($C15="NA","NA",VLOOKUP($A$3,'ALG-B'!$A$6:$AG$500,7,FALSE))),"NA") -> 14.47228091 | G15: NA | H15: NT | I15: NT | J15: NT | K15: NT | Q15: =IFERROR(VLOOKUP($A$3,'ALG-B'!$A$6:$BX$500,3,FALSE),"not tested") -> 6721
A16: Hispanic | B16: =IFERROR(VLOOKUP(TEXT($A$3,"0000"),'Alg Enrollment'!$A$2:$Q$500,12,FALSE),0) -> 21495 | C16: =IFERROR((IF(OR(B16=0,B16="",B16="NA"),"NA",((IF(VLOOKUP($A$3,'ALG-H'!$A$6:$AG$500,3,FALSE)>=B16,"100% ("&VLOOKUP($A$3,'ALG-H'!$A$6:$AG$500,3,FALSE)&")",(ROUND((VLOOKUP($A$3,'ALG-H'!$A$6:$AG$500,3,FALSE)/B16*100),0))&"% ("&IF(VLOOKUP($A$3,'ALG-H'!$A$6:$AG$500,3,FALSE)="",0,VLOOKUP($A$3,'ALG-H'!$A$6:$AG$500,3,FALSE))&")"))))),"0% (0)") -> 94% (20206) | D16: =IFERROR((IF($C16="NA","NA",VLOOKUP($A$3,'ALG-H'!$A$6:$AG$500,4,FALSE))),"NA") -> 16.87115708 | E16: =IFERROR((IF($C16="NA","NA",ROUND(VLOOKUP($A$3,'ALG-H'!$A$6:$AG$500,6,FALSE),0)&"% ("&IF(VLOOKUP($A$3,'ALG-H'!$A$6:$AG$500,5,FALSE)="",0,VLOOKUP($A$3,'ALG-H'!$A$6:$AG$500,5,FALSE))&")")),"NA") -> 46% (9257) | F16: =IFERROR((IF($C16="NA","NA",VLOOKUP($A$3,'ALG-H'!$A$6:$AG$500,7,FALSE))),"NA") -> 16.87115708 | G16: NA | H16: NT | I16: NT | J16: NT | K16: NT | Q16: =IFERROR(VLOOKUP($A$3,'ALG-H'!$A$6:$BX$500,3,FALSE),"not tested") -> 20206
A17: Asian | B17: =IFERROR(VLOOKUP(TEXT($A$3,"0000"),'Alg Enrollment'!$A$2:$Q$500,13,FALSE),0) -> 363 | C17: =IFERROR((IF(OR(B17=0,B17="",B17="NA"),"NA",((IF(VLOOKUP($A$3,'ALG-A'!$A$6:$AG$500,3,FALSE)>=B17,"100% ("&VLOOKUP($A$3,'ALG-A'!$A$6:$AG$500,3,FALSE)&")",(ROUND((VLOOKUP($A$3,'ALG-A'!$A$6:$AG$500,3,FALSE)/B17*100),0))&"% ("&IF(VLOOKUP($A$3,'ALG-A'!$A$6:$AG$500,3,FALSE)="",0,VLOOKUP($A$3,'ALG-A'!$A$6:$AG$500,3,FALSE))&")"))))),"0% (0)") -> 96% (349) | D17: =IFERROR((IF($C17="NA","NA",VLOOKUP($A$3,'ALG-A'!$A$6:$AG$500,4,FALSE))),"NA") -> 22.0217765 | E17: =IFERROR((IF($C17="NA","NA",ROUND(VLOOKUP($A$3,'ALG-A'!$A$6:$AG$500,6,FALSE),0)&"% ("&IF(VLOOKUP($A$3,'ALG-A'!$A$6:$AG$500,5,FALSE)="",0,VLOOKUP($A$3,'ALG-A'!$A$6:$AG$500,5,FALSE))&")")),"NA") -> 73% (256) | F17: =IFERROR((IF($C17="NA","NA",VLOOKUP($A$3,'ALG-A'!$A$6:$AG$500,7,FALSE))),"NA") -> 22.0217765 | G17: NA | H17: NT | I17: NT | J17: NT | K17: NT | Q17: =IFERROR(VLOOKUP($A$3,'ALG-A'!$A$6:$BX$500,3,FALSE),"not tested") -> 349
A18: Am. Indian | B18: =IFERROR(VLOOKUP(TEXT($A$3,"0000"),'Alg Enrollment'!$A$2:$Q$500,14,FALSE),0) -> 30 | C18: =IFERROR((IF(OR(B18=0,B18="",B18="NA"),"NA",((IF(VLOOKUP($A$3,'ALG-I'!$A$6:$AG$500,3,FALSE)>=B18,"100% ("&VLOOKUP($A$3,'ALG-I'!$A$6:$AG$500,3,FALSE)&")",(ROUND((VLOOKUP($A$3,'ALG-I'!$A$6:$AG$500,3,FALSE)/B18*100),0))&"% ("&IF(VLOOKUP($A$3,'ALG-I'!$A$6:$AG$500,3,FALSE)="",0,VLOOKUP($A$3,'ALG-I'!$A$6:$AG$500,3,FALSE))&")"))))),"0% (0)") -> 97% (29) | D18: =IFERROR((IF($C18="NA","NA",VLOOKUP($A$3,'ALG-I'!$A$6:$AG$500,4,FALSE))),"NA") -> 17.41034483 | E18: =IFERROR((IF($C18="NA","NA",ROUND(VLOOKUP($A$3,'ALG-I'!$A$6:$AG$500,6,FALSE),0)&"% ("&IF(VLOOKUP($A$3,'ALG-I'!$A$6:$AG$500,5,FALSE)="",0,VLOOKUP($A$3,'ALG-I'!$A$6:$AG$500,5,FALSE))&")")),"NA") -> 48% (14) | F18: =IFERROR((IF($C18="NA","NA",VLOOKUP($A$3,'ALG-I'!$A$6:$AG$500,7,FALSE))),"NA") -> 17.41034483 | G18: NA | H18: NT | I18: NT | J18: NT | K18: NT | Q18: =IFERROR(VLOOKUP($A$3,'ALG-I'!$A$6:$BX$500,3,FALSE),"not tested") -> 29
A19: ED | B19: =IFERROR(VLOOKUP(TEXT($A$3,"0000"),'Alg Enrollment'!$A$2:$Q$500,15,FALSE),0) -> 23844 | C19: =IFERROR((IF(OR(B19=0,B19="",B19="NA"),"NA",((IF(VLOOKUP($A$3,'ALG-ED'!$A$6:$AG$500,3,FALSE)>=B19,"100% ("&VLOOKUP($A$3,'ALG-ED'!$A$6:$AG$500,3,FALSE)&")",(ROUND((VLOOKUP($A$3,'ALG-ED'!$A$6:$AG$500,3,FALSE)/B19*100),0))&"% ("&IF(VLOOKUP($A$3,'ALG-ED'!$A$6:$AG$500,3,FALSE)="",0,VLOOKUP($A$3,'ALG-ED'!$A$6:$AG$500,3,FALSE))&")"))))),"0% (0)") -> 99% (23680) | D19: =IFERROR((IF($C19="NA","NA",VLOOKUP($A$3,'ALG-ED'!$A$6:$AG$500,4,FALSE))),"NA") -> 15.95693412 | E19: =IFERROR((IF($C19="NA","NA",ROUND(VLOOKUP($A$3,'ALG-ED'!$A$6:$AG$500,6,FALSE),0)&"% ("&IF(VLOOKUP($A$3,'ALG-ED'!$A$6:$AG$500,5,FALSE)="",0,VLOOKUP($A$3,'ALG-ED'!$A$6:$AG$500,5,FALSE))&")")),"NA") -> 40% (9541) | F19: =IFERROR((IF($C19="NA","NA",VLOOKUP($A$3,'ALG-ED'!$A$6:$AG$500,7,FALSE))),"NA") -> 15.95693412 | G19: NA | H19: NT | I19: NT | J19: NT | K19: NT | Q19: =IFERROR(VLOOKUP($A$3,'ALG-ED'!$A$6:$BX$500,3,FALSE),"not tested") -> 23680
A20: ELL | B20: =IFERROR(VLOOKUP(TEXT($A$3,"0000"),'Alg Enrollment'!$A$2:$Q$500,16,FALSE),0) -> 4764 | C20: =IFERROR((IF(OR(B20=0,B20="",B20="NA"),"NA",((IF(VLOOKUP($A$3,'ALG-ELL'!$A$6:$AG$500,3,FALSE)>=B20,"100% ("&VLOOKUP($A$3,'ALG-ELL'!$A$6:$AG$500,3,FALSE)&")",(ROUND((VLOOKUP($A$3,'ALG-ELL'!$A$6:$AG$500,3,FALSE)/B20*100),0))&"% ("&IF(VLOOKUP($A$3,'ALG-ELL'!$A$6:$AG$500,3,FALSE)="",0,VLOOKUP($A$3,'ALG-ELL'!$A$6:$AG$500,3,FALSE))&")"))))),"0% (0)") -> 88% (4174) | D20: =IFERROR((IF($C20="NA","NA",VLOOKUP($A$3,'ALG-ELL'!$A$6:$AG$500,4,FALSE))),"NA") -> 14.79947293 | E20: =IFERROR((IF($C20="NA","NA",ROUND(VLOOKUP($A$3,'ALG-ELL'!$A$6:$AG$500,6,FALSE),0)&"% ("&IF(VLOOKUP($A$3,'ALG-ELL'!$A$6:$AG$500,5,FALSE)="",0,VLOOKUP($A$3,'ALG-ELL'!$A$6:$AG$500,5,FALSE))&")")),"NA") -> 33% (1387) | F20: =IFERROR((IF($C20="NA","NA",VLOOKUP($A$3,'ALG-ELL'!$A$6:$AG$500,7,FALSE))),"NA") -> 14.79947293 | G20: NA | H20: NT | I20: NT | J20: NT | K20: NT | Q20: =IFERROR(VLOOKUP($A$3,'ALG-ELL'!$A$6:$BX$500,3,FALSE),"not tested") -> 4174
A21: SWD | B21: =IFERROR(VLOOKUP(TEXT($A$3,"0000"),'Alg Enrollment'!$A$2:$Q$500,17,FALSE),0) -> 2942 | C21: =IFERROR((IF(OR(B21=0,B21="",B21="NA"),"NA",((IF(VLOOKUP($A$3,'ALG-SWD'!$A$6:$AG$500,3,FALSE)>=B21,"100% ("&VLOOKUP($A$3,'ALG-SWD'!$A$6:$AG$500,3,FALSE)&")",(ROUND((VLOOKUP($A$3,'ALG-SWD'!$A$6:$AG$500,3,FALSE)/B21*100),0))&"% ("&IF(VLOOKUP($A$3,'ALG-SWD'!$A$6:$AG$500,3,FALSE)="",0,VLOOKUP($A$3,'ALG-SWD'!$A$6:$AG$500,3,FALSE))&")"))))),"0% (0)") -> 91% (2684) | D21: =IFERROR((IF($C21="NA","NA",VLOOKUP($A$3,'ALG-SWD'!$A$6:$AG$500,4,FALSE))),"NA") -> 12.88837556 | E21: =IFERROR((IF($C21="NA","NA",ROUND(VLOOKUP($A$3,'ALG-SWD'!$A$6:$AG$500,6,FALSE),0)&"% ("&IF(VLOOKUP($A$3,'ALG-SWD'!$A$6:$AG$500,5,FALSE)="",0,VLOOKUP($A$3,'ALG-SWD'!$A$6:$AG$500,5,FALSE))&")")),"NA") -> 21% (553) | F21: =IFERROR((IF($C21="NA","NA",VLOOKUP($A$3,'ALG-SWD'!$A$6:$AG$500,7,FALSE))),"NA") -> 12.88837556 | G21: NA | H21: NT | I21: NT | J21: NT | K21: NT | Q21: =IFERROR(VLOOKUP($A$3,'ALG-SWD'!$A$6:$BX$500,3,FALSE),"not tested") -> 2684
A22: Geometry | Q22: Geometry
A23: Satisfactory Progress Cut Scores at 53% or above | B23: Course Enrollment | C23: % and/or Number of Tested | D23: ='G9-10 Matrix'!C12&" ["&'G9-10 Matrix'!C13&"]" -> Overall [43] | F23: ='G9-10 Matrix'!D12&" ["&'G9-10 Matrix'!D13&"]" -> Two-Dimensional Geometry [43] | H23: ='G9-10 Matrix'!E12&" ["&'G9-10 Matrix'!E13&"]" -> Three-Dimensional Geometry [0] | J23: ='G9-10 Matrix'!F12&" ["&'G9-10 Matrix'!F13&"]" -> Trigonometry and Discrete Mathematics [0] | Q23: Number Tested
D24: Average Score | E24: % Satisfactory | F24: Average Score | G24: % Satisfactory | H24: Average Score | I24: % Satisfactory | J24: Average Score | K24: % Satisfactory
A25: All students | B25: =IFERROR(VLOOKUP(TEXT($A$3,"0000"),'Geo Enrollment'!$A$3:$Q$500,3,FALSE),0) -> 28189 | C25: =IFERROR((IF(OR(B25=0,B25="",B25="NA"),"NA",((IF(VLOOKUP($A$3,'GEO-ALL'!$A$6:$AM$500,3,FALSE)>=B25,"100% ("&VLOOKUP($A$3,'GEO-ALL'!$A$6:$AM$500,3,FALSE)&")",(ROUND((VLOOKUP($A$3,'GEO-ALL'!$A$6:$AM$500,3,FALSE)/B25*100),0))&"% ("&IF(VLOOKUP($A$3,'GEO-ALL'!$A$6:$AM$500,3,FALSE)="",0,VLOOKUP($A$3,'GEO-ALL'!$A$6:$AM$500,3,FALSE))&")"))))),"0% (0)") -> 91% (25702) | D25: =IFERROR((IF($C25="NA","NA",VLOOKUP($A$3,'GEO-ALL'!$A$6:$AM$500,4,FALSE))),"NA") -> 20.8133725 | E25: =IFERROR((IF($C25="NA","NA",ROUND(VLOOKUP($A$3,'GEO-ALL'!$A$6:$AM$500,6,FALSE),0)&"% ("&IF(VLOOKUP($A$3,'GEO-ALL'!$A$6:$AM$500,5,FALSE)="",0,VLOOKUP($A$3,'GEO-ALL'!$A$6:$AM$500,5,FALSE))&")")),"NA") -> 39% (10151) | F25: =IFERROR((IF($C25="NA","NA",VLOOKUP($A$3,'GEO-ALL'!$A$6:$AM$500,7,FALSE))),"NA") -> 20.8133725 | G25: NA | H25: NT | I25: NT | J25: NT | K25: NT | Q25: =IFERROR(VLOOKUP($A$3,'GEO-ALL'!$A$6:$BX$500,3,FALSE),"not tested") -> 25702
A26: FCAT Level 1 | B26: NA | C26: =IFERROR((IF(OR(B26=0,B26="",B26="NA"),"NA",((IF(VLOOKUP($A$3,'GEO-L1'!$A$6:$AM$500,3,FALSE)>=B26,"100% ("&VLOOKUP($A$3,'GEO-L1'!$A$6:$AM$500,3,FALSE)&")",(ROUND((VLOOKUP($A$3,'GEO-L1'!$A$6:$AM$500,3,FALSE)/B26*100),0))&"% ("&IF(VLOOKUP($A$3,'GEO-L1'!$A$6:$AM$500,3,FALSE)="",0,VLOOKUP($A$3,'GEO-L1'!$A$6:$AM$500,3,FALSE))&")"))))),"0% (0)") -> NA | D26: NA | E26: NA | F26: NA | G26: NA | H26: NT | I26: NT | J26: NT | K26: NT | Q26: =IFERROR(VLOOKUP($A$3,'GEO-L1'!$A$6:$BX$500,3,FALSE),"not tested") -> 2824
A27: FCAT Level 2 | B27: NA | C27: =IFERROR((IF(OR(B27=0,B27="",B27="NA"),"NA",((IF(VLOOKUP($A$3,'GEO-L2'!$A$6:$AM$500,3,FALSE)>=B27,"100% ("&VLOOKUP($A$3,'GEO-L2'!$A$6:$AM$500,3,FALSE)&")",(ROUND((VLOOKUP($A$3,'GEO-L2'!$A$6:$AM$500,3,FALSE)/B27*100),0))&"% ("&IF(VLOOKUP($A$3,'GEO-L2'!$A$6:$AM$500,3,FALSE)="",0,VLOOKUP($A$3,'GEO-L2'!$A$6:$AM$500,3,FALSE))&")"))))),"0% (0)") -> NA | D27: NA | E27: NA | F27: NA | G27: NA | H27: NT | I27: NT | J27: NT | K27: NT | Q27: =IFERROR(VLOOKUP($A$3,'GEO-L2'!$A$6:$BX$500,3,FALSE),"not tested") -> 4805
A28: FCAT Level 3 | B28: NA | C28: =IFERROR((IF(OR(B28=0,B28="",B28="NA"),"NA",((IF(VLOOKUP($A$3,'GEO-L3'!$A$6:$AM$500,3,FALSE)>=B28,"100% ("&VLOOKUP($A$3,'GEO-L3'!$A$6:$AM$500,3,FALSE)&")",(ROUND((VLOOKUP($A$3,'GEO-L3'!$A$6:$AM$500,3,FALSE)/B28*100),0))&"% ("&IF(VLOOKUP($A$3,'GEO-L3'!$A$6:$AM$500,3,FALSE)="",0,VLOOKUP($A$3,'GEO-L3'!$A$6:$AM$500,3,FALSE))&")"))))),"0% (0)") -> NA | D28: NA | E28: NA | F28: NA | G28: NA | H28: NT | I28: NT | J28: NT | K28: NT | Q28: =IFERROR(VLOOKUP($A$3,'GEO-L3'!$A$6:$BX$500,3,FALSE),"not tested") -> 9045
A29: FCAT Level 4 | B29: NA | C29: =IFERROR((IF(OR(B29=0,B29="",B29="NA"),"NA",((IF(VLOOKUP($A$3,'GEO-L4'!$A$6:$AM$500,3,FALSE)>=B29,"100% ("&VLOOKUP($A$3,'GEO-L4'!$A$6:$AM$500,3,FALSE)&")",(ROUND((VLOOKUP($A$3,'GEO-L4'!$A$6:$AM$500,3,FALSE)/B29*100),0))&"% ("&IF(VLOOKUP($A$3,'GEO-L4'!$A$6:$AM$500,3,FALSE)="",0,VLOOKUP($A$3,'GEO-L4'!$A$6:$AM$500,3,FALSE))&")"))))),"0% (0)") -> NA | D29: NA | E29: NA | F29: NA | G29: NA | H29: NT | I29: NT | J29: NT | K29: NT | Q29: =IFERROR(VLOOKUP($A$3,'GEO-L4'!$A$6:$BX$500,3,FALSE),"not tested") -> 4571
A30: FCAT Level 5 | B30: NA | C30: =IFERROR((IF(OR(B30=0,B30="",B30="NA"),"NA",((IF(VLOOKUP($A$3,'GEO-L5'!$A$6:$AM$500,3,FALSE)>=B30,"100% ("&VLOOKUP($A$3,'GEO-L5'!$A$6:$AM$500,3,FALSE)&")",(ROUND((VLOOKUP($A$3,'GEO-L5'!$A$6:$AM$500,3,FALSE)/B30*100),0))&"% ("&IF(VLOOKUP($A$3,'GEO-L5'!$A$6:$AM$500,3,FALSE)="",0,VLOOKUP($A$3,'GEO-L5'!$A$6:$AM$500,3,FALSE))&")"))))),"0% (0)") -> NA | D30: NA | E30: NA | F30: NA | G30: NA | H30: NT | I30: NT | J30: NT | K30: NT | Q30: =IFERROR(VLOOKUP($A$3,'GEO-L5'!$A$6:$BX$500,3,FALSE),"not tested") -> 2236
A31: White | B31: =IFERROR(VLOOKUP(TEXT($A$3,"0000"),'Geo Enrollment'!$A$3:$Q$500,10,FALSE),0) -> 2446 | C31: =IFERROR((IF(OR(B31=0,B31="",B31="NA"),"NA",((IF(VLOOKUP($A$3,'GEO-W'!$A$6:$AG$500,3,FALSE)>=B31,"100% ("&VLOOKUP($A$3,'GEO-W'!$A$6:$AG$500,3,FALSE)&")",(ROUND((VLOOKUP($A$3,'GEO-W'!$A$6:$AG$500,3,FALSE)/B31*100),0))&"% ("&IF(VLOOKUP($A$3,'GEO-W'!$A$6:$AG$500,3,FALSE)="",0,VLOOKUP($A$3,'GEO-W'!$A$6:$AG$500,3,FALSE))&")"))))),"0% (0)") -> 91% (2232) | D31: =IFERROR((IF($C31="NA","NA",VLOOKUP($A$3,'GEO-W'!$A$6:$AM$500,4,FALSE))),"NA") -> 23.93055556 | E31: =IFERROR((IF($C31="NA","NA",ROUND(VLOOKUP($A$3,'GEO-W'!$A$6:$AG$500,6,FALSE),0)&"% ("&IF(VLOOKUP($A$3,'GEO-W'!$A$6:$AG$500,5,FALSE)="",0,VLOOKUP($A$3,'GEO-W'!$A$6:$AG$500,5,FALSE))&")")),"NA") -> 56% (1241) | F31: =IFERROR((IF($C31="NA","NA",VLOOKUP($A$3,'GEO-W'!$A$6:$AG$500,7,FALSE))),"NA") -> 23.93055556 | G31: NA | H31: NT | I31: NT | J31: NT | K31: NT | Q31: =IFERROR(VLOOKUP($A$3,'GEO-W'!$A$6:$BX$500,3,FALSE),"not tested") -> 2232
A32: Black | B32: =IFERROR(VLOOKUP(TEXT($A$3,"0000"),'Geo Enrollment'!$A$3:$Q$500,11,FALSE),0) -> 6669 | C32: =IFERROR((IF(OR(B32=0,B32="",B32="NA"),"NA",((IF(VLOOKUP($A$3,'GEO-B'!$A$6:$AG$500,3,FALSE)>=B32,"100% ("&VLOOKUP($A$3,'GEO-B'!$A$6:$AG$500,3,FALSE)&")",(ROUND((VLOOKUP($A$3,'GEO-B'!$A$6:$AG$500,3,FALSE)/B32*100),0))&"% ("&IF(VLOOKUP($A$3,'GEO-B'!$A$6:$AG$500,3,FALSE)="",0,VLOOKUP($A$3,'GEO-B'!$A$6:$AG$500,3,FALSE))&")"))))),"0% (0)") -> 86% (5737) | D32: =IFERROR((IF($C32="NA","NA",VLOOKUP($A$3,'GEO-B'!$A$6:$AM$500,4,FALSE))),"NA") -> 18.09832665 | E32: =IFERROR((IF($C32="NA","NA",ROUND(VLOOKUP($A$3,'GEO-B'!$A$6:$AG$500,6,FALSE),0)&"% ("&IF(VLOOKUP($A$3,'GEO-B'!$A$6:$AG$500,5,FALSE)="",0,VLOOKUP($A$3,'GEO-B'!$A$6:$AG$500,5,FALSE))&")")),"NA") -> 24% (1350) | F32: =IFERROR((IF($C32="NA","NA",VLOOKUP($A$3,'GEO-B'!$A$6:$AG$500,7,FALSE))),"NA") -> 18.09832665 | G32: NA | H32: NT | I32: NT | J32: NT | K32: NT | Q32: =IFERROR(VLOOKUP($A$3,'GEO-B'!$A$6:$BX$500,3,FALSE),"not tested") -> 5737
A33: Hispanic | B33: =IFERROR(VLOOKUP(TEXT($A$3,"0000"),'Geo Enrollment'!$A$3:$Q$500,12,FALSE),0) -> 18648 | C33: =IFERROR((IF(OR(B33=0,B33="",B33="NA"),"NA",((IF(VLOOKUP($A$3,'GEO-H'!$A$6:$AG$500,3,FALSE)>=B33,"100% ("&VLOOKUP($A$3,'GEO-H'!$A$6:$AG$500,3,FALSE)&")",(ROUND((VLOOKUP($A$3,'GEO-H'!$A$6:$AG$500,3,FALSE)/B33*100),0))&"% ("&IF(VLOOKUP($A$3,'GEO-H'!$A$6:$AG$500,3,FALSE)="",0,VLOOKUP($A$3,'GEO-H'!$A$6:$AG$500,3,FALSE))&")"))))),"0% (0)") -> 93% (17333) | D33: =IFERROR((IF($C33="NA","NA",VLOOKUP($A$3,'GEO-H'!$A$6:$AM$500,4,FALSE))),"NA") -> 21.20397508 | E33: =IFERROR((IF($C33="NA","NA",ROUND(VLOOKUP($A$3,'GEO-H'!$A$6:$AG$500,6,FALSE),0)&"% ("&IF(VLOOKUP($A$3,'GEO-H'!$A$6:$AG$500,5,FALSE)="",0,VLOOKUP($A$3,'GEO-H'!$A$6:$AG$500,5,FALSE))&")")),"NA") -> 42% (7295) | F33: =IFERROR((IF($C33="NA","NA",VLOOKUP($A$3,'GEO-H'!$A$6:$AG$500,7,FALSE))),"NA") -> 21.20397508 | G33: NA | H33: NT | I33: NT | J33: NT | K33: NT | Q33: =IFERROR(VLOOKUP($A$3,'GEO-H'!$A$6:$BX$500,3,FALSE),"not tested") -> 17333
A34: Asian | B34: =IFERROR(VLOOKUP(TEXT($A$3,"0000"),'Geo Enrollment'!$A$3:$Q$500,13,FALSE),0) -> 317 | C34: =IFERROR((IF(OR(B34=0,B34="",B34="NA"),"NA",((IF(VLOOKUP($A$3,'GEO-A'!$A$6:$AG$500,3,FALSE)>=B34,"100% ("&VLOOKUP($A$3,'GEO-A'!$A$6:$AG$500,3,FALSE)&")",(ROUND((VLOOKUP($A$3,'GEO-A'!$A$6:$AG$500,3,FALSE)/B34*100),0))&"% ("&IF(VLOOKUP($A$3,'GEO-A'!$A$6:$AG$500,3,FALSE)="",0,VLOOKUP($A$3,'GEO-A'!$A$6:$AG$500,3,FALSE))&")"))))),"0% (0)") -> 94% (299) | D34: =IFERROR((IF($C34="NA","NA",VLOOKUP($A$3,'GEO-A'!$A$6:$AM$500,4,FALSE))),"NA") -> 26.62207358 | E34: =IFERROR((IF($C34="NA","NA",ROUND(VLOOKUP($A$3,'GEO-A'!$A$6:$AG$500,6,FALSE),0)&"% ("&IF(VLOOKUP($A$3,'GEO-A'!$A$6:$AG$500,5,FALSE)="",0,VLOOKUP($A$3,'GEO-A'!$A$6:$AG$500,5,FALSE))&")")),"NA") -> 67% (201) | F34: =IFERROR((IF($C34="NA","NA",VLOOKUP($A$3,'GEO-A'!$A$6:$AG$500,7,FALSE))),"NA") -> 26.62207358 | G34: NA | H34: NT | I34: NT | J34: NT | K34: NT | Q34: =IFERROR(VLOOKUP($A$3,'GEO-A'!$A$6:$BX$500,3,FALSE),"not tested") -> 299
A35: Am. Indian | B35: =IFERROR(VLOOKUP(TEXT($A$3,"0000"),'Geo Enrollment'!$A$3:$Q$500,14,FALSE),0) -> 33 | C35: =IFERROR((IF(OR(B35=0,B35="",B35="NA"),"NA",((IF(VLOOKUP($A$3,'GEO-I'!$A$6:$AG$500,3,FALSE)>=B35,"100% ("&VLOOKUP($A$3,'GEO-I'!$A$6:$AG$500,3,FALSE)&")",(ROUND((VLOOKUP($A$3,'GEO-I'!$A$6:$AG$500,3,FALSE)/B35*100),0))&"% ("&IF(VLOOKUP($A$3,'GEO-I'!$A$6:$AG$500,3,FALSE)="",0,VLOOKUP($A$3,'GEO-I'!$A$6:$AG$500,3,FALSE))&")"))))),"0% (0)") -> 94% (31) | D35: =IFERROR((IF($C35="NA","NA",VLOOKUP($A$3,'GEO-I'!$A$6:$AM$500,4,FALSE))),"NA") -> 22.77741935 | E35: =IFERROR((IF($C35="NA","NA",ROUND(VLOOKUP($A$3,'GEO-I'!$A$6:$AG$500,6,FALSE),0)&"% ("&IF(VLOOKUP($A$3,'GEO-I'!$A$6:$AG$500,5,FALSE)="",0,VLOOKUP($A$3,'GEO-I'!$A$6:$AG$500,5,FALSE))&")")),"NA") -> 42% (13) | F35: =IFERROR((IF($C35="NA","NA",VLOOKUP($A$3,'GEO-I'!$A$6:$AG$500,7,FALSE))),"NA") -> 22.77741935 | G35: NA | H35: NT | I35: NT | J35: NT | K35: NT | Q35: =IFERROR(VLOOKUP($A$3,'GEO-I'!$A$6:$BX$500,3,FALSE),"not tested") -> 31
A36: ED | B36: =IFERROR(VLOOKUP(TEXT($A$3,"0000"),'Geo Enrollment'!$A$3:$Q$500,15,FALSE),0) -> 20191 | C36: =IFERROR((IF(OR(B36=0,B36="",B36="NA"),"NA",((IF(VLOOKUP($A$3,'GEO-ED'!$A$6:$AG$500,3,FALSE)>=B36,"100% ("&VLOOKUP($A$3,'GEO-ED'!$A$6:$AG$500,3,FALSE)&")",(ROUND((VLOOKUP($A$3,'GEO-ED'!$A$6:$AG$500,3,FALSE)/B36*100),0))&"% ("&IF(VLOOKUP($A$3,'GEO-ED'!$A$6:$AG$500,3,FALSE)="",0,VLOOKUP($A$3,'GEO-ED'!$A$6:$AG$500,3,FALSE))&")"))))),"0% (0)") -> 99% (19901) | D36: =IFERROR((IF($C36="NA","NA",VLOOKUP($A$3,'GEO-ED'!$A$6:$AM$500,4,FALSE))),"NA") -> 20.04725893 | E36: =IFERROR((IF($C36="NA","NA",ROUND(VLOOKUP($A$3,'GEO-ED'!$A$6:$AG$500,6,FALSE),0)&"% ("&IF(VLOOKUP($A$3,'GEO-ED'!$A$6:$AG$500,5,FALSE)="",0,VLOOKUP($A$3,'GEO-ED'!$A$6:$AG$500,5,FALSE))&")")),"NA") -> 35% (7047) | F36: =IFERROR((IF($C36="NA","NA",VLOOKUP($A$3,'GEO-ED'!$A$6:$AG$500,7,FALSE))),"NA") -> 20.04725893 | G36: NA | H36: NT | I36: NT | J36: NT | K36: NT | Q36: =IFERROR(VLOOKUP($A$3,'GEO-ED'!$A$6:$BX$500,3,FALSE),"not tested") -> 19901
A37: ELL | B37: =IFERROR(VLOOKUP(TEXT($A$3,"0000"),'Geo Enrollment'!$A$3:$Q$500,16,FALSE),0) -> 4033 | C37: =IFERROR((IF(OR(B37=0,B37="",B37="NA"),"NA",((IF(VLOOKUP($A$3,'GEO-ELL'!$A$6:$AG$500,3,FALSE)>=B37,"100% ("&VLOOKUP($A$3,'GEO-ELL'!$A$6:$AG$500,3,FALSE)&")",(ROUND((VLOOKUP($A$3,'GEO-ELL'!$A$6:$AG$500,3,FALSE)/B37*100),0))&"% ("&IF(VLOOKUP($A$3,'GEO-ELL'!$A$6:$AG$500,3,FALSE)="",0,VLOOKUP($A$3,'GEO-ELL'!$A$6:$AG$500,3,FALSE))&")"))))),"0% (0)") -> 87% (3528) | D37: =IFERROR((IF($C37="NA","NA",VLOOKUP($A$3,'GEO-ELL'!$A$6:$AM$500,4,FALSE))),"NA") -> 18.87755102 | E37: =IFERROR((IF($C37="NA","NA",ROUND(VLOOKUP($A$3,'GEO-ELL'!$A$6:$AG$500,6,FALSE),0)&"% ("&IF(VLOOKUP($A$3,'GEO-ELL'!$A$6:$AG$500,5,FALSE)="",0,VLOOKUP($A$3,'GEO-ELL'!$A$6:$AG$500,5,FALSE))&")")),"NA") -> 29% (1038) | F37: =IFERROR((IF($C37="NA","NA",VLOOKUP($A$3,'GEO-ELL'!$A$6:$AG$500,7,FALSE))),"NA") -> 18.87755102 | G37: NA | H37: NT | I37: NT | J37: NT | K37: NT | Q37: =IFERROR(VLOOKUP($A$3,'GEO-ELL'!$A$6:$BX$500,3,FALSE),"not tested") -> 3528
A38: SWD | B38: =IFERROR(VLOOKUP(TEXT($A$3,"0000"),'Geo Enrollment'!$A$3:$Q$500,17,FALSE),0) -> 2668 | C38: =IFERROR((IF(OR(B38=0,B38="",B38="NA"),"NA",((IF(VLOOKUP($A$3,'GEO-SWD'!$A$6:$AG$500,3,FALSE)>=B38,"100% ("&VLOOKUP($A$3,'GEO-SWD'!$A$6:$AG$500,3,FALSE)&")",(ROUND((VLOOKUP($A$3,'GEO-SWD'!$A$6:$AG$500,3,FALSE)/B38*100),0))&"% ("&IF(VLOOKUP($A$3,'GEO-SWD'!$A$6:$AG$500,3,FALSE)="",0,VLOOKUP($A$3,'GEO-SWD'!$A$6:$AG$500,3,FALSE))&")"))))),"0% (0)") -> 87% (2324) | D38: =IFERROR((IF($C38="NA","NA",VLOOKUP($A$3,'GEO-SWD'!$A$6:$AM$500,4,FALSE))),"NA") -> 16.23713425 | E38: =IFERROR((IF($C38="NA","NA",ROUND(VLOOKUP($A$3,'GEO-SWD'!$A$6:$AG$500,6,FALSE),0)&"% ("&IF(VLOOKUP($A$3,'GEO-SWD'!$A$6:$AG$500,5,FALSE)="",0,VLOOKUP($A$3,'GEO-SWD'!$A$6:$AG$500,5,FALSE))&")")),"NA") -> 17% (401) | F38: =IFERROR((IF($C38="NA","NA",VLOOKUP($A$3,'GEO-SWD'!$A$6:$AG$500,7,FALSE))),"NA") -> 16.23713425 | G38: NA | H38: NT | I38: NT | J38: NT | K38: NT | Q38: =IFERROR(VLOOKUP($A$3,'GEO-SWD'!$A$6:$BX$500,3,FALSE),"not tested") -> 2324
A39: Biology | Q39: Biology
A40: Satisfactory Progress Cut Scores at 42% or above | B40: Course Enrollment | C40: % of Students Tested | D40: ='G9-10 Matrix'!C15&" ["&'G9-10 Matrix'!C16&"]" -> Overall [67] | F40: ='G9-10 Matrix'!D15&" ["&'G9-10 Matrix'!D16&"]" -> Molecular and Cellular Biology [24] | H40: ='G9-10 Matrix'!E15&" ["&'G9-10 Matrix'!E16&"]" -> Classification, Heredity, and Evolution [17] | J40: ='G9-10 Matrix'!F15&" ["&'G9-10 Matrix'!F16&"]" -> Organisms, Populations, and Ecosystems [26] | Q40: Number Tested
D41: Average Score | E41: % Satisfactory | F41: Average Score | G41: % Satisfactory | H41: Average Score | I41: % Satisfactory | J41: Average Score | K41: % Satisfactory
A42: All students | B42: =IFERROR(VLOOKUP(TEXT($A$3,"0000"),'Bio Enrollment'!$A$2:$C$500,3,FALSE),0) -> 28582 | C42: =IFERROR((IF(OR(B42=0,B42="",B42="NA"),"NA",((IF(VLOOKUP($A$3,'Bio-ALL'!$A$14:$X$500,3,FALSE)>=B42,"100% ("&VLOOKUP($A$3,'Bio-ALL'!$A$14:$X$500,3,FALSE)&")",(ROUND((VLOOKUP($A$3,'Bio-ALL'!$A$14:$X$500,3,FALSE)/B42*100),0))&"% ("&VLOOKUP($A$3,'Bio-ALL'!$A$14:$X$500,3,FALSE)&")"))))),"NA") -> 87% (24987) | D42: =IFERROR((IF($C42="NA","NA",VLOOKUP($A$3,'Bio-ALL'!$A$6:$AM$500,4,FALSE))),"NA") -> 28.71565614 | E42: =IFERROR((IF($C42="NA","NA",ROUND(VLOOKUP($A$3,'Bio-ALL'!$A$6:$AM$500,6,FALSE),0)&"% ("&IF(VLOOKUP($A$3,'Bio-ALL'!$A$6:$AM$500,5,FALSE)="",0,VLOOKUP($A$3,'Bio-ALL'!$A$6:$AM$500,5,FALSE))&")")),"NA") -> 50% (12521) | F42: =IFERROR((IF($C42="NA","NA",VLOOKUP($A$3,'Bio-ALL'!$A$6:$AM$500,7,FALSE))),"NA") -> 8.624396686 | G42: NA | H42: =IFERROR((IF($C42="NA","NA",VLOOKUP($A$3,'Bio-ALL'!$A$6:$AM$500,10,FALSE))),"NA") -> 7.695413615 | I42: NA | J42: =IFERROR((IF($C42="NA","NA",VLOOKUP($A$3,'Bio-ALL'!$A$6:$AM$500,13,FALSE))),"NA") -> 12.39709849 | K42: NA | Q42: =IFERROR(VLOOKUP($A$3,'Bio-ALL'!$A$6:$BR$500,3,FALSE),"not tested") -> 24987
A43: US History | Q43: US History
A44: Level of Proficiency at 70% or above | B44: Course Enrollment | C44: % of Students Tested | D44: ='G9-10 Matrix'!C18&" ["&'G9-10 Matrix'!C19&"]" -> Overall [54] | F44: ='G9-10 Matrix'!D18&" ["&'G9-10 Matrix'!D19&"]" -> Late Nineteenth and Early Century, 1860-1910 [9] | H44: ='G9-10 Matrix'!E18&" ["&'G9-10 Matrix'!E19&"]" -> Global Military, Political, & Eco. Challenges [18] | J44: ='G9-10 Matrix'!F18&" ["&'G9-10 Matrix'!F19&"]" -> The U.S. & Defense of the International Peace [27] | Q44: Number Tested
D45: Average Score | E45: % Proficient | F45: Average Score | G45: % Proficient | H45: Average Score | I45: % Proficient | J45: Average Score | K45: % Proficient
A46: All students | B46: =IFERROR(VLOOKUP(TEXT($A$3,"0000"),'USH Enrollment'!$A$2:$C$497,3,FALSE),0) -> 20673 | C46: =IFERROR((IF(OR(B46=0,B46="",B46="NA"),"NA",((IF(VLOOKUP($A$3,'USH-ALL'!$A$14:$X$500,3,FALSE)>=B46,"100% ("&VLOOKUP($A$3,'USH-ALL'!$A$14:$X$500,3,FALSE)&")",(ROUND((VLOOKUP($A$3,'USH-ALL'!$A$14:$X$500,3,FALSE)/B46*100),0))&"% ("&VLOOKUP($A$3,'USH-ALL'!$A$14:$X$500,3,FALSE)&")"))))),"NA") -> 90% (18612) | D46: =IFERROR((IF($C46="NA","NA",VLOOKUP($A$3,'USH-ALL'!$A$6:$AM$500,4,FALSE))),"NA") -> 21.59122072 | E46: =IFERROR((IF($C46="NA","NA",ROUND(VLOOKUP($A$3,'USH-ALL'!$A$6:$AC$471,6,FALSE),0)&"% ("&IF(VLOOKUP($A$3,'USH-ALL'!$A$6:$AC$471,5,FALSE)="",0,VLOOKUP($A$3,'USH-ALL'!$A$6:$AC$471,5,FALSE))&")")),"NA") -> 3% (479) | F46: =IFERROR((IF($C46="NA","NA",VLOOKUP($A$3,'USH-ALL'!$A$6:$W$471,10,FALSE))),"NA") -> 4.636299162 | G46: =IFERROR((IF($C46="NA","NA",ROUND(VLOOKUP($A$3,'USH-ALL'!$A$6:$AM$500,12,FALSE),0)&"% ("&IF(VLOOKUP($A$3,'USH-ALL'!$A$6:$AM$500,11,FALSE)="",0,VLOOKUP($A$3,'USH-ALL'!$A$6:$AM$500,11,FALSE))&")")),"NA") -> 21% (3856) | H46: =IFERROR((IF($C46="NA","NA",VLOOKUP($A$3,'USH-ALL'!$A$6:$W$471,7,FALSE))),"NA") -> 7.23282291 | I46: =IFERROR((IF($C46="NA","NA",ROUND(VLOOKUP($A$3,'USH-ALL'!$A$6:$W$471,9,FALSE),0)&"% ("&IF(VLOOKUP($A$3,'USH-ALL'!$A$6:$W$471,8,FALSE)="",0,VLOOKUP($A$3,'USH-ALL'!$A$6:$W$471,8,FALSE))&")")),"NA") -> 5% (1016) | J46: =IFERROR((IF($C46="NA","NA",VLOOKUP($A$3,'USH-ALL'!$A$6:$W$471,13,FALSE))),"NA") -> 9.70668386 | K46: =IFERROR((IF($C46="NA","NA",ROUND(VLOOKUP($A$3,'USH-ALL'!$A$6:$W$471,15,FALSE),0)&"% ("&IF(VLOOKUP($A$3,'USH-ALL'!$A$6:$W$471,14,FALSE)="",0,VLOOKUP($A$3,'USH-ALL'!$A$6:$W$471,14,FALSE))&")")),"NA") -> 2% (346) | Q46: =IFERROR(VLOOKUP($A$3,'USH-ALL'!$A$6:$BH$471,3,FALSE),"not tested") -> 18612

Sheet G9-10 Matrix (hidden)
A2: Grade | B2: Reading | C2: Overall | D2: Vocabulary | E2: Reading Application | F2: Literary Analysis Fiction/Nonfiction | G2: Informational Text/ Research Process
A3: 9 | B3: N of Items | C3: =SUM(D3:G3) -> 50 | D3: 12 | E3: 19 | F3: 10 | G3: 9
A4: 9 | B4: 51% Cut | C4: =ROUND(0.505*C3,2) -> 25.25 | D4: =ROUND(0.505*D3,2) -> 6.06 | E4: 9.6 | F4: 5.05 | G4: 4.55
A5: 10 | B5: N of Items | C5: =SUM(D5:G5) -> 49 | D5: 12 | E5: 20 | F5: 9 | G5: 8
A6: 10 | B6: 51% Cut | C6: =ROUND(0.505*C5,2) -> 24.75 | D6: =ROUND(0.505*D5,2) -> 6.06 | E6: 10.1 | F6: 4.55 | G6: 4.04
A8: Algebra | B8: Algebra | C8: Overall | D8: Functions, Linear Equations, and Inequalities | E8: Polynomials | F8: Rationals, Radicals, Quadratics, and Discrete Mathematics
B9: N of Items | C9: =SUM(D9:G9) -> 40 | D9: 40 | E9: 0 | F9: 0
B10: 51% Cut | C10: =ROUND(0.505*C9,2) -> 20.2 | D10: =ROUND(0.505*D9,2) -> 20.2 | E10: 0 | F10: 0
A12: Geometry | B12: Geometry | C12: Overall | D12: Two-Dimensional Geometry | E12: Three-Dimensional Geometry | F12: Trigonometry and Discrete Mathematics
B13: N of Items | C13: =SUM(D13:F13) -> 43 | D13: 43 | E13: 0 | F13: 0
B14: 51% Cut | C14: =ROUND(0.505*C13,2) -> 21.72 | D14: =ROUND(0.505*D13,2) -> 21.72 | E14: 0 | F14: 0
A15: Biology | B15: Biology | C15: Overall | D15: Molecular and Cellular Biology | E15: Classification, Heredity, and Evolution | F15: Organisms, Populations, and Ecosystems
B16: N of Items | C16: =SUM(D16:G16) -> 67 | D16: 24 | E16: 17 | F16: 26
B17: 51% Cut | C17: =ROUND(0.505*C16,2) -> 33.84 | D17: =ROUND(0.505*D16,2) -> 12.12 | E17: 8.59 | F17: 13.13
A18: US History | B18: US History | C18: Overall | D18: Late Nineteenth and Early Century, 1860-1910 | E18: Global Military, Political, & Eco. Challenges | F18: The U.S. & Defense of the International Peace
B19: N of Items | C19: =SUM(D19:G19) -> 54 | D19: 9 | E19: 18 | F19: 27
B20: 51% Cut | C20: =ROUND(0.505*C19,2) -> 27.27 | D20: =ROUND(0.505*D19,2) -> 4.55 | E20: 9.09 | F20: 13.64

Sheet Alg Enrollment (hidden)
A1: 1 | B1: 2 | C1: 3 | D1: 4 | E1: 5 | F1: 6 | G1: 7 | H1: 8 | I1: 9 | J1: 10 | K1: 11 | L1: 12 | M1: 13 | N1: 14 | O1: 15 | P1: 16 | Q1: 17
B2: SchName | C2: Total | D2: ML1 | E2: ML2 | F2: ML3 | G2: ML4 | H2: ML5 | I2: ML0 | J2: W | K2: B | L2: H | M2: A | N2: I | O2: ED | P2: ELL | Q2: SWD
A3: 0070 | B3: CORAL REEF MONTESSORI ACAD CH | C3: 20 | D3: 0 | E3: 1 | F3: 4 | G3: 7 | H3: 7 | I3: 1 | J3: 4 | K3: 3 | L3: 12 | M3: 1 | N3: 0 | O3: 5 | P3: 0 | Q3: 1
A4: 0071 | B4: EUGENIA B. THOMAS K-8 CENTER | C4: 44 | D4: 0 | E4: 0 | F4: 3 | G4: 23 | H4: 15 | I4: 3 | J4: 4 | K4: 0 | L4: 37 | M4: 3 | N4: 0 | O4: 19 | P4: 1 | Q4: 1
A5: 0073 | B5: MANDARIN LAKES K-8 CENTER | C5: 23 | D5: 0 | E5: 1 | F5: 11 | G5: 9 | H5: 2 | I5: 0 | J5: 3 | K5: 10 | L5: 9 | M5: 0 | N5: 0 | O5: 21 | P5: 0 | Q5: 0
A6: 0091 | B6: BOB GRAHAM EDUCATION CTR | C6: 76 | D6: 0 | E6: 0 | F6: 12 | G6: 33 | H6: 31 | I6: 0 | J6: 5 | K6: 3 | L6: 66 | M6: 1 | N6: 0 | O6: 32 | P6: 0 | Q6: 0
A7: 0092 | B7: NORMAN S. EDELCUP/SUNNY ISLES | C7: 82 | D7: 0 | E7: 0 | F7: 0 | G7: 24 | H7: 56 | I7: 2 | J7: 34 | K7: 1 | L7: 44 | M7: 3 | N7: 0 | O7: 31 | P7: 6 | Q7: 1
A8: 0122 | B8: DR ROLANDO ESPINOSA K-8 | C8: 30 | D8: 0 | E8: 0 | F8: 4 | G8: 10 | H8: 14 | I8: 2 | J8: 1 | K8: 0 | L8: 28 | M8: 1 | N8: 0 | O8: 11 | P8: 11 | Q8: 0
A9: 0231 | B9: AVENTURA WATERWAYS K-8 CENTER | C9: 78 | D9: 0 | E9: 1 | F9: 9 | G9: 39 | H9: 22 | I9: 7 | J9: 23 | K9: 9 | L9: 46 | M9: 0 | N9: 0 | O9: 32 | P9: 4 | Q9: 0
A10: 0241 | B10: RUTH K BROAD/BAY HARBOR K-8 | C10: 49 | D10: 0 | E10: 0 | F10: 2 | G10: 22 | H10: 23 | I10: 2 | J10: 22 | K10: 1 | L10: 26 | M10: 0 | N10: 0 | O10: 16 | P10: 2 | Q10: 2
A11: 0332 | B11: SOMERSET ACADEMY(SILVER PALMS) | C11: 44 | D11: 0 | E11: 0 | F11: 16 | G11: 24 | H11: 4 | I11: 0 | J11: 3 | K11: 4 | L11: 37 | M11: 0 | N11: 0 | O11: 34 | P11: 1 | Q11: 3
A12: 0451 | B12: BOWMAN ASHE/DOOLIN K-8 ACAD | C12: 43 | D12: 0 | E12: 1 | F12: 13 | G12: 21 | H12: 8 | I12: 0 | J12: 3 | K12: 0 | L12: 39 | M12: 1 | N12: 0 | O12: 40 | P12: 2 | Q12: 3
A13: 0761 | B13: FIENBERG/FISHER K-8 CENTER | C13: 23 | D13: 0 | E13: 2 | F13: 5 | G13: 10 | H13: 5 | I13: 1 | J13: 2 | K13: 2 | L13: 16 | M13: 3 | N13: 0 | O13: 21 | P13: 0 | Q13: 0
A14: 0950 | B14: AVENTURA CITY OF EXCELLENCE | C14: 91 | D14: 0 | E14: 0 | F14: 14 | G14: 37 | H14: 37 | I14: 3 | J14: 51 | K14: 1 | L14: 37 | M14: 2 | N14: 0 | O14: 11 | P14: 3 | Q14: 2
A15: 0961 | B15: CORAL GABLES PREPARATORY ACAD | C15: 74 | D15: 1 | E15: 6 | F15: 26 | G15: 18 | H15: 18 | I15: 5 | J15: 11 | K15: 1 | L15: 61 | M15: 1 | N15: 0 | O15: 31 | P15: 2 | Q15: 3
A16: 1020 | B16: YOUTH CO-OP CHARTER SCHOOL | C16: 24 | D16: 0 | E16: 0 | F16: 5 | G16: 10 | H16: 9 | I16: 0 | J16: 0 | K16: 1 | L16: 22 | M16: 0 | N16: 1 | O16: 18 | P16: 2 | Q16: 0
A17: 1121 | B17: CORAL WAY K-8 CENTER | C17: 52 | D17: 0 | E17: 4 | F17: 13 | G17: 15 | H17: 17 | I17: 3 | J17: 9 | K17: 0 | L17: 42 | M17: 1 | N17: 0 | O17: 31 | P17: 6 | Q17: 1
A18: 1331 | B18: DEVON AIRE K-8 CENTER | C18: 77 | D18: 0 | E18: 0 | F18: 8 | G18: 32 | H18: 37 | I18: 0 | J18: 18 | K18: 1 | L18: 54 | M18: 4 | N18: 0 | O18: 34 | P18: 2 | Q18: 2
A19: 1681 | B19: LILLIE C. EVANS K-8 CENTER | C19: 14 | D19: 0 | E19: 0 | F19: 6 | G19: 3 | H19: 4 | I19: 1 | J19: 0 | K19: 12 | L19: 2 | M19: 0 | N19: 0 | O19: 14 | P19: 0 | Q19: 0
A20: 1721 | B20: EVERGLADES K-8 CENTER | C20: 37 | D20: 0 | E20: 0 | F20: 13 | G20: 16 | H20: 8 | I20: 0 | J20: 1 | K20: 0 | L20: 36 | M20: 0 | N20: 0 | O20: 23 | P20: 3 | Q20: 0
A21: 2060 | B21: GIBSON CHARTER SCHOOL | C21: 14 | D21: 0 | E21: 3 | F21: 9 | G21: 2 | H21: 0 | I21: 0 | J21: 0 | K21: 12 | L21: 2 | M21: 0 | N21: 0 | O21: 8 | P21: 0 | Q21: 1
A22: 2701 | B22: KENWOOD K-8 CENTER | C22: 53 | D22: 0 | E22: 3 | F22: 16 | G22: 23 | H22: 10 | I22: 1 | J22: 12 | K22: 2 | L22: 38 | M22: 1 | N22: 0 | O22: 15 | P22: 2 | Q22: 1
A23: 2741 | B23: KEY BISCAYNE K-8 CENTER | C23: 91 | D23: 2 | E23: 2 | F23: 16 | G23: 46 | H23: 22 | I23: 3 | J23: 27 | K23: 2 | L23: 62 | M23: 0 | N23: 0 | O23: 12 | P23: 21 | Q23: 5
A24: 2881 | B24: LEEWOOD K-8 CENTER | C24: 36 | D24: 0 | E24: 0 | F24: 7 | G24: 18 | H24: 11 | I24: 0 | J24: 12 | K24: 2 | L24: 22 | M24: 0 | N24: 0 | O24: 4 | P24: 1 | Q24: 1
A25: 2901 | B25: LEISURE CITY K-8 CENTER | C25: 46 | D25: 0 | E25: 0 | F25: 30 | G25: 8 | H25: 7 | I25: 1 | J25: 1 | K25: 6 | L25: 39 | M25: 0 | N25: 0 | O25: 44 | P25: 0 | Q25: 1
A26: 2911 | B26: LINDA LENTIN K-8 CENTER | C26: 37 | D26: 0 | E26: 2 | F26: 21 | G26: 10 | H26: 4 | I26: 0 | J26: 0 | K26: 32 | L26: 5 | M26: 0 | N26: 0 | O26: 33 | P26: 2 | Q26: 0
A27: 3029 | B27: DORAL ACADEMY OF TECHNOLOGY | C27: 57 | D27: 0 | E27: 0 | F27: 19 | G27: 23 | H27: 15 | I27: 0 | J27: 4 | K27: 2 | L27: 51 | M27: 0 | N27: 0 | O27: 26 | P27: 3 | Q27: 0
A28: 3032 | B28: PALM GLADES PREPATORY ACADEMY | C28: 27 | D28: 0 | E28: 0 | F28: 6 | G28: 13 | H28: 4 | I28: 4 | J28: 1 | K28: 4 | L28: 22 | M28: 0 | N28: 0 | O28: 19 | P28: 2 | Q28: 0
A29: 3101 | B29: FRANK C. MARTIN K-8 CENTER | C29: 99 | D29: 0 | E29: 4 | F29: 24 | G29: 49 | H29: 21 | I29: 1 | J29: 7 | K29: 47 | L29: 32 | M29: 4 | N29: 0 | O29: 42 | P29: 1 | Q29: 0
A30: 3191 | B30: ADA MERRITT K-8 CENTER | C30: 69 | D30: 0 | E30: 1 | F30: 17 | G30: 22 | H30: 28 | I30: 1 | J30: 17 | K30: 9 | L30: 42 | M30: 1 | N30: 0 | O30: 18 | P30: 1 | Q30: 1
A31: 3281 | B31: MIAMI LAKES K-8 CENTER | C31: 73 | D31: 0 | E31: 0 | F31: 13 | G31: 29 | H31: 29 | I31: 2 | J31: 10 | K31: 2 | L31: 59 | M31: 2 | N31: 0 | O31: 19 | P31: 8 | Q31: 1
A32: 3421 | B32: M.A. MILAM K-8 CENTER | C32: 13 | D32: 0 | E32: 0 | F32: 1 | G32: 9 | H32: 3 | I32: 0 | J32: 0 | K32: 0 | L32: 13 | M32: 0 | N32: 0 | O32: 12 | P32: 2 | Q32: 1
A33: 3610 | B33: KEYS GATE CHARTER SCHOOL | C33: 160 | D33: 0 | E33: 8 | F33: 47 | G33: 79 | H33: 21 | I33: 5 | J33: 48 | K33: 22 | L33: 85 | M33: 4 | N33: 1 | O33: 74 | P33: 5 | Q33: 5
A34: 3621 | B34: COCONUT PALM K-8 ACADEMY | C34: 76 | D34: 0 | E34: 1 | F34: 34 | G34: 25 | H34: 14 | I34: 2 | J34: 2 | K34: 28 | L34: 43 | M34: 3 | N34: 0 | O34: 66 | P34: 8 | Q34: 5
A35: 4691 | B35: JANE ROBERTS K-8 CENTER | C35: 36 | D35: 0 | E35: 0 | F35: 2 | G35: 16 | H35: 18 | I35: 0 | J35: 4 | K35: 0 | L35: 32 | M35: 0 | N35: 0 | O35: 16 | P35: 1 | Q35: 0
A36: 5003 | B36: SOUTH DADE MIDDLE SCHOOL | C36: 86 | D36: 0 | E36: 2 | F36: 56 | G36: 18 | H36: 5 | I36: 5 | J36: 17 | K36: 10 | L36: 57 | M36: 0 | N36: 0 | O36: 75 | P36: 5 | Q36: 3
A37: 5005 | B37: DAVID LAWRENCE JR K-8 CENTER | C37: 51 | D37: 0 | E37: 0 | F37: 2 | G37: 27 | H37: 22 | I37: 0 | J37: 9 | K37: 11 | L37: 25 | M37: 4 | N37: 0 | O37: 28 | P37: 1 | Q37: 1
A38: 5006 | B38: EVERGLADES PREPARATORY ACADEMY | C38: 76 | D38: 0 | E38: 4 | F38: 7 | G38: 43 | H38: 20 | I38: 2 | J38: 8 | K38: 7 | L38: 60 | M38: 1 | N38: 0 | O38: 65 | P38: 5 | Q38: 2
A39: 5010 | B39: OXFORD ACADEMY OF MIAMI | C39: 2 | D39: 0 | E39: 0 | F39: 0 | G39: 1 | H39: 1 | I39: 0 | J39: 1 | K39: 1 | L39: 0 | M39: 0 | N39: 0 | O39: 1 | P39: 0 | Q39: 0
A40: 5025 | B40: LINCOLN-MARTI CS LITTLE HAVANA | C40: 15 | D40: 0 | E40: 0 | F40: 7 | G40: 7 | H40: 1 | I40: 0 | J40: 0 | K40: 4 | L40: 11 | M40: 0 | N40: 0 | O40: 11 | P40: 7 | Q40: 0
A41: 5029 | B41: EXCELSIOR LANGUAGE ACADEMY K-8 | C41: 28 | D41: 0 | E41: 0 | F41: 18 | G41: 7 | H41: 2 | I41: 1 | J41: 0 | K41: 0 | L41: 28 | M41: 0 | N41: 0 | O41: 24 | P41: 9 | Q41: 1
A42: 5047 | B42: MATER ACADEMY (MIAMI BEACH) | C42: 1 | D42: 0 | E42: 0 | F42: 0 | G42: 0 | H42: 1 | I42: 0 | J42: 0 | K42: 0 | L42: 1 | M42: 0 | N42: 0 | O42: 1 | P42: 0 | Q42: 0
A43: 5101 | B43: JOHN I. SMITH K-8 CENTER | C43: 15 | D43: 0 | E43: 0 | F43: 6 | G43: 6 | H43: 2 | I43: 1 | J43: 2 | K43: 0 | L43: 12 | M43: 1 | N43: 0 | O43: 5 | P43: 1 | Q43: 0
A44: 5141 | B44: HUBERT O. SIBLEY K-8 CENTER | C44: 36 | D44: 0 | E44: 0 | F44: 20 | G44: 12 | H44: 3 | I44: 1 | J44: 0 | K44: 31 | L44: 5 | M44: 0 | N44: 0 | O44: 31 | P44: 6 | Q44: 0
A45: 5241 | B45: SOUTH MIAMI K-8 CENTER | C45: 23 | D45: 0 | E45: 1 | F45: 2 | G45: 11 | H45: 9 | I45: 0 | J45: 3 | K45: 1 | L45: 18 | M45: 1 | N45: 0 | O45: 9 | P45: 0 | Q45: 2
A46: 5671 | B46: VINELAND K-8 CENTER | C46: 28 | D46: 0 | E46: 0 | F46: 1 | G46: 7 | H46: 20 | I46: 0 | J46: 10 | K46: 0 | L46: 16 | M46: 2 | N46: 0 | O46: 4 | P46: 0 | Q46: 1
A47: 5961 | B47: WINSTON PARK K-8 CENTER | C47: 72 | D47: 0 | E47: 0 | F47: 18 | G47: 30 | H47: 23 | I47: 1 | J47: 4 | K47: 0 | L47: 66 | M47: 2 | N47: 0 | O47: 50 | P47: 4 | Q47: 4
A48: 6001 | B48: HERBERT A. AMMONS MIDDLE | C48: 277 | D48: 0 | E48: 11 | F48: 59 | G48: 120 | H48: 86 | I48: 1 | J48: 44 | K48: 35 | L48: 183 | M48: 11 | N48: 1 | O48: 125 | P48: 3 | Q48: 7
A49: 6004 | B49: SOMERSET ACADEMY MIDDLE | C49: 75 | D49: 2 | E49: 11 | F49: 23 | G49: 16 | H49: 21 | I49: 2 | J49: 9 | K49: 1 | L49: 64 | M49: 0 | N49: 0 | O49: 35 | P49: 2 | Q49: 0
A50: 6006 | B50: ARCHIMEDEAN CONSERVATORY | C50: 137 | D50: 3 | E50: 17 | F50: 31 | G50: 34 | H50: 48 | I50: 4 | J50: 15 | K50: 2 | L50: 108 | M50: 12 | N50: 0 | O50: 70 | P50: 13 | Q50: 6
A51: 6009 | B51: MATER ACADEMY EAST MIDDLE | C51: 52 | D51: 0 | E51: 0 | F51: 27 | G51: 18 | H51: 7 | I51: 0 | J51: 0 | K51: 6 | L51: 46 | M51: 0 | N51: 0 | O51: 38 | P51: 3 | Q51: 0
A52: 6010 | B52: FLORIDA INTERNATIONAL ACADEMY | C52: 29 | D52: 0 | E52: 0 | F52: 2 | G52: 21 | H52: 5 | I52: 1 | J52: 0 | K52: 27 | L52: 2 | M52: 0 | N52: 0 | O52: 28 | P52: 2 | Q52: 1
A53: 6011 | B53: ALLAPATTAH MIDDLE | C53: 30 | D53: 0 | E53: 0 | F53: 25 | G53: 2 | H53: 3 | I53: 0 | J53: 1 | K53: 15 | L53: 14 | M53: 0 | N53: 0 | O53: 30 | P53: 1 | Q53: 2
A54: 6012 | B54: MATER ACADEMY CHARTER MIDDLE | C54: 321 | D54: 0 | E54: 1 | F54: 166 | G54: 98 | H54: 56 | I54: 0 | J54: 10 | K54: 9 | L54: 301 | M54: 1 | N54: 0 | O54: 250 | P54: 26 | Q54: 5
A55: 6013 | B55: SOMERSET ACADEMY MIDDLE-SOUTH | C55: 45 | D55: 8 | E55: 11 | F55: 14 | G55: 9 | H55: 1 | I55: 2 | J55: 11 | K55: 4 | L55: 30 | M55: 0 | N55: 0 | O55: 30 | P55: 1 | Q55: 2
A56: 6020 | B56: ASPIRA RAUL A. MARTINEZ CHTR | C56: 74 | D56: 0 | E56: 1 | F56: 60 | G56: 9 | H56: 4 | I56: 0 | J56: 1 | K56: 49 | L56: 24 | M56: 0 | N56: 0 | O56: 74 | P56: 7 | Q56: 3
A57: 6021 | B57: ARVIDA MIDDLE SCHOOL | C57: 140 | D57: 0 | E57: 0 | F57: 5 | G57: 62 | H57: 70 | I57: 3 | J57: 30 | K57: 3 | L57: 98 | M57: 9 | N57: 0 | O57: 51 | P57: 2 | Q57: 0
A58: 6022 | B58: PINECREST ACADEMY CHARTER MIDD | C58: 202 | D58: 0 | E58: 2 | F58: 117 | G58: 60 | H58: 23 | I58: 0 | J58: 7 | K58: 1 | L58: 193 | M58: 1 | N58: 0 | O58: 115 | P58: 15 | Q58: 8
A59: 6023 | B59: ANDOVER MIDDLE SCHOOL | C59: 128 | D59: 0 | E59: 2 | F59: 43 | G59: 59 | H59: 21 | I59: 3 | J59: 2 | K59: 119 | L59: 2 | M59: 3 | N59: 1 | O59: 109 | P59: 5 | Q59: 1
A60: 6028 | B60: RENAISSANCE MIDDLE CHARTER | C60: 58 | D60: 0 | E60: 0 | F60: 2 | G60: 38 | H60: 12 | I60: 6 | J60: 9 | K60: 2 | L60: 46 | M60: 1 | N60: 0 | O60: 18 | P60: 8 | Q60: 1
A61: 6030 | B61: DORAL ACADEMY CHARTER MIDDLE | C61: 207 | D61: 1 | E61: 3 | F61: 69 | G61: 88 | H61: 43 | I61: 3 | J61: 16 | K61: 1 | L61: 185 | M61: 5 | N61: 0 | O61: 107 | P61: 6 | Q61: 0
A62: 6031 | B62: BROWNSVILLE MIDDLE | C62: 83 | D62: 0 | E62: 2 | F62: 58 | G62: 20 | H62: 1 | I62: 2 | J62: 0 | K62: 50 | L62: 33 | M62: 0 | N62: 0 | O62: 81 | P62: 2 | Q62: 4
A63: 6033 | B63: MATER ACADEMY LAKES MIDDLE | C63: 64 | D63: 0 | E63: 2 | F63: 19 | G63: 28 | H63: 13 | I63: 2 | J63: 6 | K63: 0 | L63: 57 | M63: 1 | N63: 0 | O63: 49 | P63: 5 | Q63: 1
A64: 6040 | B64: DOCTORS CHARTER/MIAMI SHORES | C64: 96 | D64: 3 | E64: 11 | F64: 23 | G64: 29 | H64: 21 | I64: 9 | J64: 23 | K64: 44 | L64: 23 | M64: 6 | N64: 0 | O64: 23 | P64: 2 | Q64: 5
A65: 6041 | B65: PAUL W. BELL MIDDLE | C65: 47 | D65: 0 | E65: 2 | F65: 13 | G65: 23 | H65: 7 | I65: 2 | J65: 1 | K65: 0 | L65: 46 | M65: 0 | N65: 0 | O65: 45 | P65: 5 | Q65: 1
A66: 6042 | B66: MATER GARDENS ACADEMY MIDDLE | C66: 36 | D66: 0 | E66: 3 | F66: 8 | G66: 18 | H66: 5 | I66: 2 | J66: 0 | K66: 1 | L66: 34 | M66: 0 | N66: 1 | O66: 9 | P66: 1 | Q66: 0
A67: 6043 | B67: SOMERSET ACAD MIDDLE (C-PALMS) | C67: 1 | D67: 0 | E67: 1 | F67: 0 | G67: 0 | H67: 0 | I67: 0 | J67: 1 | K67: 0 | L67: 0 | M67: 0 | N67: 0 | O67: 0 | P67: 0 | Q67: 0
A68: 6045 | B68: INTL. STUDIES CHARTER MIDDLE | C68: 72 | D68: 0 | E68: 0 | F68: 25 | G68: 24 | H68: 13 | I68: 10 | J68: 13 | K68: 1 | L68: 58 | M68: 0 | N68: 0 | O68: 45 | P68: 12 | Q68: 1
A69: 6047 | B69: MATER ACADEMY MIDDLE-INTL STUD | C69: 33 | D69: 0 | E69: 0 | F69: 20 | G69: 10 | H69: 3 | I69: 0 | J69: 1 | K69: 6 | L69: 25 | M69: 1 | N69: 0 | O69: 28 | P69: 4 | Q69: 0
A70: 6048 | B70: MIAMI COMMUNITY CHARTER MIDDLE | C70: 50 | D70: 1 | E70: 14 | F70: 20 | G70: 12 | H70: 3 | I70: 0 | J70: 2 | K70: 4 | L70: 43 | M70: 1 | N70: 0 | O70: 47 | P70: 6 | Q70: 2
A71: 6049 | B71: RIVER CITIES COMMUNITY CHARTER | C71: 14 | D71: 1 | E71: 4 | F71: 6 | G71: 2 | H71: 1 | I71: 0 | J71: 0 | K71: 7 | L71: 7 | M71: 0 | N71: 0 | O71: 9 | P71: 0 | Q71: 0
A72: 6051 | B72: CAROL CITY MIDDLE | C72: 40 | D72: 1 | E72: 3 | F72: 27 | G72: 8 | H72: 0 | I72: 1 | J72: 0 | K72: 36 | L72: 3 | M72: 0 | N72: 0 | O72: 38 | P72: 1 | Q72: 1
A73: 6052 | B73: ZELDA GLAZER MIDDLE SCHOOL | C73: 307 | D73: 3 | E73: 2 | F73: 153 | G73: 116 | H73: 24 | I73: 9 | J73: 7 | K73: 2 | L73: 294 | M73: 4 | N73: 0 | O73: 226 | P73: 33 | Q73: 18
A74: 6053 | B74: SOMERSET ACAD MIDDLE (S-MIAMI) | C74: 28 | D74: 0 | E74: 0 | F74: 16 | G74: 10 | H74: 1 | I74: 1 | J74: 5 | K74: 0 | L74: 23 | M74: 0 | N74: 0 | O74: 7 | P74: 0 | Q74: 0
A75: 6060 | B75: ASPIRA SOUTH YOUTH LEADERSHIP | C75: 27 | D75: 1 | E75: 5 | F75: 13 | G75: 6 | H75: 0 | I75: 2 | J75: 1 | K75: 3 | L75: 23 | M75: 0 | N75: 0 | O75: 23 | P75: 3 | Q75: 1
A76: 6061 | B76: CAMPBELL DRIVE MIDDLE | C76: 74 | D76: 0 | E76: 0 | F76: 45 | G76: 21 | H76: 3 | I76: 5 | J76: 1 | K76: 29 | L76: 43 | M76: 1 | N76: 0 | O76: 70 | P76: 4 | Q76: 5
A77: 6070 | B77: ASPIRA EUGENIO MARIA DE HOSTOS | C77: 68 | D77: 2 | E77: 11 | F77: 37 | G77: 15 | H77: 2 | I77: 1 | J77: 0 | K77: 20 | L77: 48 | M77: 0 | N77: 0 | O77: 65 | P77: 6 | Q77: 0
A78: 6071 | B78: GEORGE WASHINGTON CARVER | C78: 309 | D78: 2 | E78: 4 | F78: 59 | G78: 112 | H78: 130 | I78: 2 | J78: 101 | K78: 16 | L78: 183 | M78: 9 | N78: 0 | O78: 90 | P78: 23 | Q78: 1
A79: 6081 | B79: CENTENNIAL MIDDLE | C79: 114 | D79: 9 | E79: 14 | F79: 49 | G79: 33 | H79: 5 | I79: 4 | J79: 14 | K79: 27 | L79: 70 | M79: 2 | N79: 0 | O79: 80 | P79: 12 | Q79: 8
A80: 6091 | B80: CITRUS GROVE MIDDLE SCHOOL | C80: 69 | D80: 0 | E80: 0 | F80: 45 | G80: 14 | H80: 9 | I80: 1 | J80: 0 | K80: 4 | L80: 64 | M80: 1 | N80: 0 | O80: 68 | P80: 11 | Q80: 0
A81: 6111 | B81: CUTLER RIDGE MIDDLE | C81: 54 | D81: 5 | E81: 13 | F81: 22 | G81: 11 | H81: 3 | I81: 0 | J81: 10 | K81: 18 | L81: 23 | M81: 3 | N81: 0 | O81: 46 | P81: 1 | Q81: 2
A82: 6121 | B82: RUBEN DARIO MIDDLE | C82: 62 | D82: 0 | E82: 0 | F82: 17 | G82: 31 | H82: 13 | I82: 1 | J82: 1 | K82: 1 | L82: 59 | M82: 1 | N82: 0 | O82: 54 | P82: 9 | Q82: 0
A83: 6141 | B83: CHARLES R. DREW MIDDLE | C83: 26 | D83: 0 | E83: 0 | F83: 20 | G83: 4 | H83: 2 | I83: 0 | J83: 1 | K83: 24 | L83: 1 | M83: 0 | N83: 0 | O83: 26 | P83: 0 | Q83: 1
A84: 6151 | B84: DORAL MIDDLE SCHOOL | C84: 38 | D84: 3 | E84: 0 | F84: 16 | G84: 13 | H84: 5 | I84: 1 | J84: 4 | K84: 8 | L84: 26 | M84: 0 | N84: 0 | O84: 24 | P84: 11 | Q84: 0
A85: 6161 | B85: LAWTON CHILES MIDDLE SCHOOL | C85: 90 | D85: 0 | E85: 5 | F85: 54 | G85: 24 | H85: 7 | I85: 0 | J85: 6 | K85: 31 | L85: 52 | M85: 1 | N85: 0 | O85: 73 | P85: 0 | Q85: 3
A86: 6171 | B86: HENRY H. FILER MIDDLE | C86: 178 | D86: 0 | E86: 1 | F86: 98 | G86: 60 | H86: 18 | I86: 1 | J86: 2 | K86: 2 | L86: 174 | M86: 0 | N86: 0 | O86: 167 | P86: 45 | Q86: 3
A87: 6211 | B87: GLADES MIDDLE | C87: 132 | D87: 0 | E87: 1 | F87: 27 | G87: 68 | H87: 36 | I87: 0 | J87: 15 | K87: 1 | L87: 110 | M87: 6 | N87: 0 | O87: 71 | P87: 8 | Q87: 1
A88: 6221 | B88: HAMMOCKS MIDDLE | C88: 112 | D88: 0 | E88: 0 | F88: 26 | G88: 49 | H88: 33 | I88: 4 | J88: 20 | K88: 5 | L88: 82 | M88: 5 | N88: 0 | O88: 73 | P88: 4 | Q88: 1
A89: 6231 | B89: HIALEAH MIDDLE | C89: 58 | D89: 0 | E89: 1 | F89: 49 | G89: 6 | H89: 1 | I89: 1 | J89: 2 | K89: 2 | L89: 54 | M89: 0 | N89: 0 | O89: 54 | P89: 14 | Q89: 4
A90: 6241 | B90: HIGHLAND OAKS MIDDLE | C90: 262 | D90: 0 | E90: 11 | F90: 90 | G90: 109 | H90: 46 | I90: 6 | J90: 80 | K90: 100 | L90: 72 | M90: 10 | N90: 0 | O90: 159 | P90: 13 | Q90: 6
A91: 6251 | B91: HOMESTEAD MIDDLE | C91: 72 | D91: 0 | E91: 0 | F91: 44 | G91: 25 | H91: 1 | I91: 2 | J91: 2 | K91: 24 | L91: 46 | M91: 0 | N91: 0 | O91: 67 | P91: 5 | Q91: 4
A92: 6281 | B92: THOMAS JEFFERSON MIDDLE | C92: 40 | D92: 0 | E92: 0 | F92: 29 | G92: 10 | H92: 0 | I92: 1 | J92: 0 | K92: 39 | L92: 0 | M92: 0 | N92: 0 | O92: 35 | P92: 7 | Q92: 0
A93: 6301 | B93: JOHN F. KENNEDY MIDDLE | C93: 197 | D93: 0 | E93: 9 | F93: 65 | G93: 83 | H93: 38 | I93: 2 | J93: 9 | K93: 138 | L93: 39 | M93: 7 | N93: 2 | O93: 167 | P93: 6 | Q93: 0
A94: 6331 | B94: KINLOCH PARK MIDDLE | C94: 86 | D94: 0 | E94: 0 | F94: 22 | G94: 47 | H94: 16 | I94: 1 | J94: 2 | K94: 0 | L94: 84 | M94: 0 | N94: 0 | O94: 80 | P94: 11 | Q94: 3
A95: 6351 | B95: LAKE STEVENS MIDDLE | C95: 79 | D95: 0 | E95: 0 | F95: 40 | G95: 29 | H95: 8 | I95: 2 | J95: 2 | K95: 34 | L95: 43 | M95: 0 | N95: 0 | O95: 72 | P95: 3 | Q95: 1
A96: 6361 | B96: JOSE DE DIEGO MIDDLE SCHOOL | C96: 46 | D96: 0 | E96: 2 | F96: 31 | G96: 9 | H96: 2 | I96: 2 | J96: 1 | K96: 19 | L96: 26 | M96: 0 | N96: 0 | O96: 45 | P96: 6 | Q96: 2
A97: 6391 | B97: MADISON MIDDLE SCHOOL | C97: 50 | D97: 0 | E97: 1 | F97: 37 | G97: 8 | H97: 1 | I97: 3 | J97: 0 | K97: 29 | L97: 20 | M97: 0 | N97: 0 | O97: 48 | P97: 1 | Q97: 4
A98: 6411 | B98: HORACE MANN MIDDLE | C98: 47 | D98: 0 | E98: 4 | F98: 29 | G98: 11 | H98: 1 | I98: 2 | J98: 1 | K98: 43 | L98: 3 | M98: 0 | N98: 0 | O98: 46 | P98: 2 | Q98: 1
A99: 6421 | B99: JOSE MARTI MIDDLE | C99: 17 | D99: 0 | E99: 0 | F99: 8 | G99: 6 | H99: 3 | I99: 0 | J99: 3 | K99: 0 | L99: 13 | M99: 1 | N99: 0 | O99: 11 | P99: 2 | Q99: 1
A100: 6431 | B100: MAYS MIDDLE | C100: 35 | D100: 0 | E100: 0 | F100: 18 | G100: 12 | H100: 4 | I100: 1 | J100: 4 | K100: 15 | L100: 15 | M100: 1 | N100: 0 | O100: 31 | P100: 0 | Q100: 1
A101: 6441 | B101: HOWARD D. MCMILLAN MIDDLE | C101: 115 | D101: 0 | E101: 8 | F101: 43 | G101: 39 | H101: 24 | I101: 1 | J101: 7 | K101: 3 | L101: 100 | M101: 5 | N101: 0 | O101: 87 | P101: 11 | Q101: 0
A102: 6481 | B102: MIAMI EDISON MIDDLE | C102: 55 | D102: 0 | E102: 0 | F102: 38 | G102: 11 | H102: 3 | I102: 3 | J102: 3 | K102: 41 | L102: 9 | M102: 0 | N102: 0 | O102: 54 | P102: 9 | Q102: 2
A103: 6501 | B103: MIAMI LAKES MIDDLE | C103: 51 | D103: 1 | E103: 3 | F103: 9 | G103: 15 | H103: 22 | I103: 1 | J103: 3 | K103: 3 | L103: 44 | M103: 1 | N103: 0 | O103: 48 | P103: 5 | Q103: 2
A104: 6521 | B104: MIAMI SPRINGS MIDDLE | C104: 174 | D104: 0 | E104: 6 | F104: 63 | G104: 78 | H104: 25 | I104: 2 | J104: 8 | K104: 21 | L104: 140 | M104: 4 | N104: 0 | O104: 145 | P104: 18 | Q104: 2
A105: 6541 | B105: NAUTILUS MIDDLE | C105: 153 | D105: 2 | E105: 5 | F105: 33 | G105: 56 | H105: 52 | I105: 5 | J105: 60 | K105: 9 | L105: 81 | M105: 2 | N105: 0 | O105: 85 | P105: 4 | Q105: 1
A106: 6571 | B106: NORLAND MIDDLE | C106: 29 | D106: 0 | E106: 1 | F106: 5 | G106: 13 | H106: 9 | I106: 1 | J106: 0 | K106: 28 | L106: 1 | M106: 0 | N106: 0 | O106: 27 | P106: 0 | Q106: 0
A107: 6591 | B107: NORTH DADE MIDDLE | C107: 96 | D107: 0 | E107: 4 | F107: 58 | G107: 25 | H107: 7 | I107: 2 | J107: 0 | K107: 82 | L107: 14 | M107: 0 | N107: 0 | O107: 82 | P107: 5 | Q107: 1
A108: 6611 | B108: COUNTRY CLUB MIDDLE SCHOOL | C108: 74 | D108: 0 | E108: 0 | F108: 12 | G108: 41 | H108: 19 | I108: 2 | J108: 3 | K108: 19 | L108: 49 | M108: 2 | N108: 0 | O108: 61 | P108: 6 | Q108: 0
A109: 6631 | B109: NORTH MIAMI MIDDLE | C109: 115 | D109: 1 | E109: 8 | F109: 60 | G109: 35 | H109: 8 | I109: 3 | J109: 0 | K109: 102 | L109: 11 | M109: 0 | N109: 0 | O109: 112 | P109: 12 | Q109: 4
A110: 6681 | B110: PALM SPRINGS MIDDLE | C110: 182 | D110: 0 | E110: 1 | F110: 102 | G110: 66 | H110: 11 | I110: 2 | J110: 6 | K110: 0 | L110: 174 | M110: 2 | N110: 0 | O110: 163 | P110: 41 | Q110: 7
A111: 6701 | B111: PALMETTO MIDDLE | C111: 212 | D111: 0 | E111: 5 | F111: 35 | G111: 66 | H111: 91 | I111: 15 | J111: 98 | K111: 8 | L111: 87 | M111: 16 | N111: 0 | O111: 29 | P111: 3 | Q111: 7
A112: 6721 | B112: PARKWAY MIDDLE | C112: 23 | D112: 0 | E112: 1 | F112: 19 | G112: 1 | H112: 1 | I112: 1 | J112: 1 | K112: 21 | L112: 1 | M112: 0 | N112: 0 | O112: 22 | P112: 0 | Q112: 1
A113: 6741 | B113: PONCE DE LEON MIDDLE | C113: 232 | D113: 1 | E113: 8 | F113: 56 | G113: 96 | H113: 63 | I113: 8 | J113: 29 | K113: 17 | L113: 181 | M113: 4 | N113: 1 | O113: 167 | P113: 13 | Q113: 9
A114: 6751 | B114: HIALEAH GARDENS MIDDLE SCHOOL | C114: 375 | D114: 4 | E114: 24 | F114: 162 | G114: 129 | H114: 50 | I114: 6 | J114: 5 | K114: 2 | L114: 365 | M114: 3 | N114: 0 | O114: 309 | P114: 62 | Q114: 8
A115: 6761 | B115: REDLAND MIDDLE | C115: 42 | D115: 0 | E115: 5 | F115: 26 | G115: 7 | H115: 0 | I115: 4 | J115: 9 | K115: 13 | L115: 20 | M115: 0 | N115: 0 | O115: 39 | P115: 2 | Q115: 5
A116: 6771 | B116: JORGE MAS CANOSA MIDDLE | C116: 120 | D116: 0 | E116: 3 | F116: 12 | G116: 54 | H116: 49 | I116: 2 | J116: 11 | K116: 4 | L116: 99 | M116: 5 | N116: 0 | O116: 73 | P116: 6 | Q116: 2
A117: 6781 | B117: RICHMOND HEIGHTS MIDDLE | C117: 90 | D117: 0 | E117: 8 | F117: 39 | G117: 30 | H117: 8 | I117: 5 | J117: 9 | K117: 40 | L117: 37 | M117: 3 | N117: 0 | O117: 74 | P117: 4 | Q117: 2
A118: 6801 | B118: RIVIERA MIDDLE | C118: 162 | D118: 0 | E118: 6 | F118: 71 | G118: 62 | H118: 21 | I118: 2 | J118: 14 | K118: 2 | L118: 142 | M118: 3 | N118: 1 | O118: 131 | P118: 14 | Q118: 12
A119: 6821 | B119: ROCKWAY MIDDLE | C119: 174 | D119: 1 | E119: 7 | F119: 59 | G119: 63 | H119: 39 | I119: 5 | J119: 7 | K119: 1 | L119: 162 | M119: 4 | N119: 0 | O119: 131 | P119: 25 | Q119: 3
A120: 6841 | B120: SHENANDOAH MIDDLE | C120: 125 | D120: 0 | E120: 0 | F120: 90 | G120: 21 | H120: 12 | I120: 2 | J120: 3 | K120: 9 | L120: 113 | M120: 0 | N120: 0 | O120: 119 | P120: 13 | Q120: 2
A121: 6861 | B121: SOUTHWOOD MIDDLE | C121: 310 | D121: 0 | E121: 2 | F121: 119 | G121: 95 | H121: 81 | I121: 13 | J121: 100 | K121: 47 | L121: 146 | M121: 13 | N121: 0 | O121: 112 | P121: 4 | Q121: 10
A122: 6881 | B122: SOUTH MIAMI MIDDLE SCHOOL | C122: 114 | D122: 0 | E122: 0 | F122: 6 | G122: 45 | H122: 62 | I122: 1 | J122: 32 | K122: 4 | L122: 72 | M122: 5 | N122: 0 | O122: 37 | P122: 0 | Q122: 2
A123: 6901 | B123: W. R. THOMAS MIDDLE | C123: 247 | D123: 0 | E123: 2 | F123: 63 | G123: 78 | H123: 93 | I123: 11 | J123: 10 | K123: 2 | L123: 227 | M123: 8 | N123: 0 | O123: 175 | P123: 18 | Q123: 16
A124: 6921 | B124: LAMAR LOUISE CURRY MIDDLE SCH | C124: 286 | D124: 0 | E124: 3 | F124: 88 | G124: 89 | H124: 104 | I124: 2 | J124: 17 | K124: 5 | L124: 251 | M124: 13 | N124: 0 | O124: 180 | P124: 13 | Q124: 11
A125: 6961 | B125: WEST MIAMI MIDDLE | C125: 79 | D125: 0 | E125: 0 | F125: 43 | G125: 28 | H125: 7 | I125: 1 | J125: 3 | K125: 0 | L125: 76 | M125: 0 | N125: 0 | O125: 68 | P125: 13 | Q125: 5
A126: 6981 | B126: WESTVIEW MIDDLE | C126: 47 | D126: 0 | E126: 0 | F126: 34 | G126: 10 | H126: 3 | I126: 0 | J126: 0 | K126: 35 | L126: 12 | M126: 0 | N126: 0 | O126: 46 | P126: 9 | Q126: 4
A127: 7001 | B127: MIAMI-DADE ONLINE ACADEMY | C127: 32 | D127: 6 | E127: 5 | F127: 5 | G127: 5 | H127: 3 | I127: 8 | J127: 5 | K127: 5 | L127: 22 | M127: 0 | N127: 0 | O127: 17 | P127: 0 | Q127: 0
A128: 7007 | B128: INTL. STUDIES CHARTER SENIOR | C128: 60 | D128: 7 | E128: 10 | F128: 19 | G128: 5 | H128: 0 | I128: 19 | J128: 5 | K128: 1 | L128: 54 | M128: 0 | N128: 0 | O128: 49 | P128: 21 | Q128: 2
A129: 7009 | B129: DORAL PERFORMING ARTS ACADEMY | C129: 44 | D129: 0 | E129: 6 | F129: 26 | G129: 5 | H129: 3 | I129: 4 | J129: 1 | K129: 0 | L129: 43 | M129: 0 | N129: 0 | O129: 26 | P129: 1 | Q129: 2
A130: 7011 | B130: AMERICAN SENIOR | C130: 449 | D130: 113 | E130: 104 | F130: 127 | G130: 25 | H130: 8 | I130: 72 | J130: 15 | K130: 116 | L130: 313 | M130: 5 | N130: 0 | O130: 380 | P130: 78 | Q130: 57
A131: 7014 | B131: MATER PERFORMING ARTS ACADEMY | C131: 39 | D131: 0 | E131: 2 | F131: 23 | G131: 7 | H131: 5 | I131: 2 | J131: 4 | K131: 3 | L131: 32 | M131: 0 | N131: 0 | O131: 33 | P131: 0 | Q131: 0
A132: 7015 | B132: STELLAR LEADERSHIP ACADEMY | C132: 101 | D132: 9 | E132: 1 | F132: 1 | G132: 0 | H132: 0 | I132: 90 | J132: 0 | K132: 89 | L132: 12 | M132: 0 | N132: 0 | O132: 71 | P132: 1 | Q132: 25
A133: 7016 | B133: SPORTS LEADERSHIP OF MIAMI CHS | C133: 13 | D133: 4 | E133: 3 | F133: 6 | G133: 0 | H133: 0 | I133: 0 | J133: 1 | K133: 0 | L133: 12 | M133: 0 | N133: 0 | O133: 10 | P133: 1 | Q133: 0
A134: 7018 | B134: MATER ACADEMY LAKES HIGH SCH | C134: 235 | D134: 31 | E134: 50 | F134: 63 | G134: 7 | H134: 4 | I134: 80 | J134: 14 | K134: 10 | L134: 210 | M134: 1 | N134: 0 | O134: 185 | P134: 26 | Q134: 11
A135: 7020 | B135: DORAL ACADEMY HIGH SCHOOL | C135: 244 | D135: 19 | E135: 69 | F135: 105 | G135: 32 | H135: 6 | I135: 13 | J135: 12 | K135: 3 | L135: 229 | M135: 0 | N135: 0 | O135: 151 | P135: 25 | Q135: 8
A136: 7022 | B136: ACADEMY OF ARTS AND MINDS | C136: 80 | D136: 12 | E136: 15 | F136: 17 | G136: 2 | H136: 1 | I136: 33 | J136: 15 | K136: 4 | L136: 61 | M136: 0 | N136: 0 | O136: 30 | P136: 8 | Q136: 5
A137: 7024 | B137: MATER ACADEMY HIGH-INTL STUDIE | C137: 20 | D137: 2 | E137: 4 | F137: 9 | G137: 4 | H137: 0 | I137: 1 | J137: 0 | K137: 3 | L137: 17 | M137: 0 | N137: 0 | O137: 16 | P137: 1 | Q137: 0
A138: 7025 | B138: MATER ACAD HIGH (MIAMI BEACH) | C138: 17 | D138: 1 | E138: 1 | F138: 7 | G138: 4 | H138: 1 | I138: 3 | J138: 1 | K138: 0 | L138: 14 | M138: 2 | N138: 0 | O138: 12 | P138: 6 | Q138: 1
A139: 7029 | B139: TERRA ENVIRONMENTAL RESEARCH | C139: 154 | D139: 5 | E139: 14 | F139: 65 | G139: 27 | H139: 8 | I139: 35 | J139: 20 | K139: 4 | L139: 130 | M139: 0 | N139: 0 | O139: 75 | P139: 3 | Q139: 10
A140: 7030 | B140: INTEGRATED ACADEMICS (SIATECH) | C140: 78 | D140: 1 | E140: 0 | F140: 0 | G140: 0 | H140: 0 | I140: 77 | J140: 2 | K140: 59 | L140: 16 | M140: 0 | N140: 0 | O140: 19 | P140: 15 | Q140: 17
A141: 7032 | B141: PALM GLADES PREP HIGH SCHOOL | C141: 81 | D141: 22 | E141: 14 | F141: 20 | G141: 10 | H141: 1 | I141: 14 | J141: 6 | K141: 15 | L141: 57 | M141: 2 | N141: 0 | O141: 57 | P141: 8 | Q141: 4
A142: 7033 | B142: LAW ENFORCEMENT OFFICERS HS | C142: 25 | D142: 3 | E142: 5 | F142: 9 | G142: 3 | H142: 1 | I142: 4 | J142: 0 | K142: 4 | L142: 21 | M142: 0 | N142: 0 | O142: 22 | P142: 0 | Q142: 1
A143: 7034 | B143: SOMERSET ACAD HIGH SOUTH-HMSTD | C143: 11 | D143: 3 | E143: 5 | F143: 3 | G143: 0 | H143: 0 | I143: 0 | J143: 2 | K143: 0 | L143: 9 | M143: 0 | N143: 0 | O143: 10 | P143: 1 | Q143: 1
A144: 7036 | B144: LAWRENCE ACADEMY SENIOR | C144: 32 | D144: 6 | E144: 7 | F144: 11 | G144: 3 | H144: 0 | I144: 5 | J144: 0 | K144: 10 | L144: 22 | M144: 0 | N144: 0 | O144: 32 | P144: 2 | Q144: 3
A145: 7037 | B145: MATER ACADEMY EAST HIGH SCHOOL | C145: 55 | D145: 13 | E145: 12 | F145: 25 | G145: 3 | H145: 1 | I145: 1 | J145: 0 | K145: 5 | L145: 50 | M145: 0 | N145: 0 | O145: 48 | P145: 14 | Q145: 2
A146: 7042 | B146: SOMERSET ACADEMY CHARTER HIGH | C146: 82 | D146: 15 | E146: 18 | F146: 28 | G146: 16 | H146: 3 | I146: 2 | J146: 7 | K146: 8 | L146: 65 | M146: 2 | N146: 0 | O146: 63 | P146: 12 | Q146: 2
A147: 7048 | B147: ALONZO & TRACY MOURNING SH | C147: 387 | D147: 70 | E147: 71 | F147: 107 | G147: 54 | H147: 29 | I147: 56 | J147: 100 | K147: 78 | L147: 203 | M147: 5 | N147: 0 | O147: 242 | P147: 65 | Q147: 34
A148: 7049 | B148: WESTLAND HIALEAH SENIOR HIGH | C148: 468 | D148: 129 | E148: 116 | F148: 138 | G148: 35 | H148: 9 | I148: 41 | J148: 10 | K148: 4 | L148: 453 | M148: 0 | N148: 0 | O148: 431 | P148: 221 | Q148: 36
A149: 7050 | B149: KEYS GATE CHARTER HIGH SCHL | C149: 239 | D149: 55 | E149: 78 | F149: 62 | G149: 9 | H149: 0 | I149: 35 | J149: 34 | K149: 38 | L149: 165 | M149: 1 | N149: 0 | O149: 142 | P149: 36 | Q149: 24
A150: 7051 | B150: G. HOLMES BRADDOCK SENIOR HIGH | C150: 689 | D150: 162 | E150: 200 | F150: 191 | G150: 52 | H150: 11 | I150: 73 | J150: 27 | K150: 9 | L150: 650 | M150: 2 | N150: 0 | O150: 568 | P150: 156 | Q150: 101
A151: 7053 | B151: PINECREST ACADEMY CHARTER HIGH | C151: 96 | D151: 26 | E151: 31 | F151: 32 | G151: 3 | H151: 0 | I151: 4 | J151: 6 | K151: 0 | L151: 89 | M151: 1 | N151: 0 | O151: 62 | P151: 5 | Q151: 6
A152: 7054 | B152: EXCELSIOR CHARTER HIGH SCHOOL | C152: 51 | D152: 15 | E152: 10 | F152: 14 | G152: 7 | H152: 0 | I152: 5 | J152: 1 | K152: 0 | L152: 50 | M152: 0 | N152: 0 | O152: 38 | P152: 23 | Q152: 3
A153: 7055 | B153: YOUNG WOMEN'S PREPARATORY ACAD | C153: 75 | D153: 1 | E153: 12 | F153: 21 | G153: 24 | H153: 16 | I153: 1 | J153: 9 | K153: 16 | L153: 50 | M153: 0 | N153: 0 | O153: 47 | P153: 2 | Q153: 1
A154: 7056 | B154: YOUNG MENS PREPARATORY ACADEMY | C154: 24 | D154: 3 | E154: 12 | F154: 5 | G154: 1 | H154: 1 | I154: 2 | J154: 1 | K154: 20 | L154: 3 | M154: 0 | N154: 0 | O154: 19 | P154: 0 | Q154: 1
A155: 7058 | B155: MIAMI COMMUNITY CH HIGH SCHOOL | C155: 39 | D155: 15 | E155: 3 | F155: 5 | G155: 0 | H155: 1 | I155: 15 | J155: 5 | K155: 6 | L155: 28 | M155: 0 | N155: 0 | O155: 37 | P155: 14 | Q155: 6
A156: 7059 | B156: MIAMI ARTS CHARTER | C156: 119 | D156: 18 | E156: 19 | F156: 38 | G156: 19 | H156: 9 | I156: 16 | J156: 31 | K156: 27 | L156: 59 | M156: 0 | N156: 0 | O156: 24 | P156: 0 | Q156: 4
A157: 7060 | B157: EVERGLADES PREP ACADEMY HIGH | C157: 118 | D157: 25 | E157: 37 | F157: 28 | G157: 7 | H157: 0 | I157: 21 | J157: 17 | K157: 13 | L157: 86 | M157: 0 | N157: 1 | O157: 95 | P157: 16 | Q157: 18
A158: 7062 | B158: MAVERICKS HIGH OF NORTH M-DADE | C158: 83 | D158: 0 | E158: 0 | F158: 0 | G158: 0 | H158: 0 | I158: 83 | J158: 1 | K158: 68 | L158: 14 | M158: 0 | N158: 0 | O158: 41 | P158: 0 | Q158: 13
A159: 7065 | B159: MAVERICKS HIGH OF SOUTH M-DADE | C159: 145 | D159: 10 | E159: 4 | F159: 2 | G159: 0 | H159: 0 | I159: 129 | J159: 10 | K159: 73 | L159: 60 | M159: 1 | N159: 0 | O159: 141 | P159: 2 | Q159: 28
A160: 7066 | B160: LBA CONSTR & BUS MGMT ACAD | C160: 35 | D160: 9 | E160: 8 | F160: 11 | G160: 2 | H160: 0 | I160: 5 | J160: 1 | K160: 1 | L160: 33 | M160: 0 | N160: 0 | O160: 33 | P160: 9 | Q160: 2
A161: 7067 | B161: GREEN SPRINGS HIGH SCHOOL | C161: 77 | D161: 0 | E161: 2 | F161: 1 | G161: 0 | H161: 0 | I161: 74 | J161: 3 | K161: 11 | L161: 63 | M161: 0 | N161: 0 | O161: 59 | P161: 14 | Q161: 6
A162: 7068 | B162: NORTH GARDENS HIGH SCHOOL | C162: 86 | D162: 2 | E162: 2 | F162: 0 | G162: 0 | H162: 0 | I162: 82 | J162: 0 | K162: 58 | L162: 28 | M162: 0 | N162: 0 | O162: 47 | P162: 3 | Q162: 7
A163: 7069 | B163: NORTH PARK HIGH SCHOOL | C163: 122 | D163: 6 | E163: 3 | F163: 0 | G163: 0 | H163: 0 | I163: 113 | J163: 0 | K163: 90 | L163: 32 | M163: 0 | N163: 0 | O163: 82 | P163: 13 | Q163: 16
A164: 7070 | B164: YOUTH CO-OP PREP HIGH SCHOOL | C164: 59 | D164: 12 | E164: 18 | F164: 14 | G164: 6 | H164: 0 | I164: 9 | J164: 2 | K164: 2 | L164: 55 | M164: 0 | N164: 0 | O164: 48 | P164: 17 | Q164: 4
A165: 7071 | B165: CORAL GABLES SENIOR HIGH | C165: 624 | D165: 149 | E165: 133 | F165: 145 | G165: 39 | H165: 4 | I165: 154 | J165: 39 | K165: 47 | L165: 537 | M165: 1 | N165: 0 | O165: 517 | P165: 166 | Q165: 90
A166: 7080 | B166: CHARTER HS OF THE AMERICAS | C166: 27 | D166: 9 | E166: 2 | F166: 9 | G166: 1 | H166: 3 | I166: 3 | J166: 0 | K166: 0 | L166: 27 | M166: 0 | N166: 0 | O166: 16 | P166: 25 | Q166: 0
A167: 7081 | B167: DESIGN & ARCHITECTURE SENIOR | C167: 56 | D167: 1 | E167: 3 | F167: 23 | G167: 21 | H167: 2 | I167: 6 | J167: 13 | K167: 6 | L167: 35 | M167: 2 | N167: 0 | O167: 24 | P167: 4 | Q167: 3
A168: 7101 | B168: CORAL REEF SENIOR HIGH | C168: 329 | D168: 39 | E168: 58 | F168: 135 | G168: 69 | H168: 13 | I168: 15 | J168: 64 | K168: 60 | L168: 201 | M168: 3 | N168: 0 | O168: 161 | P168: 7 | Q168: 29
A169: 7111 | B169: HIALEAH SENIOR | C169: 607 | D169: 193 | E169: 147 | F169: 138 | G169: 21 | H169: 3 | I169: 105 | J169: 6 | K169: 22 | L169: 579 | M169: 0 | N169: 0 | O169: 547 | P169: 196 | Q169: 99
A170: 7121 | B170: JOHN A FERGUSON SENIOR HIGH | C170: 745 | D170: 150 | E170: 176 | F170: 228 | G170: 75 | H170: 10 | I170: 106 | J170: 45 | K170: 14 | L170: 675 | M170: 8 | N170: 3 | O170: 505 | P170: 105 | Q170: 102
A171: 7131 | B171: HIALEAH-MIAMI LAKES SENIOR | C171: 361 | D171: 122 | E171: 88 | F171: 88 | G171: 20 | H171: 2 | I171: 41 | J171: 16 | K171: 84 | L171: 257 | M171: 1 | N171: 2 | O171: 320 | P171: 88 | Q171: 52
A172: 7141 | B172: DR MICHAEL M KROP SENIOR HIGH | C172: 505 | D172: 88 | E172: 104 | F172: 156 | G172: 39 | H172: 6 | I172: 112 | J172: 93 | K172: 242 | L172: 160 | M172: 6 | N172: 1 | O172: 333 | P172: 48 | Q172: 36
A173: 7151 | B173: HOMESTEAD SENIOR HIGH | C173: 411 | D173: 138 | E173: 98 | F173: 88 | G173: 11 | H173: 2 | I173: 74 | J173: 12 | K173: 196 | L173: 200 | M173: 0 | N173: 1 | O173: 374 | P173: 33 | Q173: 80
A174: 7160 | B174: MATER ACADEMY CHARTER HIGH | C174: 284 | D174: 28 | E174: 49 | F174: 131 | G174: 48 | H174: 6 | I174: 22 | J174: 5 | K174: 10 | L174: 269 | M174: 0 | N174: 0 | O174: 236 | P174: 39 | Q174: 22
A175: 7161 | B175: MARTIME & SCIENCE TECH ACADEMY | C175: 74 | D175: 4 | E175: 11 | F175: 17 | G175: 25 | H175: 10 | I175: 7 | J175: 15 | K175: 10 | L175: 49 | M175: 0 | N175: 0 | O175: 22 | P175: 9 | Q175: 1
A176: 7191 | B176: HIALEAH GARDENS SENIOR | C176: 650 | D176: 158 | E176: 172 | F176: 215 | G176: 40 | H176: 3 | I176: 62 | J176: 10 | K176: 5 | L176: 634 | M176: 1 | N176: 0 | O176: 565 | P176: 192 | Q176: 59
A177: 7201 | B177: MIAMI BEACH SENIOR HIGH | C177: 448 | D177: 100 | E177: 99 | F177: 134 | G177: 30 | H177: 5 | I177: 80 | J177: 66 | K177: 35 | L177: 342 | M177: 4 | N177: 0 | O177: 381 | P177: 89 | Q177: 56
A178: 7231 | B178: MIAMI CAROL CITY SENIOR HIGH | C178: 403 | D178: 153 | E178: 103 | F178: 76 | G178: 15 | H178: 3 | I178: 53 | J178: 4 | K178: 346 | L178: 51 | M178: 0 | N178: 1 | O178: 357 | P178: 15 | Q178: 55
A179: 7241 | B179: RONALD W REAGAN/DORAL SENIOR | C179: 355 | D179: 55 | E179: 77 | F179: 123 | G179: 46 | H179: 10 | I179: 44 | J179: 26 | K179: 6 | L179: 318 | M179: 3 | N179: 0 | O179: 176 | P179: 114 | Q179: 20
A180: 7251 | B180: MIAMI CENTRAL SENIOR HIGH | C180: 462 | D180: 181 | E180: 120 | F180: 102 | G180: 10 | H180: 0 | I180: 49 | J180: 4 | K180: 357 | L180: 100 | M180: 1 | N180: 0 | O180: 420 | P180: 45 | Q180: 73
A181: 7262 | B181: CITY OF HIALEAH EDUCATION ACAD | C181: 91 | D181: 20 | E181: 21 | F181: 20 | G181: 8 | H181: 1 | I181: 21 | J181: 2 | K181: 3 | L181: 85 | M181: 1 | N181: 0 | O181: 79 | P181: 17 | Q181: 9
A182: 7271 | B182: MIAMI CORAL PARK SENIOR HIGH | C182: 565 | D182: 145 | E182: 127 | F182: 162 | G182: 45 | H182: 14 | I182: 72 | J182: 11 | K182: 3 | L182: 550 | M182: 1 | N182: 0 | O182: 476 | P182: 186 | Q182: 76
A183: 7291 | B183: JOSE MARTI MAST 6-12 ACADEMY | C183: 58 | D183: 1 | E183: 1 | F183: 23 | G183: 13 | H183: 17 | I183: 3 | J183: 2 | K183: 5 | L183: 50 | M183: 1 | N183: 0 | O183: 46 | P183: 7 | Q183: 0
A184: 7301 | B184: MIAMI EDISON SENIOR HIGH | C184: 220 | D184: 79 | E184: 53 | F184: 33 | G184: 6 | H184: 0 | I184: 49 | J184: 1 | K184: 188 | L184: 30 | M184: 1 | N184: 0 | O184: 201 | P184: 80 | Q184: 31
A185: 7341 | B185: MIAMI JACKSON SENIOR HIGH | C185: 395 | D185: 155 | E185: 99 | F185: 68 | G185: 13 | H185: 0 | I185: 60 | J185: 3 | K185: 138 | L185: 252 | M185: 2 | N185: 0 | O185: 377 | P185: 79 | Q185: 59
A186: 7351 | B186: ARTHUR AND POLLY MAYS CONSERVA | C186: 83 | D186: 19 | E186: 25 | F186: 25 | G186: 10 | H186: 2 | I186: 2 | J186: 3 | K186: 30 | L186: 48 | M186: 1 | N186: 1 | O186: 76 | P186: 6 | Q186: 10
A187: 7361 | B187: MIAMI KILLIAN SENIOR HIGH | C187: 443 | D187: 110 | E187: 116 | F187: 125 | G187: 39 | H187: 9 | I187: 44 | J187: 56 | K187: 98 | L187: 283 | M187: 4 | N187: 1 | O187: 291 | P187: 62 | Q187: 82
A188: 7371 | B188: ROBERT MORGAN EDUCATIONAL CTR | C188: 394 | D188: 51 | E188: 113 | F188: 165 | G188: 47 | H188: 9 | I188: 9 | J188: 34 | K188: 82 | L188: 273 | M188: 2 | N188: 2 | O188: 278 | P188: 34 | Q188: 40
A189: 7381 | B189: MIAMI NORLAND SENIOR HIGH | C189: 436 | D189: 130 | E189: 132 | F189: 112 | G189: 13 | H189: 1 | I189: 48 | J189: 1 | K189: 413 | L189: 19 | M189: 3 | N189: 0 | O189: 369 | P189: 21 | Q189: 42
A190: 7391 | B190: MIAMI LAKES EDUCATIONAL CENTER | C190: 278 | D190: 35 | E190: 58 | F190: 103 | G190: 43 | H190: 10 | I190: 29 | J190: 9 | K190: 86 | L190: 177 | M190: 4 | N190: 0 | O190: 217 | P190: 28 | Q190: 41
A191: 7411 | B191: MIAMI NORTHWESTERN SENIOR HIGH | C191: 385 | D191: 134 | E191: 112 | F191: 70 | G191: 13 | H191: 0 | I191: 56 | J191: 0 | K191: 359 | L191: 24 | M191: 1 | N191: 0 | O191: 343 | P191: 17 | Q191: 57
A192: 7431 | B192: MIAMI PALMETTO SENIOR HIGH | C192: 447 | D192: 73 | E192: 93 | F192: 155 | G192: 60 | H192: 14 | I192: 52 | J192: 127 | K192: 116 | L192: 195 | M192: 4 | N192: 1 | O192: 206 | P192: 39 | Q192: 60
A193: 7461 | B193: MIAMI SENIOR HIGH | C193: 644 | D193: 245 | E193: 166 | F193: 113 | G193: 22 | H193: 5 | I193: 93 | J193: 9 | K193: 22 | L193: 611 | M193: 2 | N193: 0 | O193: 613 | P193: 191 | Q193: 75
A194: 7511 | B194: MIAMI SPRINGS SENIOR HIGH | C194: 383 | D194: 107 | E194: 80 | F194: 114 | G194: 18 | H194: 0 | I194: 64 | J194: 21 | K194: 61 | L194: 298 | M194: 3 | N194: 0 | O194: 323 | P194: 109 | Q194: 25
A195: 7531 | B195: MIAMI SUNSET SENIOR HIGH | C195: 361 | D195: 77 | E195: 97 | F195: 115 | G195: 28 | H195: 1 | I195: 43 | J195: 34 | K195: 19 | L195: 304 | M195: 4 | N195: 0 | O195: 277 | P195: 57 | Q195: 72
A196: 7541 | B196: NORTH MIAMI BEACH SENIOR HIGH | C196: 398 | D196: 125 | E196: 123 | F196: 85 | G196: 11 | H196: 1 | I196: 53 | J196: 12 | K196: 304 | L196: 73 | M196: 8 | N196: 0 | O196: 336 | P196: 80 | Q196: 48
A197: 7571 | B197: INTL STUDIES PREP ACADEMY | C197: 39 | D197: 1 | E197: 7 | F197: 16 | G197: 5 | H197: 0 | I197: 10 | J197: 5 | K197: 1 | L197: 32 | M197: 0 | N197: 0 | O197: 26 | P197: 13 | Q197: 1
A198: 7591 | B198: NORTH MIAMI SENIOR HIGH | C198: 576 | D198: 177 | E198: 151 | F198: 118 | G198: 29 | H198: 0 | I198: 101 | J198: 3 | K198: 505 | L198: 62 | M198: 3 | N198: 2 | O198: 509 | P198: 164 | Q198: 48
A199: 7601 | B199: WILLIAM H. TURNER TECHNICAL | C199: 247 | D199: 26 | E199: 63 | F199: 111 | G199: 19 | H199: 4 | I199: 24 | J199: 0 | K199: 206 | L199: 37 | M199: 1 | N199: 2 | O199: 219 | P199: 31 | Q199: 8
A200: 7631 | B200: MIAMI MACARTHUR SOUTH | C200: 9 | D200: 3 | E200: 3 | F200: 0 | G200: 0 | H200: 0 | I200: 3 | J200: 0 | K200: 5 | L200: 4 | M200: 0 | N200: 0 | O200: 7 | P200: 0 | Q200: 1
... 19 more rows

Sheet Geo Enrollment (hidden)
A1: 1 | B1: 2 | C1: 3 | D1: 4 | E1: 5 | F1: 6 | G1: 7 | H1: 8 | I1: 9 | J1: 10 | K1: 11 | L1: 12 | M1: 13 | N1: 14 | O1: 15 | P1: 16 | Q1: 17
A2: School | B2: SchName | C2: Total | D2: ML1 | E2: ML2 | F2: ML3 | G2: ML4 | H2: ML5 | I2: ML0 | J2: W | K2: B | L2: H | M2: A | N2: I | O2: ED | P2: ELL | Q2: SWD
A3: 0071 | B3: EUGENIA B. THOMAS K-8 CENTER | C3: 23 | D3: 0 | E3: 0 | F3: 1 | G3: 11 | H3: 11 | I3: 0 | J3: 2 | K3: 0 | L3: 21 | M3: 0 | N3: 0 | O3: 6 | P3: 1 | Q3: 0
A4: 0092 | B4: NORMAN S. EDELCUP/SUNNY ISLES | C4: 10 | D4: 0 | E4: 0 | F4: 0 | G4: 0 | H4: 10 | I4: 0 | J4: 5 | K4: 0 | L4: 3 | M4: 2 | N4: 0 | O4: 2 | P4: 0 | Q4: 0
A5: 0122 | B5: DR ROLANDO ESPINOSA K-8 | C5: 11 | D5: 0 | E5: 0 | F5: 0 | G5: 3 | H5: 8 | I5: 0 | J5: 1 | K5: 0 | L5: 10 | M5: 0 | N5: 0 | O5: 2 | P5: 0 | Q5: 0
A6: 0231 | B6: AVENTURA WATERWAYS K-8 CENTER | C6: 21 | D6: 0 | E6: 0 | F6: 1 | G6: 3 | H6: 16 | I6: 1 | J6: 9 | K6: 2 | L6: 7 | M6: 3 | N6: 0 | O6: 6 | P6: 2 | Q6: 0
A7: 0241 | B7: RUTH K BROAD/BAY HARBOR K-8 | C7: 8 | D7: 0 | E7: 0 | F7: 0 | G7: 4 | H7: 4 | I7: 0 | J7: 3 | K7: 0 | L7: 5 | M7: 0 | N7: 0 | O7: 2 | P7: 1 | Q7: 0
A8: 0332 | B8: SOMERSET ACADEMY(SILVER PALMS) | C8: 2 | D8: 0 | E8: 0 | F8: 0 | G8: 1 | H8: 0 | I8: 1 | J8: 1 | K8: 0 | L8: 1 | M8: 0 | N8: 0 | O8: 1 | P8: 0 | Q8: 0
A9: 0950 | B9: AVENTURA CITY OF EXCELLENCE | C9: 16 | D9: 0 | E9: 0 | F9: 0 | G9: 1 | H9: 14 | I9: 1 | J9: 8 | K9: 0 | L9: 7 | M9: 1 | N9: 0 | O9: 0 | P9: 0 | Q9: 0
A10: 0961 | B10: CORAL GABLES PREPARATORY ACAD | C10: 12 | D10: 0 | E10: 0 | F10: 1 | G10: 7 | H10: 4 | I10: 0 | J10: 1 | K10: 0 | L10: 10 | M10: 1 | N10: 0 | O10: 5 | P10: 1 | Q10: 1
A11: 1020 | B11: YOUTH CO-OP CHARTER SCHOOL | C11: 19 | D11: 0 | E11: 1 | F11: 7 | G11: 8 | H11: 3 | I11: 0 | J11: 1 | K11: 1 | L11: 17 | M11: 0 | N11: 0 | O11: 14 | P11: 0 | Q11: 0
A12: 1331 | B12: DEVON AIRE K-8 CENTER | C12: 15 | D12: 0 | E12: 0 | F12: 1 | G12: 1 | H12: 13 | I12: 0 | J12: 3 | K12: 0 | L12: 11 | M12: 1 | N12: 0 | O12: 6 | P12: 0 | Q12: 0
A13: 1721 | B13: EVERGLADES K-8 CENTER | C13: 35 | D13: 0 | E13: 0 | F13: 6 | G13: 14 | H13: 15 | I13: 0 | J13: 1 | K13: 0 | L13: 33 | M13: 1 | N13: 0 | O13: 19 | P13: 1 | Q13: 1
A14: 2741 | B14: KEY BISCAYNE K-8 CENTER | C14: 4 | D14: 0 | E14: 0 | F14: 1 | G14: 1 | H14: 2 | I14: 0 | J14: 1 | K14: 0 | L14: 3 | M14: 0 | N14: 0 | O14: 0 | P14: 0 | Q14: 0
A15: 3029 | B15: DORAL ACADEMY OF TECHNOLOGY | C15: 38 | D15: 0 | E15: 0 | F15: 3 | G15: 17 | H15: 18 | I15: 0 | J15: 4 | K15: 0 | L15: 31 | M15: 3 | N15: 0 | O15: 14 | P15: 0 | Q15: 0
A16: 3032 | B16: PALM GLADES PREPATORY ACADEMY | C16: 1 | D16: 0 | E16: 0 | F16: 0 | G16: 0 | H16: 0 | I16: 1 | J16: 0 | K16: 0 | L16: 1 | M16: 0 | N16: 0 | O16: 0 | P16: 0 | Q16: 0
A17: 3101 | B17: FRANK C. MARTIN K-8 CENTER | C17: 40 | D17: 0 | E17: 0 | F17: 7 | G17: 19 | H17: 14 | I17: 0 | J17: 8 | K17: 14 | L17: 13 | M17: 4 | N17: 1 | O17: 11 | P17: 0 | Q17: 1
A18: 3191 | B18: ADA MERRITT K-8 CENTER | C18: 20 | D18: 0 | E18: 0 | F18: 0 | G18: 8 | H18: 12 | I18: 0 | J18: 9 | K18: 1 | L18: 9 | M18: 0 | N18: 0 | O18: 6 | P18: 0 | Q18: 0
A19: 3281 | B19: MIAMI LAKES K-8 CENTER | C19: 33 | D19: 0 | E19: 0 | F19: 0 | G19: 16 | H19: 17 | I19: 0 | J19: 2 | K19: 0 | L19: 30 | M19: 1 | N19: 0 | O19: 12 | P19: 0 | Q19: 0
A20: 3421 | B20: M.A. MILAM K-8 CENTER | C20: 12 | D20: 0 | E20: 0 | F20: 0 | G20: 4 | H20: 8 | I20: 0 | J20: 0 | K20: 0 | L20: 12 | M20: 0 | N20: 0 | O20: 9 | P20: 0 | Q20: 0
A21: 5003 | B21: SOUTH DADE MIDDLE SCHOOL | C21: 9 | D21: 0 | E21: 0 | F21: 2 | G21: 4 | H21: 3 | I21: 0 | J21: 2 | K21: 0 | L21: 7 | M21: 0 | N21: 0 | O21: 9 | P21: 0 | Q21: 0
A22: 5005 | B22: DAVID LAWRENCE JR K-8 CENTER | C22: 15 | D22: 0 | E22: 0 | F22: 0 | G22: 1 | H22: 14 | I22: 0 | J22: 7 | K22: 2 | L22: 5 | M22: 1 | N22: 0 | O22: 6 | P22: 1 | Q22: 0
A23: 5006 | B23: EVERGLADES PREPARATORY ACADEMY | C23: 18 | D23: 1 | E23: 3 | F23: 5 | G23: 6 | H23: 3 | I23: 0 | J23: 1 | K23: 0 | L23: 17 | M23: 0 | N23: 0 | O23: 16 | P23: 2 | Q23: 1
A24: 5961 | B24: WINSTON PARK K-8 CENTER | C24: 12 | D24: 0 | E24: 0 | F24: 2 | G24: 7 | H24: 3 | I24: 0 | J24: 0 | K24: 0 | L24: 12 | M24: 0 | N24: 0 | O24: 6 | P24: 0 | Q24: 1
A25: 6001 | B25: HERBERT A. AMMONS MIDDLE | C25: 98 | D25: 0 | E25: 0 | F25: 8 | G25: 42 | H25: 46 | I25: 2 | J25: 20 | K25: 12 | L25: 55 | M25: 8 | N25: 0 | O25: 39 | P25: 1 | Q25: 0
A26: 6006 | B26: ARCHIMEDEAN CONSERVATORY | C26: 79 | D26: 1 | E26: 5 | F26: 18 | G26: 19 | H26: 34 | I26: 2 | J26: 15 | K26: 1 | L26: 62 | M26: 1 | N26: 0 | O26: 39 | P26: 2 | Q26: 3
A27: 6010 | B27: FLORIDA INTERNATIONAL ACADEMY | C27: 15 | D27: 0 | E27: 0 | F27: 2 | G27: 11 | H27: 2 | I27: 0 | J27: 0 | K27: 14 | L27: 1 | M27: 0 | N27: 0 | O27: 14 | P27: 0 | Q27: 0
A28: 6012 | B28: MATER ACADEMY CHARTER MIDDLE | C28: 46 | D28: 0 | E28: 0 | F28: 0 | G28: 10 | H28: 36 | I28: 0 | J28: 1 | K28: 0 | L28: 44 | M28: 1 | N28: 0 | O28: 33 | P28: 4 | Q28: 1
A29: 6021 | B29: ARVIDA MIDDLE SCHOOL | C29: 39 | D29: 0 | E29: 0 | F29: 0 | G29: 11 | H29: 28 | I29: 0 | J29: 10 | K29: 2 | L29: 23 | M29: 4 | N29: 0 | O29: 17 | P29: 0 | Q29: 0
A30: 6022 | B30: PINECREST ACADEMY CHARTER MIDD | C30: 21 | D30: 0 | E30: 0 | F30: 2 | G30: 11 | H30: 8 | I30: 0 | J30: 2 | K30: 0 | L30: 19 | M30: 0 | N30: 0 | O30: 13 | P30: 0 | Q30: 0
A31: 6030 | B31: DORAL ACADEMY CHARTER MIDDLE | C31: 30 | D31: 0 | E31: 0 | F31: 5 | G31: 13 | H31: 11 | I31: 1 | J31: 4 | K31: 0 | L31: 26 | M31: 0 | N31: 0 | O31: 14 | P31: 0 | Q31: 0
A32: 6033 | B32: MATER ACADEMY LAKES MIDDLE | C32: 8 | D32: 0 | E32: 1 | F32: 2 | G32: 2 | H32: 3 | I32: 0 | J32: 0 | K32: 0 | L32: 8 | M32: 0 | N32: 0 | O32: 6 | P32: 0 | Q32: 0
A33: 6040 | B33: DOCTORS CHARTER/MIAMI SHORES | C33: 72 | D33: 0 | E33: 0 | F33: 6 | G33: 6 | H33: 3 | I33: 57 | J33: 11 | K33: 39 | L33: 19 | M33: 3 | N33: 0 | O33: 14 | P33: 1 | Q33: 3
A34: 6045 | B34: INTL. STUDIES CHARTER MIDDLE | C34: 1 | D34: 0 | E34: 0 | F34: 0 | G34: 0 | H34: 1 | I34: 0 | J34: 0 | K34: 0 | L34: 1 | M34: 0 | N34: 0 | O34: 0 | P34: 0 | Q34: 0
A35: 6052 | B35: ZELDA GLAZER MIDDLE SCHOOL | C35: 114 | D35: 0 | E35: 0 | F35: 30 | G35: 49 | H35: 34 | I35: 1 | J35: 4 | K35: 1 | L35: 106 | M35: 3 | N35: 0 | O35: 63 | P35: 1 | Q35: 1
A36: 6060 | B36: ASPIRA SOUTH YOUTH LEADERSHIP | C36: 23 | D36: 0 | E36: 1 | F36: 9 | G36: 11 | H36: 2 | I36: 0 | J36: 0 | K36: 0 | L36: 23 | M36: 0 | N36: 0 | O36: 19 | P36: 0 | Q36: 0
A37: 6071 | B37: GEORGE WASHINGTON CARVER | C37: 36 | D37: 0 | E37: 0 | F37: 3 | G37: 4 | H37: 29 | I37: 0 | J37: 17 | K37: 2 | L37: 15 | M37: 2 | N37: 0 | O37: 5 | P37: 0 | Q37: 0
A38: 6081 | B38: CENTENNIAL MIDDLE | C38: 24 | D38: 0 | E38: 2 | F38: 3 | G38: 14 | H38: 3 | I38: 2 | J38: 9 | K38: 6 | L38: 8 | M38: 0 | N38: 1 | O38: 22 | P38: 2 | Q38: 1
A39: 6111 | B39: CUTLER RIDGE MIDDLE | C39: 17 | D39: 0 | E39: 0 | F39: 9 | G39: 5 | H39: 3 | I39: 0 | J39: 3 | K39: 6 | L39: 8 | M39: 0 | N39: 0 | O39: 14 | P39: 0 | Q39: 1
A40: 6151 | B40: DORAL MIDDLE SCHOOL | C40: 30 | D40: 0 | E40: 0 | F40: 7 | G40: 10 | H40: 12 | I40: 1 | J40: 5 | K40: 2 | L40: 22 | M40: 1 | N40: 0 | O40: 13 | P40: 2 | Q40: 2
A41: 6161 | B41: LAWTON CHILES MIDDLE SCHOOL | C41: 2 | D41: 0 | E41: 0 | F41: 1 | G41: 1 | H41: 0 | I41: 0 | J41: 0 | K41: 0 | L41: 2 | M41: 0 | N41: 0 | O41: 2 | P41: 0 | Q41: 0
A42: 6211 | B42: GLADES MIDDLE | C42: 43 | D42: 0 | E42: 0 | F42: 5 | G42: 20 | H42: 18 | I42: 0 | J42: 6 | K42: 0 | L42: 34 | M42: 1 | N42: 0 | O42: 23 | P42: 0 | Q42: 2
A43: 6231 | B43: HIALEAH MIDDLE | C43: 31 | D43: 1 | E43: 2 | F43: 7 | G43: 19 | H43: 2 | I43: 0 | J43: 1 | K43: 1 | L43: 29 | M43: 0 | N43: 0 | O43: 27 | P43: 0 | Q43: 0
A44: 6241 | B44: HIGHLAND OAKS MIDDLE | C44: 44 | D44: 0 | E44: 1 | F44: 7 | G44: 18 | H44: 18 | I44: 0 | J44: 25 | K44: 5 | L44: 11 | M44: 2 | N44: 0 | O44: 17 | P44: 0 | Q44: 0
A45: 6301 | B45: JOHN F. KENNEDY MIDDLE | C45: 55 | D45: 0 | E45: 0 | F45: 5 | G45: 22 | H45: 27 | I45: 1 | J45: 1 | K45: 37 | L45: 15 | M45: 1 | N45: 1 | O45: 51 | P45: 0 | Q45: 0
A46: 6411 | B46: HORACE MANN MIDDLE | C46: 21 | D46: 0 | E46: 1 | F46: 9 | G46: 10 | H46: 1 | I46: 0 | J46: 2 | K46: 17 | L46: 2 | M46: 0 | N46: 0 | O46: 20 | P46: 0 | Q46: 1
A47: 6431 | B47: MAYS MIDDLE | C47: 3 | D47: 0 | E47: 0 | F47: 1 | G47: 2 | H47: 0 | I47: 0 | J47: 0 | K47: 2 | L47: 1 | M47: 0 | N47: 0 | O47: 1 | P47: 0 | Q47: 0
A48: 6441 | B48: HOWARD D. MCMILLAN MIDDLE | C48: 49 | D48: 0 | E48: 0 | F48: 6 | G48: 29 | H48: 14 | I48: 0 | J48: 1 | K48: 0 | L48: 45 | M48: 3 | N48: 0 | O48: 38 | P48: 2 | Q48: 2
A49: 6501 | B49: MIAMI LAKES MIDDLE | C49: 31 | D49: 0 | E49: 0 | F49: 3 | G49: 8 | H49: 20 | I49: 0 | J49: 0 | K49: 4 | L49: 25 | M49: 1 | N49: 0 | O49: 19 | P49: 0 | Q49: 0
A50: 6521 | B50: MIAMI SPRINGS MIDDLE | C50: 25 | D50: 0 | E50: 0 | F50: 3 | G50: 10 | H50: 12 | I50: 0 | J50: 3 | K50: 1 | L50: 20 | M50: 0 | N50: 0 | O50: 18 | P50: 0 | Q50: 0
A51: 6541 | B51: NAUTILUS MIDDLE | C51: 52 | D51: 0 | E51: 0 | F51: 6 | G51: 17 | H51: 26 | I51: 3 | J51: 34 | K51: 1 | L51: 16 | M51: 1 | N51: 0 | O51: 13 | P51: 1 | Q51: 0
A52: 6591 | B52: NORTH DADE MIDDLE | C52: 9 | D52: 0 | E52: 1 | F52: 3 | G52: 2 | H52: 3 | I52: 0 | J52: 0 | K52: 8 | L52: 1 | M52: 0 | N52: 0 | O52: 7 | P52: 0 | Q52: 0
A53: 6611 | B53: COUNTRY CLUB MIDDLE SCHOOL | C53: 20 | D53: 0 | E53: 0 | F53: 3 | G53: 7 | H53: 9 | I53: 1 | J53: 1 | K53: 2 | L53: 16 | M53: 1 | N53: 0 | O53: 15 | P53: 0 | Q53: 0
A54: 6701 | B54: PALMETTO MIDDLE | C54: 20 | D54: 0 | E54: 0 | F54: 1 | G54: 4 | H54: 15 | I54: 0 | J54: 7 | K54: 0 | L54: 6 | M54: 6 | N54: 0 | O54: 0 | P54: 0 | Q54: 0
A55: 6741 | B55: PONCE DE LEON MIDDLE | C55: 20 | D55: 0 | E55: 0 | F55: 1 | G55: 6 | H55: 11 | I55: 2 | J55: 7 | K55: 1 | L55: 10 | M55: 2 | N55: 0 | O55: 8 | P55: 0 | Q55: 0
A56: 6751 | B56: HIALEAH GARDENS MIDDLE SCHOOL | C56: 217 | D56: 1 | E56: 13 | F56: 68 | G56: 82 | H56: 53 | I56: 0 | J56: 6 | K56: 2 | L56: 206 | M56: 3 | N56: 0 | O56: 179 | P56: 7 | Q56: 1
A57: 6761 | B57: REDLAND MIDDLE | C57: 27 | D57: 0 | E57: 1 | F57: 17 | G57: 7 | H57: 2 | I57: 0 | J57: 7 | K57: 4 | L57: 16 | M57: 0 | N57: 0 | O57: 21 | P57: 2 | Q57: 1
A58: 6771 | B58: JORGE MAS CANOSA MIDDLE | C58: 55 | D58: 0 | E58: 1 | F58: 7 | G58: 23 | H58: 23 | I58: 1 | J58: 9 | K58: 2 | L58: 41 | M58: 2 | N58: 0 | O58: 38 | P58: 1 | Q58: 1
A59: 6781 | B59: RICHMOND HEIGHTS MIDDLE | C59: 10 | D59: 0 | E59: 0 | F59: 0 | G59: 4 | H59: 6 | I59: 0 | J59: 1 | K59: 3 | L59: 6 | M59: 0 | N59: 0 | O59: 8 | P59: 0 | Q59: 1
A60: 6801 | B60: RIVIERA MIDDLE | C60: 21 | D60: 0 | E60: 0 | F60: 3 | G60: 12 | H60: 6 | I60: 0 | J60: 3 | K60: 0 | L60: 16 | M60: 2 | N60: 0 | O60: 14 | P60: 0 | Q60: 1
A61: 6821 | B61: ROCKWAY MIDDLE | C61: 21 | D61: 0 | E61: 0 | F61: 0 | G61: 5 | H61: 16 | I61: 0 | J61: 1 | K61: 0 | L61: 20 | M61: 0 | N61: 0 | O61: 7 | P61: 0 | Q61: 0
A62: 6841 | B62: SHENANDOAH MIDDLE | C62: 44 | D62: 0 | E62: 0 | F62: 4 | G62: 30 | H62: 10 | I62: 0 | J62: 2 | K62: 0 | L62: 42 | M62: 0 | N62: 0 | O62: 34 | P62: 4 | Q62: 0
A63: 6861 | B63: SOUTHWOOD MIDDLE | C63: 32 | D63: 0 | E63: 0 | F63: 0 | G63: 4 | H63: 27 | I63: 1 | J63: 10 | K63: 0 | L63: 15 | M63: 7 | N63: 0 | O63: 2 | P63: 0 | Q63: 1
A64: 6901 | B64: W. R. THOMAS MIDDLE | C64: 54 | D64: 0 | E64: 0 | F64: 13 | G64: 26 | H64: 15 | I64: 0 | J64: 2 | K64: 0 | L64: 51 | M64: 0 | N64: 1 | O64: 39 | P64: 1 | Q64: 0
A65: 6921 | B65: LAMAR LOUISE CURRY MIDDLE SCH | C65: 21 | D65: 0 | E65: 0 | F65: 0 | G65: 3 | H65: 18 | I65: 0 | J65: 3 | K65: 1 | L65: 15 | M65: 1 | N65: 1 | O65: 8 | P65: 0 | Q65: 0
A66: 7001 | B66: MIAMI-DADE ONLINE ACADEMY | C66: 30 | D66: 1 | E66: 0 | F66: 2 | G66: 2 | H66: 2 | I66: 23 | J66: 4 | K66: 7 | L66: 19 | M66: 0 | N66: 0 | O66: 19 | P66: 0 | Q66: 0
A67: 7007 | B67: INTL. STUDIES CHARTER SENIOR | C67: 96 | D67: 1 | E67: 0 | F67: 11 | G67: 6 | H67: 7 | I67: 71 | J67: 25 | K67: 1 | L67: 70 | M67: 0 | N67: 0 | O67: 57 | P67: 33 | Q67: 2
A68: 7009 | B68: DORAL PERFORMING ARTS ACADEMY | C68: 88 | D68: 0 | E68: 4 | F68: 15 | G68: 17 | H68: 10 | I68: 42 | J68: 10 | K68: 1 | L68: 77 | M68: 0 | N68: 0 | O68: 33 | P68: 4 | Q68: 1
A69: 7011 | B69: AMERICAN SENIOR | C69: 487 | D69: 0 | E69: 1 | F69: 13 | G69: 10 | H69: 6 | I69: 457 | J69: 15 | K69: 141 | L69: 326 | M69: 4 | N69: 0 | O69: 391 | P69: 74 | Q69: 52
A70: 7014 | B70: MATER PERFORMING ARTS ACADEMY | C70: 90 | D70: 0 | E70: 0 | F70: 0 | G70: 0 | H70: 0 | I70: 90 | J70: 2 | K70: 4 | L70: 84 | M70: 0 | N70: 0 | O70: 67 | P70: 1 | Q70: 0
A71: 7015 | B71: STELLAR LEADERSHIP ACADEMY | C71: 95 | D71: 0 | E71: 0 | F71: 0 | G71: 0 | H71: 0 | I71: 95 | J71: 0 | K71: 81 | L71: 14 | M71: 0 | N71: 0 | O71: 60 | P71: 4 | Q71: 12
A72: 7016 | B72: SPORTS LEADERSHIP OF MIAMI CHS | C72: 11 | D72: 0 | E72: 1 | F72: 1 | G72: 0 | H72: 0 | I72: 9 | J72: 0 | K72: 1 | L72: 10 | M72: 0 | N72: 0 | O72: 6 | P72: 0 | Q72: 0
A73: 7018 | B73: MATER ACADEMY LAKES HIGH SCH | C73: 309 | D73: 0 | E73: 2 | F73: 41 | G73: 43 | H73: 27 | I73: 196 | J73: 22 | K73: 5 | L73: 281 | M73: 1 | N73: 0 | O73: 228 | P73: 34 | Q73: 8
A74: 7020 | B74: DORAL ACADEMY HIGH SCHOOL | C74: 382 | D74: 1 | E74: 6 | F74: 52 | G74: 52 | H74: 29 | I74: 242 | J74: 21 | K74: 4 | L74: 357 | M74: 0 | N74: 0 | O74: 205 | P74: 33 | Q74: 11
A75: 7022 | B75: ACADEMY OF ARTS AND MINDS | C75: 99 | D75: 0 | E75: 0 | F75: 8 | G75: 3 | H75: 2 | I75: 86 | J75: 25 | K75: 6 | L75: 68 | M75: 0 | N75: 0 | O75: 37 | P75: 12 | Q75: 4
A76: 7024 | B76: MATER ACADEMY HIGH-INTL STUDIE | C76: 12 | D76: 0 | E76: 0 | F76: 0 | G76: 0 | H76: 0 | I76: 12 | J76: 0 | K76: 5 | L76: 7 | M76: 0 | N76: 0 | O76: 10 | P76: 1 | Q76: 0
A77: 7029 | B77: TERRA ENVIRONMENTAL RESEARCH | C77: 463 | D77: 0 | E77: 5 | F77: 74 | G77: 93 | H77: 88 | I77: 203 | J77: 98 | K77: 12 | L77: 329 | M77: 20 | N77: 0 | O77: 196 | P77: 14 | Q77: 21
A78: 7030 | B78: INTEGRATED ACADEMICS (SIATECH) | C78: 109 | D78: 0 | E78: 0 | F78: 0 | G78: 0 | H78: 0 | I78: 109 | J78: 6 | K78: 85 | L78: 15 | M78: 0 | N78: 0 | O78: 33 | P78: 16 | Q78: 18
A79: 7032 | B79: PALM GLADES PREP HIGH SCHOOL | C79: 33 | D79: 0 | E79: 2 | F79: 0 | G79: 0 | H79: 0 | I79: 31 | J79: 0 | K79: 5 | L79: 28 | M79: 0 | N79: 0 | O79: 24 | P79: 3 | Q79: 1
A80: 7033 | B80: LAW ENFORCEMENT OFFICERS HS | C80: 137 | D80: 0 | E80: 2 | F80: 15 | G80: 9 | H80: 6 | I80: 105 | J80: 9 | K80: 31 | L80: 96 | M80: 1 | N80: 0 | O80: 106 | P80: 5 | Q80: 7
A81: 7034 | B81: SOMERSET ACAD HIGH SOUTH-HMSTD | C81: 22 | D81: 1 | E81: 1 | F81: 4 | G81: 0 | H81: 0 | I81: 16 | J81: 7 | K81: 1 | L81: 14 | M81: 0 | N81: 0 | O81: 17 | P81: 1 | Q81: 1
A82: 7036 | B82: LAWRENCE ACADEMY SENIOR | C82: 12 | D82: 0 | E82: 0 | F82: 0 | G82: 0 | H82: 0 | I82: 12 | J82: 0 | K82: 4 | L82: 8 | M82: 0 | N82: 0 | O82: 12 | P82: 2 | Q82: 0
A83: 7037 | B83: MATER ACADEMY EAST HIGH SCHOOL | C83: 122 | D83: 0 | E83: 4 | F83: 5 | G83: 5 | H83: 2 | I83: 106 | J83: 6 | K83: 6 | L83: 109 | M83: 1 | N83: 0 | O83: 75 | P83: 19 | Q83: 4
A84: 7042 | B84: SOMERSET ACADEMY CHARTER HIGH | C84: 75 | D84: 0 | E84: 3 | F84: 6 | G84: 5 | H84: 2 | I84: 59 | J84: 4 | K84: 6 | L84: 65 | M84: 0 | N84: 0 | O84: 62 | P84: 11 | Q84: 7
A85: 7048 | B85: ALONZO & TRACY MOURNING SH | C85: 470 | D85: 2 | E85: 4 | F85: 4 | G85: 14 | H85: 19 | I85: 427 | J85: 129 | K85: 97 | L85: 237 | M85: 5 | N85: 0 | O85: 295 | P85: 70 | Q85: 30
A86: 7049 | B86: WESTLAND HIALEAH SENIOR HIGH | C86: 502 | D86: 1 | E86: 1 | F86: 18 | G86: 48 | H86: 11 | I86: 423 | J86: 10 | K86: 7 | L86: 485 | M86: 0 | N86: 0 | O86: 447 | P86: 213 | Q86: 36
A87: 7050 | B87: KEYS GATE CHARTER HIGH SCHL | C87: 273 | D87: 0 | E87: 7 | F87: 27 | G87: 16 | H87: 5 | I87: 218 | J87: 42 | K87: 53 | L87: 175 | M87: 3 | N87: 0 | O87: 165 | P87: 31 | Q87: 20
A88: 7051 | B88: G. HOLMES BRADDOCK SENIOR HIGH | C88: 765 | D88: 1 | E88: 11 | F88: 34 | G88: 38 | H88: 20 | I88: 661 | J88: 38 | K88: 11 | L88: 708 | M88: 4 | N88: 3 | O88: 603 | P88: 142 | Q88: 119
A89: 7053 | B89: PINECREST ACADEMY CHARTER HIGH | C89: 152 | D89: 1 | E89: 6 | F89: 15 | G89: 7 | H89: 5 | I89: 118 | J89: 8 | K89: 1 | L89: 143 | M89: 0 | N89: 0 | O89: 91 | P89: 11 | Q89: 14
A90: 7054 | B90: EXCELSIOR CHARTER HIGH SCHOOL | C90: 34 | D90: 0 | E90: 0 | F90: 4 | G90: 1 | H90: 0 | I90: 29 | J90: 0 | K90: 0 | L90: 34 | M90: 0 | N90: 0 | O90: 30 | P90: 16 | Q90: 1
A91: 7055 | B91: YOUNG WOMEN'S PREPARATORY ACAD | C91: 51 | D91: 1 | E91: 4 | F91: 22 | G91: 18 | H91: 4 | I91: 2 | J91: 6 | K91: 8 | L91: 37 | M91: 0 | N91: 0 | O91: 34 | P91: 3 | Q91: 0
A92: 7056 | B92: YOUNG MENS PREPARATORY ACADEMY | C92: 30 | D92: 0 | E92: 1 | F92: 1 | G92: 1 | H92: 0 | I92: 27 | J92: 1 | K92: 21 | L92: 8 | M92: 0 | N92: 0 | O92: 20 | P92: 0 | Q92: 5
A93: 7058 | B93: MIAMI COMMUNITY CH HIGH SCHOOL | C93: 31 | D93: 0 | E93: 3 | F93: 1 | G93: 0 | H93: 0 | I93: 27 | J93: 3 | K93: 4 | L93: 24 | M93: 0 | N93: 0 | O93: 27 | P93: 5 | Q93: 5
A94: 7059 | B94: MIAMI ARTS CHARTER | C94: 77 | D94: 2 | E94: 5 | F94: 8 | G94: 6 | H94: 7 | I94: 49 | J94: 18 | K94: 15 | L94: 42 | M94: 2 | N94: 0 | O94: 17 | P94: 1 | Q94: 1
A95: 7060 | B95: EVERGLADES PREP ACADEMY HIGH | C95: 65 | D95: 1 | E95: 1 | F95: 9 | G95: 11 | H95: 4 | I95: 39 | J95: 5 | K95: 2 | L95: 58 | M95: 0 | N95: 0 | O95: 52 | P95: 7 | Q95: 6
A96: 7062 | B96: MAVERICKS HIGH OF NORTH M-DADE | C96: 91 | D96: 0 | E96: 0 | F96: 0 | G96: 0 | H96: 0 | I96: 91 | J96: 3 | K96: 72 | L96: 16 | M96: 0 | N96: 0 | O96: 51 | P96: 0 | Q96: 12
A97: 7065 | B97: MAVERICKS HIGH OF SOUTH M-DADE | C97: 76 | D97: 0 | E97: 0 | F97: 0 | G97: 0 | H97: 0 | I97: 76 | J97: 10 | K97: 31 | L97: 34 | M97: 1 | N97: 0 | O97: 75 | P97: 0 | Q97: 13
A98: 7067 | B98: GREEN SPRINGS HIGH SCHOOL | C98: 101 | D98: 0 | E98: 0 | F98: 0 | G98: 0 | H98: 0 | I98: 101 | J98: 2 | K98: 12 | L98: 87 | M98: 0 | N98: 0 | O98: 75 | P98: 15 | Q98: 11
A99: 7068 | B99: NORTH GARDENS HIGH SCHOOL | C99: 99 | D99: 0 | E99: 1 | F99: 0 | G99: 0 | H99: 0 | I99: 98 | J99: 1 | K99: 76 | L99: 21 | M99: 1 | N99: 0 | O99: 62 | P99: 3 | Q99: 7
A100: 7069 | B100: NORTH PARK HIGH SCHOOL | C100: 81 | D100: 0 | E100: 0 | F100: 0 | G100: 0 | H100: 0 | I100: 81 | J100: 0 | K100: 55 | L100: 26 | M100: 0 | N100: 0 | O100: 62 | P100: 10 | Q100: 9
A101: 7070 | B101: YOUTH CO-OP PREP HIGH SCHOOL | C101: 5 | D101: 0 | E101: 0 | F101: 1 | G101: 2 | H101: 1 | I101: 1 | J101: 0 | K101: 0 | L101: 5 | M101: 0 | N101: 0 | O101: 2 | P101: 0 | Q101: 0
A102: 7071 | B102: CORAL GABLES SENIOR HIGH | C102: 916 | D102: 3 | E102: 12 | F102: 73 | G102: 90 | H102: 68 | I102: 670 | J102: 93 | K102: 66 | L102: 747 | M102: 10 | N102: 0 | O102: 679 | P102: 201 | Q102: 86
A103: 7080 | B103: CHARTER HS OF THE AMERICAS | C103: 14 | D103: 0 | E103: 0 | F103: 7 | G103: 4 | H103: 3 | I103: 0 | J103: 0 | K103: 1 | L103: 13 | M103: 0 | N103: 0 | O103: 9 | P103: 5 | Q103: 0
A104: 7081 | B104: DESIGN & ARCHITECTURE SENIOR | C104: 108 | D104: 0 | E104: 1 | F104: 8 | G104: 31 | H104: 17 | I104: 51 | J104: 31 | K104: 19 | L104: 55 | M104: 1 | N104: 0 | O104: 42 | P104: 7 | Q104: 7
A105: 7101 | B105: CORAL REEF SENIOR HIGH | C105: 593 | D105: 0 | E105: 4 | F105: 66 | G105: 118 | H105: 104 | I105: 301 | J105: 126 | K105: 81 | L105: 358 | M105: 14 | N105: 1 | O105: 229 | P105: 12 | Q105: 32
A106: 7111 | B106: HIALEAH SENIOR | C106: 737 | D106: 2 | E106: 5 | F106: 29 | G106: 25 | H106: 12 | I106: 664 | J106: 11 | K106: 33 | L106: 693 | M106: 0 | N106: 0 | O106: 643 | P106: 212 | Q106: 108
A107: 7121 | B107: JOHN A FERGUSON SENIOR HIGH | C107: 945 | D107: 2 | E107: 20 | F107: 82 | G107: 81 | H107: 45 | I107: 715 | J107: 68 | K107: 15 | L107: 843 | M107: 14 | N107: 3 | O107: 609 | P107: 116 | Q107: 101
A108: 7131 | B108: HIALEAH-MIAMI LAKES SENIOR | C108: 430 | D108: 2 | E108: 3 | F108: 14 | G108: 12 | H108: 10 | I108: 389 | J108: 15 | K108: 92 | L108: 318 | M108: 3 | N108: 2 | O108: 360 | P108: 86 | Q108: 51
A109: 7141 | B109: DR MICHAEL M KROP SENIOR HIGH | C109: 677 | D109: 0 | E109: 1 | F109: 6 | G109: 3 | H109: 1 | I109: 666 | J109: 121 | K109: 320 | L109: 222 | M109: 12 | N109: 1 | O109: 427 | P109: 78 | Q109: 41
A110: 7151 | B110: HOMESTEAD SENIOR HIGH | C110: 493 | D110: 3 | E110: 5 | F110: 16 | G110: 17 | H110: 5 | I110: 447 | J110: 23 | K110: 223 | L110: 245 | M110: 1 | N110: 0 | O110: 447 | P110: 46 | Q110: 81
A111: 7160 | B111: MATER ACADEMY CHARTER HIGH | C111: 372 | D111: 0 | E111: 0 | F111: 0 | G111: 0 | H111: 2 | I111: 370 | J111: 9 | K111: 12 | L111: 351 | M111: 0 | N111: 0 | O111: 282 | P111: 47 | Q111: 16
A112: 7161 | B112: MARTIME & SCIENCE TECH ACADEMY | C112: 142 | D112: 0 | E112: 2 | F112: 24 | G112: 53 | H112: 38 | I112: 25 | J112: 40 | K112: 14 | L112: 85 | M112: 3 | N112: 0 | O112: 43 | P112: 4 | Q112: 2
A113: 7171 | B113: MED ACAD SCIENCE & TECHNOLOGY | C113: 136 | D113: 1 | E113: 14 | F113: 41 | G113: 43 | H113: 30 | I113: 7 | J113: 18 | K113: 23 | L113: 92 | M113: 3 | N113: 0 | O113: 100 | P113: 4 | Q113: 3
A114: 7191 | B114: HIALEAH GARDENS SENIOR | C114: 748 | D114: 0 | E114: 4 | F114: 43 | G114: 44 | H114: 18 | I114: 639 | J114: 15 | K114: 5 | L114: 723 | M114: 5 | N114: 0 | O114: 631 | P114: 188 | Q114: 56
A115: 7201 | B115: MIAMI BEACH SENIOR HIGH | C115: 586 | D115: 1 | E115: 3 | F115: 29 | G115: 40 | H115: 26 | I115: 487 | J115: 123 | K115: 67 | L115: 386 | M115: 8 | N115: 0 | O115: 407 | P115: 79 | Q115: 57
A116: 7231 | B116: MIAMI CAROL CITY SENIOR HIGH | C116: 454 | D116: 0 | E116: 2 | F116: 1 | G116: 6 | H116: 0 | I116: 445 | J116: 1 | K116: 387 | L116: 64 | M116: 1 | N116: 0 | O116: 380 | P116: 19 | Q116: 53
A117: 7241 | B117: RONALD W REAGAN/DORAL SENIOR | C117: 428 | D117: 0 | E117: 1 | F117: 14 | G117: 42 | H117: 19 | I117: 352 | J117: 30 | K117: 5 | L117: 385 | M117: 6 | N117: 2 | O117: 207 | P117: 129 | Q117: 18
A118: 7251 | B118: MIAMI CENTRAL SENIOR HIGH | C118: 415 | D118: 3 | E118: 9 | F118: 11 | G118: 6 | H118: 2 | I118: 384 | J118: 3 | K118: 329 | L118: 81 | M118: 0 | N118: 0 | O118: 346 | P118: 59 | Q118: 58
A119: 7262 | B119: CITY OF HIALEAH EDUCATION ACAD | C119: 84 | D119: 1 | E119: 0 | F119: 1 | G119: 1 | H119: 0 | I119: 81 | J119: 7 | K119: 1 | L119: 76 | M119: 0 | N119: 0 | O119: 72 | P119: 11 | Q119: 6
A120: 7265 | B120: ARCHIMEDEAN UPPER CONSERV CHAR | C120: 62 | D120: 0 | E120: 1 | F120: 13 | G120: 11 | H120: 35 | I120: 2 | J120: 6 | K120: 2 | L120: 47 | M120: 5 | N120: 0 | O120: 31 | P120: 0 | Q120: 0
A121: 7271 | B121: MIAMI CORAL PARK SENIOR HIGH | C121: 647 | D121: 0 | E121: 3 | F121: 31 | G121: 45 | H121: 21 | I121: 547 | J121: 17 | K121: 8 | L121: 620 | M121: 2 | N121: 0 | O121: 524 | P121: 185 | Q121: 65
A122: 7291 | B122: JOSE MARTI MAST 6-12 ACADEMY | C122: 40 | D122: 0 | E122: 1 | F122: 3 | G122: 7 | H122: 8 | I122: 21 | J122: 2 | K122: 5 | L122: 33 | M122: 0 | N122: 0 | O122: 30 | P122: 8 | Q122: 0
A123: 7301 | B123: MIAMI EDISON SENIOR HIGH | C123: 246 | D123: 0 | E123: 0 | F123: 6 | G123: 6 | H123: 1 | I123: 233 | J123: 2 | K123: 210 | L123: 34 | M123: 0 | N123: 0 | O123: 213 | P123: 53 | Q123: 25
A124: 7341 | B124: MIAMI JACKSON SENIOR HIGH | C124: 407 | D124: 1 | E124: 3 | F124: 23 | G124: 8 | H124: 9 | I124: 363 | J124: 7 | K124: 136 | L124: 264 | M124: 0 | N124: 0 | O124: 385 | P124: 69 | Q124: 44
A125: 7351 | B125: ARTHUR AND POLLY MAYS CONSERVA | C125: 82 | D125: 0 | E125: 1 | F125: 6 | G125: 4 | H125: 1 | I125: 70 | J125: 8 | K125: 32 | L125: 41 | M125: 1 | N125: 0 | O125: 71 | P125: 7 | Q125: 11
A126: 7361 | B126: MIAMI KILLIAN SENIOR HIGH | C126: 591 | D126: 0 | E126: 3 | F126: 23 | G126: 28 | H126: 14 | I126: 523 | J126: 83 | K126: 138 | L126: 357 | M126: 9 | N126: 1 | O126: 381 | P126: 68 | Q126: 97
A127: 7371 | B127: ROBERT MORGAN EDUCATIONAL CTR | C127: 495 | D127: 3 | E127: 13 | F127: 56 | G127: 55 | H127: 28 | I127: 340 | J127: 69 | K127: 114 | L127: 303 | M127: 5 | N127: 1 | O127: 323 | P127: 22 | Q127: 56
A128: 7381 | B128: MIAMI NORLAND SENIOR HIGH | C128: 369 | D128: 0 | E128: 2 | F128: 17 | G128: 10 | H128: 1 | I128: 339 | J128: 2 | K128: 356 | L128: 9 | M128: 2 | N128: 0 | O128: 290 | P128: 22 | Q128: 24
A129: 7391 | B129: MIAMI LAKES EDUCATIONAL CENTER | C129: 315 | D129: 0 | E129: 4 | F129: 38 | G129: 38 | H129: 18 | I129: 217 | J129: 10 | K129: 86 | L129: 217 | M129: 2 | N129: 0 | O129: 246 | P129: 21 | Q129: 44
A130: 7411 | B130: MIAMI NORTHWESTERN SENIOR HIGH | C130: 426 | D130: 1 | E130: 7 | F130: 34 | G130: 26 | H130: 4 | I130: 354 | J130: 1 | K130: 387 | L130: 36 | M130: 1 | N130: 1 | O130: 373 | P130: 14 | Q130: 45
A131: 7431 | B131: MIAMI PALMETTO SENIOR HIGH | C131: 640 | D131: 0 | E131: 0 | F131: 26 | G131: 61 | H131: 60 | I131: 493 | J131: 212 | K131: 124 | L131: 279 | M131: 17 | N131: 2 | O131: 238 | P131: 33 | Q131: 84
A132: 7461 | B132: MIAMI SENIOR HIGH | C132: 683 | D132: 0 | E132: 7 | F132: 30 | G132: 25 | H132: 9 | I132: 612 | J132: 21 | K132: 16 | L132: 643 | M132: 3 | N132: 0 | O132: 606 | P132: 191 | Q132: 68
A133: 7511 | B133: MIAMI SPRINGS SENIOR HIGH | C133: 467 | D133: 0 | E133: 0 | F133: 14 | G133: 20 | H133: 10 | I133: 423 | J133: 20 | K133: 66 | L133: 376 | M133: 5 | N133: 0 | O133: 383 | P133: 118 | Q133: 37
A134: 7531 | B134: MIAMI SUNSET SENIOR HIGH | C134: 467 | D134: 0 | E134: 1 | F134: 16 | G134: 20 | H134: 6 | I134: 424 | J134: 55 | K134: 21 | L134: 385 | M134: 4 | N134: 0 | O134: 347 | P134: 81 | Q134: 77
A135: 7541 | B135: NORTH MIAMI BEACH SENIOR HIGH | C135: 508 | D135: 1 | E135: 7 | F135: 40 | G135: 30 | H135: 11 | I135: 419 | J135: 7 | K135: 383 | L135: 101 | M135: 15 | N135: 1 | O135: 420 | P135: 79 | Q135: 39
A136: 7571 | B136: INTL STUDIES PREP ACADEMY | C136: 78 | D136: 0 | E136: 4 | F136: 18 | G136: 21 | H136: 10 | I136: 25 | J136: 15 | K136: 1 | L136: 60 | M136: 2 | N136: 0 | O136: 42 | P136: 15 | Q136: 2
A137: 7581 | B137: IPREPARATORY ACADEMY | C137: 54 | D137: 2 | E137: 3 | F137: 11 | G137: 22 | H137: 13 | I137: 3 | J137: 7 | K137: 10 | L137: 36 | M137: 0 | N137: 0 | O137: 34 | P137: 1 | Q137: 0
A138: 7591 | B138: NORTH MIAMI SENIOR HIGH | C138: 682 | D138: 5 | E138: 11 | F138: 29 | G138: 31 | H138: 12 | I138: 594 | J138: 2 | K138: 598 | L138: 76 | M138: 6 | N138: 0 | O138: 599 | P138: 183 | Q138: 41
A139: 7601 | B139: WILLIAM H. TURNER TECHNICAL | C139: 375 | D139: 3 | E139: 15 | F139: 70 | G139: 53 | H139: 9 | I139: 225 | J139: 1 | K139: 308 | L139: 65 | M139: 1 | N139: 0 | O139: 331 | P139: 27 | Q139: 10
A140: 7631 | B140: MIAMI MACARTHUR SOUTH | C140: 12 | D140: 1 | E140: 0 | F140: 0 | G140: 0 | H140: 0 | I140: 11 | J140: 0 | K140: 11 | L140: 1 | M140: 0 | N140: 0 | O140: 10 | P140: 0 | Q140: 5
A141: 7701 | B141: SOUTH DADE SENIOR HIGH | C141: 854 | D141: 3 | E141: 5 | F141: 73 | G141: 44 | H141: 19 | I141: 710 | J141: 87 | K141: 193 | L141: 560 | M141: 10 | N141: 3 | O141: 698 | P141: 91 | Q141: 109
A142: 7721 | B142: SOUTH MIAMI SENIOR HIGH | C142: 560 | D142: 1 | E142: 3 | F142: 23 | G142: 25 | H142: 11 | I142: 497 | J142: 29 | K142: 24 | L142: 506 | M142: 1 | N142: 0 | O142: 430 | P142: 163 | Q142: 62
A143: 7731 | B143: MIAMI SOUTHRIDGE SENIOR HIGH | C143: 591 | D143: 4 | E143: 16 | F143: 21 | G143: 12 | H143: 2 | I143: 536 | J143: 33 | K143: 236 | L143: 302 | M143: 11 | N143: 5 | O143: 470 | P143: 68 | Q143: 98
A144: 7741 | B144: SOUTHWEST MIAMI SENIOR HIGH | C144: 768 | D144: 1 | E144: 10 | F144: 42 | G144: 46 | H144: 29 | I144: 640 | J144: 41 | K144: 11 | L144: 713 | M144: 1 | N144: 1 | O144: 607 | P144: 164 | Q144: 123
A145: 7751 | B145: BARBARA GOLEMAN SENIOR HIGH | C145: 451 | D145: 1 | E145: 0 | F145: 13 | G145: 24 | H145: 9 | I145: 404 | J145: 29 | K145: 59 | L145: 360 | M145: 2 | N145: 0 | O145: 300 | P145: 58 | Q145: 45
A146: 7781 | B146: FELIX VARELA SENIOR HIGH | C146: 847 | D146: 2 | E146: 8 | F146: 50 | G146: 73 | H146: 32 | I146: 682 | J146: 74 | K146: 40 | L146: 718 | M146: 11 | N146: 1 | O146: 586 | P146: 102 | Q146: 76
A147: 7791 | B147: BOOKER T. WASHINGTON SR. HIGH | C147: 233 | D147: 1 | E147: 2 | F147: 5 | G147: 5 | H147: 2 | I147: 218 | J147: 2 | K147: 127 | L147: 103 | M147: 1 | N147: 0 | O147: 215 | P147: 32 | Q147: 32
A148: 7901 | B148: NEW WORLD SCHOOL OF THE ARTS | C148: 102 | D148: 0 | E148: 0 | F148: 0 | G148: 0 | H148: 1 | I148: 101 | J148: 26 | K148: 16 | L148: 57 | M148: 2 | N148: 0 | O148: 30 | P148: 2 | Q148: 7
A149: 8014 | B149: ALTERNATIVE OUTREACH-EXT. YR | C149: 49 | D149: 0 | E149: 0 | F149: 0 | G149: 0 | H149: 0 | I149: 49 | J149: 6 | K149: 26 | L149: 17 | M149: 0 | N149: 0 | O149: 15 | P149: 0 | Q149: 17
A150: 8017 | B150: ALTERNATIVE OUTREACH PROGRAM | C150: 98 | D150: 7 | E150: 3 | F150: 2 | G150: 0 | H150: 0 | I150: 86 | J150: 1 | K150: 69 | L150: 28 | M150: 0 | N150: 0 | O150: 59 | P150: 9 | Q150: 15
A151: 8019 | B151: ACADEMY FOR COMMUNITY ED | C151: 29 | D151: 0 | E151: 0 | F151: 0 | G151: 0 | H151: 0 | I151: 29 | J151: 1 | K151: 18 | L151: 10 | M151: 0 | N151: 0 | O151: 27 | P151: 0 | Q151: 1
A152: 8101 | B152: JAN MANN OPPORTUNITY SCHOOL | C152: 6 | D152: 0 | E152: 1 | F152: 0 | G152: 0 | H152: 0 | I152: 5 | J152: 1 | K152: 3 | L152: 2 | M152: 0 | N152: 0 | O152: 6 | P152: 0 | Q152: 0
A153: 8121 | B153: COPE CENTER NORTH | C153: 41 | D153: 0 | E153: 1 | F153: 0 | G153: 0 | H153: 0 | I153: 40 | J153: 0 | K153: 33 | L153: 8 | M153: 0 | N153: 0 | O153: 38 | P153: 3 | Q153: 2
A154: 8131 | B154: DOROTHY M WALLACE COPE CENTER | C154: 25 | D154: 0 | E154: 0 | F154: 1 | G154: 0 | H154: 0 | I154: 24 | J154: 1 | K154: 14 | L154: 10 | M154: 0 | N154: 0 | O154: 25 | P154: 2 | Q154: 2
A155: 8141 | B155: JUVENILE JUSTICE CENTER | C155: 19 | D155: 1 | E155: 0 | F155: 0 | G155: 0 | H155: 0 | I155: 18 | J155: 0 | K155: 9 | L155: 10 | M155: 0 | N155: 0 | O155: 14 | P155: 0 | Q155: 3
A156: 8151 | B156: ROBERT RENICK EDUCATION CTR | C156: 7 | D156: 0 | E156: 0 | F156: 0 | G156: 0 | H156: 0 | I156: 7 | J156: 0 | K156: 6 | L156: 1 | M156: 0 | N156: 0 | O156: 7 | P156: 0 | Q156: 7
A157: 8181 | B157: RUTH OWENS KRUSE' EDUC CENTER | C157: 10 | D157: 0 | E157: 0 | F157: 0 | G157: 0 | H157: 0 | I157: 10 | J157: 0 | K157: 3 | L157: 7 | M157: 0 | N157: 0 | O157: 10 | P157: 1 | Q157: 10
A158: 9732 | B158: MERRICK EDUCATIONAL CENTER | C158: 46 | D158: 0 | E158: 0 | F158: 2 | G158: 1 | H158: 0 | I158: 43 | J158: 2 | K158: 10 | L158: 33 | M158: 0 | N158: 0 | O158: 32 | P158: 4 | Q158: 43
A159: 9999 | B159: District | C159: 28189 | D159: 73 | E159: 329 | F159: 1906 | G159: 2499 | H159: 1841 | I159: 21541 | J159: 2446 | K159: 6669 | L159: 18648 | M159: 317 | N159: 33 | O159: 20191 | P159: 4033 | Q159: 2668

Sheet Bio Enrollment (hidden)
A3: Count of STUDENT_ID
A4: CLASS_SCHOOL | B4: S_SCHL_NAME | C4: Total
A5: 0241 | B5: RUTH K BROAD/BAY HARBOR K-8 | C5: 7
A6: 0950 | B6: AVENTURA CITY OF EXCELLENCE | C6: 24
A7: 1331 | B7: DEVON AIRE K-8 CENTER | C7: 18
A8: 3029 | B8: DORAL ACADEMY OF TECHNOLOGY | C8: 3
A9: 3101 | B9: FRANK C. MARTIN K-8 CENTER | C9: 56
A10: 3281 | B10: MIAMI LAKES K-8 CENTER | C10: 39
A11: 3610 | B11: KEYS GATE CHARTER SCHOOL | C11: 70
A12: 5006 | B12: EVERGLADES PREPARATORY ACADEMY | C12: 1
A13: 6001 | B13: HERBERT A. AMMONS MIDDLE | C13: 54
A14: 6012 | B14: MATER ACADEMY CHARTER MIDDLE | C14: 195
A15: 6021 | B15: ARVIDA MIDDLE SCHOOL | C15: 80
A16: 6022 | B16: PINECREST ACADEMY CHARTER MIDD | C16: 109
A17: 6023 | B17: ANDOVER MIDDLE SCHOOL | C17: 19
A18: 6030 | B18: DORAL ACADEMY CHARTER MIDDLE | C18: 1
A19: 6033 | B19: MATER ACADEMY LAKES MIDDLE | C19: 35
A20: 6040 | B20: DOCTORS CHARTER/MIAMI SHORES | C20: 81
A21: 6042 | B21: MATER GARDENS ACADEMY MIDDLE | C21: 35
A22: 6053 | B22: SOMERSET ACAD MIDDLE (S-MIAMI) | C22: 28
A23: 6071 | B23: GEORGE WASHINGTON CARVER | C23: 20
A24: 6081 | B24: CENTENNIAL MIDDLE | C24: 26
A25: 6111 | B25: CUTLER RIDGE MIDDLE | C25: 14
A26: 6211 | B26: GLADES MIDDLE | C26: 34
A27: 6241 | B27: HIGHLAND OAKS MIDDLE | C27: 43
A28: 6431 | B28: MAYS MIDDLE | C28: 2
A29: 6441 | B29: HOWARD D. MCMILLAN MIDDLE | C29: 50
A30: 6521 | B30: MIAMI SPRINGS MIDDLE | C30: 25
A31: 6541 | B31: NAUTILUS MIDDLE | C31: 45
A32: 6751 | B32: HIALEAH GARDENS MIDDLE SCHOOL | C32: 225
A33: 6781 | B33: RICHMOND HEIGHTS MIDDLE | C33: 2
A34: 6821 | B34: ROCKWAY MIDDLE | C34: 42
A35: 6841 | B35: SHENANDOAH MIDDLE | C35: 27
A36: 6861 | B36: SOUTHWOOD MIDDLE | C36: 1
A37: 6901 | B37: W. R. THOMAS MIDDLE | C37: 37
A38: 7001 | B38: MIAMI-DADE ONLINE ACADEMY | C38: 23
A39: 7007 | B39: INTL. STUDIES CHARTER SENIOR | C39: 110
A40: 7009 | B40: DORAL PERFORMING ARTS ACADEMY | C40: 91
A41: 7011 | B41: AMERICAN SENIOR | C41: 484
A42: 7014 | B42: MATER PERFORMING ARTS ACADEMY | C42: 30
A43: 7015 | B43: STELLAR LEADERSHIP ACADEMY | C43: 145
A44: 7016 | B44: SPORTS LEADERSHIP OF MIAMI CHS | C44: 13
A45: 7018 | B45: MATER ACADEMY LAKES HIGH SCH | C45: 242
A46: 7020 | B46: DORAL ACADEMY HIGH SCHOOL | C46: 406
A47: 7022 | B47: ACADEMY OF ARTS AND MINDS | C47: 72
A48: 7024 | B48: MATER ACADEMY HIGH-INTL STUDIE | C48: 12
A49: 7029 | B49: TERRA ENVIRONMENTAL RESEARCH | C49: 607
A50: 7030 | B50: INTEGRATED ACADEMICS (SIATECH) | C50: 58
A51: 7032 | B51: PALM GLADES PREP HIGH SCHOOL | C51: 114
A52: 7033 | B52: LAW ENFORCEMENT OFFICERS HS | C52: 85
A53: 7034 | B53: SOMERSET ACAD HIGH SOUTH-HMSTD | C53: 23
A54: 7036 | B54: LAWRENCE ACADEMY SENIOR | C54: 11
A55: 7037 | B55: MATER ACADEMY EAST HIGH SCHOOL | C55: 146
A56: 7038 | B56: SOMERSET ACADEMY HIGH (SOUTH) | C56: 1
A57: 7042 | B57: SOMERSET ACADEMY CHARTER HIGH | C57: 91
A58: 7048 | B58: ALONZO & TRACY MOURNING SH | C58: 510
A59: 7049 | B59: WESTLAND HIALEAH SENIOR HIGH | C59: 539
A60: 7050 | B60: KEYS GATE CHARTER HIGH SCHL | C60: 247
A61: 7051 | B61: G. HOLMES BRADDOCK SENIOR HIGH | C61: 864
A62: 7053 | B62: PINECREST ACADEMY CHARTER HIGH | C62: 131
A63: 7054 | B63: EXCELSIOR CHARTER HIGH SCHOOL | C63: 29
A64: 7055 | B64: YOUNG WOMEN'S PREPARATORY ACAD | C64: 67
A65: 7056 | B65: YOUNG MENS PREPARATORY ACADEMY | C65: 26
A66: 7058 | B66: MIAMI COMMUNITY CH HIGH SCHOOL | C66: 30
A67: 7059 | B67: MIAMI ARTS CHARTER | C67: 100
A68: 7060 | B68: EVERGLADES PREP ACADEMY HIGH | C68: 174
A69: 7062 | B69: MAVERICKS HIGH OF NORTH M-DADE | C69: 60
A70: 7065 | B70: MAVERICKS HIGH OF SOUTH M-DADE | C70: 68
A71: 7067 | B71: GREEN SPRINGS HIGH SCHOOL | C71: 56
A72: 7068 | B72: NORTH GARDENS HIGH SCHOOL | C72: 13
A73: 7069 | B73: NORTH PARK HIGH SCHOOL | C73: 39
A74: 7070 | B74: YOUTH CO-OP PREP HIGH SCHOOL | C74: 64
A75: 7071 | B75: CORAL GABLES SENIOR HIGH | C75: 945
A76: 7080 | B76: CHARTER HS OF THE AMERICAS | C76: 14
A77: 7081 | B77: DESIGN & ARCHITECTURE SENIOR | C77: 121
A78: 7101 | B78: CORAL REEF SENIOR HIGH | C78: 723
A79: 7111 | B79: HIALEAH SENIOR | C79: 770
A80: 7121 | B80: JOHN A FERGUSON SENIOR HIGH | C80: 1105
A81: 7131 | B81: HIALEAH-MIAMI LAKES SENIOR | C81: 462
A82: 7141 | B82: DR MICHAEL M KROP SENIOR HIGH | C82: 736
A83: 7151 | B83: HOMESTEAD SENIOR HIGH | C83: 481
A84: 7160 | B84: MATER ACADEMY CHARTER HIGH | C84: 222
A85: 7161 | B85: MARTIME & SCIENCE TECH ACADEMY | C85: 182
A86: 7171 | B86: MED ACAD SCIENCE & TECHNOLOGY | C86: 198
A87: 7191 | B87: HIALEAH GARDENS SENIOR | C87: 850
A88: 7201 | B88: MIAMI BEACH SENIOR HIGH | C88: 639
A89: 7231 | B89: MIAMI CAROL CITY SENIOR HIGH | C89: 493
A90: 7241 | B90: RONALD W REAGAN/DORAL SENIOR | C90: 329
A91: 7251 | B91: MIAMI CENTRAL SENIOR HIGH | C91: 395
A92: 7262 | B92: CITY OF HIALEAH EDUCATION ACAD | C92: 39
A93: 7265 | B93: ARCHIMEDEAN UPPER CONSERV CHAR | C93: 59
A94: 7271 | B94: MIAMI CORAL PARK SENIOR HIGH | C94: 666
A95: 7291 | B95: JOSE MARTI MAST 6-12 ACADEMY | C95: 38
A96: 7301 | B96: MIAMI EDISON SENIOR HIGH | C96: 215
A97: 7341 | B97: MIAMI JACKSON SENIOR HIGH | C97: 365
A98: 7351 | B98: ARTHUR AND POLLY MAYS CONSERVA | C98: 89
A99: 7361 | B99: MIAMI KILLIAN SENIOR HIGH | C99: 566
A100: 7371 | B100: ROBERT MORGAN EDUCATIONAL CTR | C100: 536
A101: 7381 | B101: MIAMI NORLAND SENIOR HIGH | C101: 374
A102: 7391 | B102: MIAMI LAKES EDUCATIONAL CENTER | C102: 202
A103: 7411 | B103: MIAMI NORTHWESTERN SENIOR HIGH | C103: 361
A104: 7431 | B104: MIAMI PALMETTO SENIOR HIGH | C104: 734
A105: 7461 | B105: MIAMI SENIOR HIGH | C105: 680
A106: 7511 | B106: MIAMI SPRINGS SENIOR HIGH | C106: 465
A107: 7531 | B107: MIAMI SUNSET SENIOR HIGH | C107: 476
A108: 7541 | B108: NORTH MIAMI BEACH SENIOR HIGH | C108: 542
A109: 7571 | B109: INTL STUDIES PREP ACADEMY | C109: 103
A110: 7581 | B110: IPREPARATORY ACADEMY | C110: 76
A111: 7591 | B111: NORTH MIAMI SENIOR HIGH | C111: 737
A112: 7601 | B112: WILLIAM H. TURNER TECHNICAL | C112: 446
A113: 7631 | B113: MIAMI MACARTHUR SOUTH | C113: 11
A114: 7701 | B114: SOUTH DADE SENIOR HIGH | C114: 870
A115: 7721 | B115: SOUTH MIAMI SENIOR HIGH | C115: 579
A116: 7731 | B116: MIAMI SOUTHRIDGE SENIOR HIGH | C116: 566
A117: 7741 | B117: SOUTHWEST MIAMI SENIOR HIGH | C117: 868
A118: 7751 | B118: BARBARA GOLEMAN SENIOR HIGH | C118: 466
A119: 7781 | B119: FELIX VARELA SENIOR HIGH | C119: 923
A120: 7791 | B120: BOOKER T. WASHINGTON SR. HIGH | C120: 211
A121: 7901 | B121: NEW WORLD SCHOOL OF THE ARTS | C121: 121
A122: 8014 | B122: ALTERNATIVE OUTREACH-EXT. YR | C122: 44
A123: 8017 | B123: ALTERNATIVE OUTREACH PROGRAM | C123: 78
A124: 8019 | B124: ACADEMY FOR COMMUNITY ED | C124: 35
A125: 8101 | B125: JAN MANN OPPORTUNITY SCHOOL | C125: 7
A126: 8121 | B126: COPE CENTER NORTH | C126: 32
A127: 8131 | B127: DOROTHY M WALLACE COPE CENTER | C127: 32
A128: 8141 | B128: JUVENILE JUSTICE CENTER | C128: 16
A129: 8151 | B129: ROBERT RENICK EDUCATION CTR | C129: 8
A130: 8181 | B130: RUTH OWENS KRUSE' EDUC CENTER | C130: 11
A131: 9732 | B131: MERRICK EDUCATIONAL CENTER | C131: 41
A132: (blank) | B132: (blank)
A133: 9999 | C133: 28582

Sheet USH Enrollment (hidden)
A1: 1 | B1: 2 | C1: 3 | D1: 4 | E1: 5 | F1: 6 | G1: 7 | H1: 8 | I1: 9 | J1: 10 | K1: 11 | L1: 12 | M1: 13 | N1: 14 | O1: 15 | P1: 16 | Q1: 17
A2: School | B2: SchName | C2: Total | D2: ML1 | E2: ML2 | F2: ML3 | G2: ML4 | H2: ML5 | I2: ML0 | J2: W | K2: B | L2: H | M2: A | N2: I | O2: ED | P2: ELL | Q2: SWD
A3: 5006 | B3: EVERGLADES PREPARATORY ACADEMY | C3: 91 | D3: 1 | E3: 9 | F3: 29 | G3: 33 | H3: 17 | I3: 2 | J3: 8 | K3: 7 | L3: 76 | M3: 0 | N3: 0 | O3: 80 | P3: 12 | Q3: 1
A4: 6040 | B4: DOCTORS CHARTER/MIAMI SHORES | C4: 62 | D4: 0 | E4: 4 | F4: 16 | G4: 16 | H4: 5 | I4: 21 | J4: 9 | K4: 39 | L4: 13 | M4: 1 | N4: 0 | O4: 13 | P4: 1 | Q4: 4
A5: 7001 | B5: MIAMI-DADE ONLINE ACADEMY | C5: 31 | D5: 3 | E5: 1 | F5: 4 | G5: 2 | H5: 2 | I5: 19 | J5: 4 | K5: 7 | L5: 20 | M5: 0 | N5: 0 | O5: 22 | P5: 1 | Q5: 1
A6: 7007 | B6: INTL. STUDIES CHARTER SENIOR | C6: 94 | D6: 0 | E6: 0 | F6: 18 | G6: 20 | H6: 7 | I6: 49 | J6: 13 | K6: 4 | L6: 77 | M6: 0 | N6: 0 | O6: 66 | P6: 20 | Q6: 4
A7: 7009 | B7: DORAL PERFORMING ARTS ACADEMY | C7: 38 | D7: 0 | E7: 0 | F7: 9 | G7: 12 | H7: 4 | I7: 13 | J7: 5 | K7: 0 | L7: 33 | M7: 0 | N7: 0 | O7: 25 | P7: 2 | Q7: 0
A8: 7011 | B8: AMERICAN SENIOR | C8: 398 | D8: 1 | E8: 4 | F8: 64 | G8: 41 | H8: 3 | I8: 285 | J8: 11 | K8: 114 | L8: 270 | M8: 2 | N8: 1 | O8: 319 | P8: 75 | Q8: 38
A9: 7015 | B9: STELLAR LEADERSHIP ACADEMY | C9: 111 | D9: 22 | E9: 14 | F9: 3 | G9: 1 | H9: 0 | I9: 71 | J9: 0 | K9: 93 | L9: 18 | M9: 0 | N9: 0 | O9: 70 | P9: 4 | Q9: 19
A10: 7018 | B10: MATER ACADEMY LAKES HIGH SCH | C10: 156 | D10: 0 | E10: 0 | F10: 29 | G10: 18 | H10: 5 | I10: 104 | J10: 8 | K10: 5 | L10: 142 | M10: 1 | N10: 0 | O10: 114 | P10: 27 | Q10: 3
A11: 7020 | B11: DORAL ACADEMY HIGH SCHOOL | C11: 202 | D11: 0 | E11: 1 | F11: 60 | G11: 47 | H11: 7 | I11: 87 | J11: 15 | K11: 2 | L11: 183 | M11: 2 | N11: 0 | O11: 119 | P11: 22 | Q11: 8
A12: 7022 | B12: ACADEMY OF ARTS AND MINDS | C12: 86 | D12: 0 | E12: 0 | F12: 18 | G12: 17 | H12: 1 | I12: 50 | J12: 10 | K12: 5 | L12: 70 | M12: 1 | N12: 0 | O12: 29 | P12: 4 | Q12: 8
A13: 7029 | B13: TERRA ENVIRONMENTAL RESEARCH | C13: 198 | D13: 0 | E13: 0 | F13: 68 | G13: 68 | H13: 26 | I13: 36 | J13: 42 | K13: 7 | L13: 143 | M13: 6 | N13: 0 | O13: 81 | P13: 3 | Q13: 14
A14: 7030 | B14: INTEGRATED ACADEMICS (SIATECH) | C14: 66 | D14: 0 | E14: 0 | F14: 0 | G14: 1 | H14: 0 | I14: 65 | J14: 4 | K14: 49 | L14: 11 | M14: 0 | N14: 0 | O14: 18 | P14: 6 | Q14: 10
A15: 7033 | B15: LAW ENFORCEMENT OFFICERS HS | C15: 49 | D15: 0 | E15: 0 | F15: 10 | G15: 9 | H15: 3 | I15: 27 | J15: 2 | K15: 14 | L15: 33 | M15: 0 | N15: 0 | O15: 42 | P15: 1 | Q15: 1
A16: 7034 | B16: SOMERSET ACAD HIGH SOUTH-HMSTD | C16: 20 | D16: 3 | E16: 5 | F16: 6 | G16: 1 | H16: 1 | I16: 4 | J16: 5 | K16: 1 | L16: 14 | M16: 0 | N16: 0 | O16: 15 | P16: 0 | Q16: 2
A17: 7036 | B17: LAWRENCE ACADEMY SENIOR | C17: 20 | D17: 0 | E17: 0 | F17: 3 | G17: 0 | H17: 0 | I17: 17 | J17: 0 | K17: 6 | L17: 14 | M17: 0 | N17: 0 | O17: 20 | P17: 2 | Q17: 4
A18: 7037 | B18: MATER ACADEMY EAST HIGH SCHOOL | C18: 67 | D18: 0 | E18: 0 | F18: 21 | G18: 13 | H18: 0 | I18: 33 | J18: 1 | K18: 3 | L18: 63 | M18: 0 | N18: 0 | O18: 46 | P18: 9 | Q18: 5
A19: 7042 | B19: SOMERSET ACADEMY CHARTER HIGH | C19: 75 | D19: 0 | E19: 0 | F19: 14 | G19: 6 | H19: 2 | I19: 53 | J19: 3 | K19: 3 | L19: 69 | M19: 0 | N19: 0 | O19: 64 | P19: 14 | Q19: 7
A20: 7048 | B20: ALONZO & TRACY MOURNING SH | C20: 404 | D20: 1 | E20: 4 | F20: 82 | G20: 72 | H20: 20 | I20: 225 | J20: 107 | K20: 90 | L20: 200 | M20: 6 | N20: 1 | O20: 238 | P20: 55 | Q20: 35
A21: 7049 | B21: WESTLAND HIALEAH SENIOR HIGH | C21: 453 | D21: 5 | E21: 2 | F21: 85 | G21: 39 | H21: 12 | I21: 310 | J21: 10 | K21: 12 | L21: 431 | M21: 0 | N21: 0 | O21: 389 | P21: 188 | Q21: 37
A22: 7050 | B22: KEYS GATE CHARTER HIGH SCHL | C22: 149 | D22: 0 | E22: 1 | F22: 17 | G22: 8 | H22: 3 | I22: 120 | J22: 21 | K22: 34 | L22: 92 | M22: 2 | N22: 0 | O22: 92 | P22: 21 | Q22: 22
A23: 7051 | B23: G. HOLMES BRADDOCK SENIOR HIGH | C23: 610 | D23: 3 | E23: 4 | F23: 150 | G23: 72 | H23: 17 | I23: 364 | J23: 23 | K23: 12 | L23: 567 | M23: 8 | N23: 0 | O23: 488 | P23: 124 | Q23: 117
A24: 7053 | B24: PINECREST ACADEMY CHARTER HIGH | C24: 38 | D24: 0 | E24: 0 | F24: 9 | G24: 3 | H24: 2 | I24: 24 | J24: 1 | K24: 0 | L24: 37 | M24: 0 | N24: 0 | O24: 19 | P24: 1 | Q24: 0
A25: 7054 | B25: EXCELSIOR CHARTER HIGH SCHOOL | C25: 17 | D25: 0 | E25: 0 | F25: 3 | G25: 0 | H25: 0 | I25: 14 | J25: 0 | K25: 0 | L25: 17 | M25: 0 | N25: 0 | O25: 16 | P25: 11 | Q25: 2
A26: 7056 | B26: YOUNG MENS PREPARATORY ACADEMY | C26: 20 | D26: 0 | E26: 0 | F26: 4 | G26: 5 | H26: 0 | I26: 11 | J26: 0 | K26: 11 | L26: 8 | M26: 1 | N26: 0 | O26: 14 | P26: 2 | Q26: 1
A27: 7058 | B27: MIAMI COMMUNITY CH HIGH SCHOOL | C27: 30 | D27: 1 | E27: 0 | F27: 7 | G27: 1 | H27: 1 | I27: 20 | J27: 3 | K27: 1 | L27: 26 | M27: 0 | N27: 0 | O27: 27 | P27: 6 | Q27: 2
A28: 7059 | B28: MIAMI ARTS CHARTER | C28: 62 | D28: 0 | E28: 0 | F28: 16 | G28: 16 | H28: 6 | I28: 24 | J28: 12 | K28: 13 | L28: 36 | M28: 0 | N28: 0 | O28: 13 | P28: 2 | Q28: 2
A29: 7061 | B29: SCHOOL FOR ADVANCED STUDIES NO | C29: 1 | D29: 0 | E29: 0 | F29: 0 | G29: 1 | H29: 0 | I29: 0 | J29: 0 | K29: 1 | L29: 0 | M29: 0 | N29: 0 | O29: 0 | P29: 0 | Q29: 0
A30: 7065 | B30: MAVERICKS HIGH OF SOUTH M-DADE | C30: 81 | D30: 13 | E30: 10 | F30: 4 | G30: 2 | H30: 1 | I30: 51 | J30: 8 | K30: 40 | L30: 33 | M30: 0 | N30: 0 | O30: 80 | P30: 0 | Q30: 16
A31: 7067 | B31: GREEN SPRINGS HIGH SCHOOL | C31: 78 | D31: 4 | E31: 6 | F31: 7 | G31: 3 | H31: 0 | I31: 58 | J31: 2 | K31: 12 | L31: 63 | M31: 1 | N31: 0 | O31: 50 | P31: 11 | Q31: 7
A32: 7068 | B32: NORTH GARDENS HIGH SCHOOL | C32: 36 | D32: 2 | E32: 1 | F32: 0 | G32: 0 | H32: 0 | I32: 33 | J32: 1 | K32: 23 | L32: 12 | M32: 0 | N32: 0 | O32: 9 | P32: 1 | Q32: 4
A33: 7069 | B33: NORTH PARK HIGH SCHOOL | C33: 49 | D33: 2 | E33: 2 | F33: 2 | G33: 0 | H33: 1 | I33: 42 | J33: 0 | K33: 31 | L33: 18 | M33: 0 | N33: 0 | O33: 28 | P33: 8 | Q33: 6
A34: 7071 | B34: CORAL GABLES SENIOR HIGH | C34: 572 | D34: 4 | E34: 2 | F34: 98 | G34: 52 | H34: 8 | I34: 408 | J34: 43 | K34: 30 | L34: 495 | M34: 4 | N34: 0 | O34: 445 | P34: 172 | Q34: 47
A35: 7081 | B35: DESIGN & ARCHITECTURE SENIOR | C35: 93 | D35: 0 | E35: 0 | F35: 30 | G35: 31 | H35: 18 | I35: 14 | J35: 25 | K35: 12 | L35: 54 | M35: 1 | N35: 0 | O35: 44 | P35: 1 | Q35: 7
A36: 7101 | B36: CORAL REEF SENIOR HIGH | C36: 435 | D36: 1 | E36: 1 | F36: 128 | G36: 124 | H36: 50 | I36: 131 | J36: 59 | K36: 95 | L36: 267 | M36: 6 | N36: 1 | O36: 220 | P36: 8 | Q36: 33
A37: 7111 | B37: HIALEAH SENIOR | C37: 738 | D37: 1 | E37: 4 | F37: 137 | G37: 80 | H37: 34 | I37: 482 | J37: 21 | K37: 30 | L37: 684 | M37: 3 | N37: 0 | O37: 646 | P37: 181 | Q37: 77
A38: 7121 | B38: JOHN A FERGUSON SENIOR HIGH | C38: 869 | D38: 9 | E38: 9 | F38: 199 | G38: 150 | H38: 38 | I38: 464 | J38: 55 | K38: 18 | L38: 783 | M38: 10 | N38: 2 | O38: 565 | P38: 99 | Q38: 93
A39: 7131 | B39: HIALEAH-MIAMI LAKES SENIOR | C39: 329 | D39: 1 | E39: 4 | F39: 55 | G39: 24 | H39: 6 | I39: 239 | J39: 11 | K39: 70 | L39: 245 | M39: 2 | N39: 0 | O39: 282 | P39: 76 | Q39: 34
A40: 7141 | B40: DR MICHAEL M KROP SENIOR HIGH | C40: 550 | D40: 3 | E40: 9 | F40: 138 | G40: 92 | H40: 30 | I40: 278 | J40: 89 | K40: 255 | L40: 198 | M40: 8 | N40: 0 | O40: 339 | P40: 62 | Q40: 35
A41: 7151 | B41: HOMESTEAD SENIOR HIGH | C41: 402 | D41: 19 | E41: 11 | F41: 51 | G41: 15 | H41: 2 | I41: 304 | J41: 11 | K41: 178 | L41: 211 | M41: 1 | N41: 0 | O41: 367 | P41: 47 | Q41: 76
A42: 7160 | B42: MATER ACADEMY CHARTER HIGH | C42: 275 | D42: 0 | E42: 2 | F42: 59 | G42: 35 | H42: 14 | I42: 165 | J42: 8 | K42: 2 | L42: 265 | M42: 0 | N42: 0 | O42: 214 | P42: 43 | Q42: 16
A43: 7161 | B43: MAST @ VIRGINIA KEY | C43: 37 | D43: 0 | E43: 0 | F43: 9 | G43: 21 | H43: 7 | I43: 0 | J43: 7 | K43: 3 | L43: 25 | M43: 2 | N43: 0 | O43: 16 | P43: 0 | Q43: 0
A44: 7171 | B44: MED ACAD SCIENCE & TECHNOLOGY | C44: 71 | D44: 2 | E44: 6 | F44: 19 | G44: 13 | H44: 2 | I44: 29 | J44: 7 | K44: 14 | L44: 50 | M44: 0 | N44: 0 | O44: 49 | P44: 9 | Q44: 4
A45: 7191 | B45: HIALEAH GARDENS SENIOR | C45: 545 | D45: 8 | E45: 5 | F45: 104 | G45: 63 | H45: 13 | I45: 352 | J45: 12 | K45: 8 | L45: 521 | M45: 4 | N45: 0 | O45: 449 | P45: 162 | Q45: 54
A46: 7201 | B46: MIAMI BEACH SENIOR HIGH | C46: 471 | D46: 11 | E46: 5 | F46: 97 | G46: 51 | H46: 13 | I46: 294 | J46: 73 | K46: 45 | L46: 345 | M46: 5 | N46: 0 | O46: 372 | P46: 78 | Q46: 47
A47: 7231 | B47: MIAMI CAROL CITY SENIOR HIGH | C47: 414 | D47: 10 | E47: 8 | F47: 50 | G47: 22 | H47: 4 | I47: 320 | J47: 1 | K47: 350 | L47: 62 | M47: 0 | N47: 0 | O47: 347 | P47: 13 | Q47: 47
A48: 7241 | B48: RONALD W REAGAN/DORAL SENIOR | C48: 436 | D48: 2 | E48: 2 | F48: 118 | G48: 76 | H48: 16 | I48: 222 | J48: 33 | K48: 6 | L48: 392 | M48: 5 | N48: 0 | O48: 202 | P48: 114 | Q48: 23
A49: 7251 | B49: MIAMI CENTRAL SENIOR HIGH | C49: 402 | D49: 12 | E49: 10 | F49: 37 | G49: 14 | H49: 2 | I49: 327 | J49: 1 | K49: 315 | L49: 84 | M49: 1 | N49: 0 | O49: 331 | P49: 59 | Q49: 52
A50: 7262 | B50: CITY OF HIALEAH EDUCATION ACAD | C50: 109 | D50: 1 | E50: 1 | F50: 17 | G50: 11 | H50: 2 | I50: 77 | J50: 0 | K50: 1 | L50: 108 | M50: 0 | N50: 0 | O50: 101 | P50: 19 | Q50: 6
A51: 7265 | B51: ARCHIMEDEAN UPPER CONSERV CHAR | C51: 18 | D51: 0 | E51: 0 | F51: 3 | G51: 7 | H51: 1 | I51: 7 | J51: 2 | K51: 0 | L51: 16 | M51: 0 | N51: 0 | O51: 12 | P51: 1 | Q51: 0
A52: 7271 | B52: MIAMI CORAL PARK SENIOR HIGH | C52: 665 | D52: 6 | E52: 8 | F52: 118 | G52: 91 | H52: 20 | I52: 422 | J52: 29 | K52: 10 | L52: 623 | M52: 3 | N52: 0 | O52: 523 | P52: 168 | Q52: 62
A53: 7301 | B53: MIAMI EDISON SENIOR HIGH | C53: 224 | D53: 4 | E53: 3 | F53: 23 | G53: 9 | H53: 1 | I53: 184 | J53: 0 | K53: 196 | L53: 28 | M53: 0 | N53: 0 | O53: 197 | P53: 59 | Q53: 19
A54: 7341 | B54: MIAMI JACKSON SENIOR HIGH | C54: 231 | D54: 1 | E54: 0 | F54: 6 | G54: 1 | H54: 1 | I54: 222 | J54: 3 | K54: 71 | L54: 157 | M54: 0 | N54: 0 | O54: 216 | P54: 51 | Q54: 27
A55: 7351 | B55: ARTHUR AND POLLY MAYS CONSERVA | C55: 60 | D55: 17 | E55: 24 | F55: 14 | G55: 4 | H55: 0 | I55: 1 | J55: 5 | K55: 23 | L55: 32 | M55: 0 | N55: 0 | O55: 54 | P55: 7 | Q55: 10
A56: 7361 | B56: MIAMI KILLIAN SENIOR HIGH | C56: 529 | D56: 5 | E56: 7 | F56: 102 | G56: 54 | H56: 17 | I56: 344 | J56: 75 | K56: 128 | L56: 309 | M56: 9 | N56: 0 | O56: 335 | P56: 58 | Q56: 64
A57: 7371 | B57: ROBERT MORGAN EDUCATIONAL CTR | C57: 387 | D57: 0 | E57: 2 | F57: 104 | G57: 66 | H57: 17 | I57: 198 | J57: 44 | K57: 81 | L57: 254 | M57: 5 | N57: 1 | O57: 264 | P57: 20 | Q57: 39
A58: 7381 | B58: MIAMI NORLAND SENIOR HIGH | C58: 376 | D58: 8 | E58: 3 | F58: 50 | G58: 22 | H58: 7 | I58: 286 | J58: 0 | K58: 359 | L58: 14 | M58: 1 | N58: 1 | O58: 306 | P58: 24 | Q58: 38
A59: 7391 | B59: MIAMI LAKES EDUCATIONAL CENTER | C59: 314 | D59: 1 | E59: 0 | F59: 86 | G59: 83 | H59: 25 | I59: 119 | J59: 10 | K59: 73 | L59: 229 | M59: 1 | N59: 0 | O59: 244 | P59: 15 | Q59: 29
A60: 7411 | B60: MIAMI NORTHWESTERN SENIOR HIGH | C60: 358 | D60: 8 | E60: 6 | F60: 53 | G60: 20 | H60: 5 | I60: 266 | J60: 1 | K60: 333 | L60: 24 | M60: 0 | N60: 0 | O60: 308 | P60: 6 | Q60: 31
A61: 7431 | B61: MIAMI PALMETTO SENIOR HIGH | C61: 479 | D61: 2 | E61: 1 | F61: 119 | G61: 76 | H61: 24 | I61: 257 | J61: 146 | K61: 95 | L61: 222 | M61: 13 | N61: 0 | O61: 200 | P61: 29 | Q61: 65
A62: 7461 | B62: MIAMI SENIOR HIGH | C62: 629 | D62: 10 | E62: 3 | F62: 107 | G62: 64 | H62: 18 | I62: 427 | J62: 17 | K62: 13 | L62: 597 | M62: 2 | N62: 0 | O62: 563 | P62: 184 | Q62: 72
A63: 7511 | B63: MIAMI SPRINGS SENIOR HIGH | C63: 385 | D63: 0 | E63: 1 | F63: 76 | G63: 47 | H63: 14 | I63: 247 | J63: 22 | K63: 36 | L63: 324 | M63: 3 | N63: 0 | O63: 309 | P63: 105 | Q63: 21
A64: 7531 | B64: MIAMI SUNSET SENIOR HIGH | C64: 485 | D64: 4 | E64: 16 | F64: 90 | G64: 59 | H64: 8 | I64: 308 | J64: 40 | K64: 26 | L64: 415 | M64: 3 | N64: 0 | O64: 346 | P64: 78 | Q64: 67
A65: 7541 | B65: NORTH MIAMI BEACH SENIOR HIGH | C65: 414 | D65: 7 | E65: 3 | F65: 66 | G65: 21 | H65: 9 | I65: 308 | J65: 10 | K65: 319 | L65: 78 | M65: 5 | N65: 2 | O65: 349 | P65: 86 | Q65: 31
A66: 7571 | B66: INTL STUDIES PREP ACADEMY | C66: 24 | D66: 0 | E66: 0 | F66: 8 | G66: 6 | H66: 4 | I66: 6 | J66: 7 | K66: 1 | L66: 16 | M66: 0 | N66: 0 | O66: 11 | P66: 5 | Q66: 0
A67: 7591 | B67: NORTH MIAMI SENIOR HIGH | C67: 541 | D67: 8 | E67: 7 | F67: 81 | G67: 33 | H67: 4 | I67: 408 | J67: 6 | K67: 474 | L67: 55 | M67: 6 | N67: 0 | O67: 467 | P67: 163 | Q67: 35
A68: 7601 | B68: WILLIAM H. TURNER TECHNICAL | C68: 244 | D68: 0 | E68: 0 | F68: 63 | G68: 20 | H68: 4 | I68: 157 | J68: 2 | K68: 189 | L68: 52 | M68: 1 | N68: 0 | O68: 218 | P68: 18 | Q68: 13
A69: 7631 | B69: MIAMI MACARTHUR SOUTH | C69: 10 | D69: 2 | E69: 0 | F69: 1 | G69: 1 | H69: 0 | I69: 6 | J69: 1 | K69: 5 | L69: 4 | M69: 0 | N69: 0 | O69: 7 | P69: 0 | Q69: 5
A70: 7701 | B70: SOUTH DADE SENIOR HIGH | C70: 700 | D70: 16 | E70: 24 | F70: 108 | G70: 55 | H70: 8 | I70: 489 | J70: 80 | K70: 141 | L70: 469 | M70: 5 | N70: 2 | O70: 552 | P70: 80 | Q70: 112
A71: 7721 | B71: SOUTH MIAMI SENIOR HIGH | C71: 459 | D71: 3 | E71: 1 | F71: 100 | G71: 52 | H71: 9 | I71: 294 | J71: 25 | K71: 28 | L71: 405 | M71: 1 | N71: 0 | O71: 354 | P71: 95 | Q71: 59
A72: 7731 | B72: MIAMI SOUTHRIDGE SENIOR HIGH | C72: 423 | D72: 12 | E72: 12 | F72: 54 | G72: 21 | H72: 2 | I72: 322 | J72: 31 | K72: 170 | L72: 215 | M72: 4 | N72: 1 | O72: 341 | P72: 51 | Q72: 102
A73: 7741 | B73: SOUTHWEST MIAMI SENIOR HIGH | C73: 640 | D73: 3 | E73: 2 | F73: 151 | G73: 83 | H73: 22 | I73: 379 | J73: 34 | K73: 6 | L73: 598 | M73: 2 | N73: 0 | O73: 521 | P73: 155 | Q73: 101
A74: 7751 | B74: BARBARA GOLEMAN SENIOR HIGH | C74: 351 | D74: 2 | E74: 0 | F74: 80 | G74: 41 | H74: 15 | I74: 213 | J74: 33 | K74: 40 | L74: 276 | M74: 1 | N74: 0 | O74: 246 | P74: 35 | Q74: 37
A75: 7781 | B75: FELIX VARELA SENIOR HIGH | C75: 591 | D75: 5 | E75: 5 | F75: 142 | G75: 70 | H75: 17 | I75: 352 | J75: 45 | K75: 33 | L75: 500 | M75: 10 | N75: 0 | O75: 415 | P75: 104 | Q75: 63
A76: 7791 | B76: BOOKER T. WASHINGTON SR. HIGH | C76: 195 | D76: 5 | E76: 0 | F76: 14 | G76: 2 | H76: 0 | I76: 174 | J76: 3 | K76: 92 | L76: 100 | M76: 0 | N76: 0 | O76: 186 | P76: 47 | Q76: 34
A77: 7901 | B77: NEW WORLD SCHOOL OF THE ARTS | C77: 78 | D77: 0 | E77: 0 | F77: 18 | G77: 39 | H77: 8 | I77: 13 | J77: 7 | K77: 29 | L77: 37 | M77: 1 | N77: 0 | O77: 35 | P77: 0 | Q77: 3
A78: 8014 | B78: ALTERNATIVE OUTREACH-EXT. YR | C78: 62 | D78: 10 | E78: 3 | F78: 1 | G78: 0 | H78: 0 | I78: 48 | J78: 8 | K78: 35 | L78: 19 | M78: 0 | N78: 0 | O78: 22 | P78: 4 | Q78: 18
A79: 8017 | B79: ALTERNATIVE OUTREACH PROGRAM | C79: 59 | D79: 11 | E79: 12 | F79: 4 | G79: 0 | H79: 0 | I79: 32 | J79: 2 | K79: 45 | L79: 12 | M79: 0 | N79: 0 | O79: 46 | P79: 2 | Q79: 7
A80: 8019 | B80: ACADEMY FOR COMMUNITY ED | C80: 34 | D80: 2 | E80: 1 | F80: 3 | G80: 0 | H80: 0 | I80: 28 | J80: 1 | K80: 27 | L80: 6 | M80: 0 | N80: 0 | O80: 30 | P80: 0 | Q80: 0
A81: 8101 | B81: JAN MANN OPPORTUNITY SCHOOL | C81: 4 | D81: 1 | E81: 0 | F81: 0 | G81: 1 | H81: 0 | I81: 2 | J81: 0 | K81: 2 | L81: 2 | M81: 0 | N81: 0 | O81: 4 | P81: 0 | Q81: 0
A82: 8121 | B82: COPE CENTER NORTH | C82: 54 | D82: 5 | E82: 6 | F82: 2 | G82: 1 | H82: 0 | I82: 40 | J82: 0 | K82: 42 | L82: 12 | M82: 0 | N82: 0 | O82: 50 | P82: 4 | Q82: 6
A83: 8131 | B83: DOROTHY M WALLACE COPE CENTER | C83: 34 | D83: 4 | E83: 2 | F83: 1 | G83: 2 | H83: 1 | I83: 24 | J83: 2 | K83: 20 | L83: 12 | M83: 0 | N83: 0 | O83: 34 | P83: 4 | Q83: 5
A84: 8141 | B84: JUVENILE JUSTICE CENTER | C84: 20 | D84: 5 | E84: 4 | F84: 1 | G84: 0 | H84: 0 | I84: 10 | J84: 1 | K84: 8 | L84: 11 | M84: 0 | N84: 0 | O84: 17 | P84: 0 | Q84: 5
A85: 8151 | B85: ROBERT RENICK EDUCATION CTR | C85: 4 | D85: 1 | E85: 0 | F85: 0 | G85: 0 | H85: 0 | I85: 3 | J85: 0 | K85: 4 | L85: 0 | M85: 0 | N85: 0 | O85: 4 | P85: 0 | Q85: 4
A86: 8181 | B86: RUTH OWENS KRUSE' EDUC CENTER | C86: 12 | D86: 7 | E86: 3 | F86: 0 | G86: 0 | H86: 0 | I86: 2 | J86: 0 | K86: 4 | L86: 7 | M86: 0 | N86: 0 | O86: 12 | P86: 1 | Q86: 12
A87: 9732 | B87: MERRICK EDUCATIONAL CENTER | C87: 40 | D87: 0 | E87: 4 | F87: 8 | G87: 3 | H87: 1 | I87: 24 | J87: 5 | K87: 5 | L87: 30 | M87: 0 | N87: 0 | O87: 24 | P87: 5 | Q87: 38
A88: (blank) | B88: (blank) | C88: 0 | D88: 0 | E88: 0 | F88: 0 | G88: 0 | H88: 0 | I88: 0 | J88: 0 | K88: 0 | L88: 0 | M88: 0 | N88: 0 | O88: 0 | P88: 0 | Q88: 0
A89: 9999 | B89: District | C89: 20673 | D89: 320 | E89: 310 | F89: 3961 | G89: 2455 | H89: 667 | I89: 12960 | J89: 1481 | K89: 5234 | L89: 13738 | M89: 159 | N89: 12 | O89: 15417 | P89: 3440 | Q89: 2265
A90: 0 | B90: 0 | C90: 0 | D90: 0 | E90: 0 | F90: 0 | G90: 0 | H90: 0 | I90: 0 | J90: 0 | K90: 0 | L90: 0 | M90: 0 | N90: 0 | O90: 0 | P90: 0 | Q90: 0
A91: 0 | B91: 0 | C91: 0 | D91: 0 | E91: 0 | F91: 0 | G91: 0 | H91: 0 | I91: 0 | J91: 0 | K91: 0 | L91: 0 | M91: 0 | N91: 0 | O91: 0 | P91: 0 | Q91: 0
A92: 0 | B92: 0 | C92: 0 | D92: 0 | E92: 0 | F92: 0 | G92: 0 | H92: 0 | I92: 0 | J92: 0 | K92: 0 | L92: 0 | M92: 0 | N92: 0 | O92: 0 | P92: 0 | Q92: 0
A93: 0 | B93: 0 | C93: 0 | D93: 0 | E93: 0 | F93: 0 | G93: 0 | H93: 0 | I93: 0 | J93: 0 | K93: 0 | L93: 0 | M93: 0 | N93: 0 | O93: 0 | P93: 0 | Q93: 0
A94: 0 | B94: 0 | C94: 0 | D94: 0 | E94: 0 | F94: 0 | G94: 0 | H94: 0 | I94: 0 | J94: 0 | K94: 0 | L94: 0 | M94: 0 | N94: 0 | O94: 0 | P94: 0 | Q94: 0
A95: 0 | B95: 0 | C95: 0 | D95: 0 | E95: 0 | F95: 0 | G95: 0 | H95: 0 | I95: 0 | J95: 0 | K95: 0 | L95: 0 | M95: 0 | N95: 0 | O95: 0 | P95: 0 | Q95: 0
A96: 0 | B96: 0 | C96: 0 | D96: 0 | E96: 0 | F96: 0 | G96: 0 | H96: 0 | I96: 0 | J96: 0 | K96: 0 | L96: 0 | M96: 0 | N96: 0 | O96: 0 | P96: 0 | Q96: 0
A97: 0 | B97: 0 | C97: 0 | D97: 0 | E97: 0 | F97: 0 | G97: 0 | H97: 0 | I97: 0 | J97: 0 | K97: 0 | L97: 0 | M97: 0 | N97: 0 | O97: 0 | P97: 0 | Q97: 0
A98: 0 | B98: 0 | C98: 0 | D98: 0 | E98: 0 | F98: 0 | G98: 0 | H98: 0 | I98: 0 | J98: 0 | K98: 0 | L98: 0 | M98: 0 | N98: 0 | O98: 0 | P98: 0 | Q98: 0
A99: 0 | B99: 0 | C99: 0 | D99: 0 | E99: 0 | F99: 0 | G99: 0 | H99: 0 | I99: 0 | J99: 0 | K99: 0 | L99: 0 | M99: 0 | N99: 0 | O99: 0 | P99: 0 | Q99: 0
A100: 0 | B100: 0 | C100: 0 | D100: 0 | E100: 0 | F100: 0 | G100: 0 | H100: 0 | I100: 0 | J100: 0 | K100: 0 | L100: 0 | M100: 0 | N100: 0 | O100: 0 | P100: 0 | Q100: 0
A101: 0 | B101: 0 | C101: 0 | D101: 0 | E101: 0 | F101: 0 | G101: 0 | H101: 0 | I101: 0 | J101: 0 | K101: 0 | L101: 0 | M101: 0 | N101: 0 | O101: 0 | P101: 0 | Q101: 0
A102: 0 | B102: 0 | C102: 0 | D102: 0 | E102: 0 | F102: 0 | G102: 0 | H102: 0 | I102: 0 | J102: 0 | K102: 0 | L102: 0 | M102: 0 | N102: 0 | O102: 0 | P102: 0 | Q102: 0
A103: 0 | B103: 0 | C103: 0 | D103: 0 | E103: 0 | F103: 0 | G103: 0 | H103: 0 | I103: 0 | J103: 0 | K103: 0 | L103: 0 | M103: 0 | N103: 0 | O103: 0 | P103: 0 | Q103: 0
A104: 0 | B104: 0 | C104: 0 | D104: 0 | E104: 0 | F104: 0 | G104: 0 | H104: 0 | I104: 0 | J104: 0 | K104: 0 | L104: 0 | M104: 0 | N104: 0 | O104: 0 | P104: 0 | Q104: 0
A105: 0 | B105: 0 | C105: 0 | D105: 0 | E105: 0 | F105: 0 | G105: 0 | H105: 0 | I105: 0 | J105: 0 | K105: 0 | L105: 0 | M105: 0 | N105: 0 | O105: 0 | P105: 0 | Q105: 0
A106: 0 | B106: 0 | C106: 0 | D106: 0 | E106: 0 | F106: 0 | G106: 0 | H106: 0 | I106: 0 | J106: 0 | K106: 0 | L106: 0 | M106: 0 | N106: 0 | O106: 0 | P106: 0 | Q106: 0
A107: 0 | B107: 0 | C107: 0 | D107: 0 | E107: 0 | F107: 0 | G107: 0 | H107: 0 | I107: 0 | J107: 0 | K107: 0 | L107: 0 | M107: 0 | N107: 0 | O107: 0 | P107: 0 | Q107: 0
A108: 0 | B108: 0 | C108: 0 | D108: 0 | E108: 0 | F108: 0 | G108: 0 | H108: 0 | I108: 0 | J108: 0 | K108: 0 | L108: 0 | M108: 0 | N108: 0 | O108: 0 | P108: 0 | Q108: 0
A109: 0 | B109: 0 | C109: 0 | D109: 0 | E109: 0 | F109: 0 | G109: 0 | H109: 0 | I109: 0 | J109: 0 | K109: 0 | L109: 0 | M109: 0 | N109: 0 | O109: 0 | P109: 0 | Q109: 0
A110: 0 | B110: 0 | C110: 0 | D110: 0 | E110: 0 | F110: 0 | G110: 0 | H110: 0 | I110: 0 | J110: 0 | K110: 0 | L110: 0 | M110: 0 | N110: 0 | O110: 0 | P110: 0 | Q110: 0
A111: 0 | B111: 0 | C111: 0 | D111: 0 | E111: 0 | F111: 0 | G111: 0 | H111: 0 | I111: 0 | J111: 0 | K111: 0 | L111: 0 | M111: 0 | N111: 0 | O111: 0 | P111: 0 | Q111: 0
A112: 0 | B112: 0 | C112: 0 | D112: 0 | E112: 0 | F112: 0 | G112: 0 | H112: 0 | I112: 0 | J112: 0 | K112: 0 | L112: 0 | M112: 0 | N112: 0 | O112: 0 | P112: 0 | Q112: 0
A113: 0 | B113: 0 | C113: 0 | D113: 0 | E113: 0 | F113: 0 | G113: 0 | H113: 0 | I113: 0 | J113: 0 | K113: 0 | L113: 0 | M113: 0 | N113: 0 | O113: 0 | P113: 0 | Q113: 0
A114: 0 | B114: 0 | C114: 0 | D114: 0 | E114: 0 | F114: 0 | G114: 0 | H114: 0 | I114: 0 | J114: 0 | K114: 0 | L114: 0 | M114: 0 | N114: 0 | O114: 0 | P114: 0 | Q114: 0
A115: 0 | B115: 0 | C115: 0 | D115: 0 | E115: 0 | F115: 0 | G115: 0 | H115: 0 | I115: 0 | J115: 0 | K115: 0 | L115: 0 | M115: 0 | N115: 0 | O115: 0 | P115: 0 | Q115: 0
A116: 0 | B116: 0 | C116: 0 | D116: 0 | E116: 0 | F116: 0 | G116: 0 | H116: 0 | I116: 0 | J116: 0 | K116: 0 | L116: 0 | M116: 0 | N116: 0 | O116: 0 | P116: 0 | Q116: 0
A117: 0 | B117: 0 | C117: 0 | D117: 0 | E117: 0 | F117: 0 | G117: 0 | H117: 0 | I117: 0 | J117: 0 | K117: 0 | L117: 0 | M117: 0 | N117: 0 | O117: 0 | P117: 0 | Q117: 0
A118: 0 | B118: 0 | C118: 0 | D118: 0 | E118: 0 | F118: 0 | G118: 0 | H118: 0 | I118: 0 | J118: 0 | K118: 0 | L118: 0 | M118: 0 | N118: 0 | O118: 0 | P118: 0 | Q118: 0
A119: 0 | B119: 0 | C119: 0 | D119: 0 | E119: 0 | F119: 0 | G119: 0 | H119: 0 | I119: 0 | J119: 0 | K119: 0 | L119: 0 | M119: 0 | N119: 0 | O119: 0 | P119: 0 | Q119: 0
A120: 0 | B120: 0 | C120: 0 | D120: 0 | E120: 0 | F120: 0 | G120: 0 | H120: 0 | I120: 0 | J120: 0 | K120: 0 | L120: 0 | M120: 0 | N120: 0 | O120: 0 | P120: 0 | Q120: 0
A121: 0 | B121: 0 | C121: 0 | D121: 0 | E121: 0 | F121: 0 | G121: 0 | H121: 0 | I121: 0 | J121: 0 | K121: 0 | L121: 0 | M121: 0 | N121: 0 | O121: 0 | P121: 0 | Q121: 0
A122: 0 | B122: 0 | C122: 0 | D122: 0 | E122: 0 | F122: 0 | G122: 0 | H122: 0 | I122: 0 | J122: 0 | K122: 0 | L122: 0 | M122: 0 | N122: 0 | O122: 0 | P122: 0 | Q122: 0
A123: 0 | B123: 0 | C123: 0 | D123: 0 | E123: 0 | F123: 0 | G123: 0 | H123: 0 | I123: 0 | J123: 0 | K123: 0 | L123: 0 | M123: 0 | N123: 0 | O123: 0 | P123: 0 | Q123: 0
A124: 0 | B124: 0 | C124: 0 | D124: 0 | E124: 0 | F124: 0 | G124: 0 | H124: 0 | I124: 0 | J124: 0 | K124: 0 | L124: 0 | M124: 0 | N124: 0 | O124: 0 | P124: 0 | Q124: 0
A125: 0 | B125: 0 | C125: 0 | D125: 0 | E125: 0 | F125: 0 | G125: 0 | H125: 0 | I125: 0 | J125: 0 | K125: 0 | L125: 0 | M125: 0 | N125: 0 | O125: 0 | P125: 0 | Q125: 0
A126: 0 | B126: 0 | C126: 0 | D126: 0 | E126: 0 | F126: 0 | G126: 0 | H126: 0 | I126: 0 | J126: 0 | K126: 0 | L126: 0 | M126: 0 | N126: 0 | O126: 0 | P126: 0 | Q126: 0
A127: 0 | B127: 0 | C127: 0 | D127: 0 | E127: 0 | F127: 0 | G127: 0 | H127: 0 | I127: 0 | J127: 0 | K127: 0 | L127: 0 | M127: 0 | N127: 0 | O127: 0 | P127: 0 | Q127: 0
A128: 0 | B128: 0 | C128: 0 | D128: 0 | E128: 0 | F128: 0 | G128: 0 | H128: 0 | I128: 0 | J128: 0 | K128: 0 | L128: 0 | M128: 0 | N128: 0 | O128: 0 | P128: 0 | Q128: 0
A129: 0 | B129: 0 | C129: 0 | D129: 0 | E129: 0 | F129: 0 | G129: 0 | H129: 0 | I129: 0 | J129: 0 | K129: 0 | L129: 0 | M129: 0 | N129: 0 | O129: 0 | P129: 0 | Q129: 0
A130: 0 | B130: 0 | C130: 0 | D130: 0 | E130: 0 | F130: 0 | G130: 0 | H130: 0 | I130: 0 | J130: 0 | K130: 0 | L130: 0 | M130: 0 | N130: 0 | O130: 0 | P130: 0 | Q130: 0
A131: 0 | B131: 0 | C131: 0 | D131: 0 | E131: 0 | F131: 0 | G131: 0 | H131: 0 | I131: 0 | J131: 0 | K131: 0 | L131: 0 | M131: 0 | N131: 0 | O131: 0 | P131: 0 | Q131: 0
A132: 0 | B132: 0 | C132: 0 | D132: 0 | E132: 0 | F132: 0 | G132: 0 | H132: 0 | I132: 0 | J132: 0 | K132: 0 | L132: 0 | M132: 0 | N132: 0 | O132: 0 | P132: 0 | Q132: 0
A133: 0 | B133: 0 | C133: 0 | D133: 0 | E133: 0 | F133: 0 | G133: 0 | H133: 0 | I133: 0 | J133: 0 | K133: 0 | L133: 0 | M133: 0 | N133: 0 | O133: 0 | P133: 0 | Q133: 0
A134: 0 | B134: 0 | C134: 0 | D134: 0 | E134: 0 | F134: 0 | G134: 0 | H134: 0 | I134: 0 | J134: 0 | K134: 0 | L134: 0 | M134: 0 | N134: 0 | O134: 0 | P134: 0 | Q134: 0
A135: 0 | B135: 0 | C135: 0 | D135: 0 | E135: 0 | F135: 0 | G135: 0 | H135: 0 | I135: 0 | J135: 0 | K135: 0 | L135: 0 | M135: 0 | N135: 0 | O135: 0 | P135: 0 | Q135: 0
A136: 0 | B136: 0 | C136: 0 | D136: 0 | E136: 0 | F136: 0 | G136: 0 | H136: 0 | I136: 0 | J136: 0 | K136: 0 | L136: 0 | M136: 0 | N136: 0 | O136: 0 | P136: 0 | Q136: 0
A137: 0 | B137: 0 | C137: 0 | D137: 0 | E137: 0 | F137: 0 | G137: 0 | H137: 0 | I137: 0 | J137: 0 | K137: 0 | L137: 0 | M137: 0 | N137: 0 | O137: 0 | P137: 0 | Q137: 0
A138: 0 | B138: 0 | C138: 0 | D138: 0 | E138: 0 | F138: 0 | G138: 0 | H138: 0 | I138: 0 | J138: 0 | K138: 0 | L138: 0 | M138: 0 | N138: 0 | O138: 0 | P138: 0 | Q138: 0
A139: 0 | B139: 0 | C139: 0 | D139: 0 | E139: 0 | F139: 0 | G139: 0 | H139: 0 | I139: 0 | J139: 0 | K139: 0 | L139: 0 | M139: 0 | N139: 0 | O139: 0 | P139: 0 | Q139: 0
A140: 0 | B140: 0 | C140: 0 | D140: 0 | E140: 0 | F140: 0 | G140: 0 | H140: 0 | I140: 0 | J140: 0 | K140: 0 | L140: 0 | M140: 0 | N140: 0 | O140: 0 | P140: 0 | Q140: 0
A141: 0 | B141: 0 | C141: 0 | D141: 0 | E141: 0 | F141: 0 | G141: 0 | H141: 0 | I141: 0 | J141: 0 | K141: 0 | L141: 0 | M141: 0 | N141: 0 | O141: 0 | P141: 0 | Q141: 0
A142: 0 | B142: 0 | C142: 0 | D142: 0 | E142: 0 | F142: 0 | G142: 0 | H142: 0 | I142: 0 | J142: 0 | K142: 0 | L142: 0 | M142: 0 | N142: 0 | O142: 0 | P142: 0 | Q142: 0
A143: 0 | B143: 0 | C143: 0 | D143: 0 | E143: 0 | F143: 0 | G143: 0 | H143: 0 | I143: 0 | J143: 0 | K143: 0 | L143: 0 | M143: 0 | N143: 0 | O143: 0 | P143: 0 | Q143: 0
A144: 0 | B144: 0 | C144: 0 | D144: 0 | E144: 0 | F144: 0 | G144: 0 | H144: 0 | I144: 0 | J144: 0 | K144: 0 | L144: 0 | M144: 0 | N144: 0 | O144: 0 | P144: 0 | Q144: 0
A145: 0 | B145: 0 | C145: 0 | D145: 0 | E145: 0 | F145: 0 | G145: 0 | H145: 0 | I145: 0 | J145: 0 | K145: 0 | L145: 0 | M145: 0 | N145: 0 | O145: 0 | P145: 0 | Q145: 0
A146: 0 | B146: 0 | C146: 0 | D146: 0 | E146: 0 | F146: 0 | G146: 0 | H146: 0 | I146: 0 | J146: 0 | K146: 0 | L146: 0 | M146: 0 | N146: 0 | O146: 0 | P146: 0 | Q146: 0
A147: 0 | B147: 0 | C147: 0 | D147: 0 | E147: 0 | F147: 0 | G147: 0 | H147: 0 | I147: 0 | J147: 0 | K147: 0 | L147: 0 | M147: 0 | N147: 0 | O147: 0 | P147: 0 | Q147: 0
A148: 0 | B148: 0 | C148: 0 | D148: 0 | E148: 0 | F148: 0 | G148: 0 | H148: 0 | I148: 0 | J148: 0 | K148: 0 | L148: 0 | M148: 0 | N148: 0 | O148: 0 | P148: 0 | Q148: 0
A149: 0 | B149: 0 | C149: 0 | D149: 0 | E149: 0 | F149: 0 | G149: 0 | H149: 0 | I149: 0 | J149: 0 | K149: 0 | L149: 0 | M149: 0 | N149: 0 | O149: 0 | P149: 0 | Q149: 0
A150: 0 | B150: 0 | C150: 0 | D150: 0 | E150: 0 | F150: 0 | G150: 0 | H150: 0 | I150: 0 | J150: 0 | K150: 0 | L150: 0 | M150: 0 | N150: 0 | O150: 0 | P150: 0 | Q150: 0
A151: 0 | B151: 0 | C151: 0 | D151: 0 | E151: 0 | F151: 0 | G151: 0 | H151: 0 | I151: 0 | J151: 0 | K151: 0 | L151: 0 | M151: 0 | N151: 0 | O151: 0 | P151: 0 | Q151: 0
A152: 0 | B152: 0 | C152: 0 | D152: 0 | E152: 0 | F152: 0 | G152: 0 | H152: 0 | I152: 0 | J152: 0 | K152: 0 | L152: 0 | M152: 0 | N152: 0 | O152: 0 | P152: 0 | Q152: 0
A153: 0 | B153: 0 | C153: 0 | D153: 0 | E153: 0 | F153: 0 | G153: 0 | H153: 0 | I153: 0 | J153: 0 | K153: 0 | L153: 0 | M153: 0 | N153: 0 | O153: 0 | P153: 0 | Q153: 0
A154: 0 | B154: 0 | C154: 0 | D154: 0 | E154: 0 | F154: 0 | G154: 0 | H154: 0 | I154: 0 | J154: 0 | K154: 0 | L154: 0 | M154: 0 | N154: 0 | O154: 0 | P154: 0 | Q154: 0
A155: 0 | B155: 0 | C155: 0 | D155: 0 | E155: 0 | F155: 0 | G155: 0 | H155: 0 | I155: 0 | J155: 0 | K155: 0 | L155: 0 | M155: 0 | N155: 0 | O155: 0 | P155: 0 | Q155: 0
A156: 0 | B156: 0 | C156: 0 | D156: 0 | E156: 0 | F156: 0 | G156: 0 | H156: 0 | I156: 0 | J156: 0 | K156: 0 | L156: 0 | M156: 0 | N156: 0 | O156: 0 | P156: 0 | Q156: 0
A157: 0 | B157: 0 | C157: 0 | D157: 0 | E157: 0 | F157: 0 | G157: 0 | H157: 0 | I157: 0 | J157: 0 | K157: 0 | L157: 0 | M157: 0 | N157: 0 | O157: 0 | P157: 0 | Q157: 0
A158: 0 | B158: 0 | C158: 0 | D158: 0 | E158: 0 | F158: 0 | G158: 0 | H158: 0 | I158: 0 | J158: 0 | K158: 0 | L158: 0 | M158: 0 | N158: 0 | O158: 0 | P158: 0 | Q158: 0
A159: 0 | B159: 0 | C159: 0 | D159: 0 | E159: 0 | F159: 0 | G159: 0 | H159: 0 | I159: 0 | J159: 0 | K159: 0 | L159: 0 | M159: 0 | N159: 0 | O159: 0 | P159: 0 | Q159: 0
A160: 9999 | B160: District | C160: 41346 | D160: 640 | E160: 620 | F160: 7922 | G160: 4910 | H160: 1334 | I160: 25920 | J160: 2962 | K160: 10468 | L160: 27476 | M160: 318 | N160: 24 | O160: 30834 | P160: 6880 | Q160: 4530
A161: 0 | B161: 0 | C161: 0 | D161: 0 | E161: 0 | F161: 0 | G161: 0 | H161: 0 | I161: 0 | J161: 0 | K161: 0 | L161: 0 | M161: 0 | N161: 0 | O161: 0 | P161: 0 | Q161: 0
A162: 0 | B162: 0 | C162: 0 | D162: 0 | E162: 0 | F162: 0 | G162: 0 | H162: 0 | I162: 0 | J162: 0 | K162: 0 | L162: 0 | M162: 0 | N162: 0 | O162: 0 | P162: 0 | Q162: 0
A163: 0 | B163: 0 | C163: 0 | D163: 0 | E163: 0 | F163: 0 | G163: 0 | H163: 0 | I163: 0 | J163: 0 | K163: 0 | L163: 0 | M163: 0 | N163: 0 | O163: 0 | P163: 0 | Q163: 0
A164: 0 | B164: 0 | C164: 0 | D164: 0 | E164: 0 | F164: 0 | G164: 0 | H164: 0 | I164: 0 | J164: 0 | K164: 0 | L164: 0 | M164: 0 | N164: 0 | O164: 0 | P164: 0 | Q164: 0
A165: 0 | B165: 0 | C165: 0 | D165: 0 | E165: 0 | F165: 0 | G165: 0 | H165: 0 | I165: 0 | J165: 0 | K165: 0 | L165: 0 | M165: 0 | N165: 0 | O165: 0 | P165: 0 | Q165: 0
A166: 0 | B166: 0 | C166: 0 | D166: 0 | E166: 0 | F166: 0 | G166: 0 | H166: 0 | I166: 0 | J166: 0 | K166: 0 | L166: 0 | M166: 0 | N166: 0 | O166: 0 | P166: 0 | Q166: 0
A167: 0 | B167: 0 | C167: 0 | D167: 0 | E167: 0 | F167: 0 | G167: 0 | H167: 0 | I167: 0 | J167: 0 | K167: 0 | L167: 0 | M167: 0 | N167: 0 | O167: 0 | P167: 0 | Q167: 0
A168: 0 | B168: 0 | C168: 0 | D168: 0 | E168: 0 | F168: 0 | G168: 0 | H168: 0 | I168: 0 | J168: 0 | K168: 0 | L168: 0 | M168: 0 | N168: 0 | O168: 0 | P168: 0 | Q168: 0
A169: 0 | B169: 0 | C169: 0 | D169: 0 | E169: 0 | F169: 0 | G169: 0 | H169: 0 | I169: 0 | J169: 0 | K169: 0 | L169: 0 | M169: 0 | N169: 0 | O169: 0 | P169: 0 | Q169: 0
A170: 0 | B170: 0 | C170: 0 | D170: 0 | E170: 0 | F170: 0 | G170: 0 | H170: 0 | I170: 0 | J170: 0 | K170: 0 | L170: 0 | M170: 0 | N170: 0 | O170: 0 | P170: 0 | Q170: 0
A171: 0 | B171: 0 | C171: 0 | D171: 0 | E171: 0 | F171: 0 | G171: 0 | H171: 0 | I171: 0 | J171: 0 | K171: 0 | L171: 0 | M171: 0 | N171: 0 | O171: 0 | P171: 0 | Q171: 0
A172: 0 | B172: 0 | C172: 0 | D172: 0 | E172: 0 | F172: 0 | G172: 0 | H172: 0 | I172: 0 | J172: 0 | K172: 0 | L172: 0 | M172: 0 | N172: 0 | O172: 0 | P172: 0 | Q172: 0
A173: 0 | B173: 0 | C173: 0 | D173: 0 | E173: 0 | F173: 0 | G173: 0 | H173: 0 | I173: 0 | J173: 0 | K173: 0 | L173: 0 | M173: 0 | N173: 0 | O173: 0 | P173: 0 | Q173: 0
A174: 0 | B174: 0 | C174: 0 | D174: 0 | E174: 0 | F174: 0 | G174: 0 | H174: 0 | I174: 0 | J174: 0 | K174: 0 | L174: 0 | M174: 0 | N174: 0 | O174: 0 | P174: 0 | Q174: 0
A175: 0 | B175: 0 | C175: 0 | D175: 0 | E175: 0 | F175: 0 | G175: 0 | H175: 0 | I175: 0 | J175: 0 | K175: 0 | L175: 0 | M175: 0 | N175: 0 | O175: 0 | P175: 0 | Q175: 0
A176: 0 | B176: 0 | C176: 0 | D176: 0 | E176: 0 | F176: 0 | G176: 0 | H176: 0 | I176: 0 | J176: 0 | K176: 0 | L176: 0 | M176: 0 | N176: 0 | O176: 0 | P176: 0 | Q176: 0
A177: 0 | B177: 0 | C177: 0 | D177: 0 | E177: 0 | F177: 0 | G177: 0 | H177: 0 | I177: 0 | J177: 0 | K177: 0 | L177: 0 | M177: 0 | N177: 0 | O177: 0 | P177: 0 | Q177: 0
A178: 0 | B178: 0 | C178: 0 | D178: 0 | E178: 0 | F178: 0 | G178: 0 | H178: 0 | I178: 0 | J178: 0 | K178: 0 | L178: 0 | M178: 0 | N178: 0 | O178: 0 | P178: 0 | Q178: 0
A179: 0 | B179: 0 | C179: 0 | D179: 0 | E179: 0 | F179: 0 | G179: 0 | H179: 0 | I179: 0 | J179: 0 | K179: 0 | L179: 0 | M179: 0 | N179: 0 | O179: 0 | P179: 0 | Q179: 0
A180: 0 | B180: 0 | C180: 0 | D180: 0 | E180: 0 | F180: 0 | G180: 0 | H180: 0 | I180: 0 | J180: 0 | K180: 0 | L180: 0 | M180: 0 | N180: 0 | O180: 0 | P180: 0 | Q180: 0
A181: 0 | B181: 0 | C181: 0 | D181: 0 | E181: 0 | F181: 0 | G181: 0 | H181: 0 | I181: 0 | J181: 0 | K181: 0 | L181: 0 | M181: 0 | N181: 0 | O181: 0 | P181: 0 | Q181: 0
A182: 0 | B182: 0 | C182: 0 | D182: 0 | E182: 0 | F182: 0 | G182: 0 | H182: 0 | I182: 0 | J182: 0 | K182: 0 | L182: 0 | M182: 0 | N182: 0 | O182: 0 | P182: 0 | Q182: 0
A183: 0 | B183: 0 | C183: 0 | D183: 0 | E183: 0 | F183: 0 | G183: 0 | H183: 0 | I183: 0 | J183: 0 | K183: 0 | L183: 0 | M183: 0 | N183: 0 | O183: 0 | P183: 0 | Q183: 0
A184: 0 | B184: 0 | C184: 0 | D184: 0 | E184: 0 | F184: 0 | G184: 0 | H184: 0 | I184: 0 | J184: 0 | K184: 0 | L184: 0 | M184: 0 | N184: 0 | O184: 0 | P184: 0 | Q184: 0
A185: 0 | B185: 0 | C185: 0 | D185: 0 | E185: 0 | F185: 0 | G185: 0 | H185: 0 | I185: 0 | J185: 0 | K185: 0 | L185: 0 | M185: 0 | N185: 0 | O185: 0 | P185: 0 | Q185: 0
A186: 0 | B186: 0 | C186: 0 | D186: 0 | E186: 0 | F186: 0 | G186: 0 | H186: 0 | I186: 0 | J186: 0 | K186: 0 | L186: 0 | M186: 0 | N186: 0 | O186: 0 | P186: 0 | Q186: 0
A187: 0 | B187: 0 | C187: 0 | D187: 0 | E187: 0 | F187: 0 | G187: 0 | H187: 0 | I187: 0 | J187: 0 | K187: 0 | L187: 0 | M187: 0 | N187: 0 | O187: 0 | P187: 0 | Q187: 0
A188: 0 | B188: 0 | C188: 0 | D188: 0 | E188: 0 | F188: 0 | G188: 0 | H188: 0 | I188: 0 | J188: 0 | K188: 0 | L188: 0 | M188: 0 | N188: 0 | O188: 0 | P188: 0 | Q188: 0
A189: 0 | B189: 0 | C189: 0 | D189: 0 | E189: 0 | F189: 0 | G189: 0 | H189: 0 | I189: 0 | J189: 0 | K189: 0 | L189: 0 | M189: 0 | N189: 0 | O189: 0 | P189: 0 | Q189: 0
A190: 0 | B190: 0 | C190: 0 | D190: 0 | E190: 0 | F190: 0 | G190: 0 | H190: 0 | I190: 0 | J190: 0 | K190: 0 | L190: 0 | M190: 0 | N190: 0 | O190: 0 | P190: 0 | Q190: 0
A191: 0 | B191: 0 | C191: 0 | D191: 0 | E191: 0 | F191: 0 | G191: 0 | H191: 0 | I191: 0 | J191: 0 | K191: 0 | L191: 0 | M191: 0 | N191: 0 | O191: 0 | P191: 0 | Q191: 0
A192: 0 | B192: 0 | C192: 0 | D192: 0 | E192: 0 | F192: 0 | G192: 0 | H192: 0 | I192: 0 | J192: 0 | K192: 0 | L192: 0 | M192: 0 | N192: 0 | O192: 0 | P192: 0 | Q192: 0
A193: 0 | B193: 0 | C193: 0 | D193: 0 | E193: 0 | F193: 0 | G193: 0 | H193: 0 | I193: 0 | J193: 0 | K193: 0 | L193: 0 | M193: 0 | N193: 0 | O193: 0 | P193: 0 | Q193: 0
A194: 0 | B194: 0 | C194: 0 | D194: 0 | E194: 0 | F194: 0 | G194: 0 | H194: 0 | I194: 0 | J194: 0 | K194: 0 | L194: 0 | M194: 0 | N194: 0 | O194: 0 | P194: 0 | Q194: 0
A195: 0 | B195: 0 | C195: 0 | D195: 0 | E195: 0 | F195: 0 | G195: 0 | H195: 0 | I195: 0 | J195: 0 | K195: 0 | L195: 0 | M195: 0 | N195: 0 | O195: 0 | P195: 0 | Q195: 0
A196: 0 | B196: 0 | C196: 0 | D196: 0 | E196: 0 | F196: 0 | G196: 0 | H196: 0 | I196: 0 | J196: 0 | K196: 0 | L196: 0 | M196: 0 | N196: 0 | O196: 0 | P196: 0 | Q196: 0
A197: 0 | B197: 0 | C197: 0 | D197: 0 | E197: 0 | F197: 0 | G197: 0 | H197: 0 | I197: 0 | J197: 0 | K197: 0 | L197: 0 | M197: 0 | N197: 0 | O197: 0 | P197: 0 | Q197: 0
A198: 0 | B198: 0 | C198: 0 | D198: 0 | E198: 0 | F198: 0 | G198: 0 | H198: 0 | I198: 0 | J198: 0 | K198: 0 | L198: 0 | M198: 0 | N198: 0 | O198: 0 | P198: 0 | Q198: 0
A199: 0 | B199: 0 | C199: 0 | D199: 0 | E199: 0 | F199: 0 | G199: 0 | H199: 0 | I199: 0 | J199: 0 | K199: 0 | L199: 0 | M199: 0 | N199: 0 | O199: 0 | P199: 0 | Q199: 0
A200: 0 | B200: 0 | C200: 0 | D200: 0 | E200: 0 | F200: 0 | G200: 0 | H200: 0 | I200: 0 | J200: 0 | K200: 0 | L200: 0 | M200: 0 | N200: 0 | O200: 0 | P200: 0 | Q200: 0
... 16 more rows

Sheet Mem_All (hidden)
A1: SCHOOL_NUMBER | B1: S_SCHL_NAME | C1: Total Of STUDENT_ID | D1: 00 | E1: 01 | F1: 02 | G1: 03 | H1: 04 | I1: 05 | J1: 06 | K1: 07 | L1: 08 | M1: 09 | N1: 10 | O1: 11 | P1: 12 | Q1: PK | R1: GR10Reading exclude Retainee
A2: 0041 | B2: AIR BASE ELEMENTARY | C2: 731 | D2: 96 | E2: 107 | F2: 117 | G2: 109 | H2: 115 | I2: 116 | Q2: 71 | R2: =N2-IFERROR(VLOOKUP(A2,G10RPassingR!A1:$S$36,4,FALSE),0) -> 0
A3: 0070 | B3: CORAL REEF MONTESSORI ACAD CH | C3: 416 | D3: 73 | E3: 57 | F3: 57 | G3: 55 | H3: 42 | I3: 41 | J3: 29 | K3: 31 | L3: 31 | R3: =N3-IFERROR(VLOOKUP(A3,G10RPassingR!A2:$S$36,4,FALSE),0) -> 0
A4: 0071 | B4: EUGENIA B. THOMAS K-8 CENTER | C4: 1609 | D4: 152 | E4: 198 | F4: 181 | G4: 196 | H4: 192 | I4: 160 | J4: 150 | K4: 160 | L4: 178 | Q4: 42 | R4: =N4-IFERROR(VLOOKUP(A4,G10RPassingR!A3:$S$36,4,FALSE),0) -> 0
A5: 0072 | B5: SUMMERVILLE CHARTER SCHOOL | C5: 433 | E5: 101 | F5: 82 | G5: 84 | H5: 78 | I5: 88 | R5: =N5-IFERROR(VLOOKUP(A5,G10RPassingR!A4:$S$36,4,FALSE),0) -> 0
A6: 0073 | B6: MANDARIN LAKES K-8 CENTER | C6: 1091 | D6: 125 | E6: 146 | F6: 144 | G6: 152 | H6: 119 | I6: 120 | J6: 113 | K6: 74 | L6: 98 | R6: =N6-IFERROR(VLOOKUP(A6,G10RPassingR!A5:$S$36,4,FALSE),0) -> 0
A7: 0081 | B7: LENORA B. SMITH ELEMENTARY | C7: 424 | D7: 59 | E7: 65 | F7: 68 | G7: 77 | H7: 63 | I7: 54 | Q7: 38 | R7: =N7-IFERROR(VLOOKUP(A7,G10RPassingR!A6:$S$36,4,FALSE),0) -> 0
A8: 0091 | B8: BOB GRAHAM EDUCATION CTR | C8: 1719 | D8: 124 | E8: 146 | F8: 161 | G8: 193 | H8: 215 | I8: 195 | J8: 218 | K8: 227 | L8: 240 | R8: =N8-IFERROR(VLOOKUP(A8,G10RPassingR!A7:$S$36,4,FALSE),0) -> 0
A9: 0092 | B9: NORMAN S. EDELCUP/SUNNY ISLES | C9: 1796 | D9: 203 | E9: 206 | F9: 217 | G9: 219 | H9: 209 | I9: 167 | J9: 184 | K9: 197 | L9: 194 | R9: =N9-IFERROR(VLOOKUP(A9,G10RPassingR!A8:$S$36,4,FALSE),0) -> 0
A10: 0100 | B10: MATER ACADEMY | C10: 744 | D10: 123 | E10: 96 | F10: 148 | G10: 124 | H10: 126 | I10: 127 | R10: =N10-IFERROR(VLOOKUP(A10,G10RPassingR!A9:$S$36,4,FALSE),0) -> 0
A11: 0101 | B11: ARCOLA LAKE ELEMENTARY | C11: 534 | D11: 66 | E11: 73 | F11: 70 | G11: 70 | H11: 65 | I11: 86 | Q11: 104 | R11: =N11-IFERROR(VLOOKUP(A11,G10RPassingR!A10:$S$36,4,FALSE),0) -> 0
A12: 0102 | B12: MIAMI COMMUNITY CHARTER SCHOOL | C12: 515 | D12: 95 | E12: 97 | F12: 94 | G12: 89 | H12: 72 | I12: 68 | R12: =N12-IFERROR(VLOOKUP(A12,G10RPassingR!A11:$S$36,4,FALSE),0) -> 0
A13: 0111 | B13: MAYA ANGELOU ELEMENTARY | C13: 718 | D13: 146 | E13: 117 | F13: 105 | G13: 99 | H13: 88 | I13: 97 | Q13: 66 | R13: =N13-IFERROR(VLOOKUP(A13,G10RPassingR!A12:$S$36,4,FALSE),0) -> 0
A14: 0121 | B14: AUBURNDALE ELEMENTARY | C14: 844 | D14: 102 | E14: 149 | F14: 134 | G14: 132 | H14: 136 | I14: 132 | Q14: 59 | R14: =N14-IFERROR(VLOOKUP(A14,G10RPassingR!A13:$S$36,4,FALSE),0) -> 0
A15: 0122 | B15: DR ROLANDO ESPINOSA K-8 | C15: 1650 | D15: 146 | E15: 171 | F15: 188 | G15: 182 | H15: 202 | I15: 174 | J15: 187 | K15: 184 | L15: 196 | Q15: 20 | R15: =N15-IFERROR(VLOOKUP(A15,G10RPassingR!A14:$S$36,4,FALSE),0) -> 0
A16: 0125 | B16: NORMA BUTLER BOSSARD ELEM | C16: 1263 | D16: 201 | E16: 207 | F16: 176 | G16: 229 | H16: 203 | I16: 227 | Q16: 20 | R16: =N16-IFERROR(VLOOKUP(A16,G10RPassingR!A15:$S$36,4,FALSE),0) -> 0
A17: 0161 | B17: AVOCADO ELEMENTARY | C17: 576 | D17: 142 | E17: 143 | F17: 151 | G17: 140 | R17: =N17-IFERROR(VLOOKUP(A17,G10RPassingR!A16:$S$36,4,FALSE),0) -> 0
A18: 0201 | B18: BANYAN ELEMENTARY | C18: 364 | D18: 53 | E18: 59 | F18: 62 | G18: 37 | H18: 58 | I18: 54 | Q18: 41 | R18: =N18-IFERROR(VLOOKUP(A18,G10RPassingR!A17:$S$36,4,FALSE),0) -> 0
A19: 0211 | B19: DR. MANUEL C. BARREIRO ELEM | C19: 826 | D19: 105 | E19: 117 | F19: 125 | G19: 128 | H19: 166 | I19: 165 | Q19: 20 | R19: =N19-IFERROR(VLOOKUP(A19,G10RPassingR!A18:$S$36,4,FALSE),0) -> 0
A20: 0231 | B20: AVENTURA WATERWAYS K-8 CENTER | C20: 1850 | D20: 208 | E20: 229 | F20: 206 | G20: 198 | H20: 215 | I20: 194 | J20: 202 | K20: 184 | L20: 214 | R20: =N20-IFERROR(VLOOKUP(A20,G10RPassingR!A19:$S$36,4,FALSE),0) -> 0
A21: 0241 | B21: RUTH K BROAD/BAY HARBOR K-8 | C21: 1271 | D21: 131 | E21: 124 | F21: 158 | G21: 145 | H21: 166 | I21: 124 | J21: 160 | K21: 114 | L21: 129 | Q21: 20 | R21: =N21-IFERROR(VLOOKUP(A21,G10RPassingR!A20:$S$36,4,FALSE),0) -> 0
A22: 0251 | B22: ETHEL KOGER BECKHAM ELEMENTARY | C22: 717 | D22: 123 | E22: 110 | F22: 109 | G22: 116 | H22: 114 | I22: 106 | Q22: 39 | R22: =N22-IFERROR(VLOOKUP(A22,G10RPassingR!A21:$S$36,4,FALSE),0) -> 0
A23: 0261 | B23: BEL-AIRE ELEMENTARY | C23: 461 | D23: 74 | E23: 75 | F23: 72 | G23: 75 | H23: 61 | I23: 67 | Q23: 37 | R23: =N23-IFERROR(VLOOKUP(A23,G10RPassingR!A22:$S$36,4,FALSE),0) -> 0
A24: 0271 | B24: BENT TREE ELEMENTARY | C24: 571 | D24: 104 | E24: 73 | F24: 96 | G24: 86 | H24: 85 | I24: 100 | Q24: 27 | R24: =N24-IFERROR(VLOOKUP(A24,G10RPassingR!A23:$S$36,4,FALSE),0) -> 0
A25: 0311 | B25: GOULDS ELEMENTARY | C25: 606 | D25: 106 | E25: 121 | F25: 115 | G25: 81 | H25: 99 | I25: 84 | R25: =N25-IFERROR(VLOOKUP(A25,G10RPassingR!A24:$S$36,4,FALSE),0) -> 0
A26: 0312 | B26: MATER GARDENS ACADEMY | C26: 615 | D26: 101 | E26: 103 | F26: 101 | G26: 108 | H26: 100 | I26: 102 | R26: =N26-IFERROR(VLOOKUP(A26,G10RPassingR!A25:$S$36,4,FALSE),0) -> 0
A27: 0321 | B27: BISCAYNE ELEMENTARY | C27: 676 | D27: 100 | E27: 88 | F27: 91 | G27: 120 | H27: 108 | I27: 107 | Q27: 62 | R27: =N27-IFERROR(VLOOKUP(A27,G10RPassingR!A26:$S$36,4,FALSE),0) -> 0
A28: 0331 | B28: CHAPMAN PARTNERSHIP ECC NORTH | C28: 36 | Q28: 36 | R28: =N28-IFERROR(VLOOKUP(A28,G10RPassingR!A27:$S$36,4,FALSE),0) -> 0
A29: 0332 | B29: SOMERSET ACADEMY(SILVER PALMS) | C29: 636 | G29: 66 | H29: 46 | I29: 89 | J29: 164 | K29: 149 | L29: 122 | R29: =N29-IFERROR(VLOOKUP(A29,G10RPassingR!A28:$S$36,4,FALSE),0) -> 0
A30: 0339 | B30: SOMERSET ACADEMY CHARTER ELEM | C30: 314 | D30: 45 | E30: 60 | F30: 60 | G30: 59 | H30: 49 | I30: 41 | R30: =N30-IFERROR(VLOOKUP(A30,G10RPassingR!A29:$S$36,4,FALSE),0) -> 0
A31: 0341 | B31: ARCH CREEK ELEMENTARY SCHOOL | C31: 566 | D31: 81 | E31: 92 | F31: 95 | G31: 98 | H31: 98 | I31: 102 | R31: =N31-IFERROR(VLOOKUP(A31,G10RPassingR!A30:$S$36,4,FALSE),0) -> 0
A32: 0342 | B32: PINECREST ACADEMY SOUTH CAMPUS | C32: 747 | D32: 138 | E32: 132 | F32: 119 | G32: 126 | H32: 111 | I32: 121 | R32: =N32-IFERROR(VLOOKUP(A32,G10RPassingR!A31:$S$36,4,FALSE),0) -> 0
A33: 0351 | B33: CHAPMAN PARTNERSHIP ECC SOUTH | C33: 92 | Q33: 92 | R33: =N33-IFERROR(VLOOKUP(A33,G10RPassingR!A32:$S$36,4,FALSE),0) -> 0
A34: 0361 | B34: BISCAYNE GARDENS ELEMENTARY | C34: 615 | D34: 108 | E34: 92 | F34: 86 | G34: 92 | H34: 85 | I34: 79 | Q34: 73 | R34: =N34-IFERROR(VLOOKUP(A34,G10RPassingR!A33:$S$36,4,FALSE),0) -> 0
A35: 0400 | B35: RENAISSANCE ELEMENTARY CHARTER | C35: 919 | D35: 166 | E35: 157 | F35: 154 | G35: 157 | H35: 152 | I35: 133 | R35: =N35-IFERROR(VLOOKUP(A35,G10RPassingR!A34:$S$36,4,FALSE),0) -> 0
A36: 0401 | B36: VAN E. BLANTON ELEMENTARY | C36: 549 | D36: 91 | E36: 81 | F36: 85 | G36: 99 | H36: 73 | I36: 80 | Q36: 40 | R36: =N36-IFERROR(VLOOKUP(A36,G10RPassingR!A35:$S$36,4,FALSE),0) -> 0
A37: 0410 | B37: ACADEMIR CHARTER SCHOOL WEST | C37: 614 | D37: 97 | E37: 163 | F37: 121 | G37: 113 | H37: 64 | I37: 56 | R37: =N37-IFERROR(VLOOKUP(A37,G10RPassingR!A36:$S$36,4,FALSE),0) -> 0
A38: 0441 | B38: BLUE LAKES ELEMENTARY | C38: 471 | D38: 60 | E38: 60 | F38: 60 | G38: 75 | H38: 74 | I38: 66 | Q38: 76 | R38: =N38-IFERROR(VLOOKUP(A38,G10RPassingR!A$36:$S37,4,FALSE),0) -> 0
A39: 0451 | B39: BOWMAN ASHE/DOOLIN K-8 ACAD | C39: 1431 | D39: 142 | E39: 112 | F39: 125 | G39: 124 | H39: 152 | I39: 139 | J39: 153 | K39: 205 | L39: 227 | Q39: 52 | R39: =N39-IFERROR(VLOOKUP(A39,G10RPassingR!A$36:$S38,4,FALSE),0) -> 0
A40: 0461 | B40: BRENTWOOD ELEMENTARY | C40: 786 | D40: 129 | E40: 113 | F40: 121 | G40: 140 | H40: 100 | I40: 123 | Q40: 60 | R40: =N40-IFERROR(VLOOKUP(A40,G10RPassingR!A$36:$S39,4,FALSE),0) -> 0
A41: 0481 | B41: JAMES H. BRIGHT/JW JOHNSON ES | C41: 767 | D41: 100 | E41: 106 | F41: 115 | G41: 128 | H41: 119 | I41: 136 | Q41: 63 | R41: =N41-IFERROR(VLOOKUP(A41,G10RPassingR!A$36:$S40,4,FALSE),0) -> 0
A42: 0510 | B42: ARCHIMEDEAN ACADEMY | C42: 561 | D42: 78 | E42: 131 | F42: 104 | G42: 84 | H42: 80 | I42: 84 | R42: =N42-IFERROR(VLOOKUP(A42,G10RPassingR!A$36:$S41,4,FALSE),0) -> 0
A43: 0520 | B43: SOMERSET ACADEMY | C43: 575 | D43: 107 | E43: 101 | F43: 79 | G43: 103 | H43: 91 | I43: 94 | R43: =N43-IFERROR(VLOOKUP(A43,G10RPassingR!A$36:$S42,4,FALSE),0) -> 0
A44: 0521 | B44: BROADMOOR ELEMENTARY | C44: 461 | D44: 74 | E44: 72 | F44: 70 | G44: 67 | H44: 61 | I44: 66 | Q44: 51 | R44: =N44-IFERROR(VLOOKUP(A44,G10RPassingR!A$36:$S43,4,FALSE),0) -> 0
A45: 0561 | B45: W.J. BRYAN ELEMENTARY | C45: 742 | D45: 120 | E45: 127 | F45: 104 | G45: 123 | H45: 110 | I45: 124 | Q45: 34 | R45: =N45-IFERROR(VLOOKUP(A45,G10RPassingR!A$36:$S44,4,FALSE),0) -> 0
A46: 0600 | B46: PINECREST PREP ACADEMY | C46: 645 | D46: 76 | E46: 124 | F46: 112 | G46: 121 | H46: 113 | I46: 99 | R46: =N46-IFERROR(VLOOKUP(A46,G10RPassingR!A$36:$S45,4,FALSE),0) -> 0
A47: 0641 | B47: BUNCHE PARK ELEMENTARY | C47: 281 | D47: 45 | E47: 47 | F47: 45 | G47: 39 | H47: 34 | I47: 31 | Q47: 40 | R47: =N47-IFERROR(VLOOKUP(A47,G10RPassingR!A$36:$S46,4,FALSE),0) -> 0
A48: 0651 | B48: CAMPBELL DRIVE K-8 CENTER | C48: 792 | D48: 112 | E48: 108 | F48: 103 | G48: 106 | H48: 87 | I48: 103 | J48: 60 | K48: 67 | Q48: 46 | R48: =N48-IFERROR(VLOOKUP(A48,G10RPassingR!A$36:$S47,4,FALSE),0) -> 0
A49: 0661 | B49: CARIBBEAN ELEMENTARY | C49: 616 | D49: 112 | E49: 104 | F49: 84 | G49: 107 | H49: 81 | I49: 82 | Q49: 46 | R49: =N49-IFERROR(VLOOKUP(A49,G10RPassingR!A$36:$S48,4,FALSE),0) -> 0
A50: 0671 | B50: CALUSA ELEMENTARY | C50: 909 | D50: 139 | E50: 157 | F50: 121 | G50: 140 | H50: 166 | I50: 166 | Q50: 20 | R50: =N50-IFERROR(VLOOKUP(A50,G10RPassingR!A$36:$S49,4,FALSE),0) -> 0
A51: 0681 | B51: CAROL CITY ELEMENTARY | C51: 633 | D51: 100 | E51: 88 | F51: 111 | G51: 93 | H51: 83 | I51: 91 | Q51: 67 | R51: =N51-IFERROR(VLOOKUP(A51,G10RPassingR!A$36:$S50,4,FALSE),0) -> 0
A52: 0721 | B52: GEORGE WASHINGTON CARVER ELEM | C52: 460 | D52: 67 | E52: 79 | F52: 71 | G52: 85 | H52: 79 | I52: 79 | R52: =N52-IFERROR(VLOOKUP(A52,G10RPassingR!A$36:$S51,4,FALSE),0) -> 0
A53: 0761 | B53: FIENBERG/FISHER K-8 CENTER | C53: 841 | D53: 72 | E53: 77 | F53: 79 | G53: 86 | H53: 82 | I53: 94 | J53: 103 | K53: 95 | L53: 85 | Q53: 68 | R53: =N53-IFERROR(VLOOKUP(A53,G10RPassingR!A$36:$S52,4,FALSE),0) -> 0
A54: 0771 | B54: WILLIAM A. CHAPMAN ELEMENTARY | C54: 502 | D54: 91 | E54: 61 | F54: 70 | G54: 71 | H54: 57 | I54: 48 | Q54: 104 | R54: =N54-IFERROR(VLOOKUP(A54,G10RPassingR!A$36:$S53,4,FALSE),0) -> 0
A55: 0801 | B55: CITRUS GROVE ELEMENTARY | C55: 879 | D55: 124 | E55: 122 | F55: 146 | G55: 133 | H55: 160 | I55: 140 | Q55: 54 | R55: =N55-IFERROR(VLOOKUP(A55,G10RPassingR!A$36:$S54,4,FALSE),0) -> 0
A56: 0831 | B56: CLAUDE PEPPER ELEMENTARY | C56: 747 | D56: 95 | E56: 118 | F56: 106 | G56: 127 | H56: 112 | I56: 114 | Q56: 75 | R56: =N56-IFERROR(VLOOKUP(A56,G10RPassingR!A$36:$S55,4,FALSE),0) -> 0
A57: 0841 | B57: COCONUT GROVE ELEMENTARY | C57: 395 | D57: 81 | E57: 63 | F57: 52 | G57: 50 | H57: 62 | I57: 55 | Q57: 32 | R57: =N57-IFERROR(VLOOKUP(A57,G10RPassingR!A$36:$S56,4,FALSE),0) -> 0
A58: 0861 | B58: COLONIAL DRIVE ELEMENTARY | C58: 291 | D58: 43 | E58: 34 | F58: 43 | G58: 52 | H58: 32 | I58: 48 | Q58: 39 | R58: =N58-IFERROR(VLOOKUP(A58,G10RPassingR!A$36:$S57,4,FALSE),0) -> 0
A59: 0881 | B59: COMSTOCK ELEMENTARY | C59: 562 | D59: 90 | E59: 87 | F59: 78 | G59: 89 | H59: 85 | I59: 76 | Q59: 57 | R59: =N59-IFERROR(VLOOKUP(A59,G10RPassingR!A$36:$S58,4,FALSE),0) -> 0
A60: 0921 | B60: NEVA KING COOPER EDUCATIONAL | C60: 42 | D60: 3 | F60: 4 | P60: 31 | Q60: 4 | R60: =N60-IFERROR(VLOOKUP(A60,G10RPassingR!A$36:$S59,4,FALSE),0) -> 0
A61: 0950 | B61: AVENTURA CITY OF EXCELLENCE | C61: 983 | D61: 108 | E61: 108 | F61: 113 | G61: 110 | H61: 118 | I61: 112 | J61: 110 | K61: 102 | L61: 102 | R61: =N61-IFERROR(VLOOKUP(A61,G10RPassingR!A$36:$S60,4,FALSE),0) -> 0
A62: 0961 | B62: CORAL GABLES PREPARATORY ACAD | C62: 785 | D62: 85 | E62: 91 | F62: 86 | G62: 95 | H62: 102 | I62: 87 | J62: 69 | K62: 98 | L62: 52 | Q62: 20 | R62: =N62-IFERROR(VLOOKUP(A62,G10RPassingR!A$36:$S61,4,FALSE),0) -> 0
A63: 1001 | B63: CORAL PARK ELEMENTARY | C63: 1104 | D63: 163 | E63: 167 | F63: 154 | G63: 171 | H63: 168 | I63: 206 | Q63: 75 | R63: =N63-IFERROR(VLOOKUP(A63,G10RPassingR!A$36:$S62,4,FALSE),0) -> 0
A64: 1010 | B64: CHARTER SCHOOL AT WATERSTONE | C64: 904 | E64: 215 | F64: 192 | G64: 157 | H64: 167 | I64: 173 | R64: =N64-IFERROR(VLOOKUP(A64,G10RPassingR!A$36:$S63,4,FALSE),0) -> 0
A65: 1014 | B65: ADVANCED LEARNING CHARTER SCH | C65: 451 | D65: 52 | E65: 102 | F65: 99 | G65: 68 | H65: 69 | I65: 61 | R65: =N65-IFERROR(VLOOKUP(A65,G10RPassingR!A$36:$S64,4,FALSE),0) -> 0
A66: 1017 | B66: MATER ACADEMY OF INTL STUDIES | C66: 499 | D66: 124 | E66: 113 | F66: 84 | G66: 80 | H66: 45 | I66: 53 | R66: =N66-IFERROR(VLOOKUP(A66,G10RPassingR!A$36:$S65,4,FALSE),0) -> 0
A67: 1020 | B67: YOUTH CO-OP CHARTER SCHOOL | C67: 604 | D67: 83 | E67: 71 | F67: 60 | G67: 55 | H67: 42 | I67: 52 | J67: 65 | K67: 89 | L67: 87 | R67: =N67-IFERROR(VLOOKUP(A67,G10RPassingR!A$36:$S66,4,FALSE),0) -> 0
A68: 1041 | B68: CORAL REEF ELEMENTARY | C68: 818 | D68: 134 | E68: 103 | F68: 131 | G68: 136 | H68: 153 | I68: 142 | Q68: 19 | R68: =N68-IFERROR(VLOOKUP(A68,G10RPassingR!A$36:$S67,4,FALSE),0) -> 0
A69: 1070 | B69: SOUTH FLORIDA AUTISM CHARTER | C69: 16 | D69: 7 | E69: 3 | F69: 6 | R69: =N69-IFERROR(VLOOKUP(A69,G10RPassingR!A$36:$S68,4,FALSE),0) -> 0
A70: 1081 | B70: CORAL TERRACE ELEMENTARY | C70: 501 | D70: 73 | E70: 80 | F70: 83 | G70: 81 | H70: 76 | I70: 89 | Q70: 19 | R70: =N70-IFERROR(VLOOKUP(A70,G10RPassingR!A$36:$S69,4,FALSE),0) -> 0
A71: 1121 | B71: CORAL WAY K-8 CENTER | C71: 1520 | D71: 152 | E71: 152 | F71: 150 | G71: 170 | H71: 162 | I71: 188 | J71: 167 | K71: 165 | L71: 183 | Q71: 31 | R71: =N71-IFERROR(VLOOKUP(A71,G10RPassingR!A$36:$S70,4,FALSE),0) -> 0
A72: 1161 | B72: CRESTVIEW ELEMENTARY | C72: 482 | D72: 79 | E72: 64 | F72: 68 | G72: 87 | H72: 66 | I72: 99 | Q72: 19 | R72: =N72-IFERROR(VLOOKUP(A72,G10RPassingR!A$36:$S71,4,FALSE),0) -> 0
A73: 1241 | B73: CUTLER RIDGE ELEMENTARY | C73: 808 | D73: 119 | E73: 100 | F73: 120 | G73: 160 | H73: 153 | I73: 136 | Q73: 20 | R73: =N73-IFERROR(VLOOKUP(A73,G10RPassingR!A$36:$S72,4,FALSE),0) -> 0
A74: 1281 | B74: CYPRESS ELEMENTARY | C74: 338 | D74: 43 | E74: 62 | F74: 36 | G74: 51 | H74: 63 | I74: 63 | Q74: 20 | R74: =N74-IFERROR(VLOOKUP(A74,G10RPassingR!A$36:$S73,4,FALSE),0) -> 0
A75: 1331 | B75: DEVON AIRE K-8 CENTER | C75: 1538 | D75: 129 | E75: 174 | F75: 159 | G75: 161 | H75: 166 | I75: 175 | J75: 191 | K75: 175 | L75: 189 | Q75: 19 | R75: =N75-IFERROR(VLOOKUP(A75,G10RPassingR!A$36:$S74,4,FALSE),0) -> 0
A76: 1361 | B76: FREDERICK DOUGLASS ELEMENTARY | C76: 352 | D76: 46 | E76: 38 | F76: 38 | G76: 65 | H76: 27 | I76: 29 | Q76: 109 | R76: =N76-IFERROR(VLOOKUP(A76,G10RPassingR!A$36:$S75,4,FALSE),0) -> 0
A77: 1371 | B77: MARJORY STONEMAN DOUGLAS ELEM | C77: 1045 | D77: 144 | E77: 168 | F77: 155 | G77: 155 | H77: 160 | I77: 205 | Q77: 58 | R77: =N77-IFERROR(VLOOKUP(A77,G10RPassingR!A$36:$S76,4,FALSE),0) -> 0
A78: 1401 | B78: CHARLES R. DREW K-8 CENTER | C78: 383 | D78: 54 | E78: 40 | F78: 38 | G78: 38 | H78: 34 | I78: 40 | J78: 47 | Q78: 92 | R78: =N78-IFERROR(VLOOKUP(A78,G10RPassingR!A$36:$S77,4,FALSE),0) -> 0
A79: 1441 | B79: PAUL LAURENCE DUNBAR K-8 CTR | C79: 396 | D79: 58 | E79: 62 | F79: 64 | G79: 59 | H79: 52 | I79: 55 | J79: 28 | Q79: 18 | R79: =N79-IFERROR(VLOOKUP(A79,G10RPassingR!A$36:$S78,4,FALSE),0) -> 0
A80: 1481 | B80: JOHN G. DUPUIS ELEMENTARY | C80: 717 | D80: 82 | E80: 98 | F80: 112 | G80: 103 | H80: 108 | I80: 131 | Q80: 83 | R80: =N80-IFERROR(VLOOKUP(A80,G10RPassingR!A$36:$S79,4,FALSE),0) -> 0
A81: 1521 | B81: AMELIA EARHART ELEMENTARY | C81: 452 | D81: 55 | E81: 55 | F81: 76 | G81: 80 | H81: 65 | I81: 74 | Q81: 47 | R81: =N81-IFERROR(VLOOKUP(A81,G10RPassingR!A$36:$S80,4,FALSE),0) -> 0
A82: 1561 | B82: EARLINGTON HEIGHTS ELEMENTARY | C82: 480 | D82: 91 | E82: 69 | F82: 90 | G82: 73 | H82: 73 | I82: 67 | Q82: 17 | R82: =N82-IFERROR(VLOOKUP(A82,G10RPassingR!A$36:$S81,4,FALSE),0) -> 0
A83: 1601 | B83: EDISON PARK K-8 CENTER | C83: 391 | D83: 68 | E83: 63 | F83: 69 | G83: 59 | H83: 44 | I83: 46 | J83: 23 | Q83: 19 | R83: =N83-IFERROR(VLOOKUP(A83,G10RPassingR!A$36:$S82,4,FALSE),0) -> 0
A84: 1641 | B84: EMERSON ELEMENTARY | C84: 402 | D84: 66 | E84: 67 | F84: 48 | G84: 74 | H84: 57 | I84: 70 | Q84: 20 | R84: =N84-IFERROR(VLOOKUP(A84,G10RPassingR!A$36:$S83,4,FALSE),0) -> 0
A85: 1681 | B85: LILLIE C. EVANS K-8 CENTER | C85: 511 | D85: 45 | E85: 54 | F85: 64 | G85: 47 | H85: 67 | I85: 47 | J85: 67 | K85: 38 | L85: 25 | Q85: 57 | R85: =N85-IFERROR(VLOOKUP(A85,G10RPassingR!A$36:$S84,4,FALSE),0) -> 0
A86: 1691 | B86: CHRISTINA M. EVE ELEMENTARY | C86: 638 | D86: 103 | E86: 86 | F86: 114 | G86: 94 | H86: 104 | I86: 113 | Q86: 24 | R86: =N86-IFERROR(VLOOKUP(A86,G10RPassingR!A$36:$S85,4,FALSE),0) -> 0
A87: 1721 | B87: EVERGLADES K-8 CENTER | C87: 1147 | D87: 94 | E87: 129 | F87: 115 | G87: 99 | H87: 122 | I87: 120 | J87: 136 | K87: 150 | L87: 142 | Q87: 40 | R87: =N87-IFERROR(VLOOKUP(A87,G10RPassingR!A$36:$S86,4,FALSE),0) -> 0
A88: 1761 | B88: DAVID FAIRCHILD ELEMENTARY | C88: 625 | D88: 99 | E88: 102 | F88: 102 | G88: 120 | H88: 87 | I88: 83 | Q88: 32 | R88: =N88-IFERROR(VLOOKUP(A88,G10RPassingR!A$36:$S87,4,FALSE),0) -> 0
A89: 1801 | B89: FAIRLAWN ELEMENTARY | C89: 682 | D89: 97 | E89: 117 | F89: 108 | G89: 105 | H89: 118 | I89: 117 | Q89: 20 | R89: =N89-IFERROR(VLOOKUP(A89,G10RPassingR!A$36:$S88,4,FALSE),0) -> 0
A90: 1811 | B90: DANTE B. FASCELL ELEMENTARY | C90: 542 | D90: 84 | E90: 86 | F90: 85 | G90: 85 | H90: 81 | I90: 101 | Q90: 20 | R90: =N90-IFERROR(VLOOKUP(A90,G10RPassingR!A$36:$S89,4,FALSE),0) -> 0
A91: 1841 | B91: FLAGAMI ELEMENTARY | C91: 484 | D91: 62 | E91: 76 | F91: 77 | G91: 77 | H91: 76 | I91: 88 | Q91: 28 | R91: =N91-IFERROR(VLOOKUP(A91,G10RPassingR!A$36:$S90,4,FALSE),0) -> 0
A92: 1881 | B92: HENRY M. FLAGLER ELEMENTARY | C92: 834 | D92: 130 | E92: 145 | F92: 125 | G92: 135 | H92: 120 | I92: 129 | Q92: 50 | R92: =N92-IFERROR(VLOOKUP(A92,G10RPassingR!A$36:$S91,4,FALSE),0) -> 0
A93: 1921 | B93: FLAMINGO ELEMENTARY | C93: 760 | D93: 94 | E93: 102 | F93: 119 | G93: 144 | H93: 125 | I93: 156 | Q93: 20 | R93: =N93-IFERROR(VLOOKUP(A93,G10RPassingR!A$36:$S92,4,FALSE),0) -> 0
A94: 2001 | B94: FLORIDA CITY ELEMENTARY | C94: 751 | D94: 142 | E94: 141 | F94: 125 | G94: 97 | H94: 115 | I94: 91 | Q94: 40 | R94: =N94-IFERROR(VLOOKUP(A94,G10RPassingR!A$36:$S93,4,FALSE),0) -> 0
A95: 2003 | B95: BRIDGEPOINT ACADEMY | C95: 311 | D95: 60 | E95: 38 | F95: 75 | G95: 53 | H95: 44 | I95: 41 | R95: =N95-IFERROR(VLOOKUP(A95,G10RPassingR!A$36:$S94,4,FALSE),0) -> 0
A96: 2004 | B96: ISAAC ACADEMY K-8 | C96: 25 | F96: 25 | R96: =N96-IFERROR(VLOOKUP(A96,G10RPassingR!A$36:$S95,4,FALSE),0) -> 0
A97: 2006 | B97: RICHARD ALLEN LEADERSHIP ACAD | C97: 78 | D97: 10 | E97: 14 | F97: 9 | G97: 18 | H97: 16 | I97: 11 | R97: =N97-IFERROR(VLOOKUP(A97,G10RPassingR!A$36:$S96,4,FALSE),0) -> 0
A98: 2007 | B98: SOMERSET ACADEMY ELEMENTARY | C98: 473 | D98: 75 | E98: 77 | F98: 75 | G98: 97 | H98: 99 | I98: 50 | R98: =N98-IFERROR(VLOOKUP(A98,G10RPassingR!A$36:$S97,4,FALSE),0) -> 0
A99: 2012 | B99: SOMERSET ARTS ACADEMY | C99: 295 | D99: 43 | E99: 60 | F99: 31 | G99: 54 | H99: 70 | I99: 37 | R99: =N99-IFERROR(VLOOKUP(A99,G10RPassingR!A$36:$S98,4,FALSE),0) -> 0
A100: 2013 | B100: BRIDGEPOINT ACAD GREATER MIAMI | C100: 270 | D100: 81 | E100: 85 | F100: 36 | G100: 23 | H100: 25 | I100: 20 | R100: =N100-IFERROR(VLOOKUP(A100,G10RPassingR!A$36:$S99,4,FALSE),0) -> 0
A101: 2021 | B101: GLORIA FLOYD ELEMENTARY | C101: 587 | D101: 101 | E101: 100 | F101: 80 | G101: 87 | H101: 93 | I101: 91 | Q101: 35 | R101: =N101-IFERROR(VLOOKUP(A101,G10RPassingR!A$36:$S100,4,FALSE),0) -> 0
A102: 2041 | B102: BENJAMIN FRANKLIN K-8 CENTER | C102: 538 | D102: 68 | E102: 65 | F102: 69 | G102: 66 | H102: 66 | I102: 76 | J102: 64 | K102: 45 | Q102: 19 | R102: =N102-IFERROR(VLOOKUP(A102,G10RPassingR!A$36:$S101,4,FALSE),0) -> 0
A103: 2060 | B103: GIBSON CHARTER SCHOOL | C103: 251 | D103: 28 | E103: 26 | F103: 28 | G103: 21 | H103: 21 | I103: 29 | J103: 40 | K103: 30 | L103: 28 | R103: =N103-IFERROR(VLOOKUP(A103,G10RPassingR!A$36:$S102,4,FALSE),0) -> 0
A104: 2081 | B104: FULFORD ELEMENTARY | C104: 524 | D104: 93 | E104: 92 | F104: 70 | G104: 82 | H104: 90 | I104: 77 | Q104: 20 | R104: =N104-IFERROR(VLOOKUP(A104,G10RPassingR!A$36:$S103,4,FALSE),0) -> 0
A105: 2111 | B105: HIALEAH GARDENS ELEMENTARY | C105: 838 | D105: 144 | E105: 120 | F105: 129 | G105: 131 | H105: 137 | I105: 135 | Q105: 42 | R105: =N105-IFERROR(VLOOKUP(A105,G10RPassingR!A$36:$S104,4,FALSE),0) -> 0
A106: 2151 | B106: JACK D. GORDON ELEMENTARY | C106: 1099 | D106: 166 | E106: 156 | F106: 188 | G106: 179 | H106: 189 | I106: 201 | Q106: 20 | R106: =N106-IFERROR(VLOOKUP(A106,G10RPassingR!A$36:$S105,4,FALSE),0) -> 0
A107: 2161 | B107: GOLDEN GLADES ELEMENTARY | C107: 271 | D107: 45 | E107: 36 | F107: 35 | G107: 49 | H107: 39 | I107: 34 | Q107: 33 | R107: =N107-IFERROR(VLOOKUP(A107,G10RPassingR!A$36:$S106,4,FALSE),0) -> 0
A108: 2181 | B108: JOELLA C. GOOD ELEMENTARY | C108: 920 | D108: 150 | E108: 130 | F108: 142 | G108: 158 | H108: 165 | I108: 157 | Q108: 18 | R108: =N108-IFERROR(VLOOKUP(A108,G10RPassingR!A$36:$S107,4,FALSE),0) -> 0
A109: 2191 | B109: SPANISH LAKE ELEMENTARY | C109: 1648 | D109: 262 | E109: 254 | F109: 254 | G109: 300 | H109: 271 | I109: 299 | Q109: 8 | R109: =N109-IFERROR(VLOOKUP(A109,G10RPassingR!A$36:$S108,4,FALSE),0) -> 0
A110: 2241 | B110: GRATIGNY ELEMENTARY | C110: 688 | D110: 90 | E110: 80 | F110: 74 | G110: 102 | H110: 79 | I110: 92 | J110: 78 | Q110: 93 | R110: =N110-IFERROR(VLOOKUP(A110,G10RPassingR!A$36:$S109,4,FALSE),0) -> 0
A111: 2261 | B111: GREENGLADE ELEMENTARY | C111: 486 | D111: 77 | E111: 58 | F111: 62 | G111: 84 | H111: 91 | I111: 80 | Q111: 34 | R111: =N111-IFERROR(VLOOKUP(A111,G10RPassingR!A$36:$S110,4,FALSE),0) -> 0
A112: 2281 | B112: GREYNOLDS PARK ELEMENTARY | C112: 782 | D112: 130 | E112: 116 | F112: 100 | G112: 132 | H112: 107 | I112: 113 | Q112: 84 | R112: =N112-IFERROR(VLOOKUP(A112,G10RPassingR!A$36:$S111,4,FALSE),0) -> 0
A113: 2321 | B113: GULFSTREAM ELEMENTARY | C113: 574 | D113: 94 | E113: 86 | F113: 90 | G113: 72 | H113: 66 | I113: 62 | Q113: 104 | R113: =N113-IFERROR(VLOOKUP(A113,G10RPassingR!A$36:$S112,4,FALSE),0) -> 0
A114: 2331 | B114: CHARLES R. HADLEY ELEMENTARY | C114: 1026 | D114: 166 | E114: 174 | F114: 177 | G114: 146 | H114: 177 | I114: 149 | Q114: 37 | R114: =N114-IFERROR(VLOOKUP(A114,G10RPassingR!A$36:$S113,4,FALSE),0) -> 0
A115: 2341 | B115: JOE HALL ELEMENTARY | C115: 572 | D115: 89 | E115: 66 | F115: 98 | G115: 97 | H115: 93 | I115: 111 | Q115: 18 | R115: =N115-IFERROR(VLOOKUP(A115,G10RPassingR!A$36:$S114,4,FALSE),0) -> 0
A116: 2351 | B116: ENEIDA MASSAS HARTNER ELEM | C116: 558 | D116: 94 | E116: 102 | F116: 85 | G116: 91 | H116: 80 | I116: 86 | Q116: 20 | R116: =N116-IFERROR(VLOOKUP(A116,G10RPassingR!A$36:$S115,4,FALSE),0) -> 0
A117: 2361 | B117: HIALEAH ELEMENTARY | C117: 678 | D117: 76 | E117: 103 | F117: 114 | G117: 113 | H117: 120 | I117: 124 | Q117: 28 | R117: =N117-IFERROR(VLOOKUP(A117,G10RPassingR!A$36:$S116,4,FALSE),0) -> 0
A118: 2371 | B118: WEST HIALEAH GARDENS ELEM | C118: 1150 | D118: 177 | E118: 166 | F118: 203 | G118: 203 | H118: 209 | I118: 177 | Q118: 15 | R118: =N118-IFERROR(VLOOKUP(A118,G10RPassingR!A$36:$S117,4,FALSE),0) -> 0
A119: 2401 | B119: HIBISCUS ELEMENTARY | C119: 542 | D119: 84 | E119: 72 | F119: 84 | G119: 85 | H119: 71 | I119: 111 | Q119: 35 | R119: =N119-IFERROR(VLOOKUP(A119,G10RPassingR!A$36:$S118,4,FALSE),0) -> 0
A120: 2441 | B120: VIRGINIA A BOONE/HIGHLAND OAKS | C120: 730 | D120: 98 | E120: 138 | F120: 108 | G120: 142 | H120: 123 | I120: 87 | Q120: 34 | R120: =N120-IFERROR(VLOOKUP(A120,G10RPassingR!A$36:$S119,4,FALSE),0) -> 0
A121: 2501 | B121: HOLMES ELEMENTARY | C121: 591 | D121: 120 | E121: 106 | F121: 89 | G121: 105 | H121: 73 | I121: 77 | Q121: 21 | R121: =N121-IFERROR(VLOOKUP(A121,G10RPassingR!A$36:$S120,4,FALSE),0) -> 0
A122: 2511 | B122: ZORA NEALE HURSTON ELEMENTARY | C122: 756 | D122: 102 | E122: 118 | F122: 94 | G122: 131 | H122: 116 | I122: 133 | Q122: 62 | R122: =N122-IFERROR(VLOOKUP(A122,G10RPassingR!A$36:$S121,4,FALSE),0) -> 0
A123: 2521 | B123: OLIVER HOOVER ELEMENTARY | C123: 812 | D123: 116 | E123: 112 | F123: 126 | G123: 139 | H123: 135 | I123: 137 | Q123: 47 | R123: =N123-IFERROR(VLOOKUP(A123,G10RPassingR!A$36:$S122,4,FALSE),0) -> 0
A124: 2531 | B124: THENA C. CROWDER EARLY CHLDHD | C124: 54 | Q124: 54 | R124: =N124-IFERROR(VLOOKUP(A124,G10RPassingR!A$36:$S123,4,FALSE),0) -> 0
A125: 2541 | B125: HOWARD DRIVE ELEMENTARY | C125: 654 | D125: 76 | E125: 91 | F125: 102 | G125: 97 | H125: 135 | I125: 113 | Q125: 40 | R125: =N125-IFERROR(VLOOKUP(A125,G10RPassingR!A$36:$S124,4,FALSE),0) -> 0
A126: 2581 | B126: MADIE IVES ELEMENTARY | C126: 734 | D126: 108 | E126: 136 | F126: 109 | G126: 112 | H126: 125 | I126: 118 | Q126: 26 | R126: =N126-IFERROR(VLOOKUP(A126,G10RPassingR!A$36:$S125,4,FALSE),0) -> 0
A127: 2641 | B127: KENDALE ELEMENTARY | C127: 494 | D127: 74 | E127: 75 | F127: 78 | G127: 80 | H127: 75 | I127: 81 | Q127: 31 | R127: =N127-IFERROR(VLOOKUP(A127,G10RPassingR!A$36:$S126,4,FALSE),0) -> 0
A128: 2651 | B128: KENDALE LAKES ELEMENTARY | C128: 725 | D128: 128 | E128: 104 | F128: 98 | G128: 107 | H128: 108 | I128: 126 | Q128: 54 | R128: =N128-IFERROR(VLOOKUP(A128,G10RPassingR!A$36:$S127,4,FALSE),0) -> 0
A129: 2661 | B129: KENSINGTON PARK ELEMENTARY | C129: 1137 | D129: 164 | E129: 162 | F129: 176 | G129: 197 | H129: 198 | I129: 196 | Q129: 44 | R129: =N129-IFERROR(VLOOKUP(A129,G10RPassingR!A$36:$S128,4,FALSE),0) -> 0
A130: 2701 | B130: KENWOOD K-8 CENTER | C130: 1059 | D130: 115 | E130: 88 | F130: 100 | G130: 120 | H130: 117 | I130: 101 | J130: 144 | K130: 121 | L130: 127 | Q130: 26 | R130: =N130-IFERROR(VLOOKUP(A130,G10RPassingR!A$36:$S129,4,FALSE),0) -> 0
A131: 2741 | B131: KEY BISCAYNE K-8 CENTER | C131: 1333 | D131: 150 | E131: 155 | F131: 143 | G131: 179 | H131: 160 | I131: 158 | J131: 157 | K131: 142 | L131: 69 | Q131: 20 | R131: =N131-IFERROR(VLOOKUP(A131,G10RPassingR!A$36:$S130,4,FALSE),0) -> 0
A132: 2781 | B132: KINLOCH PARK ELEMENTARY | C132: 827 | D132: 129 | E132: 117 | F132: 122 | G132: 132 | H132: 138 | I132: 170 | Q132: 19 | R132: =N132-IFERROR(VLOOKUP(A132,G10RPassingR!A$36:$S131,4,FALSE),0) -> 0
A133: 2801 | B133: LAKE STEVENS ELEMENTARY | C133: 289 | D133: 48 | E133: 32 | F133: 44 | G133: 39 | H133: 53 | I133: 42 | Q133: 31 | R133: =N133-IFERROR(VLOOKUP(A133,G10RPassingR!A$36:$S132,4,FALSE),0) -> 0
A134: 2821 | B134: LAKEVIEW ELEMENTARY | C134: 432 | D134: 64 | E134: 61 | F134: 62 | G134: 65 | H134: 70 | I134: 80 | Q134: 30 | R134: =N134-IFERROR(VLOOKUP(A134,G10RPassingR!A$36:$S133,4,FALSE),0) -> 0
A135: 2881 | B135: LEEWOOD K-8 CENTER | C135: 792 | D135: 91 | E135: 81 | F135: 88 | G135: 103 | H135: 109 | I135: 86 | J135: 76 | K135: 68 | L135: 52 | Q135: 38 | R135: =N135-IFERROR(VLOOKUP(A135,G10RPassingR!A$36:$S134,4,FALSE),0) -> 0
A136: 2891 | B136: WILLIAM LEHMAN ELEMENTARY | C136: 623 | D136: 96 | E136: 91 | F136: 89 | G136: 108 | H136: 117 | I136: 94 | Q136: 28 | R136: =N136-IFERROR(VLOOKUP(A136,G10RPassingR!A$36:$S135,4,FALSE),0) -> 0
A137: 2901 | B137: LEISURE CITY K-8 CENTER | C137: 1125 | D137: 96 | E137: 112 | F137: 131 | G137: 98 | H137: 125 | I137: 121 | J137: 99 | K137: 111 | L137: 132 | Q137: 100 | R137: =N137-IFERROR(VLOOKUP(A137,G10RPassingR!A$36:$S136,4,FALSE),0) -> 0
A138: 2911 | B138: LINDA LENTIN K-8 CENTER | C138: 964 | D138: 96 | E138: 80 | F138: 85 | G138: 97 | H138: 100 | I138: 138 | J138: 119 | K138: 106 | L138: 108 | Q138: 35 | R138: =N138-IFERROR(VLOOKUP(A138,G10RPassingR!A$36:$S137,4,FALSE),0) -> 0
A139: 2941 | B139: LAURA C. SAUNDERS ELEMENTARY | C139: 695 | D139: 137 | E139: 122 | F139: 112 | G139: 117 | H139: 96 | I139: 94 | Q139: 17 | R139: =N139-IFERROR(VLOOKUP(A139,G10RPassingR!A$36:$S138,4,FALSE),0) -> 0
A140: 2981 | B140: LIBERTY CITY ELEMENTARY | C140: 491 | D140: 72 | E140: 59 | F140: 42 | G140: 60 | H140: 60 | I140: 45 | Q140: 153 | R140: =N140-IFERROR(VLOOKUP(A140,G10RPassingR!A$36:$S139,4,FALSE),0) -> 0
A141: 3021 | B141: JESSE J MCCRARY JR ELEMENTARY | C141: 598 | D141: 116 | E141: 94 | F141: 86 | G141: 100 | H141: 87 | I141: 75 | Q141: 40 | R141: =N141-IFERROR(VLOOKUP(A141,G10RPassingR!A$36:$S140,4,FALSE),0) -> 0
A142: 3024 | B142: FLORIDA INTERNATIONAL EL ACAD | C142: 453 | D142: 84 | E142: 73 | F142: 90 | G142: 86 | H142: 65 | I142: 55 | R142: =N142-IFERROR(VLOOKUP(A142,G10RPassingR!A$36:$S141,4,FALSE),0) -> 0
A143: 3025 | B143: ADVANTAGE ACADEMY SANTA FE | C143: 286 | D143: 59 | E143: 88 | F143: 57 | G143: 24 | H143: 34 | I143: 24 | R143: =N143-IFERROR(VLOOKUP(A143,G10RPassingR!A$36:$S142,4,FALSE),0) -> 0
A144: 3026 | B144: ADVANTAGE ACAD AT SUMMERVILLE | C144: 109 | D144: 109 | R144: =N144-IFERROR(VLOOKUP(A144,G10RPassingR!A$36:$S143,4,FALSE),0) -> 0
A145: 3027 | B145: ADVANTAGE ACAD AT WATERSTONE | C145: 239 | D145: 239 | R145: =N145-IFERROR(VLOOKUP(A145,G10RPassingR!A$36:$S144,4,FALSE),0) -> 0
A146: 3029 | B146: DORAL ACADEMY OF TECHNOLOGY | C146: 202 | J146: 69 | K146: 63 | L146: 70 | R146: =N146-IFERROR(VLOOKUP(A146,G10RPassingR!A$36:$S145,4,FALSE),0) -> 0
A147: 3030 | B147: DORAL ACADEMY | C147: 927 | D147: 182 | E147: 173 | F147: 143 | G147: 127 | H147: 150 | I147: 152 | R147: =N147-IFERROR(VLOOKUP(A147,G10RPassingR!A$36:$S146,4,FALSE),0) -> 0
A148: 3032 | B148: PALM GLADES PREPATORY ACADEMY | C148: 429 | J148: 174 | K148: 127 | L148: 128 | R148: =N148-IFERROR(VLOOKUP(A148,G10RPassingR!A$36:$S147,4,FALSE),0) -> 0
A149: 3033 | B149: SOMERSET OAKS ACADEMY | C149: 53 | D149: 41 | E149: 12 | R149: =N149-IFERROR(VLOOKUP(A149,G10RPassingR!A$36:$S148,4,FALSE),0) -> 0
A150: 3034 | B150: BRIDGEPOINT ACAD VILLAGE GREEN | C150: 166 | D150: 61 | E150: 47 | F150: 16 | G150: 19 | H150: 11 | I150: 12 | R150: =N150-IFERROR(VLOOKUP(A150,G10RPassingR!A$36:$S149,4,FALSE),0) -> 0
A151: 3035 | B151: RAMZ ACADEMY ELEM MIAMI CAMPUS | C151: 146 | D151: 37 | E151: 34 | F151: 18 | G151: 25 | H151: 12 | I151: 20 | R151: =N151-IFERROR(VLOOKUP(A151,G10RPassingR!A$36:$S150,4,FALSE),0) -> 0
A152: 3041 | B152: LORAH PARK ELEMENTARY | C152: 424 | D152: 85 | E152: 65 | F152: 80 | G152: 64 | H152: 53 | I152: 57 | Q152: 20 | R152: =N152-IFERROR(VLOOKUP(A152,G10RPassingR!A$36:$S151,4,FALSE),0) -> 0
A153: 3051 | B153: TOUSSAINT L'OUVERTURE ELEM | C153: 481 | D153: 70 | E153: 66 | F153: 66 | G153: 87 | H153: 76 | I153: 78 | Q153: 38 | R153: =N153-IFERROR(VLOOKUP(A153,G10RPassingR!A$36:$S152,4,FALSE),0) -> 0
A154: 3061 | B154: LUDLAM ELEMENTARY | C154: 401 | D154: 71 | E154: 66 | F154: 69 | G154: 56 | H154: 59 | I154: 62 | Q154: 18 | R154: =N154-IFERROR(VLOOKUP(A154,G10RPassingR!A$36:$S153,4,FALSE),0) -> 0
A155: 3100 | B155: MATER ACADEMY EAST CHARTER | C155: 619 | D155: 156 | E155: 122 | F155: 128 | G155: 82 | H155: 67 | I155: 64 | R155: =N155-IFERROR(VLOOKUP(A155,G10RPassingR!A$36:$S154,4,FALSE),0) -> 0
A156: 3101 | B156: FRANK C. MARTIN K-8 CENTER | C156: 1151 | D156: 101 | E156: 115 | F156: 120 | G156: 142 | H156: 128 | I156: 126 | J156: 136 | K156: 134 | L156: 130 | Q156: 19 | R156: =N156-IFERROR(VLOOKUP(A156,G10RPassingR!A$36:$S155,4,FALSE),0) -> 0
A157: 3111 | B157: WESLEY MATTHEWS ELEMENTARY | C157: 519 | D157: 83 | E157: 71 | F157: 75 | G157: 84 | H157: 79 | I157: 89 | Q157: 38 | R157: =N157-IFERROR(VLOOKUP(A157,G10RPassingR!A$36:$S156,4,FALSE),0) -> 0
A158: 3141 | B158: MEADOWLANE ELEMENTARY | C158: 1105 | D158: 138 | E158: 172 | F158: 180 | G158: 184 | H158: 193 | I158: 219 | Q158: 19 | R158: =N158-IFERROR(VLOOKUP(A158,G10RPassingR!A$36:$S157,4,FALSE),0) -> 0
A159: 3181 | B159: MELROSE ELEMENTARY | C159: 797 | D159: 81 | E159: 76 | F159: 103 | G159: 98 | H159: 104 | I159: 77 | Q159: 258 | R159: =N159-IFERROR(VLOOKUP(A159,G10RPassingR!A$36:$S158,4,FALSE),0) -> 0
A160: 3191 | B160: ADA MERRITT K-8 CENTER | C160: 722 | D160: 72 | E160: 71 | F160: 67 | G160: 78 | H160: 61 | I160: 73 | J160: 98 | K160: 112 | L160: 90 | R160: =N160-IFERROR(VLOOKUP(A160,G10RPassingR!A$36:$S159,4,FALSE),0) -> 0
A161: 3241 | B161: MIAMI GARDENS ELEMENTARY | C161: 291 | D161: 41 | E161: 49 | F161: 43 | G161: 38 | H161: 53 | I161: 38 | Q161: 29 | R161: =N161-IFERROR(VLOOKUP(A161,G10RPassingR!A$36:$S160,4,FALSE),0) -> 0
A162: 3261 | B162: MIAMI HEIGHTS ELEMENTARY | C162: 1159 | D162: 177 | E162: 165 | F162: 153 | G162: 196 | H162: 166 | I162: 181 | Q162: 121 | R162: =N162-IFERROR(VLOOKUP(A162,G10RPassingR!A$36:$S161,4,FALSE),0) -> 0
A163: 3281 | B163: MIAMI LAKES K-8 CENTER | C163: 1392 | D163: 125 | E163: 151 | F163: 128 | G163: 146 | H163: 167 | I163: 153 | J163: 166 | K163: 152 | L163: 185 | Q163: 19 | R163: =N163-IFERROR(VLOOKUP(A163,G10RPassingR!A$36:$S162,4,FALSE),0) -> 0
A164: 3301 | B164: MIAMI PARK ELEMENTARY | C164: 472 | D164: 71 | E164: 72 | F164: 58 | G164: 73 | H164: 60 | I164: 62 | Q164: 76 | R164: =N164-IFERROR(VLOOKUP(A164,G10RPassingR!A$36:$S163,4,FALSE),0) -> 0
A165: 3341 | B165: MIAMI SHORES ELEMENTARY | C165: 783 | D165: 116 | E165: 151 | F165: 120 | G165: 134 | H165: 118 | I165: 126 | Q165: 18 | R165: =N165-IFERROR(VLOOKUP(A165,G10RPassingR!A$36:$S164,4,FALSE),0) -> 0
A166: 3381 | B166: MIAMI SPRINGS ELEMENTARY | C166: 553 | D166: 69 | E166: 74 | F166: 91 | G166: 83 | H166: 99 | I166: 105 | Q166: 32 | R166: =N166-IFERROR(VLOOKUP(A166,G10RPassingR!A$36:$S165,4,FALSE),0) -> 0
A167: 3421 | B167: M.A. MILAM K-8 CENTER | C167: 1000 | D167: 73 | E167: 90 | F167: 81 | G167: 98 | H167: 103 | I167: 112 | J167: 123 | K167: 155 | L167: 145 | Q167: 20 | R167: =N167-IFERROR(VLOOKUP(A167,G10RPassingR!A$36:$S166,4,FALSE),0) -> 0
A168: 3431 | B168: PHYLLIS RUTH MILLER ELEMENTARY | C168: 696 | D168: 113 | E168: 94 | F168: 95 | G168: 130 | H168: 104 | I168: 99 | Q168: 61 | R168: =N168-IFERROR(VLOOKUP(A168,G10RPassingR!A$36:$S167,4,FALSE),0) -> 0
A169: 3501 | B169: MORNINGSIDE K-8 ACADEMY | C169: 441 | D169: 63 | E169: 53 | F169: 68 | G169: 57 | H169: 74 | I169: 68 | J169: 25 | Q169: 33 | R169: =N169-IFERROR(VLOOKUP(A169,G10RPassingR!A$36:$S168,4,FALSE),0) -> 0
A170: 3541 | B170: ROBERT RUSSA MOTON ELEMENTARY | C170: 336 | D170: 64 | E170: 64 | F170: 48 | G170: 38 | H170: 48 | I170: 35 | Q170: 39 | R170: =N170-IFERROR(VLOOKUP(A170,G10RPassingR!A$36:$S169,4,FALSE),0) -> 0
A171: 3581 | B171: MYRTLE GROVE K-8 CENTER | C171: 441 | D171: 67 | E171: 63 | F171: 58 | G171: 52 | H171: 50 | I171: 51 | J171: 42 | Q171: 58 | R171: =N171-IFERROR(VLOOKUP(A171,G10RPassingR!A$36:$S170,4,FALSE),0) -> 0
A172: 3600 | B172: DOWNTOWN MIAMI CHARTER SCHOOL | C172: 647 | D172: 108 | E172: 100 | F172: 96 | G172: 83 | H172: 99 | I172: 90 | J172: 71 | R172: =N172-IFERROR(VLOOKUP(A172,G10RPassingR!A$36:$S171,4,FALSE),0) -> 0
A173: 3610 | B173: KEYS GATE CHARTER SCHOOL | C173: 2041 | D173: 213 | E173: 226 | F173: 221 | G173: 217 | H173: 170 | I173: 188 | J173: 246 | K173: 285 | L173: 275 | R173: =N173-IFERROR(VLOOKUP(A173,G10RPassingR!A$36:$S172,4,FALSE),0) -> 0
A174: 3621 | B174: COCONUT PALM K-8 ACADEMY | C174: 1208 | D174: 146 | E174: 139 | F174: 157 | G174: 160 | H174: 137 | I174: 136 | J174: 138 | K174: 117 | L174: 78 | R174: =N174-IFERROR(VLOOKUP(A174,G10RPassingR!A$36:$S173,4,FALSE),0) -> 0
A175: 3661 | B175: NATURAL BRIDGE ELEMENTARY | C175: 608 | D175: 102 | E175: 83 | F175: 101 | G175: 95 | H175: 83 | I175: 74 | Q175: 70 | R175: =N175-IFERROR(VLOOKUP(A175,G10RPassingR!A$36:$S174,4,FALSE),0) -> 0
A176: 3701 | B176: NORLAND ELEMENTARY | C176: 629 | D176: 109 | E176: 92 | F176: 86 | G176: 90 | H176: 97 | I176: 110 | Q176: 45 | R176: =N176-IFERROR(VLOOKUP(A176,G10RPassingR!A$36:$S175,4,FALSE),0) -> 0
A177: 3741 | B177: NORTH BEACH ELEMENTARY | C177: 1011 | D177: 147 | E177: 175 | F177: 165 | G177: 171 | H177: 149 | I177: 162 | Q177: 42 | R177: =N177-IFERROR(VLOOKUP(A177,G10RPassingR!A$36:$S176,4,FALSE),0) -> 0
A178: 3781 | B178: BARBARA HAWKINS ELEMENTARY | C178: 337 | D178: 53 | E178: 55 | F178: 51 | G178: 68 | H178: 47 | I178: 43 | Q178: 20 | R178: =N178-IFERROR(VLOOKUP(A178,G10RPassingR!A$36:$S177,4,FALSE),0) -> 0
A179: 3821 | B179: NORTH COUNTY K-8 CENTER | C179: 376 | D179: 45 | E179: 41 | F179: 56 | G179: 49 | H179: 39 | I179: 40 | J179: 46 | K179: 40 | Q179: 20 | R179: =N179-IFERROR(VLOOKUP(A179,G10RPassingR!A$36:$S178,4,FALSE),0) -> 0
A180: 3861 | B180: NORTH GLADE ELEMENTARY | C180: 358 | D180: 56 | E180: 48 | F180: 57 | G180: 69 | H180: 50 | I180: 44 | Q180: 34 | R180: =N180-IFERROR(VLOOKUP(A180,G10RPassingR!A$36:$S179,4,FALSE),0) -> 0
A181: 3901 | B181: NORTH HIALEAH ELEMENTARY | C181: 610 | D181: 71 | E181: 90 | F181: 108 | G181: 104 | H181: 109 | I181: 109 | Q181: 19 | R181: =N181-IFERROR(VLOOKUP(A181,G10RPassingR!A$36:$S180,4,FALSE),0) -> 0
A182: 3941 | B182: NORTH MIAMI ELEMENTARY | C182: 616 | D182: 96 | E182: 93 | F182: 98 | G182: 85 | H182: 95 | I182: 77 | Q182: 72 | R182: =N182-IFERROR(VLOOKUP(A182,G10RPassingR!A$36:$S181,4,FALSE),0) -> 0
A183: 3981 | B183: NORTH TWIN LAKES ELEMENTARY | C183: 587 | D183: 72 | E183: 89 | F183: 79 | G183: 98 | H183: 108 | I183: 83 | Q183: 58 | R183: =N183-IFERROR(VLOOKUP(A183,G10RPassingR!A$36:$S182,4,FALSE),0) -> 0
A184: 4000 | B184: MIAMI CHILDREN'S MUSEUM | C184: 300 | D184: 60 | E184: 54 | F184: 49 | G184: 53 | H184: 37 | I184: 47 | R184: =N184-IFERROR(VLOOKUP(A184,G10RPassingR!A$36:$S183,4,FALSE),0) -> 0
A185: 4001 | B185: NORWOOD ELEMENTARY | C185: 465 | D185: 72 | E185: 73 | F185: 80 | G185: 66 | H185: 65 | I185: 65 | Q185: 44 | R185: =N185-IFERROR(VLOOKUP(A185,G10RPassingR!A$36:$S184,4,FALSE),0) -> 0
A186: 4012 | B186: SOMERSET ACAD AT SILVER PALMS | C186: 610 | D186: 142 | E186: 119 | F186: 127 | G186: 65 | H186: 89 | I186: 68 | R186: =N186-IFERROR(VLOOKUP(A186,G10RPassingR!A$36:$S185,4,FALSE),0) -> 0
A187: 4021 | B187: OAK GROVE ELEMENTARY | C187: 694 | D187: 89 | E187: 105 | F187: 83 | G187: 97 | H187: 101 | I187: 107 | J187: 58 | Q187: 54 | R187: =N187-IFERROR(VLOOKUP(A187,G10RPassingR!A$36:$S186,4,FALSE),0) -> 0
A188: 4031 | B188: GATEWAY ENVIRONMENTAL K-8 | C188: 1578 | D188: 220 | E188: 239 | F188: 199 | G188: 222 | H188: 211 | I188: 172 | J188: 150 | K188: 128 | Q188: 37 | R188: =N188-IFERROR(VLOOKUP(A188,G10RPassingR!A$36:$S187,4,FALSE),0) -> 0
A189: 4061 | B189: OJUS ELEMENTARY | C189: 915 | D189: 155 | E189: 151 | F189: 149 | G189: 159 | H189: 157 | I189: 144 | R189: =N189-IFERROR(VLOOKUP(A189,G10RPassingR!A$36:$S188,4,FALSE),0) -> 0
A190: 4070 | B190: EARLY BEGINNINGS ACADEMY-CIVIC | C190: 128 | D190: 26 | E190: 10 | F190: 3 | Q190: 89 | R190: =N190-IFERROR(VLOOKUP(A190,G10RPassingR!A$36:$S189,4,FALSE),0) -> 0
A191: 4071 | B191: OLINDA ELEMENTARY | C191: 355 | D191: 52 | E191: 47 | F191: 62 | G191: 58 | H191: 50 | I191: 49 | Q191: 37 | R191: =N191-IFERROR(VLOOKUP(A191,G10RPassingR!A$36:$S190,4,FALSE),0) -> 0
A192: 4081 | B192: PRIMARY LEARNING CENTER | C192: 212 | D192: 54 | E192: 51 | F192: 35 | G192: 18 | Q192: 54 | R192: =N192-IFERROR(VLOOKUP(A192,G10RPassingR!A$36:$S191,4,FALSE),0) -> 0
A193: 4091 | B193: OLYMPIA HEIGHTS ELEMENTARY | C193: 518 | D193: 78 | E193: 86 | F193: 91 | G193: 78 | H193: 89 | I193: 75 | Q193: 21 | R193: =N193-IFERROR(VLOOKUP(A193,G10RPassingR!A$36:$S192,4,FALSE),0) -> 0
A194: 4121 | B194: DR. ROBERT B. INGRAM EL | C194: 404 | D194: 73 | E194: 58 | F194: 73 | G194: 69 | H194: 64 | I194: 47 | Q194: 20 | R194: =N194-IFERROR(VLOOKUP(A194,G10RPassingR!A$36:$S193,4,FALSE),0) -> 0
A195: 4171 | B195: ORCHARD VILLA ELEMENTARY | C195: 467 | D195: 78 | E195: 77 | F195: 63 | G195: 76 | H195: 60 | I195: 53 | Q195: 60 | R195: =N195-IFERROR(VLOOKUP(A195,G10RPassingR!A$36:$S194,4,FALSE),0) -> 0
A196: 4221 | B196: PALMETTO ELEMENTARY | C196: 620 | D196: 73 | E196: 105 | F196: 79 | G196: 112 | H196: 100 | I196: 103 | Q196: 48 | R196: =N196-IFERROR(VLOOKUP(A196,G10RPassingR!A$36:$S195,4,FALSE),0) -> 0
A197: 4241 | B197: PALM LAKES ELEMENTARY | C197: 877 | D197: 95 | E197: 139 | F197: 127 | G197: 157 | H197: 138 | I197: 170 | Q197: 51 | R197: =N197-IFERROR(VLOOKUP(A197,G10RPassingR!A$36:$S196,4,FALSE),0) -> 0
A198: 4261 | B198: PALM SPRINGS ELEMENTARY | C198: 740 | D198: 96 | E198: 117 | F198: 114 | G198: 130 | H198: 127 | I198: 115 | Q198: 41 | R198: =N198-IFERROR(VLOOKUP(A198,G10RPassingR!A$36:$S197,4,FALSE),0) -> 0
A199: 4281 | B199: PALM SPRINGS NORTH ELEMENTARY | C199: 1017 | D199: 170 | E199: 142 | F199: 174 | G199: 160 | H199: 183 | I199: 158 | Q199: 30 | R199: =N199-IFERROR(VLOOKUP(A199,G10RPassingR!A$36:$S198,4,FALSE),0) -> 0
A200: 4301 | B200: PARKVIEW ELEMENTARY | C200: 407 | D200: 69 | E200: 73 | F200: 48 | G200: 70 | H200: 61 | I200: 51 | Q200: 35 | R200: =N200-IFERROR(VLOOKUP(A200,G10RPassingR!A$36:$S199,4,FALSE),0) -> 0
... 273 more rows

Sheet G10RPassingR (hidden)
A1: SCHOOL_NUMBER | B1: STUDENT_GRADE | C1: FCAT_READ_PASS_FAIL | D1: Total Of STUDENT_ID | E1: NoLevel | F1: L2 | G1: L3 | H1: L4 | I1: L5 | J1: B | K1: W | L1: H | M1: A | N1: I | O1: 2 | P1: 3 | Q1: PPR | R1: Y | S1: SWD
A2: 7001 | B2: 10 | C2: P | D2: 3 | E2: 1 | F2: 0 | G2: 1 | H2: 1 | I2: 0 | J2: 1 | K2: 1 | L2: 1 | M2: 0 | N2: 0 | O2: 1 | P2: 0 | Q2: 0 | R2: 0 | S2: 0
A3: 7015 | B3: 10 | C3: P | D3: 3 | E3: 2 | F3: 0 | G3: 1 | H3: 0 | I3: 0 | J3: 3 | K3: 0 | L3: 0 | M3: 0 | N3: 0 | O3: 2 | P3: 0 | Q3: 0 | R3: 0 | S3: 0
A4: 7022 | B4: 10 | C4: P | D4: 1 | E4: 0 | F4: 0 | G4: 0 | H4: 1 | I4: 0 | J4: 0 | K4: 1 | L4: 0 | M4: 0 | N4: 0 | O4: 1 | P4: 0 | Q4: 0 | R4: 0 | S4: 0
A5: 7036 | B5: 10 | C5: P | D5: 1 | E5: 1 | F5: 0 | G5: 0 | H5: 0 | I5: 0 | J5: 1 | K5: 0 | L5: 0 | M5: 0 | N5: 0 | O5: 1 | P5: 0 | Q5: 0 | R5: 0 | S5: 0
A6: 7049 | B6: 10 | C6: P | D6: 4 | E6: 1 | F6: 0 | G6: 3 | H6: 0 | I6: 0 | J6: 0 | K6: 0 | L6: 4 | M6: 0 | N6: 0 | O6: 2 | P6: 1 | Q6: 2 | R6: 0 | S6: 0
A7: 7050 | B7: 10 | C7: P | D7: 3 | E7: 1 | F7: 0 | G7: 1 | H7: 0 | I7: 1 | J7: 1 | K7: 1 | L7: 1 | M7: 0 | N7: 0 | O7: 3 | P7: 0 | Q7: 0 | R7: 0 | S7: 0
A8: 7051 | B8: 10 | C8: P | D8: 7 | E8: 4 | F8: 0 | G8: 2 | H8: 1 | I8: 0 | J8: 1 | K8: 0 | L8: 6 | M8: 0 | N8: 0 | O8: 6 | P8: 0 | Q8: 2 | R8: 2 | S8: 0
A9: 7055 | B9: 10 | C9: P | D9: 1 | E9: 0 | F9: 0 | G9: 1 | H9: 0 | I9: 0 | J9: 0 | K9: 0 | L9: 1 | M9: 0 | N9: 0 | O9: 1 | P9: 0 | Q9: 0 | R9: 1 | S9: 0
A10: 7062 | B10: 10 | C10: P | D10: 1 | E10: 1 | F10: 0 | G10: 0 | H10: 0 | I10: 0 | J10: 1 | K10: 0 | L10: 0 | M10: 0 | N10: 0 | O10: 1 | P10: 0 | Q10: 0 | R10: 0 | S10: 0
A11: 7065 | B11: 10 | C11: P | D11: 2 | E11: 2 | F11: 0 | G11: 0 | H11: 0 | I11: 0 | J11: 0 | K11: 0 | L11: 2 | M11: 0 | N11: 0 | O11: 2 | P11: 0 | Q11: 0 | R11: 0 | S11: 0
A12: 7067 | B12: 10 | C12: P | D12: 8 | E12: 2 | F12: 2 | G12: 3 | H12: 1 | I12: 0 | J12: 1 | K12: 0 | L12: 7 | M12: 0 | N12: 0 | O12: 6 | P12: 0 | Q12: 0 | R12: 0 | S12: 0
A13: 7068 | B13: 10 | C13: P | D13: 1 | E13: 0 | F13: 0 | G13: 0 | H13: 1 | I13: 0 | J13: 0 | K13: 0 | L13: 1 | M13: 0 | N13: 0 | O13: 0 | P13: 0 | Q13: 0 | R13: 0 | S13: 0
A14: 7069 | B14: 10 | C14: P | D14: 1 | E14: 1 | F14: 0 | G14: 0 | H14: 0 | I14: 0 | J14: 1 | K14: 0 | L14: 0 | M14: 0 | N14: 0 | O14: 0 | P14: 0 | Q14: 0 | R14: 1 | S14: 0
A15: 7081 | B15: 10 | C15: P | D15: 1 | E15: 1 | F15: 0 | G15: 0 | H15: 0 | I15: 0 | J15: 1 | K15: 0 | L15: 0 | M15: 0 | N15: 0 | O15: 1 | P15: 0 | Q15: 0 | R15: 0 | S15: 1
A16: 7121 | B16: 10 | C16: P | D16: 3 | E16: 0 | F16: 0 | G16: 2 | H16: 1 | I16: 0 | J16: 0 | K16: 0 | L16: 3 | M16: 0 | N16: 0 | O16: 3 | P16: 0 | Q16: 0 | R16: 0 | S16: 0
A17: 7131 | B17: 10 | C17: P | D17: 1 | E17: 0 | F17: 0 | G17: 1 | H17: 0 | I17: 0 | J17: 0 | K17: 0 | L17: 1 | M17: 0 | N17: 0 | O17: 0 | P17: 0 | Q17: 0 | R17: 1 | S17: 0
A18: 7141 | B18: 10 | C18: P | D18: 18 | E18: 4 | F18: 0 | G18: 11 | H18: 3 | I18: 0 | J18: 9 | K18: 1 | L18: 8 | M18: 0 | N18: 0 | O18: 9 | P18: 3 | Q18: 0 | R18: 2 | S18: 2
A19: 7160 | B19: 10 | C19: P | D19: 3 | E19: 1 | F19: 0 | G19: 1 | H19: 1 | I19: 0 | J19: 0 | K19: 0 | L19: 3 | M19: 0 | N19: 0 | O19: 2 | P19: 0 | Q19: 0 | R19: 0 | S19: 0
A20: 7201 | B20: 10 | C20: P | D20: 3 | E20: 1 | F20: 0 | G20: 1 | H20: 1 | I20: 0 | J20: 0 | K20: 1 | L20: 2 | M20: 0 | N20: 0 | O20: 1 | P20: 0 | Q20: 0 | R20: 0 | S20: 0
A21: 7241 | B21: 10 | C21: P | D21: 3 | E21: 0 | F21: 0 | G21: 2 | H21: 1 | I21: 0 | J21: 0 | K21: 0 | L21: 3 | M21: 0 | N21: 0 | O21: 1 | P21: 0 | Q21: 0 | R21: 0 | S21: 0
A22: 7251 | B22: 10 | C22: P | D22: 2 | E22: 0 | F22: 0 | G22: 2 | H22: 0 | I22: 0 | J22: 1 | K22: 0 | L22: 1 | M22: 0 | N22: 0 | O22: 1 | P22: 0 | Q22: 0 | R22: 0 | S22: 0
A23: 7262 | B23: 10 | C23: P | D23: 1 | E23: 1 | F23: 0 | G23: 0 | H23: 0 | I23: 0 | J23: 0 | K23: 0 | L23: 1 | M23: 0 | N23: 0 | O23: 1 | P23: 0 | Q23: 0 | R23: 0 | S23: 0
A24: 7361 | B24: 10 | C24: P | D24: 10 | E24: 2 | F24: 0 | G24: 7 | H24: 1 | I24: 0 | J24: 0 | K24: 1 | L24: 9 | M24: 0 | N24: 0 | O24: 5 | P24: 1 | Q24: 0 | R24: 1 | S24: 1
A25: 7391 | B25: 10 | C25: P | D25: 1 | E25: 0 | F25: 0 | G25: 1 | H25: 0 | I25: 0 | J25: 1 | K25: 0 | L25: 0 | M25: 0 | N25: 0 | O25: 1 | P25: 0 | Q25: 0 | R25: 0 | S25: 0
A26: 7461 | B26: 10 | C26: P | D26: 7 | E26: 1 | F26: 0 | G26: 6 | H26: 0 | I26: 0 | J26: 1 | K26: 0 | L26: 6 | M26: 0 | N26: 0 | O26: 6 | P26: 0 | Q26: 0 | R26: 0 | S26: 4
A27: 7531 | B27: 10 | C27: P | D27: 6 | E27: 1 | F27: 0 | G27: 4 | H27: 0 | I27: 1 | J27: 0 | K27: 0 | L27: 6 | M27: 0 | N27: 0 | O27: 5 | P27: 1 | Q27: 0 | R27: 1 | S27: 2
A28: 7701 | B28: 10 | C28: P | D28: 6 | E28: 0 | F28: 0 | G28: 4 | H28: 2 | I28: 0 | J28: 0 | K28: 2 | L28: 4 | M28: 0 | N28: 0 | O28: 5 | P28: 0 | Q28: 0 | R28: 0 | S28: 0
A29: 7751 | B29: 10 | C29: P | D29: 3 | E29: 0 | F29: 0 | G29: 1 | H29: 1 | I29: 1 | J29: 0 | K29: 0 | L29: 3 | M29: 0 | N29: 0 | O29: 3 | P29: 0 | Q29: 0 | R29: 0 | S29: 0
A30: 7781 | B30: 10 | C30: P | D30: 8 | E30: 0 | F30: 0 | G30: 3 | H30: 4 | I30: 1 | J30: 0 | K30: 0 | L30: 8 | M30: 0 | N30: 0 | O30: 5 | P30: 2 | Q30: 0 | R30: 0 | S30: 0
A31: 7791 | B31: 10 | C31: P | D31: 1 | E31: 0 | F31: 0 | G31: 1 | H31: 0 | I31: 0 | J31: 0 | K31: 0 | L31: 1 | M31: 0 | N31: 0 | O31: 1 | P31: 0 | Q31: 0 | R31: 0 | S31: 0
A32: 8017 | B32: 10 | C32: P | D32: 1 | E32: 0 | F32: 0 | G32: 1 | H32: 0 | I32: 0 | J32: 1 | K32: 0 | L32: 0 | M32: 0 | N32: 0 | O32: 1 | P32: 0 | Q32: 0 | R32: 0 | S32: 0
A33: 9732 | B33: 10 | C33: P | D33: 1 | E33: 0 | F33: 0 | G33: 0 | H33: 1 | I33: 0 | J33: 0 | K33: 0 | L33: 1 | M33: 0 | N33: 0 | O33: 1 | P33: 0 | Q33: 0 | R33: 0 | S33: 1
A34: (blank) | B34: 10 | C34: P | D34: 0 | E34: 0 | F34: 0 | G34: 0 | H34: 0 | I34: 0 | J34: 0 | K34: 0 | L34: 0 | M34: 0 | N34: 0 | O34: 0 | P34: 0 | Q34: 0 | R34: 0 | S34: 0
A35: Grand Total | B35: 10 | C35: P | D35: 0 | E35: 0 | F35: 0 | G35: 0 | H35: 0 | I35: 0 | J35: 0 | K35: 0 | L35: 0 | M35: 0 | N35: 0 | O35: 0 | P35: 0 | Q35: 0 | R35: 0 | S35: 0
A36: 9999 | B36: 10 | C36: P | D36: 115 | E36: 28 | F36: 2 | G36: 60 | H36: 21 | I36: 4 | J36: 24 | K36: 8 | L36: 83 | M36: 0 | N36: 0 | O36: 78 | P36: 8 | Q36: 4 | R36: 9 | S36: 11
A45: 1 | B45: 2 | C45: 3 | D45: 4 | E45: 5 | F45: 6 | G45: 7 | H45: 8 | I45: 9 | J45: 10 | K45: 11 | L45: 12 | M45: 13 | N45: 14 | O45: 15 | P45: 16 | Q45: 17 | R45: 18 | S45: 19

Sheet MEM_RL1 (hidden)
A1: S_SCHOOL_NUM | B1: S_SCHL_NAME | C1: Total Of STUDENT_ID | D1: 03 | E1: 04 | F1: 05 | G1: 06 | H1: 07 | I1: 08 | J1: 09 | K1: 10
A2: 0041 | B2: AIR BASE ELEMENTARY | C2: 5 | D2: 2 | F2: 3
A3: 0070 | B3: CORAL REEF MONTESSORI ACAD CH | C3: 4 | D3: 2 | E3: 1 | F3: 1
A4: 0071 | B4: EUGENIA B. THOMAS K-8 CENTER | C4: 78 | D4: 8 | E4: 18 | F4: 7 | G4: 15 | H4: 14 | I4: 16
A5: 0072 | B5: SUMMERVILLE CHARTER SCHOOL | C5: 21 | D5: 2 | E5: 8 | F5: 11
A6: 0073 | B6: MANDARIN LAKES K-8 CENTER | C6: 172 | D6: 29 | E6: 25 | F6: 24 | G6: 35 | H6: 23 | I6: 36
A7: 0081 | B7: LENORA B. SMITH ELEMENTARY | C7: 45 | D7: 8 | E7: 18 | F7: 19
A8: 0091 | B8: BOB GRAHAM EDUCATION CTR | C8: 100 | D8: 5 | E8: 10 | F8: 17 | G8: 22 | H8: 25 | I8: 21
A9: 0092 | B9: NORMAN S. EDELCUP/SUNNY ISLES | C9: 71 | D9: 2 | E9: 16 | F9: 10 | G9: 10 | H9: 11 | I9: 22
A10: 0100 | B10: MATER ACADEMY | C10: 17 | D10: 5 | E10: 6 | F10: 6
A11: 0101 | B11: ARCOLA LAKE ELEMENTARY | C11: 49 | D11: 14 | E11: 19 | F11: 16
A12: 0102 | B12: MIAMI COMMUNITY CHARTER SCHOOL | C12: 38 | D12: 6 | E12: 19 | F12: 13
A13: 0111 | B13: MAYA ANGELOU ELEMENTARY | C13: 58 | D13: 17 | E13: 20 | F13: 21
A14: 0121 | B14: AUBURNDALE ELEMENTARY | C14: 52 | D14: 4 | E14: 18 | F14: 30
A15: 0122 | B15: DR ROLANDO ESPINOSA K-8 | C15: 117 | D15: 7 | E15: 23 | F15: 15 | G15: 30 | H15: 21 | I15: 21
A16: 0125 | B16: NORMA BUTLER BOSSARD ELEM | C16: 40 | D16: 10 | E16: 12 | F16: 18
A17: 0161 | B17: AVOCADO ELEMENTARY | C17: 23 | D17: 23
A18: 0201 | B18: BANYAN ELEMENTARY | C18: 5 | E18: 1 | F18: 4
A19: 0211 | B19: DR. MANUEL C. BARREIRO ELEM | C19: 35 | D19: 2 | E19: 20 | F19: 13
A20: 0231 | B20: AVENTURA WATERWAYS K-8 CENTER | C20: 111 | D20: 16 | E20: 16 | F20: 26 | G20: 14 | H20: 21 | I20: 18
A21: 0241 | B21: RUTH K BROAD/BAY HARBOR K-8 | C21: 57 | D21: 4 | E21: 10 | F21: 11 | G21: 13 | H21: 8 | I21: 11
A22: 0251 | B22: ETHEL KOGER BECKHAM ELEMENTARY | C22: 10 | D22: 1 | E22: 6 | F22: 3
A23: 0261 | B23: BEL-AIRE ELEMENTARY | C23: 42 | D23: 7 | E23: 13 | F23: 22
A24: 0271 | B24: BENT TREE ELEMENTARY | C24: 20 | D24: 4 | E24: 6 | F24: 10
A25: 0311 | B25: GOULDS ELEMENTARY | C25: 46 | D25: 11 | E25: 21 | F25: 14
A26: 0312 | B26: MATER GARDENS ACADEMY | C26: 5 | D26: 1 | E26: 4
A27: 0321 | B27: BISCAYNE ELEMENTARY | C27: 55 | D27: 13 | E27: 20 | F27: 22
A28: 0332 | B28: SOMERSET ACADEMY(SILVER PALMS) | C28: 56 | D28: 2 | E28: 5 | F28: 4 | G28: 14 | H28: 18 | I28: 13
A29: 0339 | B29: SOMERSET ACADEMY CHARTER ELEM | C29: 10 | D29: 1 | E29: 4 | F29: 5
A30: 0341 | B30: ARCH CREEK ELEMENTARY SCHOOL | C30: 35 | D30: 7 | E30: 19 | F30: 9
A31: 0342 | B31: PINECREST ACADEMY SOUTH CAMPUS | C31: 13 | D31: 2 | E31: 7 | F31: 4
A32: 0361 | B32: BISCAYNE GARDENS ELEMENTARY | C32: 47 | D32: 11 | E32: 17 | F32: 19
A33: 0400 | B33: RENAISSANCE ELEMENTARY CHARTER | C33: 15 | D33: 1 | E33: 13 | F33: 1
A34: 0401 | B34: VAN E. BLANTON ELEMENTARY | C34: 46 | D34: 17 | E34: 9 | F34: 20
A35: 0410 | B35: ACADEMIR CHARTER SCHOOL WEST | C35: 6 | E35: 4 | F35: 2
A36: 0441 | B36: BLUE LAKES ELEMENTARY | C36: 18 | D36: 1 | E36: 11 | F36: 6
A37: 0451 | B37: BOWMAN ASHE/DOOLIN K-8 ACAD | C37: 171 | D37: 3 | E37: 16 | F37: 11 | G37: 36 | H37: 52 | I37: 53
A38: 0461 | B38: BRENTWOOD ELEMENTARY | C38: 58 | D38: 18 | E38: 17 | F38: 23
A39: 0481 | B39: JAMES H. BRIGHT/JW JOHNSON ES | C39: 78 | D39: 17 | E39: 23 | F39: 38
A40: 0510 | B40: ARCHIMEDEAN ACADEMY | C40: 2 | E40: 1 | F40: 1
A41: 0520 | B41: SOMERSET ACADEMY | C41: 7 | D41: 1 | E41: 4 | F41: 2
A42: 0521 | B42: BROADMOOR ELEMENTARY | C42: 38 | D42: 6 | E42: 16 | F42: 16
A43: 0561 | B43: W.J. BRYAN ELEMENTARY | C43: 48 | D43: 16 | E43: 16 | F43: 16
A44: 0600 | B44: PINECREST PREP ACADEMY | C44: 6 | E44: 5 | F44: 1
A45: 0641 | B45: BUNCHE PARK ELEMENTARY | C45: 23 | D45: 3 | E45: 10 | F45: 10
A46: 0651 | B46: CAMPBELL DRIVE K-8 CENTER | C46: 95 | D46: 18 | E46: 18 | F46: 25 | G46: 16 | H46: 18
A47: 0661 | B47: CARIBBEAN ELEMENTARY | C47: 46 | D47: 11 | E47: 19 | F47: 16
A48: 0671 | B48: CALUSA ELEMENTARY | C48: 20 | D48: 4 | E48: 7 | F48: 9
A49: 0681 | B49: CAROL CITY ELEMENTARY | C49: 60 | D49: 11 | E49: 28 | F49: 21
A50: 0721 | B50: GEORGE WASHINGTON CARVER ELEM | C50: 36 | D50: 4 | E50: 14 | F50: 18
A51: 0761 | B51: FIENBERG/FISHER K-8 CENTER | C51: 93 | D51: 4 | E51: 17 | F51: 18 | G51: 22 | H51: 19 | I51: 13
A52: 0771 | B52: WILLIAM A. CHAPMAN ELEMENTARY | C52: 26 | D52: 10 | E52: 7 | F52: 9
A53: 0801 | B53: CITRUS GROVE ELEMENTARY | C53: 95 | D53: 12 | E53: 42 | F53: 41
A54: 0831 | B54: CLAUDE PEPPER ELEMENTARY | C54: 30 | D54: 4 | E54: 16 | F54: 10
A55: 0841 | B55: COCONUT GROVE ELEMENTARY | C55: 13 | E55: 11 | F55: 2
A56: 0861 | B56: COLONIAL DRIVE ELEMENTARY | C56: 20 | D56: 7 | E56: 6 | F56: 7
A57: 0881 | B57: COMSTOCK ELEMENTARY | C57: 44 | D57: 9 | E57: 18 | F57: 17
A58: 0950 | B58: AVENTURA CITY OF EXCELLENCE | C58: 5 | D58: 1 | G58: 1 | H58: 1 | I58: 2
A59: 0961 | B59: CORAL GABLES PREPARATORY ACAD | C59: 19 | E59: 4 | F59: 3 | G59: 6 | H59: 5 | I59: 1
A60: 1001 | B60: CORAL PARK ELEMENTARY | C60: 28 | E60: 12 | F60: 16
A61: 1010 | B61: CHARTER SCHOOL AT WATERSTONE | C61: 22 | E61: 12 | F61: 10
A62: 1014 | B62: ADVANCED LEARNING CHARTER SCH | C62: 26 | D62: 5 | E62: 16 | F62: 5
A63: 1017 | B63: MATER ACADEMY OF INTL STUDIES | C63: 19 | D63: 3 | E63: 7 | F63: 9
A64: 1020 | B64: YOUTH CO-OP CHARTER SCHOOL | C64: 35 | D64: 4 | E64: 3 | F64: 4 | G64: 8 | H64: 11 | I64: 5
A65: 1041 | B65: CORAL REEF ELEMENTARY | C65: 24 | D65: 3 | E65: 9 | F65: 12
A66: 1081 | B66: CORAL TERRACE ELEMENTARY | C66: 42 | D66: 6 | E66: 15 | F66: 21
A67: 1121 | B67: CORAL WAY K-8 CENTER | C67: 146 | D67: 6 | E67: 30 | F67: 29 | G67: 34 | H67: 29 | I67: 18
A68: 1161 | B68: CRESTVIEW ELEMENTARY | C68: 42 | D68: 7 | E68: 14 | F68: 21
A69: 1241 | B69: CUTLER RIDGE ELEMENTARY | C69: 44 | D69: 5 | E69: 20 | F69: 19
A70: 1281 | B70: CYPRESS ELEMENTARY | C70: 9 | E70: 5 | F70: 4
A71: 1331 | B71: DEVON AIRE K-8 CENTER | C71: 63 | D71: 2 | E71: 7 | F71: 6 | G71: 17 | H71: 19 | I71: 12
A72: 1361 | B72: FREDERICK DOUGLASS ELEMENTARY | C72: 30 | D72: 10 | E72: 8 | F72: 12
A73: 1371 | B73: MARJORY STONEMAN DOUGLAS ELEM | C73: 60 | D73: 13 | E73: 27 | F73: 20
A74: 1401 | B74: CHARLES R. DREW K-8 CENTER | C74: 37 | D74: 4 | E74: 4 | F74: 19 | G74: 10
A75: 1441 | B75: PAUL LAURENCE DUNBAR K-8 CTR | C75: 51 | D75: 6 | E75: 12 | F75: 23 | G75: 10
A76: 1481 | B76: JOHN G. DUPUIS ELEMENTARY | C76: 34 | D76: 2 | E76: 14 | F76: 18
A77: 1521 | B77: AMELIA EARHART ELEMENTARY | C77: 36 | D77: 13 | E77: 11 | F77: 12
A78: 1561 | B78: EARLINGTON HEIGHTS ELEMENTARY | C78: 47 | D78: 1 | E78: 22 | F78: 24
A79: 1601 | B79: EDISON PARK K-8 CENTER | C79: 45 | D79: 8 | E79: 14 | F79: 14 | G79: 9
A80: 1641 | B80: EMERSON ELEMENTARY | C80: 20 | D80: 6 | E80: 7 | F80: 7
A81: 1681 | B81: LILLIE C. EVANS K-8 CENTER | C81: 62 | D81: 5 | E81: 22 | F81: 7 | G81: 19 | H81: 6 | I81: 3
A82: 1691 | B82: CHRISTINA M. EVE ELEMENTARY | C82: 13 | D82: 1 | E82: 5 | F82: 7
A83: 1721 | B83: EVERGLADES K-8 CENTER | C83: 81 | D83: 3 | E83: 11 | F83: 8 | G83: 9 | H83: 29 | I83: 21
A84: 1761 | B84: DAVID FAIRCHILD ELEMENTARY | C84: 9 | E84: 2 | F84: 7
A85: 1801 | B85: FAIRLAWN ELEMENTARY | C85: 37 | D85: 2 | E85: 17 | F85: 18
A86: 1811 | B86: DANTE B. FASCELL ELEMENTARY | C86: 16 | E86: 9 | F86: 7
A87: 1841 | B87: FLAGAMI ELEMENTARY | C87: 39 | D87: 2 | E87: 15 | F87: 22
A88: 1881 | B88: HENRY M. FLAGLER ELEMENTARY | C88: 56 | D88: 11 | E88: 25 | F88: 20
A89: 1921 | B89: FLAMINGO ELEMENTARY | C89: 85 | D89: 19 | E89: 32 | F89: 34
A90: 2001 | B90: FLORIDA CITY ELEMENTARY | C90: 78 | D90: 9 | E90: 35 | F90: 34
A91: 2003 | B91: BRIDGEPOINT ACADEMY | C91: 6 | D91: 1 | E91: 3 | F91: 2
A92: 2006 | B92: RICHARD ALLEN LEADERSHIP ACAD | C92: 6 | E92: 5 | F92: 1
A93: 2007 | B93: SOMERSET ACADEMY ELEMENTARY | C93: 3 | E93: 1 | F93: 2
A94: 2012 | B94: SOMERSET ARTS ACADEMY | C94: 12 | D94: 1 | E94: 9 | F94: 2
A95: 2013 | B95: BRIDGEPOINT ACAD GREATER MIAMI | C95: 7 | E95: 3 | F95: 4
A96: 2021 | B96: GLORIA FLOYD ELEMENTARY | C96: 21 | D96: 8 | E96: 5 | F96: 8
A97: 2041 | B97: BENJAMIN FRANKLIN K-8 CENTER | C97: 63 | D97: 5 | E97: 12 | F97: 15 | G97: 19 | H97: 12
A98: 2060 | B98: GIBSON CHARTER SCHOOL | C98: 48 | D98: 3 | E98: 6 | F98: 10 | G98: 12 | H98: 7 | I98: 10
A99: 2081 | B99: FULFORD ELEMENTARY | C99: 52 | D99: 11 | E99: 22 | F99: 19
A100: 2111 | B100: HIALEAH GARDENS ELEMENTARY | C100: 33 | D100: 8 | E100: 18 | F100: 7
A101: 2151 | B101: JACK D. GORDON ELEMENTARY | C101: 38 | D101: 8 | E101: 20 | F101: 10
A102: 2161 | B102: GOLDEN GLADES ELEMENTARY | C102: 29 | D102: 6 | E102: 14 | F102: 9
A103: 2181 | B103: JOELLA C. GOOD ELEMENTARY | C103: 60 | D103: 8 | E103: 22 | F103: 30
A104: 2191 | B104: SPANISH LAKE ELEMENTARY | C104: 64 | D104: 8 | E104: 24 | F104: 32
A105: 2241 | B105: GRATIGNY ELEMENTARY | C105: 81 | D105: 11 | E105: 22 | F105: 27 | G105: 21
A106: 2261 | B106: GREENGLADE ELEMENTARY | C106: 18 | E106: 11 | F106: 7
A107: 2281 | B107: GREYNOLDS PARK ELEMENTARY | C107: 67 | D107: 14 | E107: 24 | F107: 29
A108: 2321 | B108: GULFSTREAM ELEMENTARY | C108: 27 | D108: 6 | E108: 7 | F108: 14
A109: 2331 | B109: CHARLES R. HADLEY ELEMENTARY | C109: 30 | D109: 4 | E109: 11 | F109: 15
A110: 2341 | B110: JOE HALL ELEMENTARY | C110: 32 | D110: 4 | E110: 12 | F110: 16
A111: 2351 | B111: ENEIDA MASSAS HARTNER ELEM | C111: 41 | D111: 11 | E111: 16 | F111: 14
A112: 2361 | B112: HIALEAH ELEMENTARY | C112: 53 | D112: 6 | E112: 21 | F112: 26
A113: 2371 | B113: WEST HIALEAH GARDENS ELEM | C113: 59 | D113: 9 | E113: 25 | F113: 25
A114: 2401 | B114: HIBISCUS ELEMENTARY | C114: 34 | D114: 8 | E114: 10 | F114: 16
A115: 2441 | B115: VIRGINIA A BOONE/HIGHLAND OAKS | C115: 21 | D115: 1 | E115: 12 | F115: 8
A116: 2501 | B116: HOLMES ELEMENTARY | C116: 66 | D116: 22 | E116: 19 | F116: 25
A117: 2511 | B117: ZORA NEALE HURSTON ELEMENTARY | C117: 33 | D117: 4 | E117: 19 | F117: 10
A118: 2521 | B118: OLIVER HOOVER ELEMENTARY | C118: 25 | D118: 4 | E118: 12 | F118: 9
A119: 2541 | B119: HOWARD DRIVE ELEMENTARY | C119: 30 | D119: 4 | E119: 15 | F119: 11
A120: 2581 | B120: MADIE IVES ELEMENTARY | C120: 43 | D120: 10 | E120: 15 | F120: 18
A121: 2641 | B121: KENDALE ELEMENTARY | C121: 8 | D121: 1 | E121: 4 | F121: 3
A122: 2651 | B122: KENDALE LAKES ELEMENTARY | C122: 23 | D122: 5 | E122: 13 | F122: 5
A123: 2661 | B123: KENSINGTON PARK ELEMENTARY | C123: 121 | D123: 27 | E123: 48 | F123: 46
A124: 2701 | B124: KENWOOD K-8 CENTER | C124: 69 | D124: 8 | E124: 8 | F124: 11 | G124: 20 | H124: 7 | I124: 15
A125: 2741 | B125: KEY BISCAYNE K-8 CENTER | C125: 32 | D125: 3 | E125: 6 | F125: 4 | G125: 6 | H125: 6 | I125: 7
A126: 2781 | B126: KINLOCH PARK ELEMENTARY | C126: 75 | D126: 11 | E126: 19 | F126: 45
A127: 2801 | B127: LAKE STEVENS ELEMENTARY | C127: 23 | D127: 3 | E127: 10 | F127: 10
A128: 2821 | B128: LAKEVIEW ELEMENTARY | C128: 45 | D128: 9 | E128: 14 | F128: 22
A129: 2881 | B129: LEEWOOD K-8 CENTER | C129: 22 | E129: 5 | F129: 6 | G129: 9 | H129: 2
A130: 2891 | B130: WILLIAM LEHMAN ELEMENTARY | C130: 14 | D130: 2 | E130: 9 | F130: 3
A131: 2901 | B131: LEISURE CITY K-8 CENTER | C131: 170 | D131: 18 | E131: 27 | F131: 30 | G131: 29 | H131: 36 | I131: 30
A132: 2911 | B132: LINDA LENTIN K-8 CENTER | C132: 143 | D132: 6 | E132: 24 | F132: 41 | G132: 24 | H132: 25 | I132: 23
A133: 2941 | B133: LAURA C. SAUNDERS ELEMENTARY | C133: 73 | D133: 21 | E133: 24 | F133: 28
A134: 2981 | B134: LIBERTY CITY ELEMENTARY | C134: 46 | D134: 3 | E134: 27 | F134: 16
A135: 3021 | B135: JESSE J MCCRARY JR ELEMENTARY | C135: 60 | D135: 16 | E135: 26 | F135: 18
A136: 3024 | B136: FLORIDA INTERNATIONAL EL ACAD | C136: 55 | D136: 18 | E136: 19 | F136: 18
A137: 3025 | B137: ADVANTAGE ACADEMY SANTA FE | C137: 4 | E137: 4
A138: 3029 | B138: DORAL ACADEMY OF TECHNOLOGY | C138: 2 | G138: 2
A139: 3030 | B139: DORAL ACADEMY | C139: 13 | D139: 1 | E139: 9 | F139: 3
A140: 3032 | B140: PALM GLADES PREPATORY ACADEMY | C140: 75 | G140: 31 | H140: 24 | I140: 20
A141: 3034 | B141: BRIDGEPOINT ACAD VILLAGE GREEN | C141: 3 | E141: 2 | F141: 1
A142: 3035 | B142: RAMZ ACADEMY ELEM MIAMI CAMPUS | C142: 2 | E142: 1 | F142: 1
A143: 3041 | B143: LORAH PARK ELEMENTARY | C143: 31 | D143: 9 | E143: 10 | F143: 12
A144: 3051 | B144: TOUSSAINT L'OUVERTURE ELEM | C144: 51 | D144: 16 | E144: 20 | F144: 15
A145: 3061 | B145: LUDLAM ELEMENTARY | C145: 14 | E145: 4 | F145: 10
A146: 3100 | B146: MATER ACADEMY EAST CHARTER | C146: 6 | D146: 4 | E146: 1 | F146: 1
A147: 3101 | B147: FRANK C. MARTIN K-8 CENTER | C147: 14 | E147: 3 | F147: 3 | G147: 3 | H147: 1 | I147: 4
A148: 3111 | B148: WESLEY MATTHEWS ELEMENTARY | C148: 15 | E148: 6 | F148: 9
A149: 3141 | B149: MEADOWLANE ELEMENTARY | C149: 85 | D149: 11 | E149: 24 | F149: 50
A150: 3181 | B150: MELROSE ELEMENTARY | C150: 41 | D150: 4 | E150: 19 | F150: 18
A151: 3191 | B151: ADA MERRITT K-8 CENTER | C151: 7 | E151: 2 | F151: 1 | G151: 2 | H151: 2
A152: 3241 | B152: MIAMI GARDENS ELEMENTARY | C152: 28 | D152: 4 | E152: 10 | F152: 14
A153: 3261 | B153: MIAMI HEIGHTS ELEMENTARY | C153: 58 | D153: 15 | E153: 26 | F153: 17
A154: 3281 | B154: MIAMI LAKES K-8 CENTER | C154: 86 | D154: 5 | E154: 12 | F154: 15 | G154: 16 | H154: 19 | I154: 19
A155: 3301 | B155: MIAMI PARK ELEMENTARY | C155: 56 | D155: 15 | E155: 18 | F155: 23
A156: 3341 | B156: MIAMI SHORES ELEMENTARY | C156: 33 | D156: 15 | E156: 8 | F156: 10
A157: 3381 | B157: MIAMI SPRINGS ELEMENTARY | C157: 25 | D157: 4 | E157: 7 | F157: 14
A158: 3421 | B158: M.A. MILAM K-8 CENTER | C158: 122 | D158: 9 | E158: 17 | F158: 16 | G158: 18 | H158: 31 | I158: 31
A159: 3431 | B159: PHYLLIS RUTH MILLER ELEMENTARY | C159: 38 | D159: 5 | E159: 16 | F159: 17
A160: 3501 | B160: MORNINGSIDE K-8 ACADEMY | C160: 32 | D160: 7 | E160: 8 | F160: 12 | G160: 5
A161: 3541 | B161: ROBERT RUSSA MOTON ELEMENTARY | C161: 24 | D161: 7 | E161: 11 | F161: 6
A162: 3581 | B162: MYRTLE GROVE K-8 CENTER | C162: 48 | D162: 8 | E162: 14 | F162: 17 | G162: 9
A163: 3600 | B163: DOWNTOWN MIAMI CHARTER SCHOOL | C163: 33 | D163: 2 | E163: 6 | F163: 12 | G163: 13
A164: 3610 | B164: KEYS GATE CHARTER SCHOOL | C164: 191 | D164: 12 | E164: 20 | F164: 25 | G164: 28 | H164: 60 | I164: 46
A165: 3621 | B165: COCONUT PALM K-8 ACADEMY | C165: 151 | D165: 18 | E165: 28 | F165: 29 | G165: 33 | H165: 24 | I165: 19
A166: 3661 | B166: NATURAL BRIDGE ELEMENTARY | C166: 54 | D166: 9 | E166: 23 | F166: 22
A167: 3701 | B167: NORLAND ELEMENTARY | C167: 37 | D167: 6 | E167: 10 | F167: 21
A168: 3741 | B168: NORTH BEACH ELEMENTARY | C168: 10 | D168: 2 | E168: 3 | F168: 5
A169: 3781 | B169: BARBARA HAWKINS ELEMENTARY | C169: 23 | D169: 6 | E169: 5 | F169: 12
A170: 3821 | B170: NORTH COUNTY K-8 CENTER | C170: 45 | D170: 7 | E170: 6 | F170: 10 | G170: 14 | H170: 8
A171: 3861 | B171: NORTH GLADE ELEMENTARY | C171: 32 | D171: 4 | E171: 17 | F171: 11
A172: 3901 | B172: NORTH HIALEAH ELEMENTARY | C172: 49 | D172: 11 | E172: 25 | F172: 13
A173: 3941 | B173: NORTH MIAMI ELEMENTARY | C173: 59 | D173: 14 | E173: 29 | F173: 16
A174: 3981 | B174: NORTH TWIN LAKES ELEMENTARY | C174: 31 | D174: 4 | E174: 16 | F174: 11
A175: 4000 | B175: MIAMI CHILDREN'S MUSEUM | C175: 4 | F175: 4
A176: 4001 | B176: NORWOOD ELEMENTARY | C176: 23 | D176: 2 | E176: 13 | F176: 8
A177: 4012 | B177: SOMERSET ACAD AT SILVER PALMS | C177: 12 | D177: 1 | E177: 6 | F177: 5
A178: 4021 | B178: OAK GROVE ELEMENTARY | C178: 71 | D178: 11 | E178: 19 | F178: 23 | G178: 18
A179: 4031 | B179: GATEWAY ENVIRONMENTAL K-8 | C179: 135 | D179: 17 | E179: 36 | F179: 24 | G179: 30 | H179: 28
A180: 4061 | B180: OJUS ELEMENTARY | C180: 32 | D180: 8 | E180: 10 | F180: 14
A181: 4071 | B181: OLINDA ELEMENTARY | C181: 32 | D181: 6 | E181: 18 | F181: 8
A182: 4091 | B182: OLYMPIA HEIGHTS ELEMENTARY | C182: 17 | D182: 3 | E182: 9 | F182: 5
A183: 4121 | B183: DR. ROBERT B. INGRAM EL | C183: 32 | D183: 10 | E183: 15 | F183: 7
A184: 4171 | B184: ORCHARD VILLA ELEMENTARY | C184: 40 | D184: 6 | E184: 17 | F184: 17
A185: 4221 | B185: PALMETTO ELEMENTARY | C185: 16 | D185: 3 | E185: 7 | F185: 6
A186: 4241 | B186: PALM LAKES ELEMENTARY | C186: 63 | D186: 9 | E186: 22 | F186: 32
